Workbook

Sheet README
A1: 自己相関(auto-correlation)計算用EXCELシート
A3: ●パラメータ | B3: 値 | D3: 反映されるシートと列
A4: サンプリング周波数 | B4: 44100 | D4: calcInputのTime列
A5: 入力サイン波Aの周波数 | B5: 1000 | D5: calcInputの入力A列
A6: 入力サイン波Aの振幅 | B6: 1 | D6: calcInputの入力A列
A7: 入力サイン波Bの周波数 | B7: 4000 | D7: calcInputの入力B列
A8: 入力サイン波Bの振幅 | B8: 0 | D8: calcInputの入力B列
A9: オフセット | B9: 0 | D9: calcInputのA+B+Offset列
A11: ●シートの説明（詳しくは弊社サイトhttp://digitalfilter.comの「お役立ちEXCEL for Filters」ご参照）
A12: calcInput | B12: 自己相関関数への入力
A13: shifter | B13: 遅延器。Kサンプル遅延。K = 0, 1, 2, … 44
A14: multiplyer | B14: 乗算器。0サンプル遅延＊Kサンプル遅延
A15: accumulator | B15: 累積器。自己相関関数の出力
A17: ●自己相関関数
B24: 本シートでは N = 500, M = 45 とする
A26: 改訂履歴
A27: 2024/04/08 : version 1.0 | B27: 初版
A29: by Toshio Iwata at DIGITALFILTER.COM, all rights reserved
A31: 詳しい説明・使用法は弊社サイトhttp://digitalfilter.comの「お役立ちEXCEL for Filters」を参考にしてください
A32: 本EXCELシートの無断配布を禁じます（上記サイトからダウンロードして使用してください）
A33: 本EXCELシートはユーザー各自の責任において使用してください

Sheet calcInput
A1: i = | B1: Time | C1: 入力A | D1: 入力B | E1: A+B+Offset
A2: 0 | B2: =A2/README!B$4 -> 0 | C2: =README!B$6*SIN(2*PI()*B2*README!B$5) -> 0 | D2: =README!B$8*SIN(2*PI()*B2*README!B$7) -> 0 | E2: =C2+D2+README!B$9 -> 0
A3: 1 | B3: =A3/README!B$4 -> 2.267573696e-05 | C3: =README!B$6*SIN(2*PI()*B3*README!B$5) -> 0.141994318 | D3: =README!B$8*SIN(2*PI()*B3*README!B$7) -> 0 | E3: =C3+D3+README!B$9 -> 0.141994318
A4: 2 | B4: =A4/README!B$4 -> 4.535147392e-05 | C4: =README!B$6*SIN(2*PI()*B4*README!B$5) -> 0.2811111133 | D4: =README!B$8*SIN(2*PI()*B4*README!B$7) -> 0 | E4: =C4+D4+README!B$9 -> 0.2811111133
A5: 3 | B5: =A5/README!B$4 -> 6.802721088e-05 | C5: =README!B$6*SIN(2*PI()*B5*README!B$5) -> 0.4145311767 | D5: =README!B$8*SIN(2*PI()*B5*README!B$7) -> 0 | E5: =C5+D5+README!B$9 -> 0.4145311767
A6: 4 | B6: =A6/README!B$4 -> 9.070294785e-05 | C6: =README!B$6*SIN(2*PI()*B6*README!B$5) -> 0.5395507432 | D6: =README!B$8*SIN(2*PI()*B6*README!B$7) -> 0 | E6: =C6+D6+README!B$9 -> 0.5395507432
A7: 5 | B7: =A7/README!B$4 -> 0.0001133786848 | C7: =README!B$6*SIN(2*PI()*B7*README!B$5) -> 0.6536362845 | D7: =README!B$8*SIN(2*PI()*B7*README!B$7) -> 0 | E7: =C7+D7+README!B$9 -> 0.6536362845
A8: 6 | B8: =A8/README!B$4 -> 0.0001360544218 | C8: =README!B$6*SIN(2*PI()*B8*README!B$5) -> 0.7544758509 | D8: =README!B$8*SIN(2*PI()*B8*README!B$7) -> 0 | E8: =C8+D8+README!B$9 -> 0.7544758509
A9: 7 | B9: =A9/README!B$4 -> 0.0001587301587 | C9: =README!B$6*SIN(2*PI()*B9*README!B$5) -> 0.8400259232 | D9: =README!B$8*SIN(2*PI()*B9*README!B$7) -> 0 | E9: =C9+D9+README!B$9 -> 0.8400259232
A10: 8 | B10: =A10/README!B$4 -> 0.0001814058957 | C10: =README!B$6*SIN(2*PI()*B10*README!B$5) -> 0.9085528243 | D10: =README!B$8*SIN(2*PI()*B10*README!B$7) -> 0 | E10: =C10+D10+README!B$9 -> 0.9085528243
A11: 9 | B11: =A11/README!B$4 -> 0.0002040816327 | C11: =README!B$6*SIN(2*PI()*B11*README!B$5) -> 0.958667853 | D11: =README!B$8*SIN(2*PI()*B11*README!B$7) -> 0 | E11: =C11+D11+README!B$9 -> 0.958667853
A12: 10 | B12: =A12/README!B$4 -> 0.0002267573696 | C12: =README!B$6*SIN(2*PI()*B12*README!B$5) -> 0.9893554255 | D12: =README!B$8*SIN(2*PI()*B12*README!B$7) -> 0 | E12: =C12+D12+README!B$9 -> 0.9893554255
A13: 11 | B13: =A13/README!B$4 -> 0.0002494331066 | C13: =README!B$6*SIN(2*PI()*B13*README!B$5) -> 0.9999936565 | D13: =README!B$8*SIN(2*PI()*B13*README!B$7) -> 0 | E13: =C13+D13+README!B$9 -> 0.9999936565
A14: 12 | B14: =A14/README!B$4 -> 0.0002721088435 | C14: =README!B$6*SIN(2*PI()*B14*README!B$5) -> 0.9903669615 | D14: =README!B$8*SIN(2*PI()*B14*README!B$7) -> 0 | E14: =C14+D14+README!B$9 -> 0.9903669615
A15: 13 | B15: =A15/README!B$4 -> 0.0002947845805 | C15: =README!B$6*SIN(2*PI()*B15*README!B$5) -> 0.9606704261 | D15: =README!B$8*SIN(2*PI()*B15*README!B$7) -> 0 | E15: =C15+D15+README!B$9 -> 0.9606704261
A16: 14 | B16: =A16/README!B$4 -> 0.0003174603175 | C16: =README!B$6*SIN(2*PI()*B16*README!B$5) -> 0.9115058523 | D16: =README!B$8*SIN(2*PI()*B16*README!B$7) -> 0 | E16: =C16+D16+README!B$9 -> 0.9115058523
A17: 15 | B17: =A17/README!B$4 -> 0.0003401360544 | C17: =README!B$6*SIN(2*PI()*B17*README!B$5) -> 0.8438695628 | D17: =README!B$8*SIN(2*PI()*B17*README!B$7) -> 0 | E17: =C17+D17+README!B$9 -> 0.8438695628
A18: 16 | B18: =A18/README!B$4 -> 0.0003628117914 | C18: =README!B$6*SIN(2*PI()*B18*README!B$5) -> 0.7591322106 | D18: =README!B$8*SIN(2*PI()*B18*README!B$7) -> 0 | E18: =C18+D18+README!B$9 -> 0.7591322106
A19: 17 | B19: =A19/README!B$4 -> 0.0003854875283 | C19: =README!B$6*SIN(2*PI()*B19*README!B$5) -> 0.6590110028 | D19: =README!B$8*SIN(2*PI()*B19*README!B$7) -> 0 | E19: =C19+D19+README!B$9 -> 0.6590110028
A20: 18 | B20: =A20/README!B$4 -> 0.0004081632653 | C20: =README!B$6*SIN(2*PI()*B20*README!B$5) -> 0.5455349012 | D20: =README!B$8*SIN(2*PI()*B20*README!B$7) -> 0 | E20: =C20+D20+README!B$9 -> 0.5455349012
A21: 19 | B21: =A21/README!B$4 -> 0.0004308390023 | C21: =README!B$6*SIN(2*PI()*B21*README!B$5) -> 0.4210035051 | D21: =README!B$8*SIN(2*PI()*B21*README!B$7) -> 0 | E21: =C21+D21+README!B$9 -> 0.4210035051
A22: 20 | B22: =A22/README!B$4 -> 0.0004535147392 | C22: =README!B$6*SIN(2*PI()*B22*README!B$5) -> 0.2879404501 | D22: =README!B$8*SIN(2*PI()*B22*README!B$7) -> 0 | E22: =C22+D22+README!B$9 -> 0.2879404501
A23: 21 | B23: =A23/README!B$4 -> 0.0004761904762 | C23: =README!B$6*SIN(2*PI()*B23*README!B$5) -> 0.1490422662 | D23: =README!B$8*SIN(2*PI()*B23*README!B$7) -> 0 | E23: =C23+D23+README!B$9 -> 0.1490422662
A24: 22 | B24: =A24/README!B$4 -> 0.0004988662132 | C24: =README!B$6*SIN(2*PI()*B24*README!B$5) -> 0.007123732612 | D24: =README!B$8*SIN(2*PI()*B24*README!B$7) -> 0 | E24: =C24+D24+README!B$9 -> 0.007123732612
A25: 23 | B25: =A25/README!B$4 -> 0.0005215419501 | C25: =README!B$6*SIN(2*PI()*B25*README!B$5) -> -0.1349391638 | D25: =README!B$8*SIN(2*PI()*B25*README!B$7) -> 0 | E25: =C25+D25+README!B$9 -> -0.1349391638
A26: 24 | B26: =A26/README!B$4 -> 0.0005442176871 | C26: =README!B$6*SIN(2*PI()*B26*README!B$5) -> -0.2742675107 | D26: =README!B$8*SIN(2*PI()*B26*README!B$7) -> 0 | E26: =C26+D26+README!B$9 -> -0.2742675107
A27: 25 | B27: =A27/README!B$4 -> 0.000566893424 | C27: =README!B$6*SIN(2*PI()*B27*README!B$5) -> -0.4080378115 | D27: =README!B$8*SIN(2*PI()*B27*README!B$7) -> 0 | E27: =C27+D27+README!B$9 -> -0.4080378115
A28: 26 | B28: =A28/README!B$4 -> 0.000589569161 | C28: =README!B$6*SIN(2*PI()*B28*README!B$5) -> -0.5335392039 | D28: =README!B$8*SIN(2*PI()*B28*README!B$7) -> 0 | E28: =C28+D28+README!B$9 -> -0.5335392039
A29: 27 | B29: =A29/README!B$4 -> 0.000612244898 | C29: =README!B$6*SIN(2*PI()*B29*README!B$5) -> -0.6482283953 | D29: =README!B$8*SIN(2*PI()*B29*README!B$7) -> 0 | E29: =C29+D29+README!B$9 -> -0.6482283953
A30: 28 | B30: =A30/README!B$4 -> 0.0006349206349 | C30: =README!B$6*SIN(2*PI()*B30*README!B$5) -> -0.749781203 | D30: =README!B$8*SIN(2*PI()*B30*README!B$7) -> 0 | E30: =C30+D30+README!B$9 -> -0.749781203
A31: 29 | B31: =A31/README!B$4 -> 0.0006575963719 | C31: =README!B$6*SIN(2*PI()*B31*README!B$5) -> -0.8361396537 | D31: =README!B$8*SIN(2*PI()*B31*README!B$7) -> 0 | E31: =C31+D31+README!B$9 -> -0.8361396537
A32: 30 | B32: =A32/README!B$4 -> 0.0006802721088 | C32: =README!B$6*SIN(2*PI()*B32*README!B$5) -> -0.9055536889 | D32: =README!B$8*SIN(2*PI()*B32*README!B$7) -> 0 | E32: =C32+D32+README!B$9 -> -0.9055536889
A33: 31 | B33: =A33/README!B$4 -> 0.0007029478458 | C33: =README!B$6*SIN(2*PI()*B33*README!B$5) -> -0.9566166292 | D33: =README!B$8*SIN(2*PI()*B33*README!B$7) -> 0 | E33: =C33+D33+README!B$9 -> -0.9566166292
A34: 32 | B34: =A34/README!B$4 -> 0.0007256235828 | C34: =README!B$6*SIN(2*PI()*B34*README!B$5) -> -0.9882936815 | D34: =README!B$8*SIN(2*PI()*B34*README!B$7) -> 0 | E34: =C34+D34+README!B$9 -> -0.9882936815
A35: 33 | B35: =A35/README!B$4 -> 0.0007482993197 | C35: =README!B$6*SIN(2*PI()*B35*README!B$5) -> -0.9999429086 | D35: =README!B$8*SIN(2*PI()*B35*README!B$7) -> 0 | E35: =C35+D35+README!B$9 -> -0.9999429086
A36: 34 | B36: =A36/README!B$4 -> 0.0007709750567 | C36: =README!B$6*SIN(2*PI()*B36*README!B$5) -> -0.9913282381 | D36: =README!B$8*SIN(2*PI()*B36*README!B$7) -> 0 | E36: =C36+D36+README!B$9 -> -0.9913282381
A37: 35 | B37: =A37/README!B$4 -> 0.0007936507937 | C37: =README!B$6*SIN(2*PI()*B37*README!B$5) -> -0.962624247 | D37: =README!B$8*SIN(2*PI()*B37*README!B$7) -> 0 | E37: =C37+D37+README!B$9 -> -0.962624247
A38: 36 | B38: =A38/README!B$4 -> 0.0008163265306 | C38: =README!B$6*SIN(2*PI()*B38*README!B$5) -> -0.914412623 | D38: =README!B$8*SIN(2*PI()*B38*README!B$7) -> 0 | E38: =C38+D38+README!B$9 -> -0.914412623
A39: 37 | B39: =A39/README!B$4 -> 0.0008390022676 | C39: =README!B$6*SIN(2*PI()*B39*README!B$5) -> -0.8476703775 | D39: =README!B$8*SIN(2*PI()*B39*README!B$7) -> 0 | E39: =C39+D39+README!B$9 -> -0.8476703775
A40: 38 | B40: =A40/README!B$4 -> 0.0008616780045 | C40: =README!B$6*SIN(2*PI()*B40*README!B$5) -> -0.7637500456 | D40: =README!B$8*SIN(2*PI()*B40*README!B$7) -> 0 | E40: =C40+D40+README!B$9 -> -0.7637500456
A41: 39 | B41: =A41/README!B$4 -> 0.0008843537415 | C41: =README!B$6*SIN(2*PI()*B41*README!B$5) -> -0.6643522775 | D41: =README!B$8*SIN(2*PI()*B41*README!B$7) -> 0 | E41: =C41+D41+README!B$9 -> -0.6643522775
A42: 40 | B42: =A42/README!B$4 -> 0.0009070294785 | C42: =README!B$6*SIN(2*PI()*B42*README!B$5) -> -0.5514913743 | D42: =README!B$8*SIN(2*PI()*B42*README!B$7) -> 0 | E42: =C42+D42+README!B$9 -> -0.5514913743
A43: 41 | B43: =A43/README!B$4 -> 0.0009297052154 | C43: =README!B$6*SIN(2*PI()*B43*README!B$5) -> -0.4274544684 | D43: =README!B$8*SIN(2*PI()*B43*README!B$7) -> 0 | E43: =C43+D43+README!B$9 -> -0.4274544684
A44: 42 | B44: =A44/README!B$4 -> 0.0009523809524 | C44: =README!B$6*SIN(2*PI()*B44*README!B$5) -> -0.2947551744 | D44: =README!B$8*SIN(2*PI()*B44*README!B$7) -> 0 | E44: =C44+D44+README!B$9 -> -0.2947551744
A45: 43 | B45: =A45/README!B$4 -> 0.0009750566893 | C45: =README!B$6*SIN(2*PI()*B45*README!B$5) -> -0.1560826508 | D45: =README!B$8*SIN(2*PI()*B45*README!B$7) -> 0 | E45: =C45+D45+README!B$9 -> -0.1560826508
A46: 44 | B46: =A46/README!B$4 -> 0.0009977324263 | C46: =README!B$6*SIN(2*PI()*B46*README!B$5) -> -0.01424710371 | D46: =README!B$8*SIN(2*PI()*B46*README!B$7) -> 0 | E46: =C46+D46+README!B$9 -> -0.01424710371
A47: 45 | B47: =A47/README!B$4 -> 0.001020408163 | C47: =README!B$6*SIN(2*PI()*B47*README!B$5) -> 0.1278771617 | D47: =README!B$8*SIN(2*PI()*B47*README!B$7) -> 0 | E47: =C47+D47+README!B$9 -> 0.1278771617
A48: 46 | B48: =A48/README!B$4 -> 0.0010430839 | C48: =README!B$6*SIN(2*PI()*B48*README!B$5) -> 0.2674099894 | D48: =README!B$8*SIN(2*PI()*B48*README!B$7) -> 0 | E48: =C48+D48+README!B$9 -> 0.2674099894
A49: 47 | B49: =A49/README!B$4 -> 0.001065759637 | C49: =README!B$6*SIN(2*PI()*B49*README!B$5) -> 0.4015237392 | D49: =README!B$8*SIN(2*PI()*B49*README!B$7) -> 0 | E49: =C49+D49+README!B$9 -> 0.4015237392
A50: 48 | B50: =A50/README!B$4 -> 0.001088435374 | C50: =README!B$6*SIN(2*PI()*B50*README!B$5) -> 0.5275005885 | D50: =README!B$8*SIN(2*PI()*B50*README!B$7) -> 0 | E50: =C50+D50+README!B$9 -> 0.5275005885
A51: 49 | B51: =A51/README!B$4 -> 0.001111111111 | C51: =README!B$6*SIN(2*PI()*B51*README!B$5) -> 0.6427876097 | D51: =README!B$8*SIN(2*PI()*B51*README!B$7) -> 0 | E51: =C51+D51+README!B$9 -> 0.6427876097
A52: 50 | B52: =A52/README!B$4 -> 0.001133786848 | C52: =README!B$6*SIN(2*PI()*B52*README!B$5) -> 0.745048505 | D52: =README!B$8*SIN(2*PI()*B52*README!B$7) -> 0 | E52: =C52+D52+README!B$9 -> 0.745048505
A53: 51 | B53: =A53/README!B$4 -> 0.001156462585 | C53: =README!B$6*SIN(2*PI()*B53*README!B$5) -> 0.8322109517 | D53: =README!B$8*SIN(2*PI()*B53*README!B$7) -> 0 | E53: =C53+D53+README!B$9 -> 0.8322109517
A54: 52 | B54: =A54/README!B$4 -> 0.001179138322 | C54: =README!B$6*SIN(2*PI()*B54*README!B$5) -> 0.9025085982 | D54: =README!B$8*SIN(2*PI()*B54*README!B$7) -> 0 | E54: =C54+D54+README!B$9 -> 0.9025085982
A55: 53 | B55: =A55/README!B$4 -> 0.001201814059 | C55: =README!B$6*SIN(2*PI()*B55*README!B$5) -> 0.9545168589 | D55: =README!B$8*SIN(2*PI()*B55*README!B$7) -> 0 | E55: =C55+D55+README!B$9 -> 0.9545168589
A56: 54 | B56: =A56/README!B$4 -> 0.001224489796 | C56: =README!B$6*SIN(2*PI()*B56*README!B$5) -> 0.9871817834 | D56: =README!B$8*SIN(2*PI()*B56*README!B$7) -> 0 | E56: =C56+D56+README!B$9 -> 0.9871817834
A57: 55 | B57: =A57/README!B$4 -> 0.001247165533 | C57: =README!B$6*SIN(2*PI()*B57*README!B$5) -> 0.9998414154 | D57: =README!B$8*SIN(2*PI()*B57*README!B$7) -> 0 | E57: =C57+D57+README!B$9 -> 0.9998414154
A58: 56 | B58: =A58/README!B$4 -> 0.00126984127 | C58: =README!B$6*SIN(2*PI()*B58*README!B$5) -> 0.9922392066 | D58: =README!B$8*SIN(2*PI()*B58*README!B$7) -> 0 | E58: =C58+D58+README!B$9 -> 0.9922392066
A59: 57 | B59: =A59/README!B$4 -> 0.001292517007 | C59: =README!B$6*SIN(2*PI()*B59*README!B$5) -> 0.9645292163 | D59: =README!B$8*SIN(2*PI()*B59*README!B$7) -> 0 | E59: =C59+D59+README!B$9 -> 0.9645292163
A60: 58 | B60: =A60/README!B$4 -> 0.001315192744 | C60: =README!B$6*SIN(2*PI()*B60*README!B$5) -> 0.9172729889 | D60: =README!B$8*SIN(2*PI()*B60*README!B$7) -> 0 | E60: =C60+D60+README!B$9 -> 0.9172729889
A61: 59 | B61: =A61/README!B$4 -> 0.001337868481 | C61: =README!B$6*SIN(2*PI()*B61*README!B$5) -> 0.8514281745 | D61: =README!B$8*SIN(2*PI()*B61*README!B$7) -> 0 | E61: =C61+D61+README!B$9 -> 0.8514281745
A62: 60 | B62: =A62/README!B$4 -> 0.001360544218 | C62: =README!B$6*SIN(2*PI()*B62*README!B$5) -> 0.7683291217 | D62: =README!B$8*SIN(2*PI()*B62*README!B$7) -> 0 | E62: =C62+D62+README!B$9 -> 0.7683291217
A63: 61 | B63: =A63/README!B$4 -> 0.001383219955 | C63: =README!B$6*SIN(2*PI()*B63*README!B$5) -> 0.6696598375 | D63: =README!B$8*SIN(2*PI()*B63*README!B$7) -> 0 | E63: =C63+D63+README!B$9 -> 0.6696598375
A64: 62 | B64: =A64/README!B$4 -> 0.001405895692 | C64: =README!B$6*SIN(2*PI()*B64*README!B$5) -> 0.5574198602 | D64: =README!B$8*SIN(2*PI()*B64*README!B$7) -> 0 | E64: =C64+D64+README!B$9 -> 0.5574198602
A65: 63 | B65: =A65/README!B$4 -> 0.001428571429 | C65: =README!B$6*SIN(2*PI()*B65*README!B$5) -> 0.4338837391 | D65: =README!B$8*SIN(2*PI()*B65*README!B$7) -> 0 | E65: =C65+D65+README!B$9 -> 0.4338837391
A66: 64 | B66: =A66/README!B$4 -> 0.001451247166 | C66: =README!B$6*SIN(2*PI()*B66*README!B$5) -> 0.3015549404 | D66: =README!B$8*SIN(2*PI()*B66*README!B$7) -> 0 | E66: =C66+D66+README!B$9 -> 0.3015549404
A67: 65 | B67: =A67/README!B$4 -> 0.001473922902 | C67: =README!B$6*SIN(2*PI()*B67*README!B$5) -> 0.1631151144 | D67: =README!B$8*SIN(2*PI()*B67*README!B$7) -> 0 | E67: =C67+D67+README!B$9 -> 0.1631151144
A68: 66 | B68: =A68/README!B$4 -> 0.001496598639 | C68: =README!B$6*SIN(2*PI()*B68*README!B$5) -> 0.02136975179 | D68: =README!B$8*SIN(2*PI()*B68*README!B$7) -> 0 | E68: =C68+D68+README!B$9 -> 0.02136975179
A69: 67 | B69: =A69/README!B$4 -> 0.001519274376 | C69: =README!B$6*SIN(2*PI()*B69*README!B$5) -> -0.1208086701 | D69: =README!B$8*SIN(2*PI()*B69*README!B$7) -> 0 | E69: =C69+D69+README!B$9 -> -0.1208086701
A70: 68 | B70: =A70/README!B$4 -> 0.001541950113 | C70: =README!B$6*SIN(2*PI()*B70*README!B$5) -> -0.2605388976 | D70: =README!B$8*SIN(2*PI()*B70*README!B$7) -> 0 | E70: =C70+D70+README!B$9 -> -0.2605388976
A71: 69 | B71: =A71/README!B$4 -> 0.00156462585 | C71: =README!B$6*SIN(2*PI()*B71*README!B$5) -> -0.3949892902 | D71: =README!B$8*SIN(2*PI()*B71*README!B$7) -> 0 | E71: =C71+D71+README!B$9 -> -0.3949892902
A72: 70 | B72: =A72/README!B$4 -> 0.001587301587 | C72: =README!B$6*SIN(2*PI()*B72*README!B$5) -> -0.5214352034 | D72: =README!B$8*SIN(2*PI()*B72*README!B$7) -> 0 | E72: =C72+D72+README!B$9 -> -0.5214352034
A73: 71 | B73: =A73/README!B$4 -> 0.001609977324 | C73: =README!B$6*SIN(2*PI()*B73*README!B$5) -> -0.6373142037 | D73: =README!B$8*SIN(2*PI()*B73*README!B$7) -> 0 | E73: =C73+D73+README!B$9 -> -0.6373142037
A74: 72 | B74: =A74/README!B$4 -> 0.001632653061 | C74: =README!B$6*SIN(2*PI()*B74*README!B$5) -> -0.7402779971 | D74: =README!B$8*SIN(2*PI()*B74*README!B$7) -> 0 | E74: =C74+D74+README!B$9 -> -0.7402779971
A75: 73 | B75: =A75/README!B$4 -> 0.001655328798 | C75: =README!B$6*SIN(2*PI()*B75*README!B$5) -> -0.8282400165 | D75: =README!B$8*SIN(2*PI()*B75*README!B$7) -> 0 | E75: =C75+D75+README!B$9 -> -0.8282400165
A76: 74 | B76: =A76/README!B$4 -> 0.001678004535 | C76: =README!B$6*SIN(2*PI()*B76*README!B$5) -> -0.8994177069 | D76: =README!B$8*SIN(2*PI()*B76*README!B$7) -> 0 | E76: =C76+D76+README!B$9 -> -0.8994177069
A77: 75 | B77: =A77/README!B$4 -> 0.001700680272 | C77: =README!B$6*SIN(2*PI()*B77*README!B$5) -> -0.9523686485 | D77: =README!B$8*SIN(2*PI()*B77*README!B$7) -> 0 | E77: =C77+D77+README!B$9 -> -0.9523686485
A78: 76 | B78: =A78/README!B$4 -> 0.001723356009 | C78: =README!B$6*SIN(2*PI()*B78*README!B$5) -> -0.9860197876 | D78: =README!B$8*SIN(2*PI()*B78*README!B$7) -> 0 | E78: =C78+D78+README!B$9 -> -0.9860197876
A79: 77 | B79: =A79/README!B$4 -> 0.001746031746 | C79: =README!B$6*SIN(2*PI()*B79*README!B$5) -> -0.999689182 | D79: =README!B$8*SIN(2*PI()*B79*README!B$7) -> 0 | E79: =C79+D79+README!B$9 -> -0.999689182
A80: 78 | B80: =A80/README!B$4 -> 0.001768707483 | C80: =README!B$6*SIN(2*PI()*B80*README!B$5) -> -0.9930998207 | D80: =README!B$8*SIN(2*PI()*B80*README!B$7) -> 0 | E80: =C80+D80+README!B$9 -> -0.9930998207
A81: 79 | B81: =A81/README!B$4 -> 0.00179138322 | C81: =README!B$6*SIN(2*PI()*B81*README!B$5) -> -0.9663852375 | D81: =README!B$8*SIN(2*PI()*B81*README!B$7) -> 0 | E81: =C81+D81+README!B$9 -> -0.9663852375
A82: 80 | B82: =A82/README!B$4 -> 0.001814058957 | C82: =README!B$6*SIN(2*PI()*B82*README!B$5) -> -0.9200868049 | D82: =README!B$8*SIN(2*PI()*B82*README!B$7) -> 0 | E82: =C82+D82+README!B$9 -> -0.9200868049
A83: 81 | B83: =A83/README!B$4 -> 0.001836734694 | C83: =README!B$6*SIN(2*PI()*B83*README!B$5) -> -0.855142763 | D83: =README!B$8*SIN(2*PI()*B83*README!B$7) -> 0 | E83: =C83+D83+README!B$9 -> -0.855142763
A84: 82 | B84: =A84/README!B$4 -> 0.001859410431 | C84: =README!B$6*SIN(2*PI()*B84*README!B$5) -> -0.7728692065 | D84: =README!B$8*SIN(2*PI()*B84*README!B$7) -> 0 | E84: =C84+D84+README!B$9 -> -0.7728692065
A85: 83 | B85: =A85/README!B$4 -> 0.001882086168 | C85: =README!B$6*SIN(2*PI()*B85*README!B$5) -> -0.6749334135 | D85: =README!B$8*SIN(2*PI()*B85*README!B$7) -> 0 | E85: =C85+D85+README!B$9 -> -0.6749334135
A86: 84 | B86: =A86/README!B$4 -> 0.001904761905 | C86: =README!B$6*SIN(2*PI()*B86*README!B$5) -> -0.5633200581 | D86: =README!B$8*SIN(2*PI()*B86*README!B$7) -> 0 | E86: =C86+D86+README!B$9 -> -0.5633200581
A87: 85 | B87: =A87/README!B$4 -> 0.001927437642 | C87: =README!B$6*SIN(2*PI()*B87*README!B$5) -> -0.440290991 | D87: =README!B$8*SIN(2*PI()*B87*README!B$7) -> 0 | E87: =C87+D87+README!B$9 -> -0.440290991
A88: 86 | B88: =A88/README!B$4 -> 0.001950113379 | C88: =README!B$6*SIN(2*PI()*B88*README!B$5) -> -0.3083394031 | D88: =README!B$8*SIN(2*PI()*B88*README!B$7) -> 0 | E88: =C88+D88+README!B$9 -> -0.3083394031
A89: 87 | B89: =A89/README!B$4 -> 0.001972789116 | C89: =README!B$6*SIN(2*PI()*B89*README!B$5) -> -0.1701393003 | D89: =README!B$8*SIN(2*PI()*B89*README!B$7) -> 0 | E89: =C89+D89+README!B$9 -> -0.1701393003
A90: 88 | B90: =A90/README!B$4 -> 0.001995464853 | C90: =README!B$6*SIN(2*PI()*B90*README!B$5) -> -0.02849131539 | D90: =README!B$8*SIN(2*PI()*B90*README!B$7) -> 0 | E90: =C90+D90+README!B$9 -> -0.02849131539
A91: 89 | B91: =A91/README!B$4 -> 0.00201814059 | C91: =README!B$6*SIN(2*PI()*B91*README!B$5) -> 0.1137340476 | D91: =README!B$8*SIN(2*PI()*B91*README!B$7) -> 0 | E91: =C91+D91+README!B$9 -> 0.1137340476
A92: 90 | B92: =A92/README!B$4 -> 0.002040816327 | C92: =README!B$6*SIN(2*PI()*B92*README!B$5) -> 0.2536545839 | D92: =README!B$8*SIN(2*PI()*B92*README!B$7) -> 0 | E92: =C92+D92+README!B$9 -> 0.2536545839
A93: 91 | B93: =A93/README!B$4 -> 0.002063492063 | C93: =README!B$6*SIN(2*PI()*B93*README!B$5) -> 0.3884347963 | D93: =README!B$8*SIN(2*PI()*B93*README!B$7) -> 0 | E93: =C93+D93+README!B$9 -> 0.3884347963
A94: 92 | B94: =A94/README!B$4 -> 0.0020861678 | C94: =README!B$6*SIN(2*PI()*B94*README!B$5) -> 0.5153433563 | D94: =README!B$8*SIN(2*PI()*B94*README!B$7) -> 0 | E94: =C94+D94+README!B$9 -> 0.5153433563
A95: 93 | B95: =A95/README!B$4 -> 0.002108843537 | C95: =README!B$6*SIN(2*PI()*B95*README!B$5) -> 0.6318084552 | D95: =README!B$8*SIN(2*PI()*B95*README!B$7) -> 0 | E95: =C95+D95+README!B$9 -> 0.6318084552
A96: 94 | B96: =A96/README!B$4 -> 0.002131519274 | C96: =README!B$6*SIN(2*PI()*B96*README!B$5) -> 0.7354699214 | D96: =README!B$8*SIN(2*PI()*B96*README!B$7) -> 0 | E96: =C96+D96+README!B$9 -> 0.7354699214
A97: 95 | B97: =A97/README!B$4 -> 0.002154195011 | C97: =README!B$6*SIN(2*PI()*B97*README!B$5) -> 0.8242270496 | D97: =README!B$8*SIN(2*PI()*B97*README!B$7) -> 0 | E97: =C97+D97+README!B$9 -> 0.8242270496
A98: 96 | B98: =A98/README!B$4 -> 0.002176870748 | C98: =README!B$6*SIN(2*PI()*B98*README!B$5) -> 0.8962811717 | D98: =README!B$8*SIN(2*PI()*B98*README!B$7) -> 0 | E98: =C98+D98+README!B$9 -> 0.8962811717
A99: 97 | B99: =A99/README!B$4 -> 0.002199546485 | C99: =README!B$6*SIN(2*PI()*B99*README!B$5) -> 0.9501721071 | D99: =README!B$8*SIN(2*PI()*B99*README!B$7) -> 0 | E99: =C99+D99+README!B$9 -> 0.9501721071
A100: 98 | B100: =A100/README!B$4 -> 0.002222222222 | C100: =README!B$6*SIN(2*PI()*B100*README!B$5) -> 0.984807753 | D100: =README!B$8*SIN(2*PI()*B100*README!B$7) -> 0 | E100: =C100+D100+README!B$9 -> 0.984807753
A101: 99 | B101: =A101/README!B$4 -> 0.002244897959 | C101: =README!B$6*SIN(2*PI()*B101*README!B$5) -> 0.9994862162 | D101: =README!B$8*SIN(2*PI()*B101*README!B$7) -> 0 | E101: =C101+D101+README!B$9 -> 0.9994862162
A102: 100 | B102: =A102/README!B$4 -> 0.002267573696 | C102: =README!B$6*SIN(2*PI()*B102*README!B$5) -> 0.9939100368 | D102: =README!B$8*SIN(2*PI()*B102*README!B$7) -> 0 | E102: =C102+D102+README!B$9 -> 0.9939100368
A103: 101 | B103: =A103/README!B$4 -> 0.002290249433 | C103: =README!B$6*SIN(2*PI()*B103*README!B$5) -> 0.9681922164 | D103: =README!B$8*SIN(2*PI()*B103*README!B$7) -> 0 | E103: =C103+D103+README!B$9 -> 0.9681922164
A104: 102 | B104: =A104/README!B$4 -> 0.00231292517 | C104: =README!B$6*SIN(2*PI()*B104*README!B$5) -> 0.922853928 | D104: =README!B$8*SIN(2*PI()*B104*README!B$7) -> 0 | E104: =C104+D104+README!B$9 -> 0.922853928
A105: 103 | B105: =A105/README!B$4 -> 0.002335600907 | C105: =README!B$6*SIN(2*PI()*B105*README!B$5) -> 0.8588139546 | D105: =README!B$8*SIN(2*PI()*B105*README!B$7) -> 0 | E105: =C105+D105+README!B$9 -> 0.8588139546
A106: 104 | B106: =A106/README!B$4 -> 0.002358276644 | C106: =README!B$6*SIN(2*PI()*B106*README!B$5) -> 0.7773700696 | D106: =README!B$8*SIN(2*PI()*B106*README!B$7) -> 0 | E106: =C106+D106+README!B$9 -> 0.7773700696
A107: 105 | B107: =A107/README!B$4 -> 0.002380952381 | C107: =README!B$6*SIN(2*PI()*B107*README!B$5) -> 0.6801727378 | D107: =README!B$8*SIN(2*PI()*B107*README!B$7) -> 0 | E107: =C107+D107+README!B$9 -> 0.6801727378
A108: 106 | B108: =A108/README!B$4 -> 0.002403628118 | C108: =README!B$6*SIN(2*PI()*B108*README!B$5) -> 0.5691916684 | D108: =README!B$8*SIN(2*PI()*B108*README!B$7) -> 0 | E108: =C108+D108+README!B$9 -> 0.5691916684
A109: 107 | B109: =A109/README!B$4 -> 0.002426303855 | C109: =README!B$6*SIN(2*PI()*B109*README!B$5) -> 0.4466758989 | D109: =README!B$8*SIN(2*PI()*B109*README!B$7) -> 0 | E109: =C109+D109+README!B$9 -> 0.4466758989
A110: 108 | B110: =A110/README!B$4 -> 0.002448979592 | C110: =README!B$6*SIN(2*PI()*B110*README!B$5) -> 0.315108218 | D110: =README!B$8*SIN(2*PI()*B110*README!B$7) -> 0 | E110: =C110+D110+README!B$9 -> 0.315108218
A111: 109 | B111: =A111/README!B$4 -> 0.002471655329 | C111: =README!B$6*SIN(2*PI()*B111*README!B$5) -> 0.1771548519 | D111: =README!B$8*SIN(2*PI()*B111*README!B$7) -> 0 | E111: =C111+D111+README!B$9 -> 0.1771548519
A112: 110 | B112: =A112/README!B$4 -> 0.002494331066 | C112: =README!B$6*SIN(2*PI()*B112*README!B$5) -> 0.03561143311 | D112: =README!B$8*SIN(2*PI()*B112*README!B$7) -> 0 | E112: =C112+D112+README!B$9 -> 0.03561143311
A113: 111 | B113: =A113/README!B$4 -> 0.002517006803 | C113: =README!B$6*SIN(2*PI()*B113*README!B$5) -> -0.1066536533 | D113: =README!B$8*SIN(2*PI()*B113*README!B$7) -> 0 | E113: =C113+D113+README!B$9 -> -0.1066536533
A114: 112 | B114: =A114/README!B$4 -> 0.00253968254 | C114: =README!B$6*SIN(2*PI()*B114*README!B$5) -> -0.2467573977 | D114: =README!B$8*SIN(2*PI()*B114*README!B$7) -> 0 | E114: =C114+D114+README!B$9 -> -0.2467573977
A115: 113 | B115: =A115/README!B$4 -> 0.002562358277 | C115: =README!B$6*SIN(2*PI()*B115*README!B$5) -> -0.3818605899 | D115: =README!B$8*SIN(2*PI()*B115*README!B$7) -> 0 | E115: =C115+D115+README!B$9 -> -0.3818605899
A116: 114 | B116: =A116/README!B$4 -> 0.002585034014 | C116: =README!B$6*SIN(2*PI()*B116*README!B$5) -> -0.5092253566 | D116: =README!B$8*SIN(2*PI()*B116*README!B$7) -> 0 | E116: =C116+D116+README!B$9 -> -0.5092253566
A117: 115 | B117: =A117/README!B$4 -> 0.002607709751 | C117: =README!B$6*SIN(2*PI()*B117*README!B$5) -> -0.6262706436 | D117: =README!B$8*SIN(2*PI()*B117*README!B$7) -> 0 | E117: =C117+D117+README!B$9 -> -0.6262706436
A118: 116 | B118: =A118/README!B$4 -> 0.002630385488 | C118: =README!B$6*SIN(2*PI()*B118*README!B$5) -> -0.730624522 | D118: =README!B$8*SIN(2*PI()*B118*README!B$7) -> 0 | E118: =C118+D118+README!B$9 -> -0.730624522
A119: 117 | B119: =A119/README!B$4 -> 0.002653061224 | C119: =README!B$6*SIN(2*PI()*B119*README!B$5) -> -0.8201722546 | D119: =README!B$8*SIN(2*PI()*B119*README!B$7) -> 0 | E119: =C119+D119+README!B$9 -> -0.8201722546
A120: 118 | B120: =A120/README!B$4 -> 0.002675736961 | C120: =README!B$6*SIN(2*PI()*B120*README!B$5) -> -0.8930991518 | D120: =README!B$8*SIN(2*PI()*B120*README!B$7) -> 0 | E120: =C120+D120+README!B$9 -> -0.8930991518
A121: 119 | B121: =A121/README!B$4 -> 0.002698412698 | C121: =README!B$6*SIN(2*PI()*B121*README!B$5) -> -0.9479273462 | D121: =README!B$8*SIN(2*PI()*B121*README!B$7) -> 0 | E121: =C121+D121+README!B$9 -> -0.9479273462
A122: 120 | B122: =A122/README!B$4 -> 0.002721088435 | C122: =README!B$6*SIN(2*PI()*B122*README!B$5) -> -0.9835457412 | D122: =README!B$8*SIN(2*PI()*B122*README!B$7) -> 0 | E122: =C122+D122+README!B$9 -> -0.9835457412
A123: 121 | B123: =A123/README!B$4 -> 0.002743764172 | C123: =README!B$6*SIN(2*PI()*B123*README!B$5) -> -0.9992325283 | D123: =README!B$8*SIN(2*PI()*B123*README!B$7) -> 0 | E123: =C123+D123+README!B$9 -> -0.9992325283
A124: 122 | B124: =A124/README!B$4 -> 0.002766439909 | C124: =README!B$6*SIN(2*PI()*B124*README!B$5) -> -0.9946698137 | D124: =README!B$8*SIN(2*PI()*B124*README!B$7) -> 0 | E124: =C124+D124+README!B$9 -> -0.9946698137
A125: 123 | B125: =A125/README!B$4 -> 0.002789115646 | C125: =README!B$6*SIN(2*PI()*B125*README!B$5) -> -0.9699500613 | D125: =README!B$8*SIN(2*PI()*B125*README!B$7) -> 0 | E125: =C125+D125+README!B$9 -> -0.9699500613
A126: 124 | B126: =A126/README!B$4 -> 0.002811791383 | C126: =README!B$6*SIN(2*PI()*B126*README!B$5) -> -0.925574218 | D126: =README!B$8*SIN(2*PI()*B126*README!B$7) -> 0 | E126: =C126+D126+README!B$9 -> -0.925574218
A127: 125 | B127: =A127/README!B$4 -> 0.00283446712 | C127: =README!B$6*SIN(2*PI()*B127*README!B$5) -> -0.8624415629 | D127: =README!B$8*SIN(2*PI()*B127*README!B$7) -> 0 | E127: =C127+D127+README!B$9 -> -0.8624415629
A128: 126 | B128: =A128/README!B$4 -> 0.002857142857 | C128: =README!B$6*SIN(2*PI()*B128*README!B$5) -> -0.7818314825 | D128: =README!B$8*SIN(2*PI()*B128*README!B$7) -> 0 | E128: =C128+D128+README!B$9 -> -0.7818314825
A129: 127 | B129: =A129/README!B$4 -> 0.002879818594 | C129: =README!B$6*SIN(2*PI()*B129*README!B$5) -> -0.6853775445 | D129: =README!B$8*SIN(2*PI()*B129*README!B$7) -> 0 | E129: =C129+D129+README!B$9 -> -0.6853775445
A130: 128 | B130: =A130/README!B$4 -> 0.002902494331 | C130: =README!B$6*SIN(2*PI()*B130*README!B$5) -> -0.5750343933 | D130: =README!B$8*SIN(2*PI()*B130*README!B$7) -> 0 | E130: =C130+D130+README!B$9 -> -0.5750343933
A131: 129 | B131: =A131/README!B$4 -> 0.002925170068 | C131: =README!B$6*SIN(2*PI()*B131*README!B$5) -> -0.4530381388 | D131: =README!B$8*SIN(2*PI()*B131*README!B$7) -> 0 | E131: =C131+D131+README!B$9 -> -0.4530381388
A132: 130 | B132: =A132/README!B$4 -> 0.002947845805 | C132: =README!B$6*SIN(2*PI()*B132*README!B$5) -> -0.3218610418 | D132: =README!B$8*SIN(2*PI()*B132*README!B$7) -> 0 | E132: =C132+D132+README!B$9 -> -0.3218610418
A133: 131 | B133: =A133/README!B$4 -> 0.002970521542 | C133: =README!B$6*SIN(2*PI()*B133*README!B$5) -> -0.1841614132 | D133: =README!B$8*SIN(2*PI()*B133*README!B$7) -> 0 | E133: =C133+D133+README!B$9 -> -0.1841614132
A134: 132 | B134: =A134/README!B$4 -> 0.002993197279 | C134: =README!B$6*SIN(2*PI()*B134*README!B$5) -> -0.04272974361 | D134: =README!B$8*SIN(2*PI()*B134*README!B$7) -> 0 | E134: =C134+D134+README!B$9 -> -0.04272974361
A135: 133 | B135: =A135/README!B$4 -> 0.003015873016 | C135: =README!B$6*SIN(2*PI()*B135*README!B$5) -> 0.0995678466 | D135: =README!B$8*SIN(2*PI()*B135*README!B$7) -> 0 | E135: =C135+D135+README!B$9 -> 0.0995678466
A136: 134 | B136: =A136/README!B$4 -> 0.003038548753 | C136: =README!B$6*SIN(2*PI()*B136*README!B$5) -> 0.239847689 | D136: =README!B$8*SIN(2*PI()*B136*README!B$7) -> 0 | E136: =C136+D136+README!B$9 -> 0.239847689
A137: 135 | B137: =A137/README!B$4 -> 0.00306122449 | C137: =README!B$6*SIN(2*PI()*B137*README!B$5) -> 0.3752670049 | D137: =README!B$8*SIN(2*PI()*B137*README!B$7) -> 0 | E137: =C137+D137+README!B$9 -> 0.3752670049
A138: 136 | B138: =A138/README!B$4 -> 0.003083900227 | C138: =README!B$6*SIN(2*PI()*B138*README!B$5) -> 0.5030815145 | D138: =README!B$8*SIN(2*PI()*B138*README!B$7) -> 0 | E138: =C138+D138+README!B$9 -> 0.5030815145
A139: 137 | B139: =A139/README!B$4 -> 0.003106575964 | C139: =README!B$6*SIN(2*PI()*B139*README!B$5) -> 0.6207010498 | D139: =README!B$8*SIN(2*PI()*B139*README!B$7) -> 0 | E139: =C139+D139+README!B$9 -> 0.6207010498
A140: 138 | B140: =A140/README!B$4 -> 0.003129251701 | C140: =README!B$6*SIN(2*PI()*B140*README!B$5) -> 0.7257420446 | D140: =README!B$8*SIN(2*PI()*B140*README!B$7) -> 0 | E140: =C140+D140+README!B$9 -> 0.7257420446
A141: 139 | B141: =A141/README!B$4 -> 0.003151927438 | C141: =README!B$6*SIN(2*PI()*B141*README!B$5) -> 0.8160758374 | D141: =README!B$8*SIN(2*PI()*B141*README!B$7) -> 0 | E141: =C141+D141+README!B$9 -> 0.8160758374
A142: 140 | B142: =A142/README!B$4 -> 0.003174603175 | C142: =README!B$6*SIN(2*PI()*B142*README!B$5) -> 0.8898718088 | D142: =README!B$8*SIN(2*PI()*B142*README!B$7) -> 0 | E142: =C142+D142+README!B$9 -> 0.8898718088
A143: 141 | B143: =A143/README!B$4 -> 0.003197278912 | C143: =README!B$6*SIN(2*PI()*B143*README!B$5) -> 0.9456344796 | D143: =README!B$8*SIN(2*PI()*B143*README!B$7) -> 0 | E143: =C143+D143+README!B$9 -> 0.9456344796
A144: 142 | B144: =A144/README!B$4 -> 0.003219954649 | C144: =README!B$6*SIN(2*PI()*B144*README!B$5) -> 0.9822338162 | D144: =README!B$8*SIN(2*PI()*B144*README!B$7) -> 0 | E144: =C144+D144+README!B$9 -> 0.9822338162
A145: 143 | B145: =A145/README!B$4 -> 0.003242630385 | C145: =README!B$6*SIN(2*PI()*B145*README!B$5) -> 0.9989281311 | D145: =README!B$8*SIN(2*PI()*B145*README!B$7) -> 0 | E145: =C145+D145+README!B$9 -> 0.9989281311
A146: 144 | B146: =A146/README!B$4 -> 0.003265306122 | C146: =README!B$6*SIN(2*PI()*B146*README!B$5) -> 0.9953791129 | D146: =README!B$8*SIN(2*PI()*B146*README!B$7) -> 0 | E146: =C146+D146+README!B$9 -> 0.9953791129
A147: 145 | B147: =A147/README!B$4 -> 0.003287981859 | C147: =README!B$6*SIN(2*PI()*B147*README!B$5) -> 0.9716586829 | D147: =README!B$8*SIN(2*PI()*B147*README!B$7) -> 0 | E147: =C147+D147+README!B$9 -> 0.9716586829
A148: 146 | B148: =A148/README!B$4 -> 0.003310657596 | C148: =README!B$6*SIN(2*PI()*B148*README!B$5) -> 0.9282475368 | D148: =README!B$8*SIN(2*PI()*B148*README!B$7) -> 0 | E148: =C148+D148+README!B$9 -> 0.9282475368
A149: 147 | B149: =A149/README!B$4 -> 0.003333333333 | C149: =README!B$6*SIN(2*PI()*B149*README!B$5) -> 0.8660254038 | D149: =README!B$8*SIN(2*PI()*B149*README!B$7) -> 0 | E149: =C149+D149+README!B$9 -> 0.8660254038
A150: 148 | B150: =A150/README!B$4 -> 0.00335600907 | C150: =README!B$6*SIN(2*PI()*B150*README!B$5) -> 0.7862532188 | D150: =README!B$8*SIN(2*PI()*B150*README!B$7) -> 0 | E150: =C150+D150+README!B$9 -> 0.7862532188
A151: 149 | B151: =A151/README!B$4 -> 0.003378684807 | C151: =README!B$6*SIN(2*PI()*B151*README!B$5) -> 0.6905475696 | D151: =README!B$8*SIN(2*PI()*B151*README!B$7) -> 0 | E151: =C151+D151+README!B$9 -> 0.6905475696
A152: 150 | B152: =A152/README!B$4 -> 0.003401360544 | C152: =README!B$6*SIN(2*PI()*B152*README!B$5) -> 0.5808479363 | D152: =README!B$8*SIN(2*PI()*B152*README!B$7) -> 0 | E152: =C152+D152+README!B$9 -> 0.5808479363
A153: 151 | B153: =A153/README!B$4 -> 0.003424036281 | C153: =README!B$6*SIN(2*PI()*B153*README!B$5) -> 0.4593773879 | D153: =README!B$8*SIN(2*PI()*B153*README!B$7) -> 0 | E153: =C153+D153+README!B$9 -> 0.4593773879
A154: 152 | B154: =A154/README!B$4 -> 0.003446712018 | C154: =README!B$6*SIN(2*PI()*B154*README!B$5) -> 0.3285975317 | D154: =README!B$8*SIN(2*PI()*B154*README!B$7) -> 0 | E154: =C154+D154+README!B$9 -> 0.3285975317
A155: 153 | B155: =A155/README!B$4 -> 0.003469387755 | C155: =README!B$6*SIN(2*PI()*B155*README!B$5) -> 0.1911586287 | D155: =README!B$8*SIN(2*PI()*B155*README!B$7) -> 0 | E155: =C155+D155+README!B$9 -> 0.1911586287
A156: 154 | B156: =A156/README!B$4 -> 0.003492063492 | C156: =README!B$6*SIN(2*PI()*B156*README!B$5) -> 0.04984588566 | D156: =README!B$8*SIN(2*PI()*B156*README!B$7) -> 0 | E156: =C156+D156+README!B$9 -> 0.04984588566
A157: 155 | B157: =A157/README!B$4 -> 0.003514739229 | C157: =README!B$6*SIN(2*PI()*B157*README!B$5) -> -0.09247698697 | D157: =README!B$8*SIN(2*PI()*B157*README!B$7) -> 0 | E157: =C157+D157+README!B$9 -> -0.09247698697
A158: 156 | B158: =A158/README!B$4 -> 0.003537414966 | C158: =README!B$6*SIN(2*PI()*B158*README!B$5) -> -0.2329258084 | D158: =README!B$8*SIN(2*PI()*B158*README!B$7) -> 0 | E158: =C158+D158+README!B$9 -> -0.2329258084
A159: 157 | B159: =A159/README!B$4 -> 0.003560090703 | C159: =README!B$6*SIN(2*PI()*B159*README!B$5) -> -0.3686543757 | D159: =README!B$8*SIN(2*PI()*B159*README!B$7) -> 0 | E159: =C159+D159+README!B$9 -> -0.3686543757
A160: 158 | B160: =A160/README!B$4 -> 0.00358276644 | C160: =README!B$6*SIN(2*PI()*B160*README!B$5) -> -0.496912142 | D160: =README!B$8*SIN(2*PI()*B160*README!B$7) -> 0 | E160: =C160+D160+README!B$9 -> -0.496912142
A161: 159 | B161: =A161/README!B$4 -> 0.003605442177 | C161: =README!B$6*SIN(2*PI()*B161*README!B$5) -> -0.6150999566 | D161: =README!B$8*SIN(2*PI()*B161*README!B$7) -> 0 | E161: =C161+D161+README!B$9 -> -0.6150999566
A162: 160 | B162: =A162/README!B$4 -> 0.003628117914 | C162: =README!B$6*SIN(2*PI()*B162*README!B$5) -> -0.7208227372 | D162: =README!B$8*SIN(2*PI()*B162*README!B$7) -> 0 | E162: =C162+D162+README!B$9 -> -0.7208227372
A163: 161 | B163: =A163/README!B$4 -> 0.003650793651 | C163: =README!B$6*SIN(2*PI()*B163*README!B$5) -> -0.8119380057 | D163: =README!B$8*SIN(2*PI()*B163*README!B$7) -> 0 | E163: =C163+D163+README!B$9 -> -0.8119380057
A164: 162 | B164: =A164/README!B$4 -> 0.003673469388 | C164: =README!B$6*SIN(2*PI()*B164*README!B$5) -> -0.8865993064 | D164: =README!B$8*SIN(2*PI()*B164*README!B$7) -> 0 | E164: =C164+D164+README!B$9 -> -0.8865993064
A165: 163 | B165: =A165/README!B$4 -> 0.003696145125 | C165: =README!B$6*SIN(2*PI()*B165*README!B$5) -> -0.9432936238 | D165: =README!B$8*SIN(2*PI()*B165*README!B$7) -> 0 | E165: =C165+D165+README!B$9 -> -0.9432936238
A166: 164 | B166: =A166/README!B$4 -> 0.003718820862 | C166: =README!B$6*SIN(2*PI()*B166*README!B$5) -> -0.9808720446 | D166: =README!B$8*SIN(2*PI()*B166*README!B$7) -> 0 | E166: =C166+D166+README!B$9 -> -0.9808720446
A167: 165 | B167: =A167/README!B$4 -> 0.003741496599 | C167: =README!B$6*SIN(2*PI()*B167*README!B$5) -> -0.9985730401 | D167: =README!B$8*SIN(2*PI()*B167*README!B$7) -> 0 | E167: =C167+D167+README!B$9 -> -0.9985730401
A168: 166 | B168: =A168/README!B$4 -> 0.003764172336 | C168: =README!B$6*SIN(2*PI()*B168*README!B$5) -> -0.9960378985 | D168: =README!B$8*SIN(2*PI()*B168*README!B$7) -> 0 | E168: =C168+D168+README!B$9 -> -0.9960378985
A169: 167 | B169: =A169/README!B$4 -> 0.003786848073 | C169: =README!B$6*SIN(2*PI()*B169*README!B$5) -> -0.9733179946 | D169: =README!B$8*SIN(2*PI()*B169*README!B$7) -> 0 | E169: =C169+D169+README!B$9 -> -0.9733179946
A170: 168 | B170: =A170/README!B$4 -> 0.00380952381 | C170: =README!B$6*SIN(2*PI()*B170*README!B$5) -> -0.9308737486 | D170: =README!B$8*SIN(2*PI()*B170*README!B$7) -> 0 | E170: =C170+D170+README!B$9 -> -0.9308737486
A171: 169 | B171: =A171/README!B$4 -> 0.003832199546 | C171: =README!B$6*SIN(2*PI()*B171*README!B$5) -> -0.8695652955 | D171: =README!B$8*SIN(2*PI()*B171*README!B$7) -> 0 | E171: =C171+D171+README!B$9 -> -0.8695652955
A172: 170 | B172: =A172/README!B$4 -> 0.003854875283 | C172: =README!B$6*SIN(2*PI()*B172*README!B$5) -> -0.7906350542 | D172: =README!B$8*SIN(2*PI()*B172*README!B$7) -> 0 | E172: =C172+D172+README!B$9 -> -0.7906350542
A173: 171 | B173: =A173/README!B$4 -> 0.00387755102 | C173: =README!B$6*SIN(2*PI()*B173*README!B$5) -> -0.6956825506 | D173: =README!B$8*SIN(2*PI()*B173*README!B$7) -> 0 | E173: =C173+D173+README!B$9 -> -0.6956825506
A174: 172 | B174: =A174/README!B$4 -> 0.003900226757 | C174: =README!B$6*SIN(2*PI()*B174*README!B$5) -> -0.5866320022 | D174: =README!B$8*SIN(2*PI()*B174*README!B$7) -> 0 | E174: =C174+D174+README!B$9 -> -0.5866320022
A175: 173 | B175: =A175/README!B$4 -> 0.003922902494 | C175: =README!B$6*SIN(2*PI()*B175*README!B$5) -> -0.4656933243 | D175: =README!B$8*SIN(2*PI()*B175*README!B$7) -> 0 | E175: =C175+D175+README!B$9 -> -0.4656933243
A176: 174 | B176: =A176/README!B$4 -> 0.003945578231 | C176: =README!B$6*SIN(2*PI()*B176*README!B$5) -> -0.3353173459 | D176: =README!B$8*SIN(2*PI()*B176*README!B$7) -> 0 | E176: =C176+D176+README!B$9 -> -0.3353173459
A177: 175 | B177: =A177/README!B$4 -> 0.003968253968 | C177: =README!B$6*SIN(2*PI()*B177*README!B$5) -> -0.1981461432 | D177: =README!B$8*SIN(2*PI()*B177*README!B$7) -> 0 | E177: =C177+D177+README!B$9 -> -0.1981461432
A178: 176 | B178: =A178/README!B$4 -> 0.003990929705 | C178: =README!B$6*SIN(2*PI()*B178*README!B$5) -> -0.05695949812 | D178: =README!B$8*SIN(2*PI()*B178*README!B$7) -> 0 | E178: =C178+D178+README!B$9 -> -0.05695949812
A179: 177 | B179: =A179/README!B$4 -> 0.004013605442 | C179: =README!B$6*SIN(2*PI()*B179*README!B$5) -> 0.0853814343 | D179: =README!B$8*SIN(2*PI()*B179*README!B$7) -> 0 | E179: =C179+D179+README!B$9 -> 0.0853814343
A180: 178 | B180: =A180/README!B$4 -> 0.004036281179 | C180: =README!B$6*SIN(2*PI()*B180*README!B$5) -> 0.2259921073 | D180: =README!B$8*SIN(2*PI()*B180*README!B$7) -> 0 | E180: =C180+D180+README!B$9 -> 0.2259921073
A181: 179 | B181: =A181/README!B$4 -> 0.004058956916 | C181: =README!B$6*SIN(2*PI()*B181*README!B$5) -> 0.3620230379 | D181: =README!B$8*SIN(2*PI()*B181*README!B$7) -> 0 | E181: =C181+D181+README!B$9 -> 0.3620230379
A182: 180 | B182: =A182/README!B$4 -> 0.004081632653 | C182: =README!B$6*SIN(2*PI()*B182*README!B$5) -> 0.490717552 | D182: =README!B$8*SIN(2*PI()*B182*README!B$7) -> 0 | E182: =C182+D182+README!B$9 -> 0.490717552
A183: 181 | B183: =A183/README!B$4 -> 0.00410430839 | C183: =README!B$6*SIN(2*PI()*B183*README!B$5) -> 0.6094676482 | D183: =README!B$8*SIN(2*PI()*B183*README!B$7) -> 0 | E183: =C183+D183+README!B$9 -> 0.6094676482
A184: 182 | B184: =A184/README!B$4 -> 0.004126984127 | C184: =README!B$6*SIN(2*PI()*B184*README!B$5) -> 0.7158668493 | D184: =README!B$8*SIN(2*PI()*B184*README!B$7) -> 0 | E184: =C184+D184+README!B$9 -> 0.7158668493
A185: 183 | B185: =A185/README!B$4 -> 0.004149659864 | C185: =README!B$6*SIN(2*PI()*B185*README!B$5) -> 0.8077589697 | D185: =README!B$8*SIN(2*PI()*B185*README!B$7) -> 0 | E185: =C185+D185+README!B$9 -> 0.8077589697
A186: 184 | B186: =A186/README!B$4 -> 0.004172335601 | C186: =README!B$6*SIN(2*PI()*B186*README!B$5) -> 0.8832818106 | D186: =README!B$8*SIN(2*PI()*B186*README!B$7) -> 0 | E186: =C186+D186+README!B$9 -> 0.8832818106
A187: 185 | B187: =A187/README!B$4 -> 0.004195011338 | C187: =README!B$6*SIN(2*PI()*B187*README!B$5) -> 0.9409048976 | D187: =README!B$8*SIN(2*PI()*B187*README!B$7) -> 0 | E187: =C187+D187+README!B$9 -> 0.9409048976
A188: 186 | B188: =A188/README!B$4 -> 0.004217687075 | C188: =README!B$6*SIN(2*PI()*B188*README!B$5) -> 0.9794604955 | D188: =README!B$8*SIN(2*PI()*B188*README!B$7) -> 0 | E188: =C188+D188+README!B$9 -> 0.9794604955
A189: 187 | B189: =A189/README!B$4 -> 0.004240362812 | C189: =README!B$6*SIN(2*PI()*B189*README!B$5) -> 0.9981672732 | D189: =README!B$8*SIN(2*PI()*B189*README!B$7) -> 0 | E189: =C189+D189+README!B$9 -> 0.9981672732
A190: 188 | B190: =A190/README!B$4 -> 0.004263038549 | C190: =README!B$6*SIN(2*PI()*B190*README!B$5) -> 0.9966461368 | D190: =README!B$8*SIN(2*PI()*B190*README!B$7) -> 0 | E190: =C190+D190+README!B$9 -> 0.9966461368
A191: 189 | B191: =A191/README!B$4 -> 0.004285714286 | C191: =README!B$6*SIN(2*PI()*B191*README!B$5) -> 0.9749279122 | D191: =README!B$8*SIN(2*PI()*B191*README!B$7) -> 0 | E191: =C191+D191+README!B$9 -> 0.9749279122
A192: 190 | B192: =A192/README!B$4 -> 0.004308390023 | C192: =README!B$6*SIN(2*PI()*B192*README!B$5) -> 0.9334527203 | D192: =README!B$8*SIN(2*PI()*B192*README!B$7) -> 0 | E192: =C192+D192+README!B$9 -> 0.9334527203
A193: 191 | B193: =A193/README!B$4 -> 0.00433106576 | C193: =README!B$6*SIN(2*PI()*B193*README!B$5) -> 0.8730610583 | D193: =README!B$8*SIN(2*PI()*B193*README!B$7) -> 0 | E193: =C193+D193+README!B$9 -> 0.8730610583
A194: 192 | B194: =A194/README!B$4 -> 0.004353741497 | C194: =README!B$6*SIN(2*PI()*B194*README!B$5) -> 0.7949767663 | D194: =README!B$8*SIN(2*PI()*B194*README!B$7) -> 0 | E194: =C194+D194+README!B$9 -> 0.7949767663
A195: 193 | B195: =A195/README!B$4 -> 0.004376417234 | C195: =README!B$6*SIN(2*PI()*B195*README!B$5) -> 0.700782227 | D195: =README!B$8*SIN(2*PI()*B195*README!B$7) -> 0 | E195: =C195+D195+README!B$9 -> 0.700782227
A196: 194 | B196: =A196/README!B$4 -> 0.004399092971 | C196: =README!B$6*SIN(2*PI()*B196*README!B$5) -> 0.5923862976 | D196: =README!B$8*SIN(2*PI()*B196*README!B$7) -> 0 | E196: =C196+D196+README!B$9 -> 0.5923862976
A197: 195 | B197: =A197/README!B$4 -> 0.004421768707 | C197: =README!B$6*SIN(2*PI()*B197*README!B$5) -> 0.4719856277 | D197: =README!B$8*SIN(2*PI()*B197*README!B$7) -> 0 | E197: =C197+D197+README!B$9 -> 0.4719856277
A198: 196 | B198: =A198/README!B$4 -> 0.004444444444 | C198: =README!B$6*SIN(2*PI()*B198*README!B$5) -> 0.3420201433 | D198: =README!B$8*SIN(2*PI()*B198*README!B$7) -> 0 | E198: =C198+D198+README!B$9 -> 0.3420201433
A199: 197 | B199: =A199/README!B$4 -> 0.004467120181 | C199: =README!B$6*SIN(2*PI()*B199*README!B$5) -> 0.2051236021 | D199: =README!B$8*SIN(2*PI()*B199*README!B$7) -> 0 | E199: =C199+D199+README!B$9 -> 0.2051236021
A200: 198 | B200: =A200/README!B$4 -> 0.004489795918 | C200: =README!B$6*SIN(2*PI()*B200*README!B$5) -> 0.06407021998 | D200: =README!B$8*SIN(2*PI()*B200*README!B$7) -> 0 | E200: =C200+D200+README!B$9 -> 0.06407021998
... 825 more rows

Sheet shifter
A1: i = | B1: k = 0 | C1: k = 1 | D1: k = 2 | E1: k = 3 | F1: k = 4 | G1: k = 5 | H1: k = 6 | I1: k = 7 | J1: k = 8 | K1: k = 9 | L1: k = 10 | M1: k = 11 | N1: k = 12 | O1: k = 13 | P1: k = 14 | Q1: k = 15 | R1: k = 16 | S1: k = 17 | T1: k = 18 | U1: k = 19 | V1: k = 20 | W1: k = 21 | X1: k = 22 | Y1: k = 23 | Z1: k = 24 | AA1: k = 25 | AB1: k = 26 | AC1: k = 27 | AD1: k = 28 | AE1: k = 29 | AF1: k = 30 | AG1: k = 31 | AH1: k = 32 | AI1: k = 33 | AJ1: k = 34 | AK1: k = 35 | AL1: k = 36 | AM1: k = 37 | AN1: k = 38 | AO1: k = 39 | AP1: k = 40 | AQ1: k = 41 | AR1: k = 42 | AS1: k = 43 | AT1: k = 44
A2: 0 | B2: =OFFSET(calcInput!E$2, ROW()-2+0, 0) -> 0 | C2: =OFFSET(calcInput!E$2, ROW()-2+1, 0) -> 0.141994318 | D2: =OFFSET(calcInput!E$2, ROW()-2+2, 0) -> 0.2811111133 | E2: =OFFSET(calcInput!E$2, ROW()-2+3, 0) -> 0.4145311767 | F2: =OFFSET(calcInput!E$2, ROW()-2+4, 0) -> 0.5395507432 | G2: =OFFSET(calcInput!E$2, ROW()-2+5, 0) -> 0.6536362845 | H2: =OFFSET(calcInput!E$2, ROW()-2+6, 0) -> 0.7544758509 | I2: =OFFSET(calcInput!E$2, ROW()-2+7, 0) -> 0.8400259232 | J2: =OFFSET(calcInput!E$2, ROW()-2+8, 0) -> 0.9085528243 | K2: =OFFSET(calcInput!E$2, ROW()-2+9, 0) -> 0.958667853 | L2: =OFFSET(calcInput!E$2, ROW()-2+10, 0) -> 0.9893554255 | M2: =OFFSET(calcInput!E$2, ROW()-2+11, 0) -> 0.9999936565 | N2: =OFFSET(calcInput!E$2, ROW()-2+12, 0) -> 0.9903669615 | O2: =OFFSET(calcInput!E$2, ROW()-2+13, 0) -> 0.9606704261 | P2: =OFFSET(calcInput!E$2, ROW()-2+14, 0) -> 0.9115058523 | Q2: =OFFSET(calcInput!E$2, ROW()-2+15, 0) -> 0.8438695628 | R2: =OFFSET(calcInput!E$2, ROW()-2+16, 0) -> 0.7591322106 | S2: =OFFSET(calcInput!E$2, ROW()-2+17, 0) -> 0.6590110028 | T2: =OFFSET(calcInput!E$2, ROW()-2+18, 0) -> 0.5455349012 | U2: =OFFSET(calcInput!E$2, ROW()-2+19, 0) -> 0.4210035051 | V2: =OFFSET(calcInput!E$2, ROW()-2+20, 0) -> 0.2879404501 | W2: =OFFSET(calcInput!E$2, ROW()-2+21, 0) -> 0.1490422662 | X2: =OFFSET(calcInput!E$2, ROW()-2+22, 0) -> 0.007123732612 | Y2: =OFFSET(calcInput!E$2, ROW()-2+23, 0) -> -0.1349391638 | Z2: =OFFSET(calcInput!E$2, ROW()-2+24, 0) -> -0.2742675107 | AA2: =OFFSET(calcInput!E$2, ROW()-2+25, 0) -> -0.4080378115 | AB2: =OFFSET(calcInput!E$2, ROW()-2+26, 0) -> -0.5335392039 | AC2: =OFFSET(calcInput!E$2, ROW()-2+27, 0) -> -0.6482283953 | AD2: =OFFSET(calcInput!E$2, ROW()-2+28, 0) -> -0.749781203 | AE2: =OFFSET(calcInput!E$2, ROW()-2+29, 0) -> -0.8361396537 | AF2: =OFFSET(calcInput!E$2, ROW()-2+30, 0) -> -0.9055536889 | AG2: =OFFSET(calcInput!E$2, ROW()-2+31, 0) -> -0.9566166292 | AH2: =OFFSET(calcInput!E$2, ROW()-2+32, 0) -> -0.9882936815 | AI2: =OFFSET(calcInput!E$2, ROW()-2+33, 0) -> -0.9999429086 | AJ2: =OFFSET(calcInput!E$2, ROW()-2+34, 0) -> -0.9913282381 | AK2: =OFFSET(calcInput!E$2, ROW()-2+35, 0) -> -0.962624247 | AL2: =OFFSET(calcInput!E$2, ROW()-2+36, 0) -> -0.914412623 | AM2: =OFFSET(calcInput!E$2, ROW()-2+37, 0) -> -0.8476703775 | AN2: =OFFSET(calcInput!E$2, ROW()-2+38, 0) -> -0.7637500456 | AO2: =OFFSET(calcInput!E$2, ROW()-2+39, 0) -> -0.6643522775 | AP2: =OFFSET(calcInput!E$2, ROW()-2+40, 0) -> -0.5514913743 | AQ2: =OFFSET(calcInput!E$2, ROW()-2+41, 0) -> -0.4274544684 | AR2: =OFFSET(calcInput!E$2, ROW()-2+42, 0) -> -0.2947551744 | AS2: =OFFSET(calcInput!E$2, ROW()-2+43, 0) -> -0.1560826508 | AT2: =OFFSET(calcInput!E$2, ROW()-2+44, 0) -> -0.01424710371
A3: 1 | B3: =OFFSET(calcInput!E$2, ROW()-2+0, 0) -> 0.141994318 | C3: =OFFSET(calcInput!E$2, ROW()-2+1, 0) -> 0.2811111133 | D3: =OFFSET(calcInput!E$2, ROW()-2+2, 0) -> 0.4145311767 | E3: =OFFSET(calcInput!E$2, ROW()-2+3, 0) -> 0.5395507432 | F3: =OFFSET(calcInput!E$2, ROW()-2+4, 0) -> 0.6536362845 | G3: =OFFSET(calcInput!E$2, ROW()-2+5, 0) -> 0.7544758509 | H3: =OFFSET(calcInput!E$2, ROW()-2+6, 0) -> 0.8400259232 | I3: =OFFSET(calcInput!E$2, ROW()-2+7, 0) -> 0.9085528243 | J3: =OFFSET(calcInput!E$2, ROW()-2+8, 0) -> 0.958667853 | K3: =OFFSET(calcInput!E$2, ROW()-2+9, 0) -> 0.9893554255 | L3: =OFFSET(calcInput!E$2, ROW()-2+10, 0) -> 0.9999936565 | M3: =OFFSET(calcInput!E$2, ROW()-2+11, 0) -> 0.9903669615 | N3: =OFFSET(calcInput!E$2, ROW()-2+12, 0) -> 0.9606704261 | O3: =OFFSET(calcInput!E$2, ROW()-2+13, 0) -> 0.9115058523 | P3: =OFFSET(calcInput!E$2, ROW()-2+14, 0) -> 0.8438695628 | Q3: =OFFSET(calcInput!E$2, ROW()-2+15, 0) -> 0.7591322106 | R3: =OFFSET(calcInput!E$2, ROW()-2+16, 0) -> 0.6590110028 | S3: =OFFSET(calcInput!E$2, ROW()-2+17, 0) -> 0.5455349012 | T3: =OFFSET(calcInput!E$2, ROW()-2+18, 0) -> 0.4210035051 | U3: =OFFSET(calcInput!E$2, ROW()-2+19, 0) -> 0.2879404501 | V3: =OFFSET(calcInput!E$2, ROW()-2+20, 0) -> 0.1490422662 | W3: =OFFSET(calcInput!E$2, ROW()-2+21, 0) -> 0.007123732612 | X3: =OFFSET(calcInput!E$2, ROW()-2+22, 0) -> -0.1349391638 | Y3: =OFFSET(calcInput!E$2, ROW()-2+23, 0) -> -0.2742675107 | Z3: =OFFSET(calcInput!E$2, ROW()-2+24, 0) -> -0.4080378115 | AA3: =OFFSET(calcInput!E$2, ROW()-2+25, 0) -> -0.5335392039 | AB3: =OFFSET(calcInput!E$2, ROW()-2+26, 0) -> -0.6482283953 | AC3: =OFFSET(calcInput!E$2, ROW()-2+27, 0) -> -0.749781203 | AD3: =OFFSET(calcInput!E$2, ROW()-2+28, 0) -> -0.8361396537 | AE3: =OFFSET(calcInput!E$2, ROW()-2+29, 0) -> -0.9055536889 | AF3: =OFFSET(calcInput!E$2, ROW()-2+30, 0) -> -0.9566166292 | AG3: =OFFSET(calcInput!E$2, ROW()-2+31, 0) -> -0.9882936815 | AH3: =OFFSET(calcInput!E$2, ROW()-2+32, 0) -> -0.9999429086 | AI3: =OFFSET(calcInput!E$2, ROW()-2+33, 0) -> -0.9913282381 | AJ3: =OFFSET(calcInput!E$2, ROW()-2+34, 0) -> -0.962624247 | AK3: =OFFSET(calcInput!E$2, ROW()-2+35, 0) -> -0.914412623 | AL3: =OFFSET(calcInput!E$2, ROW()-2+36, 0) -> -0.8476703775 | AM3: =OFFSET(calcInput!E$2, ROW()-2+37, 0) -> -0.7637500456 | AN3: =OFFSET(calcInput!E$2, ROW()-2+38, 0) -> -0.6643522775 | AO3: =OFFSET(calcInput!E$2, ROW()-2+39, 0) -> -0.5514913743 | AP3: =OFFSET(calcInput!E$2, ROW()-2+40, 0) -> -0.4274544684 | AQ3: =OFFSET(calcInput!E$2, ROW()-2+41, 0) -> -0.2947551744 | AR3: =OFFSET(calcInput!E$2, ROW()-2+42, 0) -> -0.1560826508 | AS3: =OFFSET(calcInput!E$2, ROW()-2+43, 0) -> -0.01424710371 | AT3: =OFFSET(calcInput!E$2, ROW()-2+44, 0) -> 0.1278771617
A4: 2 | B4: =OFFSET(calcInput!E$2, ROW()-2+0, 0) -> 0.2811111133 | C4: =OFFSET(calcInput!E$2, ROW()-2+1, 0) -> 0.4145311767 | D4: =OFFSET(calcInput!E$2, ROW()-2+2, 0) -> 0.5395507432 | E4: =OFFSET(calcInput!E$2, ROW()-2+3, 0) -> 0.6536362845 | F4: =OFFSET(calcInput!E$2, ROW()-2+4, 0) -> 0.7544758509 | G4: =OFFSET(calcInput!E$2, ROW()-2+5, 0) -> 0.8400259232 | H4: =OFFSET(calcInput!E$2, ROW()-2+6, 0) -> 0.9085528243 | I4: =OFFSET(calcInput!E$2, ROW()-2+7, 0) -> 0.958667853 | J4: =OFFSET(calcInput!E$2, ROW()-2+8, 0) -> 0.9893554255 | K4: =OFFSET(calcInput!E$2, ROW()-2+9, 0) -> 0.9999936565 | L4: =OFFSET(calcInput!E$2, ROW()-2+10, 0) -> 0.9903669615 | M4: =OFFSET(calcInput!E$2, ROW()-2+11, 0) -> 0.9606704261 | N4: =OFFSET(calcInput!E$2, ROW()-2+12, 0) -> 0.9115058523 | O4: =OFFSET(calcInput!E$2, ROW()-2+13, 0) -> 0.8438695628 | P4: =OFFSET(calcInput!E$2, ROW()-2+14, 0) -> 0.7591322106 | Q4: =OFFSET(calcInput!E$2, ROW()-2+15, 0) -> 0.6590110028 | R4: =OFFSET(calcInput!E$2, ROW()-2+16, 0) -> 0.5455349012 | S4: =OFFSET(calcInput!E$2, ROW()-2+17, 0) -> 0.4210035051 | T4: =OFFSET(calcInput!E$2, ROW()-2+18, 0) -> 0.2879404501 | U4: =OFFSET(calcInput!E$2, ROW()-2+19, 0) -> 0.1490422662 | V4: =OFFSET(calcInput!E$2, ROW()-2+20, 0) -> 0.007123732612 | W4: =OFFSET(calcInput!E$2, ROW()-2+21, 0) -> -0.1349391638 | X4: =OFFSET(calcInput!E$2, ROW()-2+22, 0) -> -0.2742675107 | Y4: =OFFSET(calcInput!E$2, ROW()-2+23, 0) -> -0.4080378115 | Z4: =OFFSET(calcInput!E$2, ROW()-2+24, 0) -> -0.5335392039 | AA4: =OFFSET(calcInput!E$2, ROW()-2+25, 0) -> -0.6482283953 | AB4: =OFFSET(calcInput!E$2, ROW()-2+26, 0) -> -0.749781203 | AC4: =OFFSET(calcInput!E$2, ROW()-2+27, 0) -> -0.8361396537 | AD4: =OFFSET(calcInput!E$2, ROW()-2+28, 0) -> -0.9055536889 | AE4: =OFFSET(calcInput!E$2, ROW()-2+29, 0) -> -0.9566166292 | AF4: =OFFSET(calcInput!E$2, ROW()-2+30, 0) -> -0.9882936815 | AG4: =OFFSET(calcInput!E$2, ROW()-2+31, 0) -> -0.9999429086 | AH4: =OFFSET(calcInput!E$2, ROW()-2+32, 0) -> -0.9913282381 | AI4: =OFFSET(calcInput!E$2, ROW()-2+33, 0) -> -0.962624247 | AJ4: =OFFSET(calcInput!E$2, ROW()-2+34, 0) -> -0.914412623 | AK4: =OFFSET(calcInput!E$2, ROW()-2+35, 0) -> -0.8476703775 | AL4: =OFFSET(calcInput!E$2, ROW()-2+36, 0) -> -0.7637500456 | AM4: =OFFSET(calcInput!E$2, ROW()-2+37, 0) -> -0.6643522775 | AN4: =OFFSET(calcInput!E$2, ROW()-2+38, 0) -> -0.5514913743 | AO4: =OFFSET(calcInput!E$2, ROW()-2+39, 0) -> -0.4274544684 | AP4: =OFFSET(calcInput!E$2, ROW()-2+40, 0) -> -0.2947551744 | AQ4: =OFFSET(calcInput!E$2, ROW()-2+41, 0) -> -0.1560826508 | AR4: =OFFSET(calcInput!E$2, ROW()-2+42, 0) -> -0.01424710371 | AS4: =OFFSET(calcInput!E$2, ROW()-2+43, 0) -> 0.1278771617 | AT4: =OFFSET(calcInput!E$2, ROW()-2+44, 0) -> 0.2674099894
A5: 3 | B5: =OFFSET(calcInput!E$2, ROW()-2+0, 0) -> 0.4145311767 | C5: =OFFSET(calcInput!E$2, ROW()-2+1, 0) -> 0.5395507432 | D5: =OFFSET(calcInput!E$2, ROW()-2+2, 0) -> 0.6536362845 | E5: =OFFSET(calcInput!E$2, ROW()-2+3, 0) -> 0.7544758509 | F5: =OFFSET(calcInput!E$2, ROW()-2+4, 0) -> 0.8400259232 | G5: =OFFSET(calcInput!E$2, ROW()-2+5, 0) -> 0.9085528243 | H5: =OFFSET(calcInput!E$2, ROW()-2+6, 0) -> 0.958667853 | I5: =OFFSET(calcInput!E$2, ROW()-2+7, 0) -> 0.9893554255 | J5: =OFFSET(calcInput!E$2, ROW()-2+8, 0) -> 0.9999936565 | K5: =OFFSET(calcInput!E$2, ROW()-2+9, 0) -> 0.9903669615 | L5: =OFFSET(calcInput!E$2, ROW()-2+10, 0) -> 0.9606704261 | M5: =OFFSET(calcInput!E$2, ROW()-2+11, 0) -> 0.9115058523 | N5: =OFFSET(calcInput!E$2, ROW()-2+12, 0) -> 0.8438695628 | O5: =OFFSET(calcInput!E$2, ROW()-2+13, 0) -> 0.7591322106 | P5: =OFFSET(calcInput!E$2, ROW()-2+14, 0) -> 0.6590110028 | Q5: =OFFSET(calcInput!E$2, ROW()-2+15, 0) -> 0.5455349012 | R5: =OFFSET(calcInput!E$2, ROW()-2+16, 0) -> 0.4210035051 | S5: =OFFSET(calcInput!E$2, ROW()-2+17, 0) -> 0.2879404501 | T5: =OFFSET(calcInput!E$2, ROW()-2+18, 0) -> 0.1490422662 | U5: =OFFSET(calcInput!E$2, ROW()-2+19, 0) -> 0.007123732612 | V5: =OFFSET(calcInput!E$2, ROW()-2+20, 0) -> -0.1349391638 | W5: =OFFSET(calcInput!E$2, ROW()-2+21, 0) -> -0.2742675107 | X5: =OFFSET(calcInput!E$2, ROW()-2+22, 0) -> -0.4080378115 | Y5: =OFFSET(calcInput!E$2, ROW()-2+23, 0) -> -0.5335392039 | Z5: =OFFSET(calcInput!E$2, ROW()-2+24, 0) -> -0.6482283953 | AA5: =OFFSET(calcInput!E$2, ROW()-2+25, 0) -> -0.749781203 | AB5: =OFFSET(calcInput!E$2, ROW()-2+26, 0) -> -0.8361396537 | AC5: =OFFSET(calcInput!E$2, ROW()-2+27, 0) -> -0.9055536889 | AD5: =OFFSET(calcInput!E$2, ROW()-2+28, 0) -> -0.9566166292 | AE5: =OFFSET(calcInput!E$2, ROW()-2+29, 0) -> -0.9882936815 | AF5: =OFFSET(calcInput!E$2, ROW()-2+30, 0) -> -0.9999429086 | AG5: =OFFSET(calcInput!E$2, ROW()-2+31, 0) -> -0.9913282381 | AH5: =OFFSET(calcInput!E$2, ROW()-2+32, 0) -> -0.962624247 | AI5: =OFFSET(calcInput!E$2, ROW()-2+33, 0) -> -0.914412623 | AJ5: =OFFSET(calcInput!E$2, ROW()-2+34, 0) -> -0.8476703775 | AK5: =OFFSET(calcInput!E$2, ROW()-2+35, 0) -> -0.7637500456 | AL5: =OFFSET(calcInput!E$2, ROW()-2+36, 0) -> -0.6643522775 | AM5: =OFFSET(calcInput!E$2, ROW()-2+37, 0) -> -0.5514913743 | AN5: =OFFSET(calcInput!E$2, ROW()-2+38, 0) -> -0.4274544684 | AO5: =OFFSET(calcInput!E$2, ROW()-2+39, 0) -> -0.2947551744 | AP5: =OFFSET(calcInput!E$2, ROW()-2+40, 0) -> -0.1560826508 | AQ5: =OFFSET(calcInput!E$2, ROW()-2+41, 0) -> -0.01424710371 | AR5: =OFFSET(calcInput!E$2, ROW()-2+42, 0) -> 0.1278771617 | AS5: =OFFSET(calcInput!E$2, ROW()-2+43, 0) -> 0.2674099894 | AT5: =OFFSET(calcInput!E$2, ROW()-2+44, 0) -> 0.4015237392
A6: 4 | B6: =OFFSET(calcInput!E$2, ROW()-2+0, 0) -> 0.5395507432 | C6: =OFFSET(calcInput!E$2, ROW()-2+1, 0) -> 0.6536362845 | D6: =OFFSET(calcInput!E$2, ROW()-2+2, 0) -> 0.7544758509 | E6: =OFFSET(calcInput!E$2, ROW()-2+3, 0) -> 0.8400259232 | F6: =OFFSET(calcInput!E$2, ROW()-2+4, 0) -> 0.9085528243 | G6: =OFFSET(calcInput!E$2, ROW()-2+5, 0) -> 0.958667853 | H6: =OFFSET(calcInput!E$2, ROW()-2+6, 0) -> 0.9893554255 | I6: =OFFSET(calcInput!E$2, ROW()-2+7, 0) -> 0.9999936565 | J6: =OFFSET(calcInput!E$2, ROW()-2+8, 0) -> 0.9903669615 | K6: =OFFSET(calcInput!E$2, ROW()-2+9, 0) -> 0.9606704261 | L6: =OFFSET(calcInput!E$2, ROW()-2+10, 0) -> 0.9115058523 | M6: =OFFSET(calcInput!E$2, ROW()-2+11, 0) -> 0.8438695628 | N6: =OFFSET(calcInput!E$2, ROW()-2+12, 0) -> 0.7591322106 | O6: =OFFSET(calcInput!E$2, ROW()-2+13, 0) -> 0.6590110028 | P6: =OFFSET(calcInput!E$2, ROW()-2+14, 0) -> 0.5455349012 | Q6: =OFFSET(calcInput!E$2, ROW()-2+15, 0) -> 0.4210035051 | R6: =OFFSET(calcInput!E$2, ROW()-2+16, 0) -> 0.2879404501 | S6: =OFFSET(calcInput!E$2, ROW()-2+17, 0) -> 0.1490422662 | T6: =OFFSET(calcInput!E$2, ROW()-2+18, 0) -> 0.007123732612 | U6: =OFFSET(calcInput!E$2, ROW()-2+19, 0) -> -0.1349391638 | V6: =OFFSET(calcInput!E$2, ROW()-2+20, 0) -> -0.2742675107 | W6: =OFFSET(calcInput!E$2, ROW()-2+21, 0) -> -0.4080378115 | X6: =OFFSET(calcInput!E$2, ROW()-2+22, 0) -> -0.5335392039 | Y6: =OFFSET(calcInput!E$2, ROW()-2+23, 0) -> -0.6482283953 | Z6: =OFFSET(calcInput!E$2, ROW()-2+24, 0) -> -0.749781203 | AA6: =OFFSET(calcInput!E$2, ROW()-2+25, 0) -> -0.8361396537 | AB6: =OFFSET(calcInput!E$2, ROW()-2+26, 0) -> -0.9055536889 | AC6: =OFFSET(calcInput!E$2, ROW()-2+27, 0) -> -0.9566166292 | AD6: =OFFSET(calcInput!E$2, ROW()-2+28, 0) -> -0.9882936815 | AE6: =OFFSET(calcInput!E$2, ROW()-2+29, 0) -> -0.9999429086 | AF6: =OFFSET(calcInput!E$2, ROW()-2+30, 0) -> -0.9913282381 | AG6: =OFFSET(calcInput!E$2, ROW()-2+31, 0) -> -0.962624247 | AH6: =OFFSET(calcInput!E$2, ROW()-2+32, 0) -> -0.914412623 | AI6: =OFFSET(calcInput!E$2, ROW()-2+33, 0) -> -0.8476703775 | AJ6: =OFFSET(calcInput!E$2, ROW()-2+34, 0) -> -0.7637500456 | AK6: =OFFSET(calcInput!E$2, ROW()-2+35, 0) -> -0.6643522775 | AL6: =OFFSET(calcInput!E$2, ROW()-2+36, 0) -> -0.5514913743 | AM6: =OFFSET(calcInput!E$2, ROW()-2+37, 0) -> -0.4274544684 | AN6: =OFFSET(calcInput!E$2, ROW()-2+38, 0) -> -0.2947551744 | AO6: =OFFSET(calcInput!E$2, ROW()-2+39, 0) -> -0.1560826508 | AP6: =OFFSET(calcInput!E$2, ROW()-2+40, 0) -> -0.01424710371 | AQ6: =OFFSET(calcInput!E$2, ROW()-2+41, 0) -> 0.1278771617 | AR6: =OFFSET(calcInput!E$2, ROW()-2+42, 0) -> 0.2674099894 | AS6: =OFFSET(calcInput!E$2, ROW()-2+43, 0) -> 0.4015237392 | AT6: =OFFSET(calcInput!E$2, ROW()-2+44, 0) -> 0.5275005885
A7: 5 | B7: =OFFSET(calcInput!E$2, ROW()-2+0, 0) -> 0.6536362845 | C7: =OFFSET(calcInput!E$2, ROW()-2+1, 0) -> 0.7544758509 | D7: =OFFSET(calcInput!E$2, ROW()-2+2, 0) -> 0.8400259232 | E7: =OFFSET(calcInput!E$2, ROW()-2+3, 0) -> 0.9085528243 | F7: =OFFSET(calcInput!E$2, ROW()-2+4, 0) -> 0.958667853 | G7: =OFFSET(calcInput!E$2, ROW()-2+5, 0) -> 0.9893554255 | H7: =OFFSET(calcInput!E$2, ROW()-2+6, 0) -> 0.9999936565 | I7: =OFFSET(calcInput!E$2, ROW()-2+7, 0) -> 0.9903669615 | J7: =OFFSET(calcInput!E$2, ROW()-2+8, 0) -> 0.9606704261 | K7: =OFFSET(calcInput!E$2, ROW()-2+9, 0) -> 0.9115058523 | L7: =OFFSET(calcInput!E$2, ROW()-2+10, 0) -> 0.8438695628 | M7: =OFFSET(calcInput!E$2, ROW()-2+11, 0) -> 0.7591322106 | N7: =OFFSET(calcInput!E$2, ROW()-2+12, 0) -> 0.6590110028 | O7: =OFFSET(calcInput!E$2, ROW()-2+13, 0) -> 0.5455349012 | P7: =OFFSET(calcInput!E$2, ROW()-2+14, 0) -> 0.4210035051 | Q7: =OFFSET(calcInput!E$2, ROW()-2+15, 0) -> 0.2879404501 | R7: =OFFSET(calcInput!E$2, ROW()-2+16, 0) -> 0.1490422662 | S7: =OFFSET(calcInput!E$2, ROW()-2+17, 0) -> 0.007123732612 | T7: =OFFSET(calcInput!E$2, ROW()-2+18, 0) -> -0.1349391638 | U7: =OFFSET(calcInput!E$2, ROW()-2+19, 0) -> -0.2742675107 | V7: =OFFSET(calcInput!E$2, ROW()-2+20, 0) -> -0.4080378115 | W7: =OFFSET(calcInput!E$2, ROW()-2+21, 0) -> -0.5335392039 | X7: =OFFSET(calcInput!E$2, ROW()-2+22, 0) -> -0.6482283953 | Y7: =OFFSET(calcInput!E$2, ROW()-2+23, 0) -> -0.749781203 | Z7: =OFFSET(calcInput!E$2, ROW()-2+24, 0) -> -0.8361396537 | AA7: =OFFSET(calcInput!E$2, ROW()-2+25, 0) -> -0.9055536889 | AB7: =OFFSET(calcInput!E$2, ROW()-2+26, 0) -> -0.9566166292 | AC7: =OFFSET(calcInput!E$2, ROW()-2+27, 0) -> -0.9882936815 | AD7: =OFFSET(calcInput!E$2, ROW()-2+28, 0) -> -0.9999429086 | AE7: =OFFSET(calcInput!E$2, ROW()-2+29, 0) -> -0.9913282381 | AF7: =OFFSET(calcInput!E$2, ROW()-2+30, 0) -> -0.962624247 | AG7: =OFFSET(calcInput!E$2, ROW()-2+31, 0) -> -0.914412623 | AH7: =OFFSET(calcInput!E$2, ROW()-2+32, 0) -> -0.8476703775 | AI7: =OFFSET(calcInput!E$2, ROW()-2+33, 0) -> -0.7637500456 | AJ7: =OFFSET(calcInput!E$2, ROW()-2+34, 0) -> -0.6643522775 | AK7: =OFFSET(calcInput!E$2, ROW()-2+35, 0) -> -0.5514913743 | AL7: =OFFSET(calcInput!E$2, ROW()-2+36, 0) -> -0.4274544684 | AM7: =OFFSET(calcInput!E$2, ROW()-2+37, 0) -> -0.2947551744 | AN7: =OFFSET(calcInput!E$2, ROW()-2+38, 0) -> -0.1560826508 | AO7: =OFFSET(calcInput!E$2, ROW()-2+39, 0) -> -0.01424710371 | AP7: =OFFSET(calcInput!E$2, ROW()-2+40, 0) -> 0.1278771617 | AQ7: =OFFSET(calcInput!E$2, ROW()-2+41, 0) -> 0.2674099894 | AR7: =OFFSET(calcInput!E$2, ROW()-2+42, 0) -> 0.4015237392 | AS7: =OFFSET(calcInput!E$2, ROW()-2+43, 0) -> 0.5275005885 | AT7: =OFFSET(calcInput!E$2, ROW()-2+44, 0) -> 0.6427876097
A8: 6 | B8: =OFFSET(calcInput!E$2, ROW()-2+0, 0) -> 0.7544758509 | C8: =OFFSET(calcInput!E$2, ROW()-2+1, 0) -> 0.8400259232 | D8: =OFFSET(calcInput!E$2, ROW()-2+2, 0) -> 0.9085528243 | E8: =OFFSET(calcInput!E$2, ROW()-2+3, 0) -> 0.958667853 | F8: =OFFSET(calcInput!E$2, ROW()-2+4, 0) -> 0.9893554255 | G8: =OFFSET(calcInput!E$2, ROW()-2+5, 0) -> 0.9999936565 | H8: =OFFSET(calcInput!E$2, ROW()-2+6, 0) -> 0.9903669615 | I8: =OFFSET(calcInput!E$2, ROW()-2+7, 0) -> 0.9606704261 | J8: =OFFSET(calcInput!E$2, ROW()-2+8, 0) -> 0.9115058523 | K8: =OFFSET(calcInput!E$2, ROW()-2+9, 0) -> 0.8438695628 | L8: =OFFSET(calcInput!E$2, ROW()-2+10, 0) -> 0.7591322106 | M8: =OFFSET(calcInput!E$2, ROW()-2+11, 0) -> 0.6590110028 | N8: =OFFSET(calcInput!E$2, ROW()-2+12, 0) -> 0.5455349012 | O8: =OFFSET(calcInput!E$2, ROW()-2+13, 0) -> 0.4210035051 | P8: =OFFSET(calcInput!E$2, ROW()-2+14, 0) -> 0.2879404501 | Q8: =OFFSET(calcInput!E$2, ROW()-2+15, 0) -> 0.1490422662 | R8: =OFFSET(calcInput!E$2, ROW()-2+16, 0) -> 0.007123732612 | S8: =OFFSET(calcInput!E$2, ROW()-2+17, 0) -> -0.1349391638 | T8: =OFFSET(calcInput!E$2, ROW()-2+18, 0) -> -0.2742675107 | U8: =OFFSET(calcInput!E$2, ROW()-2+19, 0) -> -0.4080378115 | V8: =OFFSET(calcInput!E$2, ROW()-2+20, 0) -> -0.5335392039 | W8: =OFFSET(calcInput!E$2, ROW()-2+21, 0) -> -0.6482283953 | X8: =OFFSET(calcInput!E$2, ROW()-2+22, 0) -> -0.749781203 | Y8: =OFFSET(calcInput!E$2, ROW()-2+23, 0) -> -0.8361396537 | Z8: =OFFSET(calcInput!E$2, ROW()-2+24, 0) -> -0.9055536889 | AA8: =OFFSET(calcInput!E$2, ROW()-2+25, 0) -> -0.9566166292 | AB8: =OFFSET(calcInput!E$2, ROW()-2+26, 0) -> -0.9882936815 | AC8: =OFFSET(calcInput!E$2, ROW()-2+27, 0) -> -0.9999429086 | AD8: =OFFSET(calcInput!E$2, ROW()-2+28, 0) -> -0.9913282381 | AE8: =OFFSET(calcInput!E$2, ROW()-2+29, 0) -> -0.962624247 | AF8: =OFFSET(calcInput!E$2, ROW()-2+30, 0) -> -0.914412623 | AG8: =OFFSET(calcInput!E$2, ROW()-2+31, 0) -> -0.8476703775 | AH8: =OFFSET(calcInput!E$2, ROW()-2+32, 0) -> -0.7637500456 | AI8: =OFFSET(calcInput!E$2, ROW()-2+33, 0) -> -0.6643522775 | AJ8: =OFFSET(calcInput!E$2, ROW()-2+34, 0) -> -0.5514913743 | AK8: =OFFSET(calcInput!E$2, ROW()-2+35, 0) -> -0.4274544684 | AL8: =OFFSET(calcInput!E$2, ROW()-2+36, 0) -> -0.2947551744 | AM8: =OFFSET(calcInput!E$2, ROW()-2+37, 0) -> -0.1560826508 | AN8: =OFFSET(calcInput!E$2, ROW()-2+38, 0) -> -0.01424710371 | AO8: =OFFSET(calcInput!E$2, ROW()-2+39, 0) -> 0.1278771617 | AP8: =OFFSET(calcInput!E$2, ROW()-2+40, 0) -> 0.2674099894 | AQ8: =OFFSET(calcInput!E$2, ROW()-2+41, 0) -> 0.4015237392 | AR8: =OFFSET(calcInput!E$2, ROW()-2+42, 0) -> 0.5275005885 | AS8: =OFFSET(calcInput!E$2, ROW()-2+43, 0) -> 0.6427876097 | AT8: =OFFSET(calcInput!E$2, ROW()-2+44, 0) -> 0.745048505
A9: 7 | B9: =OFFSET(calcInput!E$2, ROW()-2+0, 0) -> 0.8400259232 | C9: =OFFSET(calcInput!E$2, ROW()-2+1, 0) -> 0.9085528243 | D9: =OFFSET(calcInput!E$2, ROW()-2+2, 0) -> 0.958667853 | E9: =OFFSET(calcInput!E$2, ROW()-2+3, 0) -> 0.9893554255 | F9: =OFFSET(calcInput!E$2, ROW()-2+4, 0) -> 0.9999936565 | G9: =OFFSET(calcInput!E$2, ROW()-2+5, 0) -> 0.9903669615 | H9: =OFFSET(calcInput!E$2, ROW()-2+6, 0) -> 0.9606704261 | I9: =OFFSET(calcInput!E$2, ROW()-2+7, 0) -> 0.9115058523 | J9: =OFFSET(calcInput!E$2, ROW()-2+8, 0) -> 0.8438695628 | K9: =OFFSET(calcInput!E$2, ROW()-2+9, 0) -> 0.7591322106 | L9: =OFFSET(calcInput!E$2, ROW()-2+10, 0) -> 0.6590110028 | M9: =OFFSET(calcInput!E$2, ROW()-2+11, 0) -> 0.5455349012 | N9: =OFFSET(calcInput!E$2, ROW()-2+12, 0) -> 0.4210035051 | O9: =OFFSET(calcInput!E$2, ROW()-2+13, 0) -> 0.2879404501 | P9: =OFFSET(calcInput!E$2, ROW()-2+14, 0) -> 0.1490422662 | Q9: =OFFSET(calcInput!E$2, ROW()-2+15, 0) -> 0.007123732612 | R9: =OFFSET(calcInput!E$2, ROW()-2+16, 0) -> -0.1349391638 | S9: =OFFSET(calcInput!E$2, ROW()-2+17, 0) -> -0.2742675107 | T9: =OFFSET(calcInput!E$2, ROW()-2+18, 0) -> -0.4080378115 | U9: =OFFSET(calcInput!E$2, ROW()-2+19, 0) -> -0.5335392039 | V9: =OFFSET(calcInput!E$2, ROW()-2+20, 0) -> -0.6482283953 | W9: =OFFSET(calcInput!E$2, ROW()-2+21, 0) -> -0.749781203 | X9: =OFFSET(calcInput!E$2, ROW()-2+22, 0) -> -0.8361396537 | Y9: =OFFSET(calcInput!E$2, ROW()-2+23, 0) -> -0.9055536889 | Z9: =OFFSET(calcInput!E$2, ROW()-2+24, 0) -> -0.9566166292 | AA9: =OFFSET(calcInput!E$2, ROW()-2+25, 0) -> -0.9882936815 | AB9: =OFFSET(calcInput!E$2, ROW()-2+26, 0) -> -0.9999429086 | AC9: =OFFSET(calcInput!E$2, ROW()-2+27, 0) -> -0.9913282381 | AD9: =OFFSET(calcInput!E$2, ROW()-2+28, 0) -> -0.962624247 | AE9: =OFFSET(calcInput!E$2, ROW()-2+29, 0) -> -0.914412623 | AF9: =OFFSET(calcInput!E$2, ROW()-2+30, 0) -> -0.8476703775 | AG9: =OFFSET(calcInput!E$2, ROW()-2+31, 0) -> -0.7637500456 | AH9: =OFFSET(calcInput!E$2, ROW()-2+32, 0) -> -0.6643522775 | AI9: =OFFSET(calcInput!E$2, ROW()-2+33, 0) -> -0.5514913743 | AJ9: =OFFSET(calcInput!E$2, ROW()-2+34, 0) -> -0.4274544684 | AK9: =OFFSET(calcInput!E$2, ROW()-2+35, 0) -> -0.2947551744 | AL9: =OFFSET(calcInput!E$2, ROW()-2+36, 0) -> -0.1560826508 | AM9: =OFFSET(calcInput!E$2, ROW()-2+37, 0) -> -0.01424710371 | AN9: =OFFSET(calcInput!E$2, ROW()-2+38, 0) -> 0.1278771617 | AO9: =OFFSET(calcInput!E$2, ROW()-2+39, 0) -> 0.2674099894 | AP9: =OFFSET(calcInput!E$2, ROW()-2+40, 0) -> 0.4015237392 | AQ9: =OFFSET(calcInput!E$2, ROW()-2+41, 0) -> 0.5275005885 | AR9: =OFFSET(calcInput!E$2, ROW()-2+42, 0) -> 0.6427876097 | AS9: =OFFSET(calcInput!E$2, ROW()-2+43, 0) -> 0.745048505 | AT9: =OFFSET(calcInput!E$2, ROW()-2+44, 0) -> 0.8322109517
A10: 8 | B10: =OFFSET(calcInput!E$2, ROW()-2+0, 0) -> 0.9085528243 | C10: =OFFSET(calcInput!E$2, ROW()-2+1, 0) -> 0.958667853 | D10: =OFFSET(calcInput!E$2, ROW()-2+2, 0) -> 0.9893554255 | E10: =OFFSET(calcInput!E$2, ROW()-2+3, 0) -> 0.9999936565 | F10: =OFFSET(calcInput!E$2, ROW()-2+4, 0) -> 0.9903669615 | G10: =OFFSET(calcInput!E$2, ROW()-2+5, 0) -> 0.9606704261 | H10: =OFFSET(calcInput!E$2, ROW()-2+6, 0) -> 0.9115058523 | I10: =OFFSET(calcInput!E$2, ROW()-2+7, 0) -> 0.8438695628 | J10: =OFFSET(calcInput!E$2, ROW()-2+8, 0) -> 0.7591322106 | K10: =OFFSET(calcInput!E$2, ROW()-2+9, 0) -> 0.6590110028 | L10: =OFFSET(calcInput!E$2, ROW()-2+10, 0) -> 0.5455349012 | M10: =OFFSET(calcInput!E$2, ROW()-2+11, 0) -> 0.4210035051 | N10: =OFFSET(calcInput!E$2, ROW()-2+12, 0) -> 0.2879404501 | O10: =OFFSET(calcInput!E$2, ROW()-2+13, 0) -> 0.1490422662 | P10: =OFFSET(calcInput!E$2, ROW()-2+14, 0) -> 0.007123732612 | Q10: =OFFSET(calcInput!E$2, ROW()-2+15, 0) -> -0.1349391638 | R10: =OFFSET(calcInput!E$2, ROW()-2+16, 0) -> -0.2742675107 | S10: =OFFSET(calcInput!E$2, ROW()-2+17, 0) -> -0.4080378115 | T10: =OFFSET(calcInput!E$2, ROW()-2+18, 0) -> -0.5335392039 | U10: =OFFSET(calcInput!E$2, ROW()-2+19, 0) -> -0.6482283953 | V10: =OFFSET(calcInput!E$2, ROW()-2+20, 0) -> -0.749781203 | W10: =OFFSET(calcInput!E$2, ROW()-2+21, 0) -> -0.8361396537 | X10: =OFFSET(calcInput!E$2, ROW()-2+22, 0) -> -0.9055536889 | Y10: =OFFSET(calcInput!E$2, ROW()-2+23, 0) -> -0.9566166292 | Z10: =OFFSET(calcInput!E$2, ROW()-2+24, 0) -> -0.9882936815 | AA10: =OFFSET(calcInput!E$2, ROW()-2+25, 0) -> -0.9999429086 | AB10: =OFFSET(calcInput!E$2, ROW()-2+26, 0) -> -0.9913282381 | AC10: =OFFSET(calcInput!E$2, ROW()-2+27, 0) -> -0.962624247 | AD10: =OFFSET(calcInput!E$2, ROW()-2+28, 0) -> -0.914412623 | AE10: =OFFSET(calcInput!E$2, ROW()-2+29, 0) -> -0.8476703775 | AF10: =OFFSET(calcInput!E$2, ROW()-2+30, 0) -> -0.7637500456 | AG10: =OFFSET(calcInput!E$2, ROW()-2+31, 0) -> -0.6643522775 | AH10: =OFFSET(calcInput!E$2, ROW()-2+32, 0) -> -0.5514913743 | AI10: =OFFSET(calcInput!E$2, ROW()-2+33, 0) -> -0.4274544684 | AJ10: =OFFSET(calcInput!E$2, ROW()-2+34, 0) -> -0.2947551744 | AK10: =OFFSET(calcInput!E$2, ROW()-2+35, 0) -> -0.1560826508 | AL10: =OFFSET(calcInput!E$2, ROW()-2+36, 0) -> -0.01424710371 | AM10: =OFFSET(calcInput!E$2, ROW()-2+37, 0) -> 0.1278771617 | AN10: =OFFSET(calcInput!E$2, ROW()-2+38, 0) -> 0.2674099894 | AO10: =OFFSET(calcInput!E$2, ROW()-2+39, 0) -> 0.4015237392 | AP10: =OFFSET(calcInput!E$2, ROW()-2+40, 0) -> 0.5275005885 | AQ10: =OFFSET(calcInput!E$2, ROW()-2+41, 0) -> 0.6427876097 | AR10: =OFFSET(calcInput!E$2, ROW()-2+42, 0) -> 0.745048505 | AS10: =OFFSET(calcInput!E$2, ROW()-2+43, 0) -> 0.8322109517 | AT10: =OFFSET(calcInput!E$2, ROW()-2+44, 0) -> 0.9025085982
A11: 9 | B11: =OFFSET(calcInput!E$2, ROW()-2+0, 0) -> 0.958667853 | C11: =OFFSET(calcInput!E$2, ROW()-2+1, 0) -> 0.9893554255 | D11: =OFFSET(calcInput!E$2, ROW()-2+2, 0) -> 0.9999936565 | E11: =OFFSET(calcInput!E$2, ROW()-2+3, 0) -> 0.9903669615 | F11: =OFFSET(calcInput!E$2, ROW()-2+4, 0) -> 0.9606704261 | G11: =OFFSET(calcInput!E$2, ROW()-2+5, 0) -> 0.9115058523 | H11: =OFFSET(calcInput!E$2, ROW()-2+6, 0) -> 0.8438695628 | I11: =OFFSET(calcInput!E$2, ROW()-2+7, 0) -> 0.7591322106 | J11: =OFFSET(calcInput!E$2, ROW()-2+8, 0) -> 0.6590110028 | K11: =OFFSET(calcInput!E$2, ROW()-2+9, 0) -> 0.5455349012 | L11: =OFFSET(calcInput!E$2, ROW()-2+10, 0) -> 0.4210035051 | M11: =OFFSET(calcInput!E$2, ROW()-2+11, 0) -> 0.2879404501 | N11: =OFFSET(calcInput!E$2, ROW()-2+12, 0) -> 0.1490422662 | O11: =OFFSET(calcInput!E$2, ROW()-2+13, 0) -> 0.007123732612 | P11: =OFFSET(calcInput!E$2, ROW()-2+14, 0) -> -0.1349391638 | Q11: =OFFSET(calcInput!E$2, ROW()-2+15, 0) -> -0.2742675107 | R11: =OFFSET(calcInput!E$2, ROW()-2+16, 0) -> -0.4080378115 | S11: =OFFSET(calcInput!E$2, ROW()-2+17, 0) -> -0.5335392039 | T11: =OFFSET(calcInput!E$2, ROW()-2+18, 0) -> -0.6482283953 | U11: =OFFSET(calcInput!E$2, ROW()-2+19, 0) -> -0.749781203 | V11: =OFFSET(calcInput!E$2, ROW()-2+20, 0) -> -0.8361396537 | W11: =OFFSET(calcInput!E$2, ROW()-2+21, 0) -> -0.9055536889 | X11: =OFFSET(calcInput!E$2, ROW()-2+22, 0) -> -0.9566166292 | Y11: =OFFSET(calcInput!E$2, ROW()-2+23, 0) -> -0.9882936815 | Z11: =OFFSET(calcInput!E$2, ROW()-2+24, 0) -> -0.9999429086 | AA11: =OFFSET(calcInput!E$2, ROW()-2+25, 0) -> -0.9913282381 | AB11: =OFFSET(calcInput!E$2, ROW()-2+26, 0) -> -0.962624247 | AC11: =OFFSET(calcInput!E$2, ROW()-2+27, 0) -> -0.914412623 | AD11: =OFFSET(calcInput!E$2, ROW()-2+28, 0) -> -0.8476703775 | AE11: =OFFSET(calcInput!E$2, ROW()-2+29, 0) -> -0.7637500456 | AF11: =OFFSET(calcInput!E$2, ROW()-2+30, 0) -> -0.6643522775 | AG11: =OFFSET(calcInput!E$2, ROW()-2+31, 0) -> -0.5514913743 | AH11: =OFFSET(calcInput!E$2, ROW()-2+32, 0) -> -0.4274544684 | AI11: =OFFSET(calcInput!E$2, ROW()-2+33, 0) -> -0.2947551744 | AJ11: =OFFSET(calcInput!E$2, ROW()-2+34, 0) -> -0.1560826508 | AK11: =OFFSET(calcInput!E$2, ROW()-2+35, 0) -> -0.01424710371 | AL11: =OFFSET(calcInput!E$2, ROW()-2+36, 0) -> 0.1278771617 | AM11: =OFFSET(calcInput!E$2, ROW()-2+37, 0) -> 0.2674099894 | AN11: =OFFSET(calcInput!E$2, ROW()-2+38, 0) -> 0.4015237392 | AO11: =OFFSET(calcInput!E$2, ROW()-2+39, 0) -> 0.5275005885 | AP11: =OFFSET(calcInput!E$2, ROW()-2+40, 0) -> 0.6427876097 | AQ11: =OFFSET(calcInput!E$2, ROW()-2+41, 0) -> 0.745048505 | AR11: =OFFSET(calcInput!E$2, ROW()-2+42, 0) -> 0.8322109517 | AS11: =OFFSET(calcInput!E$2, ROW()-2+43, 0) -> 0.9025085982 | AT11: =OFFSET(calcInput!E$2, ROW()-2+44, 0) -> 0.9545168589
A12: 10 | B12: =OFFSET(calcInput!E$2, ROW()-2+0, 0) -> 0.9893554255 | C12: =OFFSET(calcInput!E$2, ROW()-2+1, 0) -> 0.9999936565 | D12: =OFFSET(calcInput!E$2, ROW()-2+2, 0) -> 0.9903669615 | E12: =OFFSET(calcInput!E$2, ROW()-2+3, 0) -> 0.9606704261 | F12: =OFFSET(calcInput!E$2, ROW()-2+4, 0) -> 0.9115058523 | G12: =OFFSET(calcInput!E$2, ROW()-2+5, 0) -> 0.8438695628 | H12: =OFFSET(calcInput!E$2, ROW()-2+6, 0) -> 0.7591322106 | I12: =OFFSET(calcInput!E$2, ROW()-2+7, 0) -> 0.6590110028 | J12: =OFFSET(calcInput!E$2, ROW()-2+8, 0) -> 0.5455349012 | K12: =OFFSET(calcInput!E$2, ROW()-2+9, 0) -> 0.4210035051 | L12: =OFFSET(calcInput!E$2, ROW()-2+10, 0) -> 0.2879404501 | M12: =OFFSET(calcInput!E$2, ROW()-2+11, 0) -> 0.1490422662 | N12: =OFFSET(calcInput!E$2, ROW()-2+12, 0) -> 0.007123732612 | O12: =OFFSET(calcInput!E$2, ROW()-2+13, 0) -> -0.1349391638 | P12: =OFFSET(calcInput!E$2, ROW()-2+14, 0) -> -0.2742675107 | Q12: =OFFSET(calcInput!E$2, ROW()-2+15, 0) -> -0.4080378115 | R12: =OFFSET(calcInput!E$2, ROW()-2+16, 0) -> -0.5335392039 | S12: =OFFSET(calcInput!E$2, ROW()-2+17, 0) -> -0.6482283953 | T12: =OFFSET(calcInput!E$2, ROW()-2+18, 0) -> -0.749781203 | U12: =OFFSET(calcInput!E$2, ROW()-2+19, 0) -> -0.8361396537 | V12: =OFFSET(calcInput!E$2, ROW()-2+20, 0) -> -0.9055536889 | W12: =OFFSET(calcInput!E$2, ROW()-2+21, 0) -> -0.9566166292 | X12: =OFFSET(calcInput!E$2, ROW()-2+22, 0) -> -0.9882936815 | Y12: =OFFSET(calcInput!E$2, ROW()-2+23, 0) -> -0.9999429086 | Z12: =OFFSET(calcInput!E$2, ROW()-2+24, 0) -> -0.9913282381 | AA12: =OFFSET(calcInput!E$2, ROW()-2+25, 0) -> -0.962624247 | AB12: =OFFSET(calcInput!E$2, ROW()-2+26, 0) -> -0.914412623 | AC12: =OFFSET(calcInput!E$2, ROW()-2+27, 0) -> -0.8476703775 | AD12: =OFFSET(calcInput!E$2, ROW()-2+28, 0) -> -0.7637500456 | AE12: =OFFSET(calcInput!E$2, ROW()-2+29, 0) -> -0.6643522775 | AF12: =OFFSET(calcInput!E$2, ROW()-2+30, 0) -> -0.5514913743 | AG12: =OFFSET(calcInput!E$2, ROW()-2+31, 0) -> -0.4274544684 | AH12: =OFFSET(calcInput!E$2, ROW()-2+32, 0) -> -0.2947551744 | AI12: =OFFSET(calcInput!E$2, ROW()-2+33, 0) -> -0.1560826508 | AJ12: =OFFSET(calcInput!E$2, ROW()-2+34, 0) -> -0.01424710371 | AK12: =OFFSET(calcInput!E$2, ROW()-2+35, 0) -> 0.1278771617 | AL12: =OFFSET(calcInput!E$2, ROW()-2+36, 0) -> 0.2674099894 | AM12: =OFFSET(calcInput!E$2, ROW()-2+37, 0) -> 0.4015237392 | AN12: =OFFSET(calcInput!E$2, ROW()-2+38, 0) -> 0.5275005885 | AO12: =OFFSET(calcInput!E$2, ROW()-2+39, 0) -> 0.6427876097 | AP12: =OFFSET(calcInput!E$2, ROW()-2+40, 0) -> 0.745048505 | AQ12: =OFFSET(calcInput!E$2, ROW()-2+41, 0) -> 0.8322109517 | AR12: =OFFSET(calcInput!E$2, ROW()-2+42, 0) -> 0.9025085982 | AS12: =OFFSET(calcInput!E$2, ROW()-2+43, 0) -> 0.9545168589 | AT12: =OFFSET(calcInput!E$2, ROW()-2+44, 0) -> 0.9871817834
A13: 11 | B13: =OFFSET(calcInput!E$2, ROW()-2+0, 0) -> 0.9999936565 | C13: =OFFSET(calcInput!E$2, ROW()-2+1, 0) -> 0.9903669615 | D13: =OFFSET(calcInput!E$2, ROW()-2+2, 0) -> 0.9606704261 | E13: =OFFSET(calcInput!E$2, ROW()-2+3, 0) -> 0.9115058523 | F13: =OFFSET(calcInput!E$2, ROW()-2+4, 0) -> 0.8438695628 | G13: =OFFSET(calcInput!E$2, ROW()-2+5, 0) -> 0.7591322106 | H13: =OFFSET(calcInput!E$2, ROW()-2+6, 0) -> 0.6590110028 | I13: =OFFSET(calcInput!E$2, ROW()-2+7, 0) -> 0.5455349012 | J13: =OFFSET(calcInput!E$2, ROW()-2+8, 0) -> 0.4210035051 | K13: =OFFSET(calcInput!E$2, ROW()-2+9, 0) -> 0.2879404501 | L13: =OFFSET(calcInput!E$2, ROW()-2+10, 0) -> 0.1490422662 | M13: =OFFSET(calcInput!E$2, ROW()-2+11, 0) -> 0.007123732612 | N13: =OFFSET(calcInput!E$2, ROW()-2+12, 0) -> -0.1349391638 | O13: =OFFSET(calcInput!E$2, ROW()-2+13, 0) -> -0.2742675107 | P13: =OFFSET(calcInput!E$2, ROW()-2+14, 0) -> -0.4080378115 | Q13: =OFFSET(calcInput!E$2, ROW()-2+15, 0) -> -0.5335392039 | R13: =OFFSET(calcInput!E$2, ROW()-2+16, 0) -> -0.6482283953 | S13: =OFFSET(calcInput!E$2, ROW()-2+17, 0) -> -0.749781203 | T13: =OFFSET(calcInput!E$2, ROW()-2+18, 0) -> -0.8361396537 | U13: =OFFSET(calcInput!E$2, ROW()-2+19, 0) -> -0.9055536889 | V13: =OFFSET(calcInput!E$2, ROW()-2+20, 0) -> -0.9566166292 | W13: =OFFSET(calcInput!E$2, ROW()-2+21, 0) -> -0.9882936815 | X13: =OFFSET(calcInput!E$2, ROW()-2+22, 0) -> -0.9999429086 | Y13: =OFFSET(calcInput!E$2, ROW()-2+23, 0) -> -0.9913282381 | Z13: =OFFSET(calcInput!E$2, ROW()-2+24, 0) -> -0.962624247 | AA13: =OFFSET(calcInput!E$2, ROW()-2+25, 0) -> -0.914412623 | AB13: =OFFSET(calcInput!E$2, ROW()-2+26, 0) -> -0.8476703775 | AC13: =OFFSET(calcInput!E$2, ROW()-2+27, 0) -> -0.7637500456 | AD13: =OFFSET(calcInput!E$2, ROW()-2+28, 0) -> -0.6643522775 | AE13: =OFFSET(calcInput!E$2, ROW()-2+29, 0) -> -0.5514913743 | AF13: =OFFSET(calcInput!E$2, ROW()-2+30, 0) -> -0.4274544684 | AG13: =OFFSET(calcInput!E$2, ROW()-2+31, 0) -> -0.2947551744 | AH13: =OFFSET(calcInput!E$2, ROW()-2+32, 0) -> -0.1560826508 | AI13: =OFFSET(calcInput!E$2, ROW()-2+33, 0) -> -0.01424710371 | AJ13: =OFFSET(calcInput!E$2, ROW()-2+34, 0) -> 0.1278771617 | AK13: =OFFSET(calcInput!E$2, ROW()-2+35, 0) -> 0.2674099894 | AL13: =OFFSET(calcInput!E$2, ROW()-2+36, 0) -> 0.4015237392 | AM13: =OFFSET(calcInput!E$2, ROW()-2+37, 0) -> 0.5275005885 | AN13: =OFFSET(calcInput!E$2, ROW()-2+38, 0) -> 0.6427876097 | AO13: =OFFSET(calcInput!E$2, ROW()-2+39, 0) -> 0.745048505 | AP13: =OFFSET(calcInput!E$2, ROW()-2+40, 0) -> 0.8322109517 | AQ13: =OFFSET(calcInput!E$2, ROW()-2+41, 0) -> 0.9025085982 | AR13: =OFFSET(calcInput!E$2, ROW()-2+42, 0) -> 0.9545168589 | AS13: =OFFSET(calcInput!E$2, ROW()-2+43, 0) -> 0.9871817834 | AT13: =OFFSET(calcInput!E$2, ROW()-2+44, 0) -> 0.9998414154
A14: 12 | B14: =OFFSET(calcInput!E$2, ROW()-2+0, 0) -> 0.9903669615 | C14: =OFFSET(calcInput!E$2, ROW()-2+1, 0) -> 0.9606704261 | D14: =OFFSET(calcInput!E$2, ROW()-2+2, 0) -> 0.9115058523 | E14: =OFFSET(calcInput!E$2, ROW()-2+3, 0) -> 0.8438695628 | F14: =OFFSET(calcInput!E$2, ROW()-2+4, 0) -> 0.7591322106 | G14: =OFFSET(calcInput!E$2, ROW()-2+5, 0) -> 0.6590110028 | H14: =OFFSET(calcInput!E$2, ROW()-2+6, 0) -> 0.5455349012 | I14: =OFFSET(calcInput!E$2, ROW()-2+7, 0) -> 0.4210035051 | J14: =OFFSET(calcInput!E$2, ROW()-2+8, 0) -> 0.2879404501 | K14: =OFFSET(calcInput!E$2, ROW()-2+9, 0) -> 0.1490422662 | L14: =OFFSET(calcInput!E$2, ROW()-2+10, 0) -> 0.007123732612 | M14: =OFFSET(calcInput!E$2, ROW()-2+11, 0) -> -0.1349391638 | N14: =OFFSET(calcInput!E$2, ROW()-2+12, 0) -> -0.2742675107 | O14: =OFFSET(calcInput!E$2, ROW()-2+13, 0) -> -0.4080378115 | P14: =OFFSET(calcInput!E$2, ROW()-2+14, 0) -> -0.5335392039 | Q14: =OFFSET(calcInput!E$2, ROW()-2+15, 0) -> -0.6482283953 | R14: =OFFSET(calcInput!E$2, ROW()-2+16, 0) -> -0.749781203 | S14: =OFFSET(calcInput!E$2, ROW()-2+17, 0) -> -0.8361396537 | T14: =OFFSET(calcInput!E$2, ROW()-2+18, 0) -> -0.9055536889 | U14: =OFFSET(calcInput!E$2, ROW()-2+19, 0) -> -0.9566166292 | V14: =OFFSET(calcInput!E$2, ROW()-2+20, 0) -> -0.9882936815 | W14: =OFFSET(calcInput!E$2, ROW()-2+21, 0) -> -0.9999429086 | X14: =OFFSET(calcInput!E$2, ROW()-2+22, 0) -> -0.9913282381 | Y14: =OFFSET(calcInput!E$2, ROW()-2+23, 0) -> -0.962624247 | Z14: =OFFSET(calcInput!E$2, ROW()-2+24, 0) -> -0.914412623 | AA14: =OFFSET(calcInput!E$2, ROW()-2+25, 0) -> -0.8476703775 | AB14: =OFFSET(calcInput!E$2, ROW()-2+26, 0) -> -0.7637500456 | AC14: =OFFSET(calcInput!E$2, ROW()-2+27, 0) -> -0.6643522775 | AD14: =OFFSET(calcInput!E$2, ROW()-2+28, 0) -> -0.5514913743 | AE14: =OFFSET(calcInput!E$2, ROW()-2+29, 0) -> -0.4274544684 | AF14: =OFFSET(calcInput!E$2, ROW()-2+30, 0) -> -0.2947551744 | AG14: =OFFSET(calcInput!E$2, ROW()-2+31, 0) -> -0.1560826508 | AH14: =OFFSET(calcInput!E$2, ROW()-2+32, 0) -> -0.01424710371 | AI14: =OFFSET(calcInput!E$2, ROW()-2+33, 0) -> 0.1278771617 | AJ14: =OFFSET(calcInput!E$2, ROW()-2+34, 0) -> 0.2674099894 | AK14: =OFFSET(calcInput!E$2, ROW()-2+35, 0) -> 0.4015237392 | AL14: =OFFSET(calcInput!E$2, ROW()-2+36, 0) -> 0.5275005885 | AM14: =OFFSET(calcInput!E$2, ROW()-2+37, 0) -> 0.6427876097 | AN14: =OFFSET(calcInput!E$2, ROW()-2+38, 0) -> 0.745048505 | AO14: =OFFSET(calcInput!E$2, ROW()-2+39, 0) -> 0.8322109517 | AP14: =OFFSET(calcInput!E$2, ROW()-2+40, 0) -> 0.9025085982 | AQ14: =OFFSET(calcInput!E$2, ROW()-2+41, 0) -> 0.9545168589 | AR14: =OFFSET(calcInput!E$2, ROW()-2+42, 0) -> 0.9871817834 | AS14: =OFFSET(calcInput!E$2, ROW()-2+43, 0) -> 0.9998414154 | AT14: =OFFSET(calcInput!E$2, ROW()-2+44, 0) -> 0.9922392066
A15: 13 | B15: =OFFSET(calcInput!E$2, ROW()-2+0, 0) -> 0.9606704261 | C15: =OFFSET(calcInput!E$2, ROW()-2+1, 0) -> 0.9115058523 | D15: =OFFSET(calcInput!E$2, ROW()-2+2, 0) -> 0.8438695628 | E15: =OFFSET(calcInput!E$2, ROW()-2+3, 0) -> 0.7591322106 | F15: =OFFSET(calcInput!E$2, ROW()-2+4, 0) -> 0.6590110028 | G15: =OFFSET(calcInput!E$2, ROW()-2+5, 0) -> 0.5455349012 | H15: =OFFSET(calcInput!E$2, ROW()-2+6, 0) -> 0.4210035051 | I15: =OFFSET(calcInput!E$2, ROW()-2+7, 0) -> 0.2879404501 | J15: =OFFSET(calcInput!E$2, ROW()-2+8, 0) -> 0.1490422662 | K15: =OFFSET(calcInput!E$2, ROW()-2+9, 0) -> 0.007123732612 | L15: =OFFSET(calcInput!E$2, ROW()-2+10, 0) -> -0.1349391638 | M15: =OFFSET(calcInput!E$2, ROW()-2+11, 0) -> -0.2742675107 | N15: =OFFSET(calcInput!E$2, ROW()-2+12, 0) -> -0.4080378115 | O15: =OFFSET(calcInput!E$2, ROW()-2+13, 0) -> -0.5335392039 | P15: =OFFSET(calcInput!E$2, ROW()-2+14, 0) -> -0.6482283953 | Q15: =OFFSET(calcInput!E$2, ROW()-2+15, 0) -> -0.749781203 | R15: =OFFSET(calcInput!E$2, ROW()-2+16, 0) -> -0.8361396537 | S15: =OFFSET(calcInput!E$2, ROW()-2+17, 0) -> -0.9055536889 | T15: =OFFSET(calcInput!E$2, ROW()-2+18, 0) -> -0.9566166292 | U15: =OFFSET(calcInput!E$2, ROW()-2+19, 0) -> -0.9882936815 | V15: =OFFSET(calcInput!E$2, ROW()-2+20, 0) -> -0.9999429086 | W15: =OFFSET(calcInput!E$2, ROW()-2+21, 0) -> -0.9913282381 | X15: =OFFSET(calcInput!E$2, ROW()-2+22, 0) -> -0.962624247 | Y15: =OFFSET(calcInput!E$2, ROW()-2+23, 0) -> -0.914412623 | Z15: =OFFSET(calcInput!E$2, ROW()-2+24, 0) -> -0.8476703775 | AA15: =OFFSET(calcInput!E$2, ROW()-2+25, 0) -> -0.7637500456 | AB15: =OFFSET(calcInput!E$2, ROW()-2+26, 0) -> -0.6643522775 | AC15: =OFFSET(calcInput!E$2, ROW()-2+27, 0) -> -0.5514913743 | AD15: =OFFSET(calcInput!E$2, ROW()-2+28, 0) -> -0.4274544684 | AE15: =OFFSET(calcInput!E$2, ROW()-2+29, 0) -> -0.2947551744 | AF15: =OFFSET(calcInput!E$2, ROW()-2+30, 0) -> -0.1560826508 | AG15: =OFFSET(calcInput!E$2, ROW()-2+31, 0) -> -0.01424710371 | AH15: =OFFSET(calcInput!E$2, ROW()-2+32, 0) -> 0.1278771617 | AI15: =OFFSET(calcInput!E$2, ROW()-2+33, 0) -> 0.2674099894 | AJ15: =OFFSET(calcInput!E$2, ROW()-2+34, 0) -> 0.4015237392 | AK15: =OFFSET(calcInput!E$2, ROW()-2+35, 0) -> 0.5275005885 | AL15: =OFFSET(calcInput!E$2, ROW()-2+36, 0) -> 0.6427876097 | AM15: =OFFSET(calcInput!E$2, ROW()-2+37, 0) -> 0.745048505 | AN15: =OFFSET(calcInput!E$2, ROW()-2+38, 0) -> 0.8322109517 | AO15: =OFFSET(calcInput!E$2, ROW()-2+39, 0) -> 0.9025085982 | AP15: =OFFSET(calcInput!E$2, ROW()-2+40, 0) -> 0.9545168589 | AQ15: =OFFSET(calcInput!E$2, ROW()-2+41, 0) -> 0.9871817834 | AR15: =OFFSET(calcInput!E$2, ROW()-2+42, 0) -> 0.9998414154 | AS15: =OFFSET(calcInput!E$2, ROW()-2+43, 0) -> 0.9922392066 | AT15: =OFFSET(calcInput!E$2, ROW()-2+44, 0) -> 0.9645292163
A16: 14 | B16: =OFFSET(calcInput!E$2, ROW()-2+0, 0) -> 0.9115058523 | C16: =OFFSET(calcInput!E$2, ROW()-2+1, 0) -> 0.8438695628 | D16: =OFFSET(calcInput!E$2, ROW()-2+2, 0) -> 0.7591322106 | E16: =OFFSET(calcInput!E$2, ROW()-2+3, 0) -> 0.6590110028 | F16: =OFFSET(calcInput!E$2, ROW()-2+4, 0) -> 0.5455349012 | G16: =OFFSET(calcInput!E$2, ROW()-2+5, 0) -> 0.4210035051 | H16: =OFFSET(calcInput!E$2, ROW()-2+6, 0) -> 0.2879404501 | I16: =OFFSET(calcInput!E$2, ROW()-2+7, 0) -> 0.1490422662 | J16: =OFFSET(calcInput!E$2, ROW()-2+8, 0) -> 0.007123732612 | K16: =OFFSET(calcInput!E$2, ROW()-2+9, 0) -> -0.1349391638 | L16: =OFFSET(calcInput!E$2, ROW()-2+10, 0) -> -0.2742675107 | M16: =OFFSET(calcInput!E$2, ROW()-2+11, 0) -> -0.4080378115 | N16: =OFFSET(calcInput!E$2, ROW()-2+12, 0) -> -0.5335392039 | O16: =OFFSET(calcInput!E$2, ROW()-2+13, 0) -> -0.6482283953 | P16: =OFFSET(calcInput!E$2, ROW()-2+14, 0) -> -0.749781203 | Q16: =OFFSET(calcInput!E$2, ROW()-2+15, 0) -> -0.8361396537 | R16: =OFFSET(calcInput!E$2, ROW()-2+16, 0) -> -0.9055536889 | S16: =OFFSET(calcInput!E$2, ROW()-2+17, 0) -> -0.9566166292 | T16: =OFFSET(calcInput!E$2, ROW()-2+18, 0) -> -0.9882936815 | U16: =OFFSET(calcInput!E$2, ROW()-2+19, 0) -> -0.9999429086 | V16: =OFFSET(calcInput!E$2, ROW()-2+20, 0) -> -0.9913282381 | W16: =OFFSET(calcInput!E$2, ROW()-2+21, 0) -> -0.962624247 | X16: =OFFSET(calcInput!E$2, ROW()-2+22, 0) -> -0.914412623 | Y16: =OFFSET(calcInput!E$2, ROW()-2+23, 0) -> -0.8476703775 | Z16: =OFFSET(calcInput!E$2, ROW()-2+24, 0) -> -0.7637500456 | AA16: =OFFSET(calcInput!E$2, ROW()-2+25, 0) -> -0.6643522775 | AB16: =OFFSET(calcInput!E$2, ROW()-2+26, 0) -> -0.5514913743 | AC16: =OFFSET(calcInput!E$2, ROW()-2+27, 0) -> -0.4274544684 | AD16: =OFFSET(calcInput!E$2, ROW()-2+28, 0) -> -0.2947551744 | AE16: =OFFSET(calcInput!E$2, ROW()-2+29, 0) -> -0.1560826508 | AF16: =OFFSET(calcInput!E$2, ROW()-2+30, 0) -> -0.01424710371 | AG16: =OFFSET(calcInput!E$2, ROW()-2+31, 0) -> 0.1278771617 | AH16: =OFFSET(calcInput!E$2, ROW()-2+32, 0) -> 0.2674099894 | AI16: =OFFSET(calcInput!E$2, ROW()-2+33, 0) -> 0.4015237392 | AJ16: =OFFSET(calcInput!E$2, ROW()-2+34, 0) -> 0.5275005885 | AK16: =OFFSET(calcInput!E$2, ROW()-2+35, 0) -> 0.6427876097 | AL16: =OFFSET(calcInput!E$2, ROW()-2+36, 0) -> 0.745048505 | AM16: =OFFSET(calcInput!E$2, ROW()-2+37, 0) -> 0.8322109517 | AN16: =OFFSET(calcInput!E$2, ROW()-2+38, 0) -> 0.9025085982 | AO16: =OFFSET(calcInput!E$2, ROW()-2+39, 0) -> 0.9545168589 | AP16: =OFFSET(calcInput!E$2, ROW()-2+40, 0) -> 0.9871817834 | AQ16: =OFFSET(calcInput!E$2, ROW()-2+41, 0) -> 0.9998414154 | AR16: =OFFSET(calcInput!E$2, ROW()-2+42, 0) -> 0.9922392066 | AS16: =OFFSET(calcInput!E$2, ROW()-2+43, 0) -> 0.9645292163 | AT16: =OFFSET(calcInput!E$2, ROW()-2+44, 0) -> 0.9172729889
A17: 15 | B17: =OFFSET(calcInput!E$2, ROW()-2+0, 0) -> 0.8438695628 | C17: =OFFSET(calcInput!E$2, ROW()-2+1, 0) -> 0.7591322106 | D17: =OFFSET(calcInput!E$2, ROW()-2+2, 0) -> 0.6590110028 | E17: =OFFSET(calcInput!E$2, ROW()-2+3, 0) -> 0.5455349012 | F17: =OFFSET(calcInput!E$2, ROW()-2+4, 0) -> 0.4210035051 | G17: =OFFSET(calcInput!E$2, ROW()-2+5, 0) -> 0.2879404501 | H17: =OFFSET(calcInput!E$2, ROW()-2+6, 0) -> 0.1490422662 | I17: =OFFSET(calcInput!E$2, ROW()-2+7, 0) -> 0.007123732612 | J17: =OFFSET(calcInput!E$2, ROW()-2+8, 0) -> -0.1349391638 | K17: =OFFSET(calcInput!E$2, ROW()-2+9, 0) -> -0.2742675107 | L17: =OFFSET(calcInput!E$2, ROW()-2+10, 0) -> -0.4080378115 | M17: =OFFSET(calcInput!E$2, ROW()-2+11, 0) -> -0.5335392039 | N17: =OFFSET(calcInput!E$2, ROW()-2+12, 0) -> -0.6482283953 | O17: =OFFSET(calcInput!E$2, ROW()-2+13, 0) -> -0.749781203 | P17: =OFFSET(calcInput!E$2, ROW()-2+14, 0) -> -0.8361396537 | Q17: =OFFSET(calcInput!E$2, ROW()-2+15, 0) -> -0.9055536889 | R17: =OFFSET(calcInput!E$2, ROW()-2+16, 0) -> -0.9566166292 | S17: =OFFSET(calcInput!E$2, ROW()-2+17, 0) -> -0.9882936815 | T17: =OFFSET(calcInput!E$2, ROW()-2+18, 0) -> -0.9999429086 | U17: =OFFSET(calcInput!E$2, ROW()-2+19, 0) -> -0.9913282381 | V17: =OFFSET(calcInput!E$2, ROW()-2+20, 0) -> -0.962624247 | W17: =OFFSET(calcInput!E$2, ROW()-2+21, 0) -> -0.914412623 | X17: =OFFSET(calcInput!E$2, ROW()-2+22, 0) -> -0.8476703775 | Y17: =OFFSET(calcInput!E$2, ROW()-2+23, 0) -> -0.7637500456 | Z17: =OFFSET(calcInput!E$2, ROW()-2+24, 0) -> -0.6643522775 | AA17: =OFFSET(calcInput!E$2, ROW()-2+25, 0) -> -0.5514913743 | AB17: =OFFSET(calcInput!E$2, ROW()-2+26, 0) -> -0.4274544684 | AC17: =OFFSET(calcInput!E$2, ROW()-2+27, 0) -> -0.2947551744 | AD17: =OFFSET(calcInput!E$2, ROW()-2+28, 0) -> -0.1560826508 | AE17: =OFFSET(calcInput!E$2, ROW()-2+29, 0) -> -0.01424710371 | AF17: =OFFSET(calcInput!E$2, ROW()-2+30, 0) -> 0.1278771617 | AG17: =OFFSET(calcInput!E$2, ROW()-2+31, 0) -> 0.2674099894 | AH17: =OFFSET(calcInput!E$2, ROW()-2+32, 0) -> 0.4015237392 | AI17: =OFFSET(calcInput!E$2, ROW()-2+33, 0) -> 0.5275005885 | AJ17: =OFFSET(calcInput!E$2, ROW()-2+34, 0) -> 0.6427876097 | AK17: =OFFSET(calcInput!E$2, ROW()-2+35, 0) -> 0.745048505 | AL17: =OFFSET(calcInput!E$2, ROW()-2+36, 0) -> 0.8322109517 | AM17: =OFFSET(calcInput!E$2, ROW()-2+37, 0) -> 0.9025085982 | AN17: =OFFSET(calcInput!E$2, ROW()-2+38, 0) -> 0.9545168589 | AO17: =OFFSET(calcInput!E$2, ROW()-2+39, 0) -> 0.9871817834 | AP17: =OFFSET(calcInput!E$2, ROW()-2+40, 0) -> 0.9998414154 | AQ17: =OFFSET(calcInput!E$2, ROW()-2+41, 0) -> 0.9922392066 | AR17: =OFFSET(calcInput!E$2, ROW()-2+42, 0) -> 0.9645292163 | AS17: =OFFSET(calcInput!E$2, ROW()-2+43, 0) -> 0.9172729889 | AT17: =OFFSET(calcInput!E$2, ROW()-2+44, 0) -> 0.8514281745
A18: 16 | B18: =OFFSET(calcInput!E$2, ROW()-2+0, 0) -> 0.7591322106 | C18: =OFFSET(calcInput!E$2, ROW()-2+1, 0) -> 0.6590110028 | D18: =OFFSET(calcInput!E$2, ROW()-2+2, 0) -> 0.5455349012 | E18: =OFFSET(calcInput!E$2, ROW()-2+3, 0) -> 0.4210035051 | F18: =OFFSET(calcInput!E$2, ROW()-2+4, 0) -> 0.2879404501 | G18: =OFFSET(calcInput!E$2, ROW()-2+5, 0) -> 0.1490422662 | H18: =OFFSET(calcInput!E$2, ROW()-2+6, 0) -> 0.007123732612 | I18: =OFFSET(calcInput!E$2, ROW()-2+7, 0) -> -0.1349391638 | J18: =OFFSET(calcInput!E$2, ROW()-2+8, 0) -> -0.2742675107 | K18: =OFFSET(calcInput!E$2, ROW()-2+9, 0) -> -0.4080378115 | L18: =OFFSET(calcInput!E$2, ROW()-2+10, 0) -> -0.5335392039 | M18: =OFFSET(calcInput!E$2, ROW()-2+11, 0) -> -0.6482283953 | N18: =OFFSET(calcInput!E$2, ROW()-2+12, 0) -> -0.749781203 | O18: =OFFSET(calcInput!E$2, ROW()-2+13, 0) -> -0.8361396537 | P18: =OFFSET(calcInput!E$2, ROW()-2+14, 0) -> -0.9055536889 | Q18: =OFFSET(calcInput!E$2, ROW()-2+15, 0) -> -0.9566166292 | R18: =OFFSET(calcInput!E$2, ROW()-2+16, 0) -> -0.9882936815 | S18: =OFFSET(calcInput!E$2, ROW()-2+17, 0) -> -0.9999429086 | T18: =OFFSET(calcInput!E$2, ROW()-2+18, 0) -> -0.9913282381 | U18: =OFFSET(calcInput!E$2, ROW()-2+19, 0) -> -0.962624247 | V18: =OFFSET(calcInput!E$2, ROW()-2+20, 0) -> -0.914412623 | W18: =OFFSET(calcInput!E$2, ROW()-2+21, 0) -> -0.8476703775 | X18: =OFFSET(calcInput!E$2, ROW()-2+22, 0) -> -0.7637500456 | Y18: =OFFSET(calcInput!E$2, ROW()-2+23, 0) -> -0.6643522775 | Z18: =OFFSET(calcInput!E$2, ROW()-2+24, 0) -> -0.5514913743 | AA18: =OFFSET(calcInput!E$2, ROW()-2+25, 0) -> -0.4274544684 | AB18: =OFFSET(calcInput!E$2, ROW()-2+26, 0) -> -0.2947551744 | AC18: =OFFSET(calcInput!E$2, ROW()-2+27, 0) -> -0.1560826508 | AD18: =OFFSET(calcInput!E$2, ROW()-2+28, 0) -> -0.01424710371 | AE18: =OFFSET(calcInput!E$2, ROW()-2+29, 0) -> 0.1278771617 | AF18: =OFFSET(calcInput!E$2, ROW()-2+30, 0) -> 0.2674099894 | AG18: =OFFSET(calcInput!E$2, ROW()-2+31, 0) -> 0.4015237392 | AH18: =OFFSET(calcInput!E$2, ROW()-2+32, 0) -> 0.5275005885 | AI18: =OFFSET(calcInput!E$2, ROW()-2+33, 0) -> 0.6427876097 | AJ18: =OFFSET(calcInput!E$2, ROW()-2+34, 0) -> 0.745048505 | AK18: =OFFSET(calcInput!E$2, ROW()-2+35, 0) -> 0.8322109517 | AL18: =OFFSET(calcInput!E$2, ROW()-2+36, 0) -> 0.9025085982 | AM18: =OFFSET(calcInput!E$2, ROW()-2+37, 0) -> 0.9545168589 | AN18: =OFFSET(calcInput!E$2, ROW()-2+38, 0) -> 0.9871817834 | AO18: =OFFSET(calcInput!E$2, ROW()-2+39, 0) -> 0.9998414154 | AP18: =OFFSET(calcInput!E$2, ROW()-2+40, 0) -> 0.9922392066 | AQ18: =OFFSET(calcInput!E$2, ROW()-2+41, 0) -> 0.9645292163 | AR18: =OFFSET(calcInput!E$2, ROW()-2+42, 0) -> 0.9172729889 | AS18: =OFFSET(calcInput!E$2, ROW()-2+43, 0) -> 0.8514281745 | AT18: =OFFSET(calcInput!E$2, ROW()-2+44, 0) -> 0.7683291217
A19: 17 | B19: =OFFSET(calcInput!E$2, ROW()-2+0, 0) -> 0.6590110028 | C19: =OFFSET(calcInput!E$2, ROW()-2+1, 0) -> 0.5455349012 | D19: =OFFSET(calcInput!E$2, ROW()-2+2, 0) -> 0.4210035051 | E19: =OFFSET(calcInput!E$2, ROW()-2+3, 0) -> 0.2879404501 | F19: =OFFSET(calcInput!E$2, ROW()-2+4, 0) -> 0.1490422662 | G19: =OFFSET(calcInput!E$2, ROW()-2+5, 0) -> 0.007123732612 | H19: =OFFSET(calcInput!E$2, ROW()-2+6, 0) -> -0.1349391638 | I19: =OFFSET(calcInput!E$2, ROW()-2+7, 0) -> -0.2742675107 | J19: =OFFSET(calcInput!E$2, ROW()-2+8, 0) -> -0.4080378115 | K19: =OFFSET(calcInput!E$2, ROW()-2+9, 0) -> -0.5335392039 | L19: =OFFSET(calcInput!E$2, ROW()-2+10, 0) -> -0.6482283953 | M19: =OFFSET(calcInput!E$2, ROW()-2+11, 0) -> -0.749781203 | N19: =OFFSET(calcInput!E$2, ROW()-2+12, 0) -> -0.8361396537 | O19: =OFFSET(calcInput!E$2, ROW()-2+13, 0) -> -0.9055536889 | P19: =OFFSET(calcInput!E$2, ROW()-2+14, 0) -> -0.9566166292 | Q19: =OFFSET(calcInput!E$2, ROW()-2+15, 0) -> -0.9882936815 | R19: =OFFSET(calcInput!E$2, ROW()-2+16, 0) -> -0.9999429086 | S19: =OFFSET(calcInput!E$2, ROW()-2+17, 0) -> -0.9913282381 | T19: =OFFSET(calcInput!E$2, ROW()-2+18, 0) -> -0.962624247 | U19: =OFFSET(calcInput!E$2, ROW()-2+19, 0) -> -0.914412623 | V19: =OFFSET(calcInput!E$2, ROW()-2+20, 0) -> -0.8476703775 | W19: =OFFSET(calcInput!E$2, ROW()-2+21, 0) -> -0.7637500456 | X19: =OFFSET(calcInput!E$2, ROW()-2+22, 0) -> -0.6643522775 | Y19: =OFFSET(calcInput!E$2, ROW()-2+23, 0) -> -0.5514913743 | Z19: =OFFSET(calcInput!E$2, ROW()-2+24, 0) -> -0.4274544684 | AA19: =OFFSET(calcInput!E$2, ROW()-2+25, 0) -> -0.2947551744 | AB19: =OFFSET(calcInput!E$2, ROW()-2+26, 0) -> -0.1560826508 | AC19: =OFFSET(calcInput!E$2, ROW()-2+27, 0) -> -0.01424710371 | AD19: =OFFSET(calcInput!E$2, ROW()-2+28, 0) -> 0.1278771617 | AE19: =OFFSET(calcInput!E$2, ROW()-2+29, 0) -> 0.2674099894 | AF19: =OFFSET(calcInput!E$2, ROW()-2+30, 0) -> 0.4015237392 | AG19: =OFFSET(calcInput!E$2, ROW()-2+31, 0) -> 0.5275005885 | AH19: =OFFSET(calcInput!E$2, ROW()-2+32, 0) -> 0.6427876097 | AI19: =OFFSET(calcInput!E$2, ROW()-2+33, 0) -> 0.745048505 | AJ19: =OFFSET(calcInput!E$2, ROW()-2+34, 0) -> 0.8322109517 | AK19: =OFFSET(calcInput!E$2, ROW()-2+35, 0) -> 0.9025085982 | AL19: =OFFSET(calcInput!E$2, ROW()-2+36, 0) -> 0.9545168589 | AM19: =OFFSET(calcInput!E$2, ROW()-2+37, 0) -> 0.9871817834 | AN19: =OFFSET(calcInput!E$2, ROW()-2+38, 0) -> 0.9998414154 | AO19: =OFFSET(calcInput!E$2, ROW()-2+39, 0) -> 0.9922392066 | AP19: =OFFSET(calcInput!E$2, ROW()-2+40, 0) -> 0.9645292163 | AQ19: =OFFSET(calcInput!E$2, ROW()-2+41, 0) -> 0.9172729889 | AR19: =OFFSET(calcInput!E$2, ROW()-2+42, 0) -> 0.8514281745 | AS19: =OFFSET(calcInput!E$2, ROW()-2+43, 0) -> 0.7683291217 | AT19: =OFFSET(calcInput!E$2, ROW()-2+44, 0) -> 0.6696598375
A20: 18 | B20: =OFFSET(calcInput!E$2, ROW()-2+0, 0) -> 0.5455349012 | C20: =OFFSET(calcInput!E$2, ROW()-2+1, 0) -> 0.4210035051 | D20: =OFFSET(calcInput!E$2, ROW()-2+2, 0) -> 0.2879404501 | E20: =OFFSET(calcInput!E$2, ROW()-2+3, 0) -> 0.1490422662 | F20: =OFFSET(calcInput!E$2, ROW()-2+4, 0) -> 0.007123732612 | G20: =OFFSET(calcInput!E$2, ROW()-2+5, 0) -> -0.1349391638 | H20: =OFFSET(calcInput!E$2, ROW()-2+6, 0) -> -0.2742675107 | I20: =OFFSET(calcInput!E$2, ROW()-2+7, 0) -> -0.4080378115 | J20: =OFFSET(calcInput!E$2, ROW()-2+8, 0) -> -0.5335392039 | K20: =OFFSET(calcInput!E$2, ROW()-2+9, 0) -> -0.6482283953 | L20: =OFFSET(calcInput!E$2, ROW()-2+10, 0) -> -0.749781203 | M20: =OFFSET(calcInput!E$2, ROW()-2+11, 0) -> -0.8361396537 | N20: =OFFSET(calcInput!E$2, ROW()-2+12, 0) -> -0.9055536889 | O20: =OFFSET(calcInput!E$2, ROW()-2+13, 0) -> -0.9566166292 | P20: =OFFSET(calcInput!E$2, ROW()-2+14, 0) -> -0.9882936815 | Q20: =OFFSET(calcInput!E$2, ROW()-2+15, 0) -> -0.9999429086 | R20: =OFFSET(calcInput!E$2, ROW()-2+16, 0) -> -0.9913282381 | S20: =OFFSET(calcInput!E$2, ROW()-2+17, 0) -> -0.962624247 | T20: =OFFSET(calcInput!E$2, ROW()-2+18, 0) -> -0.914412623 | U20: =OFFSET(calcInput!E$2, ROW()-2+19, 0) -> -0.8476703775 | V20: =OFFSET(calcInput!E$2, ROW()-2+20, 0) -> -0.7637500456 | W20: =OFFSET(calcInput!E$2, ROW()-2+21, 0) -> -0.6643522775 | X20: =OFFSET(calcInput!E$2, ROW()-2+22, 0) -> -0.5514913743 | Y20: =OFFSET(calcInput!E$2, ROW()-2+23, 0) -> -0.4274544684 | Z20: =OFFSET(calcInput!E$2, ROW()-2+24, 0) -> -0.2947551744 | AA20: =OFFSET(calcInput!E$2, ROW()-2+25, 0) -> -0.1560826508 | AB20: =OFFSET(calcInput!E$2, ROW()-2+26, 0) -> -0.01424710371 | AC20: =OFFSET(calcInput!E$2, ROW()-2+27, 0) -> 0.1278771617 | AD20: =OFFSET(calcInput!E$2, ROW()-2+28, 0) -> 0.2674099894 | AE20: =OFFSET(calcInput!E$2, ROW()-2+29, 0) -> 0.4015237392 | AF20: =OFFSET(calcInput!E$2, ROW()-2+30, 0) -> 0.5275005885 | AG20: =OFFSET(calcInput!E$2, ROW()-2+31, 0) -> 0.6427876097 | AH20: =OFFSET(calcInput!E$2, ROW()-2+32, 0) -> 0.745048505 | AI20: =OFFSET(calcInput!E$2, ROW()-2+33, 0) -> 0.8322109517 | AJ20: =OFFSET(calcInput!E$2, ROW()-2+34, 0) -> 0.9025085982 | AK20: =OFFSET(calcInput!E$2, ROW()-2+35, 0) -> 0.9545168589 | AL20: =OFFSET(calcInput!E$2, ROW()-2+36, 0) -> 0.9871817834 | AM20: =OFFSET(calcInput!E$2, ROW()-2+37, 0) -> 0.9998414154 | AN20: =OFFSET(calcInput!E$2, ROW()-2+38, 0) -> 0.9922392066 | AO20: =OFFSET(calcInput!E$2, ROW()-2+39, 0) -> 0.9645292163 | AP20: =OFFSET(calcInput!E$2, ROW()-2+40, 0) -> 0.9172729889 | AQ20: =OFFSET(calcInput!E$2, ROW()-2+41, 0) -> 0.8514281745 | AR20: =OFFSET(calcInput!E$2, ROW()-2+42, 0) -> 0.7683291217 | AS20: =OFFSET(calcInput!E$2, ROW()-2+43, 0) -> 0.6696598375 | AT20: =OFFSET(calcInput!E$2, ROW()-2+44, 0) -> 0.5574198602
A21: 19 | B21: =OFFSET(calcInput!E$2, ROW()-2+0, 0) -> 0.4210035051 | C21: =OFFSET(calcInput!E$2, ROW()-2+1, 0) -> 0.2879404501 | D21: =OFFSET(calcInput!E$2, ROW()-2+2, 0) -> 0.1490422662 | E21: =OFFSET(calcInput!E$2, ROW()-2+3, 0) -> 0.007123732612 | F21: =OFFSET(calcInput!E$2, ROW()-2+4, 0) -> -0.1349391638 | G21: =OFFSET(calcInput!E$2, ROW()-2+5, 0) -> -0.2742675107 | H21: =OFFSET(calcInput!E$2, ROW()-2+6, 0) -> -0.4080378115 | I21: =OFFSET(calcInput!E$2, ROW()-2+7, 0) -> -0.5335392039 | J21: =OFFSET(calcInput!E$2, ROW()-2+8, 0) -> -0.6482283953 | K21: =OFFSET(calcInput!E$2, ROW()-2+9, 0) -> -0.749781203 | L21: =OFFSET(calcInput!E$2, ROW()-2+10, 0) -> -0.8361396537 | M21: =OFFSET(calcInput!E$2, ROW()-2+11, 0) -> -0.9055536889 | N21: =OFFSET(calcInput!E$2, ROW()-2+12, 0) -> -0.9566166292 | O21: =OFFSET(calcInput!E$2, ROW()-2+13, 0) -> -0.9882936815 | P21: =OFFSET(calcInput!E$2, ROW()-2+14, 0) -> -0.9999429086 | Q21: =OFFSET(calcInput!E$2, ROW()-2+15, 0) -> -0.9913282381 | R21: =OFFSET(calcInput!E$2, ROW()-2+16, 0) -> -0.962624247 | S21: =OFFSET(calcInput!E$2, ROW()-2+17, 0) -> -0.914412623 | T21: =OFFSET(calcInput!E$2, ROW()-2+18, 0) -> -0.8476703775 | U21: =OFFSET(calcInput!E$2, ROW()-2+19, 0) -> -0.7637500456 | V21: =OFFSET(calcInput!E$2, ROW()-2+20, 0) -> -0.6643522775 | W21: =OFFSET(calcInput!E$2, ROW()-2+21, 0) -> -0.5514913743 | X21: =OFFSET(calcInput!E$2, ROW()-2+22, 0) -> -0.4274544684 | Y21: =OFFSET(calcInput!E$2, ROW()-2+23, 0) -> -0.2947551744 | Z21: =OFFSET(calcInput!E$2, ROW()-2+24, 0) -> -0.1560826508 | AA21: =OFFSET(calcInput!E$2, ROW()-2+25, 0) -> -0.01424710371 | AB21: =OFFSET(calcInput!E$2, ROW()-2+26, 0) -> 0.1278771617 | AC21: =OFFSET(calcInput!E$2, ROW()-2+27, 0) -> 0.2674099894 | AD21: =OFFSET(calcInput!E$2, ROW()-2+28, 0) -> 0.4015237392 | AE21: =OFFSET(calcInput!E$2, ROW()-2+29, 0) -> 0.5275005885 | AF21: =OFFSET(calcInput!E$2, ROW()-2+30, 0) -> 0.6427876097 | AG21: =OFFSET(calcInput!E$2, ROW()-2+31, 0) -> 0.745048505 | AH21: =OFFSET(calcInput!E$2, ROW()-2+32, 0) -> 0.8322109517 | AI21: =OFFSET(calcInput!E$2, ROW()-2+33, 0) -> 0.9025085982 | AJ21: =OFFSET(calcInput!E$2, ROW()-2+34, 0) -> 0.9545168589 | AK21: =OFFSET(calcInput!E$2, ROW()-2+35, 0) -> 0.9871817834 | AL21: =OFFSET(calcInput!E$2, ROW()-2+36, 0) -> 0.9998414154 | AM21: =OFFSET(calcInput!E$2, ROW()-2+37, 0) -> 0.9922392066 | AN21: =OFFSET(calcInput!E$2, ROW()-2+38, 0) -> 0.9645292163 | AO21: =OFFSET(calcInput!E$2, ROW()-2+39, 0) -> 0.9172729889 | AP21: =OFFSET(calcInput!E$2, ROW()-2+40, 0) -> 0.8514281745 | AQ21: =OFFSET(calcInput!E$2, ROW()-2+41, 0) -> 0.7683291217 | AR21: =OFFSET(calcInput!E$2, ROW()-2+42, 0) -> 0.6696598375 | AS21: =OFFSET(calcInput!E$2, ROW()-2+43, 0) -> 0.5574198602 | AT21: =OFFSET(calcInput!E$2, ROW()-2+44, 0) -> 0.4338837391
A22: 20 | B22: =OFFSET(calcInput!E$2, ROW()-2+0, 0) -> 0.2879404501 | C22: =OFFSET(calcInput!E$2, ROW()-2+1, 0) -> 0.1490422662 | D22: =OFFSET(calcInput!E$2, ROW()-2+2, 0) -> 0.007123732612 | E22: =OFFSET(calcInput!E$2, ROW()-2+3, 0) -> -0.1349391638 | F22: =OFFSET(calcInput!E$2, ROW()-2+4, 0) -> -0.2742675107 | G22: =OFFSET(calcInput!E$2, ROW()-2+5, 0) -> -0.4080378115 | H22: =OFFSET(calcInput!E$2, ROW()-2+6, 0) -> -0.5335392039 | I22: =OFFSET(calcInput!E$2, ROW()-2+7, 0) -> -0.6482283953 | J22: =OFFSET(calcInput!E$2, ROW()-2+8, 0) -> -0.749781203 | K22: =OFFSET(calcInput!E$2, ROW()-2+9, 0) -> -0.8361396537 | L22: =OFFSET(calcInput!E$2, ROW()-2+10, 0) -> -0.9055536889 | M22: =OFFSET(calcInput!E$2, ROW()-2+11, 0) -> -0.9566166292 | N22: =OFFSET(calcInput!E$2, ROW()-2+12, 0) -> -0.9882936815 | O22: =OFFSET(calcInput!E$2, ROW()-2+13, 0) -> -0.9999429086 | P22: =OFFSET(calcInput!E$2, ROW()-2+14, 0) -> -0.9913282381 | Q22: =OFFSET(calcInput!E$2, ROW()-2+15, 0) -> -0.962624247 | R22: =OFFSET(calcInput!E$2, ROW()-2+16, 0) -> -0.914412623 | S22: =OFFSET(calcInput!E$2, ROW()-2+17, 0) -> -0.8476703775 | T22: =OFFSET(calcInput!E$2, ROW()-2+18, 0) -> -0.7637500456 | U22: =OFFSET(calcInput!E$2, ROW()-2+19, 0) -> -0.6643522775 | V22: =OFFSET(calcInput!E$2, ROW()-2+20, 0) -> -0.5514913743 | W22: =OFFSET(calcInput!E$2, ROW()-2+21, 0) -> -0.4274544684 | X22: =OFFSET(calcInput!E$2, ROW()-2+22, 0) -> -0.2947551744 | Y22: =OFFSET(calcInput!E$2, ROW()-2+23, 0) -> -0.1560826508 | Z22: =OFFSET(calcInput!E$2, ROW()-2+24, 0) -> -0.01424710371 | AA22: =OFFSET(calcInput!E$2, ROW()-2+25, 0) -> 0.1278771617 | AB22: =OFFSET(calcInput!E$2, ROW()-2+26, 0) -> 0.2674099894 | AC22: =OFFSET(calcInput!E$2, ROW()-2+27, 0) -> 0.4015237392 | AD22: =OFFSET(calcInput!E$2, ROW()-2+28, 0) -> 0.5275005885 | AE22: =OFFSET(calcInput!E$2, ROW()-2+29, 0) -> 0.6427876097 | AF22: =OFFSET(calcInput!E$2, ROW()-2+30, 0) -> 0.745048505 | AG22: =OFFSET(calcInput!E$2, ROW()-2+31, 0) -> 0.8322109517 | AH22: =OFFSET(calcInput!E$2, ROW()-2+32, 0) -> 0.9025085982 | AI22: =OFFSET(calcInput!E$2, ROW()-2+33, 0) -> 0.9545168589 | AJ22: =OFFSET(calcInput!E$2, ROW()-2+34, 0) -> 0.9871817834 | AK22: =OFFSET(calcInput!E$2, ROW()-2+35, 0) -> 0.9998414154 | AL22: =OFFSET(calcInput!E$2, ROW()-2+36, 0) -> 0.9922392066 | AM22: =OFFSET(calcInput!E$2, ROW()-2+37, 0) -> 0.9645292163 | AN22: =OFFSET(calcInput!E$2, ROW()-2+38, 0) -> 0.9172729889 | AO22: =OFFSET(calcInput!E$2, ROW()-2+39, 0) -> 0.8514281745 | AP22: =OFFSET(calcInput!E$2, ROW()-2+40, 0) -> 0.7683291217 | AQ22: =OFFSET(calcInput!E$2, ROW()-2+41, 0) -> 0.6696598375 | AR22: =OFFSET(calcInput!E$2, ROW()-2+42, 0) -> 0.5574198602 | AS22: =OFFSET(calcInput!E$2, ROW()-2+43, 0) -> 0.4338837391 | AT22: =OFFSET(calcInput!E$2, ROW()-2+44, 0) -> 0.3015549404
A23: 21 | B23: =OFFSET(calcInput!E$2, ROW()-2+0, 0) -> 0.1490422662 | C23: =OFFSET(calcInput!E$2, ROW()-2+1, 0) -> 0.007123732612 | D23: =OFFSET(calcInput!E$2, ROW()-2+2, 0) -> -0.1349391638 | E23: =OFFSET(calcInput!E$2, ROW()-2+3, 0) -> -0.2742675107 | F23: =OFFSET(calcInput!E$2, ROW()-2+4, 0) -> -0.4080378115 | G23: =OFFSET(calcInput!E$2, ROW()-2+5, 0) -> -0.5335392039 | H23: =OFFSET(calcInput!E$2, ROW()-2+6, 0) -> -0.6482283953 | I23: =OFFSET(calcInput!E$2, ROW()-2+7, 0) -> -0.749781203 | J23: =OFFSET(calcInput!E$2, ROW()-2+8, 0) -> -0.8361396537 | K23: =OFFSET(calcInput!E$2, ROW()-2+9, 0) -> -0.9055536889 | L23: =OFFSET(calcInput!E$2, ROW()-2+10, 0) -> -0.9566166292 | M23: =OFFSET(calcInput!E$2, ROW()-2+11, 0) -> -0.9882936815 | N23: =OFFSET(calcInput!E$2, ROW()-2+12, 0) -> -0.9999429086 | O23: =OFFSET(calcInput!E$2, ROW()-2+13, 0) -> -0.9913282381 | P23: =OFFSET(calcInput!E$2, ROW()-2+14, 0) -> -0.962624247 | Q23: =OFFSET(calcInput!E$2, ROW()-2+15, 0) -> -0.914412623 | R23: =OFFSET(calcInput!E$2, ROW()-2+16, 0) -> -0.8476703775 | S23: =OFFSET(calcInput!E$2, ROW()-2+17, 0) -> -0.7637500456 | T23: =OFFSET(calcInput!E$2, ROW()-2+18, 0) -> -0.6643522775 | U23: =OFFSET(calcInput!E$2, ROW()-2+19, 0) -> -0.5514913743 | V23: =OFFSET(calcInput!E$2, ROW()-2+20, 0) -> -0.4274544684 | W23: =OFFSET(calcInput!E$2, ROW()-2+21, 0) -> -0.2947551744 | X23: =OFFSET(calcInput!E$2, ROW()-2+22, 0) -> -0.1560826508 | Y23: =OFFSET(calcInput!E$2, ROW()-2+23, 0) -> -0.01424710371 | Z23: =OFFSET(calcInput!E$2, ROW()-2+24, 0) -> 0.1278771617 | AA23: =OFFSET(calcInput!E$2, ROW()-2+25, 0) -> 0.2674099894 | AB23: =OFFSET(calcInput!E$2, ROW()-2+26, 0) -> 0.4015237392 | AC23: =OFFSET(calcInput!E$2, ROW()-2+27, 0) -> 0.5275005885 | AD23: =OFFSET(calcInput!E$2, ROW()-2+28, 0) -> 0.6427876097 | AE23: =OFFSET(calcInput!E$2, ROW()-2+29, 0) -> 0.745048505 | AF23: =OFFSET(calcInput!E$2, ROW()-2+30, 0) -> 0.8322109517 | AG23: =OFFSET(calcInput!E$2, ROW()-2+31, 0) -> 0.9025085982 | AH23: =OFFSET(calcInput!E$2, ROW()-2+32, 0) -> 0.9545168589 | AI23: =OFFSET(calcInput!E$2, ROW()-2+33, 0) -> 0.9871817834 | AJ23: =OFFSET(calcInput!E$2, ROW()-2+34, 0) -> 0.9998414154 | AK23: =OFFSET(calcInput!E$2, ROW()-2+35, 0) -> 0.9922392066 | AL23: =OFFSET(calcInput!E$2, ROW()-2+36, 0) -> 0.9645292163 | AM23: =OFFSET(calcInput!E$2, ROW()-2+37, 0) -> 0.9172729889 | AN23: =OFFSET(calcInput!E$2, ROW()-2+38, 0) -> 0.8514281745 | AO23: =OFFSET(calcInput!E$2, ROW()-2+39, 0) -> 0.7683291217 | AP23: =OFFSET(calcInput!E$2, ROW()-2+40, 0) -> 0.6696598375 | AQ23: =OFFSET(calcInput!E$2, ROW()-2+41, 0) -> 0.5574198602 | AR23: =OFFSET(calcInput!E$2, ROW()-2+42, 0) -> 0.4338837391 | AS23: =OFFSET(calcInput!E$2, ROW()-2+43, 0) -> 0.3015549404 | AT23: =OFFSET(calcInput!E$2, ROW()-2+44, 0) -> 0.1631151144
A24: 22 | B24: =OFFSET(calcInput!E$2, ROW()-2+0, 0) -> 0.007123732612 | C24: =OFFSET(calcInput!E$2, ROW()-2+1, 0) -> -0.1349391638 | D24: =OFFSET(calcInput!E$2, ROW()-2+2, 0) -> -0.2742675107 | E24: =OFFSET(calcInput!E$2, ROW()-2+3, 0) -> -0.4080378115 | F24: =OFFSET(calcInput!E$2, ROW()-2+4, 0) -> -0.5335392039 | G24: =OFFSET(calcInput!E$2, ROW()-2+5, 0) -> -0.6482283953 | H24: =OFFSET(calcInput!E$2, ROW()-2+6, 0) -> -0.749781203 | I24: =OFFSET(calcInput!E$2, ROW()-2+7, 0) -> -0.8361396537 | J24: =OFFSET(calcInput!E$2, ROW()-2+8, 0) -> -0.9055536889 | K24: =OFFSET(calcInput!E$2, ROW()-2+9, 0) -> -0.9566166292 | L24: =OFFSET(calcInput!E$2, ROW()-2+10, 0) -> -0.9882936815 | M24: =OFFSET(calcInput!E$2, ROW()-2+11, 0) -> -0.9999429086 | N24: =OFFSET(calcInput!E$2, ROW()-2+12, 0) -> -0.9913282381 | O24: =OFFSET(calcInput!E$2, ROW()-2+13, 0) -> -0.962624247 | P24: =OFFSET(calcInput!E$2, ROW()-2+14, 0) -> -0.914412623 | Q24: =OFFSET(calcInput!E$2, ROW()-2+15, 0) -> -0.8476703775 | R24: =OFFSET(calcInput!E$2, ROW()-2+16, 0) -> -0.7637500456 | S24: =OFFSET(calcInput!E$2, ROW()-2+17, 0) -> -0.6643522775 | T24: =OFFSET(calcInput!E$2, ROW()-2+18, 0) -> -0.5514913743 | U24: =OFFSET(calcInput!E$2, ROW()-2+19, 0) -> -0.4274544684 | V24: =OFFSET(calcInput!E$2, ROW()-2+20, 0) -> -0.2947551744 | W24: =OFFSET(calcInput!E$2, ROW()-2+21, 0) -> -0.1560826508 | X24: =OFFSET(calcInput!E$2, ROW()-2+22, 0) -> -0.01424710371 | Y24: =OFFSET(calcInput!E$2, ROW()-2+23, 0) -> 0.1278771617 | Z24: =OFFSET(calcInput!E$2, ROW()-2+24, 0) -> 0.2674099894 | AA24: =OFFSET(calcInput!E$2, ROW()-2+25, 0) -> 0.4015237392 | AB24: =OFFSET(calcInput!E$2, ROW()-2+26, 0) -> 0.5275005885 | AC24: =OFFSET(calcInput!E$2, ROW()-2+27, 0) -> 0.6427876097 | AD24: =OFFSET(calcInput!E$2, ROW()-2+28, 0) -> 0.745048505 | AE24: =OFFSET(calcInput!E$2, ROW()-2+29, 0) -> 0.8322109517 | AF24: =OFFSET(calcInput!E$2, ROW()-2+30, 0) -> 0.9025085982 | AG24: =OFFSET(calcInput!E$2, ROW()-2+31, 0) -> 0.9545168589 | AH24: =OFFSET(calcInput!E$2, ROW()-2+32, 0) -> 0.9871817834 | AI24: =OFFSET(calcInput!E$2, ROW()-2+33, 0) -> 0.9998414154 | AJ24: =OFFSET(calcInput!E$2, ROW()-2+34, 0) -> 0.9922392066 | AK24: =OFFSET(calcInput!E$2, ROW()-2+35, 0) -> 0.9645292163 | AL24: =OFFSET(calcInput!E$2, ROW()-2+36, 0) -> 0.9172729889 | AM24: =OFFSET(calcInput!E$2, ROW()-2+37, 0) -> 0.8514281745 | AN24: =OFFSET(calcInput!E$2, ROW()-2+38, 0) -> 0.7683291217 | AO24: =OFFSET(calcInput!E$2, ROW()-2+39, 0) -> 0.6696598375 | AP24: =OFFSET(calcInput!E$2, ROW()-2+40, 0) -> 0.5574198602 | AQ24: =OFFSET(calcInput!E$2, ROW()-2+41, 0) -> 0.4338837391 | AR24: =OFFSET(calcInput!E$2, ROW()-2+42, 0) -> 0.3015549404 | AS24: =OFFSET(calcInput!E$2, ROW()-2+43, 0) -> 0.1631151144 | AT24: =OFFSET(calcInput!E$2, ROW()-2+44, 0) -> 0.02136975179
A25: 23 | B25: =OFFSET(calcInput!E$2, ROW()-2+0, 0) -> -0.1349391638 | C25: =OFFSET(calcInput!E$2, ROW()-2+1, 0) -> -0.2742675107 | D25: =OFFSET(calcInput!E$2, ROW()-2+2, 0) -> -0.4080378115 | E25: =OFFSET(calcInput!E$2, ROW()-2+3, 0) -> -0.5335392039 | F25: =OFFSET(calcInput!E$2, ROW()-2+4, 0) -> -0.6482283953 | G25: =OFFSET(calcInput!E$2, ROW()-2+5, 0) -> -0.749781203 | H25: =OFFSET(calcInput!E$2, ROW()-2+6, 0) -> -0.8361396537 | I25: =OFFSET(calcInput!E$2, ROW()-2+7, 0) -> -0.9055536889 | J25: =OFFSET(calcInput!E$2, ROW()-2+8, 0) -> -0.9566166292 | K25: =OFFSET(calcInput!E$2, ROW()-2+9, 0) -> -0.9882936815 | L25: =OFFSET(calcInput!E$2, ROW()-2+10, 0) -> -0.9999429086 | M25: =OFFSET(calcInput!E$2, ROW()-2+11, 0) -> -0.9913282381 | N25: =OFFSET(calcInput!E$2, ROW()-2+12, 0) -> -0.962624247 | O25: =OFFSET(calcInput!E$2, ROW()-2+13, 0) -> -0.914412623 | P25: =OFFSET(calcInput!E$2, ROW()-2+14, 0) -> -0.8476703775 | Q25: =OFFSET(calcInput!E$2, ROW()-2+15, 0) -> -0.7637500456 | R25: =OFFSET(calcInput!E$2, ROW()-2+16, 0) -> -0.6643522775 | S25: =OFFSET(calcInput!E$2, ROW()-2+17, 0) -> -0.5514913743 | T25: =OFFSET(calcInput!E$2, ROW()-2+18, 0) -> -0.4274544684 | U25: =OFFSET(calcInput!E$2, ROW()-2+19, 0) -> -0.2947551744 | V25: =OFFSET(calcInput!E$2, ROW()-2+20, 0) -> -0.1560826508 | W25: =OFFSET(calcInput!E$2, ROW()-2+21, 0) -> -0.01424710371 | X25: =OFFSET(calcInput!E$2, ROW()-2+22, 0) -> 0.1278771617 | Y25: =OFFSET(calcInput!E$2, ROW()-2+23, 0) -> 0.2674099894 | Z25: =OFFSET(calcInput!E$2, ROW()-2+24, 0) -> 0.4015237392 | AA25: =OFFSET(calcInput!E$2, ROW()-2+25, 0) -> 0.5275005885 | AB25: =OFFSET(calcInput!E$2, ROW()-2+26, 0) -> 0.6427876097 | AC25: =OFFSET(calcInput!E$2, ROW()-2+27, 0) -> 0.745048505 | AD25: =OFFSET(calcInput!E$2, ROW()-2+28, 0) -> 0.8322109517 | AE25: =OFFSET(calcInput!E$2, ROW()-2+29, 0) -> 0.9025085982 | AF25: =OFFSET(calcInput!E$2, ROW()-2+30, 0) -> 0.9545168589 | AG25: =OFFSET(calcInput!E$2, ROW()-2+31, 0) -> 0.9871817834 | AH25: =OFFSET(calcInput!E$2, ROW()-2+32, 0) -> 0.9998414154 | AI25: =OFFSET(calcInput!E$2, ROW()-2+33, 0) -> 0.9922392066 | AJ25: =OFFSET(calcInput!E$2, ROW()-2+34, 0) -> 0.9645292163 | AK25: =OFFSET(calcInput!E$2, ROW()-2+35, 0) -> 0.9172729889 | AL25: =OFFSET(calcInput!E$2, ROW()-2+36, 0) -> 0.8514281745 | AM25: =OFFSET(calcInput!E$2, ROW()-2+37, 0) -> 0.7683291217 | AN25: =OFFSET(calcInput!E$2, ROW()-2+38, 0) -> 0.6696598375 | AO25: =OFFSET(calcInput!E$2, ROW()-2+39, 0) -> 0.5574198602 | AP25: =OFFSET(calcInput!E$2, ROW()-2+40, 0) -> 0.4338837391 | AQ25: =OFFSET(calcInput!E$2, ROW()-2+41, 0) -> 0.3015549404 | AR25: =OFFSET(calcInput!E$2, ROW()-2+42, 0) -> 0.1631151144 | AS25: =OFFSET(calcInput!E$2, ROW()-2+43, 0) -> 0.02136975179 | AT25: =OFFSET(calcInput!E$2, ROW()-2+44, 0) -> -0.1208086701
A26: 24 | B26: =OFFSET(calcInput!E$2, ROW()-2+0, 0) -> -0.2742675107 | C26: =OFFSET(calcInput!E$2, ROW()-2+1, 0) -> -0.4080378115 | D26: =OFFSET(calcInput!E$2, ROW()-2+2, 0) -> -0.5335392039 | E26: =OFFSET(calcInput!E$2, ROW()-2+3, 0) -> -0.6482283953 | F26: =OFFSET(calcInput!E$2, ROW()-2+4, 0) -> -0.749781203 | G26: =OFFSET(calcInput!E$2, ROW()-2+5, 0) -> -0.8361396537 | H26: =OFFSET(calcInput!E$2, ROW()-2+6, 0) -> -0.9055536889 | I26: =OFFSET(calcInput!E$2, ROW()-2+7, 0) -> -0.9566166292 | J26: =OFFSET(calcInput!E$2, ROW()-2+8, 0) -> -0.9882936815 | K26: =OFFSET(calcInput!E$2, ROW()-2+9, 0) -> -0.9999429086 | L26: =OFFSET(calcInput!E$2, ROW()-2+10, 0) -> -0.9913282381 | M26: =OFFSET(calcInput!E$2, ROW()-2+11, 0) -> -0.962624247 | N26: =OFFSET(calcInput!E$2, ROW()-2+12, 0) -> -0.914412623 | O26: =OFFSET(calcInput!E$2, ROW()-2+13, 0) -> -0.8476703775 | P26: =OFFSET(calcInput!E$2, ROW()-2+14, 0) -> -0.7637500456 | Q26: =OFFSET(calcInput!E$2, ROW()-2+15, 0) -> -0.6643522775 | R26: =OFFSET(calcInput!E$2, ROW()-2+16, 0) -> -0.5514913743 | S26: =OFFSET(calcInput!E$2, ROW()-2+17, 0) -> -0.4274544684 | T26: =OFFSET(calcInput!E$2, ROW()-2+18, 0) -> -0.2947551744 | U26: =OFFSET(calcInput!E$2, ROW()-2+19, 0) -> -0.1560826508 | V26: =OFFSET(calcInput!E$2, ROW()-2+20, 0) -> -0.01424710371 | W26: =OFFSET(calcInput!E$2, ROW()-2+21, 0) -> 0.1278771617 | X26: =OFFSET(calcInput!E$2, ROW()-2+22, 0) -> 0.2674099894 | Y26: =OFFSET(calcInput!E$2, ROW()-2+23, 0) -> 0.4015237392 | Z26: =OFFSET(calcInput!E$2, ROW()-2+24, 0) -> 0.5275005885 | AA26: =OFFSET(calcInput!E$2, ROW()-2+25, 0) -> 0.6427876097 | AB26: =OFFSET(calcInput!E$2, ROW()-2+26, 0) -> 0.745048505 | AC26: =OFFSET(calcInput!E$2, ROW()-2+27, 0) -> 0.8322109517 | AD26: =OFFSET(calcInput!E$2, ROW()-2+28, 0) -> 0.9025085982 | AE26: =OFFSET(calcInput!E$2, ROW()-2+29, 0) -> 0.9545168589 | AF26: =OFFSET(calcInput!E$2, ROW()-2+30, 0) -> 0.9871817834 | AG26: =OFFSET(calcInput!E$2, ROW()-2+31, 0) -> 0.9998414154 | AH26: =OFFSET(calcInput!E$2, ROW()-2+32, 0) -> 0.9922392066 | AI26: =OFFSET(calcInput!E$2, ROW()-2+33, 0) -> 0.9645292163 | AJ26: =OFFSET(calcInput!E$2, ROW()-2+34, 0) -> 0.9172729889 | AK26: =OFFSET(calcInput!E$2, ROW()-2+35, 0) -> 0.8514281745 | AL26: =OFFSET(calcInput!E$2, ROW()-2+36, 0) -> 0.7683291217 | AM26: =OFFSET(calcInput!E$2, ROW()-2+37, 0) -> 0.6696598375 | AN26: =OFFSET(calcInput!E$2, ROW()-2+38, 0) -> 0.5574198602 | AO26: =OFFSET(calcInput!E$2, ROW()-2+39, 0) -> 0.4338837391 | AP26: =OFFSET(calcInput!E$2, ROW()-2+40, 0) -> 0.3015549404 | AQ26: =OFFSET(calcInput!E$2, ROW()-2+41, 0) -> 0.1631151144 | AR26: =OFFSET(calcInput!E$2, ROW()-2+42, 0) -> 0.02136975179 | AS26: =OFFSET(calcInput!E$2, ROW()-2+43, 0) -> -0.1208086701 | AT26: =OFFSET(calcInput!E$2, ROW()-2+44, 0) -> -0.2605388976
A27: 25 | B27: =OFFSET(calcInput!E$2, ROW()-2+0, 0) -> -0.4080378115 | C27: =OFFSET(calcInput!E$2, ROW()-2+1, 0) -> -0.5335392039 | D27: =OFFSET(calcInput!E$2, ROW()-2+2, 0) -> -0.6482283953 | E27: =OFFSET(calcInput!E$2, ROW()-2+3, 0) -> -0.749781203 | F27: =OFFSET(calcInput!E$2, ROW()-2+4, 0) -> -0.8361396537 | G27: =OFFSET(calcInput!E$2, ROW()-2+5, 0) -> -0.9055536889 | H27: =OFFSET(calcInput!E$2, ROW()-2+6, 0) -> -0.9566166292 | I27: =OFFSET(calcInput!E$2, ROW()-2+7, 0) -> -0.9882936815 | J27: =OFFSET(calcInput!E$2, ROW()-2+8, 0) -> -0.9999429086 | K27: =OFFSET(calcInput!E$2, ROW()-2+9, 0) -> -0.9913282381 | L27: =OFFSET(calcInput!E$2, ROW()-2+10, 0) -> -0.962624247 | M27: =OFFSET(calcInput!E$2, ROW()-2+11, 0) -> -0.914412623 | N27: =OFFSET(calcInput!E$2, ROW()-2+12, 0) -> -0.8476703775 | O27: =OFFSET(calcInput!E$2, ROW()-2+13, 0) -> -0.7637500456 | P27: =OFFSET(calcInput!E$2, ROW()-2+14, 0) -> -0.6643522775 | Q27: =OFFSET(calcInput!E$2, ROW()-2+15, 0) -> -0.5514913743 | R27: =OFFSET(calcInput!E$2, ROW()-2+16, 0) -> -0.4274544684 | S27: =OFFSET(calcInput!E$2, ROW()-2+17, 0) -> -0.2947551744 | T27: =OFFSET(calcInput!E$2, ROW()-2+18, 0) -> -0.1560826508 | U27: =OFFSET(calcInput!E$2, ROW()-2+19, 0) -> -0.01424710371 | V27: =OFFSET(calcInput!E$2, ROW()-2+20, 0) -> 0.1278771617 | W27: =OFFSET(calcInput!E$2, ROW()-2+21, 0) -> 0.2674099894 | X27: =OFFSET(calcInput!E$2, ROW()-2+22, 0) -> 0.4015237392 | Y27: =OFFSET(calcInput!E$2, ROW()-2+23, 0) -> 0.5275005885 | Z27: =OFFSET(calcInput!E$2, ROW()-2+24, 0) -> 0.6427876097 | AA27: =OFFSET(calcInput!E$2, ROW()-2+25, 0) -> 0.745048505 | AB27: =OFFSET(calcInput!E$2, ROW()-2+26, 0) -> 0.8322109517 | AC27: =OFFSET(calcInput!E$2, ROW()-2+27, 0) -> 0.9025085982 | AD27: =OFFSET(calcInput!E$2, ROW()-2+28, 0) -> 0.9545168589 | AE27: =OFFSET(calcInput!E$2, ROW()-2+29, 0) -> 0.9871817834 | AF27: =OFFSET(calcInput!E$2, ROW()-2+30, 0) -> 0.9998414154 | AG27: =OFFSET(calcInput!E$2, ROW()-2+31, 0) -> 0.9922392066 | AH27: =OFFSET(calcInput!E$2, ROW()-2+32, 0) -> 0.9645292163 | AI27: =OFFSET(calcInput!E$2, ROW()-2+33, 0) -> 0.9172729889 | AJ27: =OFFSET(calcInput!E$2, ROW()-2+34, 0) -> 0.8514281745 | AK27: =OFFSET(calcInput!E$2, ROW()-2+35, 0) -> 0.7683291217 | AL27: =OFFSET(calcInput!E$2, ROW()-2+36, 0) -> 0.6696598375 | AM27: =OFFSET(calcInput!E$2, ROW()-2+37, 0) -> 0.5574198602 | AN27: =OFFSET(calcInput!E$2, ROW()-2+38, 0) -> 0.4338837391 | AO27: =OFFSET(calcInput!E$2, ROW()-2+39, 0) -> 0.3015549404 | AP27: =OFFSET(calcInput!E$2, ROW()-2+40, 0) -> 0.1631151144 | AQ27: =OFFSET(calcInput!E$2, ROW()-2+41, 0) -> 0.02136975179 | AR27: =OFFSET(calcInput!E$2, ROW()-2+42, 0) -> -0.1208086701 | AS27: =OFFSET(calcInput!E$2, ROW()-2+43, 0) -> -0.2605388976 | AT27: =OFFSET(calcInput!E$2, ROW()-2+44, 0) -> -0.3949892902
A28: 26 | B28: =OFFSET(calcInput!E$2, ROW()-2+0, 0) -> -0.5335392039 | C28: =OFFSET(calcInput!E$2, ROW()-2+1, 0) -> -0.6482283953 | D28: =OFFSET(calcInput!E$2, ROW()-2+2, 0) -> -0.749781203 | E28: =OFFSET(calcInput!E$2, ROW()-2+3, 0) -> -0.8361396537 | F28: =OFFSET(calcInput!E$2, ROW()-2+4, 0) -> -0.9055536889 | G28: =OFFSET(calcInput!E$2, ROW()-2+5, 0) -> -0.9566166292 | H28: =OFFSET(calcInput!E$2, ROW()-2+6, 0) -> -0.9882936815 | I28: =OFFSET(calcInput!E$2, ROW()-2+7, 0) -> -0.9999429086 | J28: =OFFSET(calcInput!E$2, ROW()-2+8, 0) -> -0.9913282381 | K28: =OFFSET(calcInput!E$2, ROW()-2+9, 0) -> -0.962624247 | L28: =OFFSET(calcInput!E$2, ROW()-2+10, 0) -> -0.914412623 | M28: =OFFSET(calcInput!E$2, ROW()-2+11, 0) -> -0.8476703775 | N28: =OFFSET(calcInput!E$2, ROW()-2+12, 0) -> -0.7637500456 | O28: =OFFSET(calcInput!E$2, ROW()-2+13, 0) -> -0.6643522775 | P28: =OFFSET(calcInput!E$2, ROW()-2+14, 0) -> -0.5514913743 | Q28: =OFFSET(calcInput!E$2, ROW()-2+15, 0) -> -0.4274544684 | R28: =OFFSET(calcInput!E$2, ROW()-2+16, 0) -> -0.2947551744 | S28: =OFFSET(calcInput!E$2, ROW()-2+17, 0) -> -0.1560826508 | T28: =OFFSET(calcInput!E$2, ROW()-2+18, 0) -> -0.01424710371 | U28: =OFFSET(calcInput!E$2, ROW()-2+19, 0) -> 0.1278771617 | V28: =OFFSET(calcInput!E$2, ROW()-2+20, 0) -> 0.2674099894 | W28: =OFFSET(calcInput!E$2, ROW()-2+21, 0) -> 0.4015237392 | X28: =OFFSET(calcInput!E$2, ROW()-2+22, 0) -> 0.5275005885 | Y28: =OFFSET(calcInput!E$2, ROW()-2+23, 0) -> 0.6427876097 | Z28: =OFFSET(calcInput!E$2, ROW()-2+24, 0) -> 0.745048505 | AA28: =OFFSET(calcInput!E$2, ROW()-2+25, 0) -> 0.8322109517 | AB28: =OFFSET(calcInput!E$2, ROW()-2+26, 0) -> 0.9025085982 | AC28: =OFFSET(calcInput!E$2, ROW()-2+27, 0) -> 0.9545168589 | AD28: =OFFSET(calcInput!E$2, ROW()-2+28, 0) -> 0.9871817834 | AE28: =OFFSET(calcInput!E$2, ROW()-2+29, 0) -> 0.9998414154 | AF28: =OFFSET(calcInput!E$2, ROW()-2+30, 0) -> 0.9922392066 | AG28: =OFFSET(calcInput!E$2, ROW()-2+31, 0) -> 0.9645292163 | AH28: =OFFSET(calcInput!E$2, ROW()-2+32, 0) -> 0.9172729889 | AI28: =OFFSET(calcInput!E$2, ROW()-2+33, 0) -> 0.8514281745 | AJ28: =OFFSET(calcInput!E$2, ROW()-2+34, 0) -> 0.7683291217 | AK28: =OFFSET(calcInput!E$2, ROW()-2+35, 0) -> 0.6696598375 | AL28: =OFFSET(calcInput!E$2, ROW()-2+36, 0) -> 0.5574198602 | AM28: =OFFSET(calcInput!E$2, ROW()-2+37, 0) -> 0.4338837391 | AN28: =OFFSET(calcInput!E$2, ROW()-2+38, 0) -> 0.3015549404 | AO28: =OFFSET(calcInput!E$2, ROW()-2+39, 0) -> 0.1631151144 | AP28: =OFFSET(calcInput!E$2, ROW()-2+40, 0) -> 0.02136975179 | AQ28: =OFFSET(calcInput!E$2, ROW()-2+41, 0) -> -0.1208086701 | AR28: =OFFSET(calcInput!E$2, ROW()-2+42, 0) -> -0.2605388976 | AS28: =OFFSET(calcInput!E$2, ROW()-2+43, 0) -> -0.3949892902 | AT28: =OFFSET(calcInput!E$2, ROW()-2+44, 0) -> -0.5214352034
A29: 27 | B29: =OFFSET(calcInput!E$2, ROW()-2+0, 0) -> -0.6482283953 | C29: =OFFSET(calcInput!E$2, ROW()-2+1, 0) -> -0.749781203 | D29: =OFFSET(calcInput!E$2, ROW()-2+2, 0) -> -0.8361396537 | E29: =OFFSET(calcInput!E$2, ROW()-2+3, 0) -> -0.9055536889 | F29: =OFFSET(calcInput!E$2, ROW()-2+4, 0) -> -0.9566166292 | G29: =OFFSET(calcInput!E$2, ROW()-2+5, 0) -> -0.9882936815 | H29: =OFFSET(calcInput!E$2, ROW()-2+6, 0) -> -0.9999429086 | I29: =OFFSET(calcInput!E$2, ROW()-2+7, 0) -> -0.9913282381 | J29: =OFFSET(calcInput!E$2, ROW()-2+8, 0) -> -0.962624247 | K29: =OFFSET(calcInput!E$2, ROW()-2+9, 0) -> -0.914412623 | L29: =OFFSET(calcInput!E$2, ROW()-2+10, 0) -> -0.8476703775 | M29: =OFFSET(calcInput!E$2, ROW()-2+11, 0) -> -0.7637500456 | N29: =OFFSET(calcInput!E$2, ROW()-2+12, 0) -> -0.6643522775 | O29: =OFFSET(calcInput!E$2, ROW()-2+13, 0) -> -0.5514913743 | P29: =OFFSET(calcInput!E$2, ROW()-2+14, 0) -> -0.4274544684 | Q29: =OFFSET(calcInput!E$2, ROW()-2+15, 0) -> -0.2947551744 | R29: =OFFSET(calcInput!E$2, ROW()-2+16, 0) -> -0.1560826508 | S29: =OFFSET(calcInput!E$2, ROW()-2+17, 0) -> -0.01424710371 | T29: =OFFSET(calcInput!E$2, ROW()-2+18, 0) -> 0.1278771617 | U29: =OFFSET(calcInput!E$2, ROW()-2+19, 0) -> 0.2674099894 | V29: =OFFSET(calcInput!E$2, ROW()-2+20, 0) -> 0.4015237392 | W29: =OFFSET(calcInput!E$2, ROW()-2+21, 0) -> 0.5275005885 | X29: =OFFSET(calcInput!E$2, ROW()-2+22, 0) -> 0.6427876097 | Y29: =OFFSET(calcInput!E$2, ROW()-2+23, 0) -> 0.745048505 | Z29: =OFFSET(calcInput!E$2, ROW()-2+24, 0) -> 0.8322109517 | AA29: =OFFSET(calcInput!E$2, ROW()-2+25, 0) -> 0.9025085982 | AB29: =OFFSET(calcInput!E$2, ROW()-2+26, 0) -> 0.9545168589 | AC29: =OFFSET(calcInput!E$2, ROW()-2+27, 0) -> 0.9871817834 | AD29: =OFFSET(calcInput!E$2, ROW()-2+28, 0) -> 0.9998414154 | AE29: =OFFSET(calcInput!E$2, ROW()-2+29, 0) -> 0.9922392066 | AF29: =OFFSET(calcInput!E$2, ROW()-2+30, 0) -> 0.9645292163 | AG29: =OFFSET(calcInput!E$2, ROW()-2+31, 0) -> 0.9172729889 | AH29: =OFFSET(calcInput!E$2, ROW()-2+32, 0) -> 0.8514281745 | AI29: =OFFSET(calcInput!E$2, ROW()-2+33, 0) -> 0.7683291217 | AJ29: =OFFSET(calcInput!E$2, ROW()-2+34, 0) -> 0.6696598375 | AK29: =OFFSET(calcInput!E$2, ROW()-2+35, 0) -> 0.5574198602 | AL29: =OFFSET(calcInput!E$2, ROW()-2+36, 0) -> 0.4338837391 | AM29: =OFFSET(calcInput!E$2, ROW()-2+37, 0) -> 0.3015549404 | AN29: =OFFSET(calcInput!E$2, ROW()-2+38, 0) -> 0.1631151144 | AO29: =OFFSET(calcInput!E$2, ROW()-2+39, 0) -> 0.02136975179 | AP29: =OFFSET(calcInput!E$2, ROW()-2+40, 0) -> -0.1208086701 | AQ29: =OFFSET(calcInput!E$2, ROW()-2+41, 0) -> -0.2605388976 | AR29: =OFFSET(calcInput!E$2, ROW()-2+42, 0) -> -0.3949892902 | AS29: =OFFSET(calcInput!E$2, ROW()-2+43, 0) -> -0.5214352034 | AT29: =OFFSET(calcInput!E$2, ROW()-2+44, 0) -> -0.6373142037
A30: 28 | B30: =OFFSET(calcInput!E$2, ROW()-2+0, 0) -> -0.749781203 | C30: =OFFSET(calcInput!E$2, ROW()-2+1, 0) -> -0.8361396537 | D30: =OFFSET(calcInput!E$2, ROW()-2+2, 0) -> -0.9055536889 | E30: =OFFSET(calcInput!E$2, ROW()-2+3, 0) -> -0.9566166292 | F30: =OFFSET(calcInput!E$2, ROW()-2+4, 0) -> -0.9882936815 | G30: =OFFSET(calcInput!E$2, ROW()-2+5, 0) -> -0.9999429086 | H30: =OFFSET(calcInput!E$2, ROW()-2+6, 0) -> -0.9913282381 | I30: =OFFSET(calcInput!E$2, ROW()-2+7, 0) -> -0.962624247 | J30: =OFFSET(calcInput!E$2, ROW()-2+8, 0) -> -0.914412623 | K30: =OFFSET(calcInput!E$2, ROW()-2+9, 0) -> -0.8476703775 | L30: =OFFSET(calcInput!E$2, ROW()-2+10, 0) -> -0.7637500456 | M30: =OFFSET(calcInput!E$2, ROW()-2+11, 0) -> -0.6643522775 | N30: =OFFSET(calcInput!E$2, ROW()-2+12, 0) -> -0.5514913743 | O30: =OFFSET(calcInput!E$2, ROW()-2+13, 0) -> -0.4274544684 | P30: =OFFSET(calcInput!E$2, ROW()-2+14, 0) -> -0.2947551744 | Q30: =OFFSET(calcInput!E$2, ROW()-2+15, 0) -> -0.1560826508 | R30: =OFFSET(calcInput!E$2, ROW()-2+16, 0) -> -0.01424710371 | S30: =OFFSET(calcInput!E$2, ROW()-2+17, 0) -> 0.1278771617 | T30: =OFFSET(calcInput!E$2, ROW()-2+18, 0) -> 0.2674099894 | U30: =OFFSET(calcInput!E$2, ROW()-2+19, 0) -> 0.4015237392 | V30: =OFFSET(calcInput!E$2, ROW()-2+20, 0) -> 0.5275005885 | W30: =OFFSET(calcInput!E$2, ROW()-2+21, 0) -> 0.6427876097 | X30: =OFFSET(calcInput!E$2, ROW()-2+22, 0) -> 0.745048505 | Y30: =OFFSET(calcInput!E$2, ROW()-2+23, 0) -> 0.8322109517 | Z30: =OFFSET(calcInput!E$2, ROW()-2+24, 0) -> 0.9025085982 | AA30: =OFFSET(calcInput!E$2, ROW()-2+25, 0) -> 0.9545168589 | AB30: =OFFSET(calcInput!E$2, ROW()-2+26, 0) -> 0.9871817834 | AC30: =OFFSET(calcInput!E$2, ROW()-2+27, 0) -> 0.9998414154 | AD30: =OFFSET(calcInput!E$2, ROW()-2+28, 0) -> 0.9922392066 | AE30: =OFFSET(calcInput!E$2, ROW()-2+29, 0) -> 0.9645292163 | AF30: =OFFSET(calcInput!E$2, ROW()-2+30, 0) -> 0.9172729889 | AG30: =OFFSET(calcInput!E$2, ROW()-2+31, 0) -> 0.8514281745 | AH30: =OFFSET(calcInput!E$2, ROW()-2+32, 0) -> 0.7683291217 | AI30: =OFFSET(calcInput!E$2, ROW()-2+33, 0) -> 0.6696598375 | AJ30: =OFFSET(calcInput!E$2, ROW()-2+34, 0) -> 0.5574198602 | AK30: =OFFSET(calcInput!E$2, ROW()-2+35, 0) -> 0.4338837391 | AL30: =OFFSET(calcInput!E$2, ROW()-2+36, 0) -> 0.3015549404 | AM30: =OFFSET(calcInput!E$2, ROW()-2+37, 0) -> 0.1631151144 | AN30: =OFFSET(calcInput!E$2, ROW()-2+38, 0) -> 0.02136975179 | AO30: =OFFSET(calcInput!E$2, ROW()-2+39, 0) -> -0.1208086701 | AP30: =OFFSET(calcInput!E$2, ROW()-2+40, 0) -> -0.2605388976 | AQ30: =OFFSET(calcInput!E$2, ROW()-2+41, 0) -> -0.3949892902 | AR30: =OFFSET(calcInput!E$2, ROW()-2+42, 0) -> -0.5214352034 | AS30: =OFFSET(calcInput!E$2, ROW()-2+43, 0) -> -0.6373142037 | AT30: =OFFSET(calcInput!E$2, ROW()-2+44, 0) -> -0.7402779971
A31: 29 | B31: =OFFSET(calcInput!E$2, ROW()-2+0, 0) -> -0.8361396537 | C31: =OFFSET(calcInput!E$2, ROW()-2+1, 0) -> -0.9055536889 | D31: =OFFSET(calcInput!E$2, ROW()-2+2, 0) -> -0.9566166292 | E31: =OFFSET(calcInput!E$2, ROW()-2+3, 0) -> -0.9882936815 | F31: =OFFSET(calcInput!E$2, ROW()-2+4, 0) -> -0.9999429086 | G31: =OFFSET(calcInput!E$2, ROW()-2+5, 0) -> -0.9913282381 | H31: =OFFSET(calcInput!E$2, ROW()-2+6, 0) -> -0.962624247 | I31: =OFFSET(calcInput!E$2, ROW()-2+7, 0) -> -0.914412623 | J31: =OFFSET(calcInput!E$2, ROW()-2+8, 0) -> -0.8476703775 | K31: =OFFSET(calcInput!E$2, ROW()-2+9, 0) -> -0.7637500456 | L31: =OFFSET(calcInput!E$2, ROW()-2+10, 0) -> -0.6643522775 | M31: =OFFSET(calcInput!E$2, ROW()-2+11, 0) -> -0.5514913743 | N31: =OFFSET(calcInput!E$2, ROW()-2+12, 0) -> -0.4274544684 | O31: =OFFSET(calcInput!E$2, ROW()-2+13, 0) -> -0.2947551744 | P31: =OFFSET(calcInput!E$2, ROW()-2+14, 0) -> -0.1560826508 | Q31: =OFFSET(calcInput!E$2, ROW()-2+15, 0) -> -0.01424710371 | R31: =OFFSET(calcInput!E$2, ROW()-2+16, 0) -> 0.1278771617 | S31: =OFFSET(calcInput!E$2, ROW()-2+17, 0) -> 0.2674099894 | T31: =OFFSET(calcInput!E$2, ROW()-2+18, 0) -> 0.4015237392 | U31: =OFFSET(calcInput!E$2, ROW()-2+19, 0) -> 0.5275005885 | V31: =OFFSET(calcInput!E$2, ROW()-2+20, 0) -> 0.6427876097 | W31: =OFFSET(calcInput!E$2, ROW()-2+21, 0) -> 0.745048505 | X31: =OFFSET(calcInput!E$2, ROW()-2+22, 0) -> 0.8322109517 | Y31: =OFFSET(calcInput!E$2, ROW()-2+23, 0) -> 0.9025085982 | Z31: =OFFSET(calcInput!E$2, ROW()-2+24, 0) -> 0.9545168589 | AA31: =OFFSET(calcInput!E$2, ROW()-2+25, 0) -> 0.9871817834 | AB31: =OFFSET(calcInput!E$2, ROW()-2+26, 0) -> 0.9998414154 | AC31: =OFFSET(calcInput!E$2, ROW()-2+27, 0) -> 0.9922392066 | AD31: =OFFSET(calcInput!E$2, ROW()-2+28, 0) -> 0.9645292163 | AE31: =OFFSET(calcInput!E$2, ROW()-2+29, 0) -> 0.9172729889 | AF31: =OFFSET(calcInput!E$2, ROW()-2+30, 0) -> 0.8514281745 | AG31: =OFFSET(calcInput!E$2, ROW()-2+31, 0) -> 0.7683291217 | AH31: =OFFSET(calcInput!E$2, ROW()-2+32, 0) -> 0.6696598375 | AI31: =OFFSET(calcInput!E$2, ROW()-2+33, 0) -> 0.5574198602 | AJ31: =OFFSET(calcInput!E$2, ROW()-2+34, 0) -> 0.4338837391 | AK31: =OFFSET(calcInput!E$2, ROW()-2+35, 0) -> 0.3015549404 | AL31: =OFFSET(calcInput!E$2, ROW()-2+36, 0) -> 0.1631151144 | AM31: =OFFSET(calcInput!E$2, ROW()-2+37, 0) -> 0.02136975179 | AN31: =OFFSET(calcInput!E$2, ROW()-2+38, 0) -> -0.1208086701 | AO31: =OFFSET(calcInput!E$2, ROW()-2+39, 0) -> -0.2605388976 | AP31: =OFFSET(calcInput!E$2, ROW()-2+40, 0) -> -0.3949892902 | AQ31: =OFFSET(calcInput!E$2, ROW()-2+41, 0) -> -0.5214352034 | AR31: =OFFSET(calcInput!E$2, ROW()-2+42, 0) -> -0.6373142037 | AS31: =OFFSET(calcInput!E$2, ROW()-2+43, 0) -> -0.7402779971 | AT31: =OFFSET(calcInput!E$2, ROW()-2+44, 0) -> -0.8282400165
A32: 30 | B32: =OFFSET(calcInput!E$2, ROW()-2+0, 0) -> -0.9055536889 | C32: =OFFSET(calcInput!E$2, ROW()-2+1, 0) -> -0.9566166292 | D32: =OFFSET(calcInput!E$2, ROW()-2+2, 0) -> -0.9882936815 | E32: =OFFSET(calcInput!E$2, ROW()-2+3, 0) -> -0.9999429086 | F32: =OFFSET(calcInput!E$2, ROW()-2+4, 0) -> -0.9913282381 | G32: =OFFSET(calcInput!E$2, ROW()-2+5, 0) -> -0.962624247 | H32: =OFFSET(calcInput!E$2, ROW()-2+6, 0) -> -0.914412623 | I32: =OFFSET(calcInput!E$2, ROW()-2+7, 0) -> -0.8476703775 | J32: =OFFSET(calcInput!E$2, ROW()-2+8, 0) -> -0.7637500456 | K32: =OFFSET(calcInput!E$2, ROW()-2+9, 0) -> -0.6643522775 | L32: =OFFSET(calcInput!E$2, ROW()-2+10, 0) -> -0.5514913743 | M32: =OFFSET(calcInput!E$2, ROW()-2+11, 0) -> -0.4274544684 | N32: =OFFSET(calcInput!E$2, ROW()-2+12, 0) -> -0.2947551744 | O32: =OFFSET(calcInput!E$2, ROW()-2+13, 0) -> -0.1560826508 | P32: =OFFSET(calcInput!E$2, ROW()-2+14, 0) -> -0.01424710371 | Q32: =OFFSET(calcInput!E$2, ROW()-2+15, 0) -> 0.1278771617 | R32: =OFFSET(calcInput!E$2, ROW()-2+16, 0) -> 0.2674099894 | S32: =OFFSET(calcInput!E$2, ROW()-2+17, 0) -> 0.4015237392 | T32: =OFFSET(calcInput!E$2, ROW()-2+18, 0) -> 0.5275005885 | U32: =OFFSET(calcInput!E$2, ROW()-2+19, 0) -> 0.6427876097 | V32: =OFFSET(calcInput!E$2, ROW()-2+20, 0) -> 0.745048505 | W32: =OFFSET(calcInput!E$2, ROW()-2+21, 0) -> 0.8322109517 | X32: =OFFSET(calcInput!E$2, ROW()-2+22, 0) -> 0.9025085982 | Y32: =OFFSET(calcInput!E$2, ROW()-2+23, 0) -> 0.9545168589 | Z32: =OFFSET(calcInput!E$2, ROW()-2+24, 0) -> 0.9871817834 | AA32: =OFFSET(calcInput!E$2, ROW()-2+25, 0) -> 0.9998414154 | AB32: =OFFSET(calcInput!E$2, ROW()-2+26, 0) -> 0.9922392066 | AC32: =OFFSET(calcInput!E$2, ROW()-2+27, 0) -> 0.9645292163 | AD32: =OFFSET(calcInput!E$2, ROW()-2+28, 0) -> 0.9172729889 | AE32: =OFFSET(calcInput!E$2, ROW()-2+29, 0) -> 0.8514281745 | AF32: =OFFSET(calcInput!E$2, ROW()-2+30, 0) -> 0.7683291217 | AG32: =OFFSET(calcInput!E$2, ROW()-2+31, 0) -> 0.6696598375 | AH32: =OFFSET(calcInput!E$2, ROW()-2+32, 0) -> 0.5574198602 | AI32: =OFFSET(calcInput!E$2, ROW()-2+33, 0) -> 0.4338837391 | AJ32: =OFFSET(calcInput!E$2, ROW()-2+34, 0) -> 0.3015549404 | AK32: =OFFSET(calcInput!E$2, ROW()-2+35, 0) -> 0.1631151144 | AL32: =OFFSET(calcInput!E$2, ROW()-2+36, 0) -> 0.02136975179 | AM32: =OFFSET(calcInput!E$2, ROW()-2+37, 0) -> -0.1208086701 | AN32: =OFFSET(calcInput!E$2, ROW()-2+38, 0) -> -0.2605388976 | AO32: =OFFSET(calcInput!E$2, ROW()-2+39, 0) -> -0.3949892902 | AP32: =OFFSET(calcInput!E$2, ROW()-2+40, 0) -> -0.5214352034 | AQ32: =OFFSET(calcInput!E$2, ROW()-2+41, 0) -> -0.6373142037 | AR32: =OFFSET(calcInput!E$2, ROW()-2+42, 0) -> -0.7402779971 | AS32: =OFFSET(calcInput!E$2, ROW()-2+43, 0) -> -0.8282400165 | AT32: =OFFSET(calcInput!E$2, ROW()-2+44, 0) -> -0.8994177069
A33: 31 | B33: =OFFSET(calcInput!E$2, ROW()-2+0, 0) -> -0.9566166292 | C33: =OFFSET(calcInput!E$2, ROW()-2+1, 0) -> -0.9882936815 | D33: =OFFSET(calcInput!E$2, ROW()-2+2, 0) -> -0.9999429086 | E33: =OFFSET(calcInput!E$2, ROW()-2+3, 0) -> -0.9913282381 | F33: =OFFSET(calcInput!E$2, ROW()-2+4, 0) -> -0.962624247 | G33: =OFFSET(calcInput!E$2, ROW()-2+5, 0) -> -0.914412623 | H33: =OFFSET(calcInput!E$2, ROW()-2+6, 0) -> -0.8476703775 | I33: =OFFSET(calcInput!E$2, ROW()-2+7, 0) -> -0.7637500456 | J33: =OFFSET(calcInput!E$2, ROW()-2+8, 0) -> -0.6643522775 | K33: =OFFSET(calcInput!E$2, ROW()-2+9, 0) -> -0.5514913743 | L33: =OFFSET(calcInput!E$2, ROW()-2+10, 0) -> -0.4274544684 | M33: =OFFSET(calcInput!E$2, ROW()-2+11, 0) -> -0.2947551744 | N33: =OFFSET(calcInput!E$2, ROW()-2+12, 0) -> -0.1560826508 | O33: =OFFSET(calcInput!E$2, ROW()-2+13, 0) -> -0.01424710371 | P33: =OFFSET(calcInput!E$2, ROW()-2+14, 0) -> 0.1278771617 | Q33: =OFFSET(calcInput!E$2, ROW()-2+15, 0) -> 0.2674099894 | R33: =OFFSET(calcInput!E$2, ROW()-2+16, 0) -> 0.4015237392 | S33: =OFFSET(calcInput!E$2, ROW()-2+17, 0) -> 0.5275005885 | T33: =OFFSET(calcInput!E$2, ROW()-2+18, 0) -> 0.6427876097 | U33: =OFFSET(calcInput!E$2, ROW()-2+19, 0) -> 0.745048505 | V33: =OFFSET(calcInput!E$2, ROW()-2+20, 0) -> 0.8322109517 | W33: =OFFSET(calcInput!E$2, ROW()-2+21, 0) -> 0.9025085982 | X33: =OFFSET(calcInput!E$2, ROW()-2+22, 0) -> 0.9545168589 | Y33: =OFFSET(calcInput!E$2, ROW()-2+23, 0) -> 0.9871817834 | Z33: =OFFSET(calcInput!E$2, ROW()-2+24, 0) -> 0.9998414154 | AA33: =OFFSET(calcInput!E$2, ROW()-2+25, 0) -> 0.9922392066 | AB33: =OFFSET(calcInput!E$2, ROW()-2+26, 0) -> 0.9645292163 | AC33: =OFFSET(calcInput!E$2, ROW()-2+27, 0) -> 0.9172729889 | AD33: =OFFSET(calcInput!E$2, ROW()-2+28, 0) -> 0.8514281745 | AE33: =OFFSET(calcInput!E$2, ROW()-2+29, 0) -> 0.7683291217 | AF33: =OFFSET(calcInput!E$2, ROW()-2+30, 0) -> 0.6696598375 | AG33: =OFFSET(calcInput!E$2, ROW()-2+31, 0) -> 0.5574198602 | AH33: =OFFSET(calcInput!E$2, ROW()-2+32, 0) -> 0.4338837391 | AI33: =OFFSET(calcInput!E$2, ROW()-2+33, 0) -> 0.3015549404 | AJ33: =OFFSET(calcInput!E$2, ROW()-2+34, 0) -> 0.1631151144 | AK33: =OFFSET(calcInput!E$2, ROW()-2+35, 0) -> 0.02136975179 | AL33: =OFFSET(calcInput!E$2, ROW()-2+36, 0) -> -0.1208086701 | AM33: =OFFSET(calcInput!E$2, ROW()-2+37, 0) -> -0.2605388976 | AN33: =OFFSET(calcInput!E$2, ROW()-2+38, 0) -> -0.3949892902 | AO33: =OFFSET(calcInput!E$2, ROW()-2+39, 0) -> -0.5214352034 | AP33: =OFFSET(calcInput!E$2, ROW()-2+40, 0) -> -0.6373142037 | AQ33: =OFFSET(calcInput!E$2, ROW()-2+41, 0) -> -0.7402779971 | AR33: =OFFSET(calcInput!E$2, ROW()-2+42, 0) -> -0.8282400165 | AS33: =OFFSET(calcInput!E$2, ROW()-2+43, 0) -> -0.8994177069 | AT33: =OFFSET(calcInput!E$2, ROW()-2+44, 0) -> -0.9523686485
A34: 32 | B34: =OFFSET(calcInput!E$2, ROW()-2+0, 0) -> -0.9882936815 | C34: =OFFSET(calcInput!E$2, ROW()-2+1, 0) -> -0.9999429086 | D34: =OFFSET(calcInput!E$2, ROW()-2+2, 0) -> -0.9913282381 | E34: =OFFSET(calcInput!E$2, ROW()-2+3, 0) -> -0.962624247 | F34: =OFFSET(calcInput!E$2, ROW()-2+4, 0) -> -0.914412623 | G34: =OFFSET(calcInput!E$2, ROW()-2+5, 0) -> -0.8476703775 | H34: =OFFSET(calcInput!E$2, ROW()-2+6, 0) -> -0.7637500456 | I34: =OFFSET(calcInput!E$2, ROW()-2+7, 0) -> -0.6643522775 | J34: =OFFSET(calcInput!E$2, ROW()-2+8, 0) -> -0.5514913743 | K34: =OFFSET(calcInput!E$2, ROW()-2+9, 0) -> -0.4274544684 | L34: =OFFSET(calcInput!E$2, ROW()-2+10, 0) -> -0.2947551744 | M34: =OFFSET(calcInput!E$2, ROW()-2+11, 0) -> -0.1560826508 | N34: =OFFSET(calcInput!E$2, ROW()-2+12, 0) -> -0.01424710371 | O34: =OFFSET(calcInput!E$2, ROW()-2+13, 0) -> 0.1278771617 | P34: =OFFSET(calcInput!E$2, ROW()-2+14, 0) -> 0.2674099894 | Q34: =OFFSET(calcInput!E$2, ROW()-2+15, 0) -> 0.4015237392 | R34: =OFFSET(calcInput!E$2, ROW()-2+16, 0) -> 0.5275005885 | S34: =OFFSET(calcInput!E$2, ROW()-2+17, 0) -> 0.6427876097 | T34: =OFFSET(calcInput!E$2, ROW()-2+18, 0) -> 0.745048505 | U34: =OFFSET(calcInput!E$2, ROW()-2+19, 0) -> 0.8322109517 | V34: =OFFSET(calcInput!E$2, ROW()-2+20, 0) -> 0.9025085982 | W34: =OFFSET(calcInput!E$2, ROW()-2+21, 0) -> 0.9545168589 | X34: =OFFSET(calcInput!E$2, ROW()-2+22, 0) -> 0.9871817834 | Y34: =OFFSET(calcInput!E$2, ROW()-2+23, 0) -> 0.9998414154 | Z34: =OFFSET(calcInput!E$2, ROW()-2+24, 0) -> 0.9922392066 | AA34: =OFFSET(calcInput!E$2, ROW()-2+25, 0) -> 0.9645292163 | AB34: =OFFSET(calcInput!E$2, ROW()-2+26, 0) -> 0.9172729889 | AC34: =OFFSET(calcInput!E$2, ROW()-2+27, 0) -> 0.8514281745 | AD34: =OFFSET(calcInput!E$2, ROW()-2+28, 0) -> 0.7683291217 | AE34: =OFFSET(calcInput!E$2, ROW()-2+29, 0) -> 0.6696598375 | AF34: =OFFSET(calcInput!E$2, ROW()-2+30, 0) -> 0.5574198602 | AG34: =OFFSET(calcInput!E$2, ROW()-2+31, 0) -> 0.4338837391 | AH34: =OFFSET(calcInput!E$2, ROW()-2+32, 0) -> 0.3015549404 | AI34: =OFFSET(calcInput!E$2, ROW()-2+33, 0) -> 0.1631151144 | AJ34: =OFFSET(calcInput!E$2, ROW()-2+34, 0) -> 0.02136975179 | AK34: =OFFSET(calcInput!E$2, ROW()-2+35, 0) -> -0.1208086701 | AL34: =OFFSET(calcInput!E$2, ROW()-2+36, 0) -> -0.2605388976 | AM34: =OFFSET(calcInput!E$2, ROW()-2+37, 0) -> -0.3949892902 | AN34: =OFFSET(calcInput!E$2, ROW()-2+38, 0) -> -0.5214352034 | AO34: =OFFSET(calcInput!E$2, ROW()-2+39, 0) -> -0.6373142037 | AP34: =OFFSET(calcInput!E$2, ROW()-2+40, 0) -> -0.7402779971 | AQ34: =OFFSET(calcInput!E$2, ROW()-2+41, 0) -> -0.8282400165 | AR34: =OFFSET(calcInput!E$2, ROW()-2+42, 0) -> -0.8994177069 | AS34: =OFFSET(calcInput!E$2, ROW()-2+43, 0) -> -0.9523686485 | AT34: =OFFSET(calcInput!E$2, ROW()-2+44, 0) -> -0.9860197876
A35: 33 | B35: =OFFSET(calcInput!E$2, ROW()-2+0, 0) -> -0.9999429086 | C35: =OFFSET(calcInput!E$2, ROW()-2+1, 0) -> -0.9913282381 | D35: =OFFSET(calcInput!E$2, ROW()-2+2, 0) -> -0.962624247 | E35: =OFFSET(calcInput!E$2, ROW()-2+3, 0) -> -0.914412623 | F35: =OFFSET(calcInput!E$2, ROW()-2+4, 0) -> -0.8476703775 | G35: =OFFSET(calcInput!E$2, ROW()-2+5, 0) -> -0.7637500456 | H35: =OFFSET(calcInput!E$2, ROW()-2+6, 0) -> -0.6643522775 | I35: =OFFSET(calcInput!E$2, ROW()-2+7, 0) -> -0.5514913743 | J35: =OFFSET(calcInput!E$2, ROW()-2+8, 0) -> -0.4274544684 | K35: =OFFSET(calcInput!E$2, ROW()-2+9, 0) -> -0.2947551744 | L35: =OFFSET(calcInput!E$2, ROW()-2+10, 0) -> -0.1560826508 | M35: =OFFSET(calcInput!E$2, ROW()-2+11, 0) -> -0.01424710371 | N35: =OFFSET(calcInput!E$2, ROW()-2+12, 0) -> 0.1278771617 | O35: =OFFSET(calcInput!E$2, ROW()-2+13, 0) -> 0.2674099894 | P35: =OFFSET(calcInput!E$2, ROW()-2+14, 0) -> 0.4015237392 | Q35: =OFFSET(calcInput!E$2, ROW()-2+15, 0) -> 0.5275005885 | R35: =OFFSET(calcInput!E$2, ROW()-2+16, 0) -> 0.6427876097 | S35: =OFFSET(calcInput!E$2, ROW()-2+17, 0) -> 0.745048505 | T35: =OFFSET(calcInput!E$2, ROW()-2+18, 0) -> 0.8322109517 | U35: =OFFSET(calcInput!E$2, ROW()-2+19, 0) -> 0.9025085982 | V35: =OFFSET(calcInput!E$2, ROW()-2+20, 0) -> 0.9545168589 | W35: =OFFSET(calcInput!E$2, ROW()-2+21, 0) -> 0.9871817834 | X35: =OFFSET(calcInput!E$2, ROW()-2+22, 0) -> 0.9998414154 | Y35: =OFFSET(calcInput!E$2, ROW()-2+23, 0) -> 0.9922392066 | Z35: =OFFSET(calcInput!E$2, ROW()-2+24, 0) -> 0.9645292163 | AA35: =OFFSET(calcInput!E$2, ROW()-2+25, 0) -> 0.9172729889 | AB35: =OFFSET(calcInput!E$2, ROW()-2+26, 0) -> 0.8514281745 | AC35: =OFFSET(calcInput!E$2, ROW()-2+27, 0) -> 0.7683291217 | AD35: =OFFSET(calcInput!E$2, ROW()-2+28, 0) -> 0.6696598375 | AE35: =OFFSET(calcInput!E$2, ROW()-2+29, 0) -> 0.5574198602 | AF35: =OFFSET(calcInput!E$2, ROW()-2+30, 0) -> 0.4338837391 | AG35: =OFFSET(calcInput!E$2, ROW()-2+31, 0) -> 0.3015549404 | AH35: =OFFSET(calcInput!E$2, ROW()-2+32, 0) -> 0.1631151144 | AI35: =OFFSET(calcInput!E$2, ROW()-2+33, 0) -> 0.02136975179 | AJ35: =OFFSET(calcInput!E$2, ROW()-2+34, 0) -> -0.1208086701 | AK35: =OFFSET(calcInput!E$2, ROW()-2+35, 0) -> -0.2605388976 | AL35: =OFFSET(calcInput!E$2, ROW()-2+36, 0) -> -0.3949892902 | AM35: =OFFSET(calcInput!E$2, ROW()-2+37, 0) -> -0.5214352034 | AN35: =OFFSET(calcInput!E$2, ROW()-2+38, 0) -> -0.6373142037 | AO35: =OFFSET(calcInput!E$2, ROW()-2+39, 0) -> -0.7402779971 | AP35: =OFFSET(calcInput!E$2, ROW()-2+40, 0) -> -0.8282400165 | AQ35: =OFFSET(calcInput!E$2, ROW()-2+41, 0) -> -0.8994177069 | AR35: =OFFSET(calcInput!E$2, ROW()-2+42, 0) -> -0.9523686485 | AS35: =OFFSET(calcInput!E$2, ROW()-2+43, 0) -> -0.9860197876 | AT35: =OFFSET(calcInput!E$2, ROW()-2+44, 0) -> -0.999689182
A36: 34 | B36: =OFFSET(calcInput!E$2, ROW()-2+0, 0) -> -0.9913282381 | C36: =OFFSET(calcInput!E$2, ROW()-2+1, 0) -> -0.962624247 | D36: =OFFSET(calcInput!E$2, ROW()-2+2, 0) -> -0.914412623 | E36: =OFFSET(calcInput!E$2, ROW()-2+3, 0) -> -0.8476703775 | F36: =OFFSET(calcInput!E$2, ROW()-2+4, 0) -> -0.7637500456 | G36: =OFFSET(calcInput!E$2, ROW()-2+5, 0) -> -0.6643522775 | H36: =OFFSET(calcInput!E$2, ROW()-2+6, 0) -> -0.5514913743 | I36: =OFFSET(calcInput!E$2, ROW()-2+7, 0) -> -0.4274544684 | J36: =OFFSET(calcInput!E$2, ROW()-2+8, 0) -> -0.2947551744 | K36: =OFFSET(calcInput!E$2, ROW()-2+9, 0) -> -0.1560826508 | L36: =OFFSET(calcInput!E$2, ROW()-2+10, 0) -> -0.01424710371 | M36: =OFFSET(calcInput!E$2, ROW()-2+11, 0) -> 0.1278771617 | N36: =OFFSET(calcInput!E$2, ROW()-2+12, 0) -> 0.2674099894 | O36: =OFFSET(calcInput!E$2, ROW()-2+13, 0) -> 0.4015237392 | P36: =OFFSET(calcInput!E$2, ROW()-2+14, 0) -> 0.5275005885 | Q36: =OFFSET(calcInput!E$2, ROW()-2+15, 0) -> 0.6427876097 | R36: =OFFSET(calcInput!E$2, ROW()-2+16, 0) -> 0.745048505 | S36: =OFFSET(calcInput!E$2, ROW()-2+17, 0) -> 0.8322109517 | T36: =OFFSET(calcInput!E$2, ROW()-2+18, 0) -> 0.9025085982 | U36: =OFFSET(calcInput!E$2, ROW()-2+19, 0) -> 0.9545168589 | V36: =OFFSET(calcInput!E$2, ROW()-2+20, 0) -> 0.9871817834 | W36: =OFFSET(calcInput!E$2, ROW()-2+21, 0) -> 0.9998414154 | X36: =OFFSET(calcInput!E$2, ROW()-2+22, 0) -> 0.9922392066 | Y36: =OFFSET(calcInput!E$2, ROW()-2+23, 0) -> 0.9645292163 | Z36: =OFFSET(calcInput!E$2, ROW()-2+24, 0) -> 0.9172729889 | AA36: =OFFSET(calcInput!E$2, ROW()-2+25, 0) -> 0.8514281745 | AB36: =OFFSET(calcInput!E$2, ROW()-2+26, 0) -> 0.7683291217 | AC36: =OFFSET(calcInput!E$2, ROW()-2+27, 0) -> 0.6696598375 | AD36: =OFFSET(calcInput!E$2, ROW()-2+28, 0) -> 0.5574198602 | AE36: =OFFSET(calcInput!E$2, ROW()-2+29, 0) -> 0.4338837391 | AF36: =OFFSET(calcInput!E$2, ROW()-2+30, 0) -> 0.3015549404 | AG36: =OFFSET(calcInput!E$2, ROW()-2+31, 0) -> 0.1631151144 | AH36: =OFFSET(calcInput!E$2, ROW()-2+32, 0) -> 0.02136975179 | AI36: =OFFSET(calcInput!E$2, ROW()-2+33, 0) -> -0.1208086701 | AJ36: =OFFSET(calcInput!E$2, ROW()-2+34, 0) -> -0.2605388976 | AK36: =OFFSET(calcInput!E$2, ROW()-2+35, 0) -> -0.3949892902 | AL36: =OFFSET(calcInput!E$2, ROW()-2+36, 0) -> -0.5214352034 | AM36: =OFFSET(calcInput!E$2, ROW()-2+37, 0) -> -0.6373142037 | AN36: =OFFSET(calcInput!E$2, ROW()-2+38, 0) -> -0.7402779971 | AO36: =OFFSET(calcInput!E$2, ROW()-2+39, 0) -> -0.8282400165 | AP36: =OFFSET(calcInput!E$2, ROW()-2+40, 0) -> -0.8994177069 | AQ36: =OFFSET(calcInput!E$2, ROW()-2+41, 0) -> -0.9523686485 | AR36: =OFFSET(calcInput!E$2, ROW()-2+42, 0) -> -0.9860197876 | AS36: =OFFSET(calcInput!E$2, ROW()-2+43, 0) -> -0.999689182 | AT36: =OFFSET(calcInput!E$2, ROW()-2+44, 0) -> -0.9930998207
A37: 35 | B37: =OFFSET(calcInput!E$2, ROW()-2+0, 0) -> -0.962624247 | C37: =OFFSET(calcInput!E$2, ROW()-2+1, 0) -> -0.914412623 | D37: =OFFSET(calcInput!E$2, ROW()-2+2, 0) -> -0.8476703775 | E37: =OFFSET(calcInput!E$2, ROW()-2+3, 0) -> -0.7637500456 | F37: =OFFSET(calcInput!E$2, ROW()-2+4, 0) -> -0.6643522775 | G37: =OFFSET(calcInput!E$2, ROW()-2+5, 0) -> -0.5514913743 | H37: =OFFSET(calcInput!E$2, ROW()-2+6, 0) -> -0.4274544684 | I37: =OFFSET(calcInput!E$2, ROW()-2+7, 0) -> -0.2947551744 | J37: =OFFSET(calcInput!E$2, ROW()-2+8, 0) -> -0.1560826508 | K37: =OFFSET(calcInput!E$2, ROW()-2+9, 0) -> -0.01424710371 | L37: =OFFSET(calcInput!E$2, ROW()-2+10, 0) -> 0.1278771617 | M37: =OFFSET(calcInput!E$2, ROW()-2+11, 0) -> 0.2674099894 | N37: =OFFSET(calcInput!E$2, ROW()-2+12, 0) -> 0.4015237392 | O37: =OFFSET(calcInput!E$2, ROW()-2+13, 0) -> 0.5275005885 | P37: =OFFSET(calcInput!E$2, ROW()-2+14, 0) -> 0.6427876097 | Q37: =OFFSET(calcInput!E$2, ROW()-2+15, 0) -> 0.745048505 | R37: =OFFSET(calcInput!E$2, ROW()-2+16, 0) -> 0.8322109517 | S37: =OFFSET(calcInput!E$2, ROW()-2+17, 0) -> 0.9025085982 | T37: =OFFSET(calcInput!E$2, ROW()-2+18, 0) -> 0.9545168589 | U37: =OFFSET(calcInput!E$2, ROW()-2+19, 0) -> 0.9871817834 | V37: =OFFSET(calcInput!E$2, ROW()-2+20, 0) -> 0.9998414154 | W37: =OFFSET(calcInput!E$2, ROW()-2+21, 0) -> 0.9922392066 | X37: =OFFSET(calcInput!E$2, ROW()-2+22, 0) -> 0.9645292163 | Y37: =OFFSET(calcInput!E$2, ROW()-2+23, 0) -> 0.9172729889 | Z37: =OFFSET(calcInput!E$2, ROW()-2+24, 0) -> 0.8514281745 | AA37: =OFFSET(calcInput!E$2, ROW()-2+25, 0) -> 0.7683291217 | AB37: =OFFSET(calcInput!E$2, ROW()-2+26, 0) -> 0.6696598375 | AC37: =OFFSET(calcInput!E$2, ROW()-2+27, 0) -> 0.5574198602 | AD37: =OFFSET(calcInput!E$2, ROW()-2+28, 0) -> 0.4338837391 | AE37: =OFFSET(calcInput!E$2, ROW()-2+29, 0) -> 0.3015549404 | AF37: =OFFSET(calcInput!E$2, ROW()-2+30, 0) -> 0.1631151144 | AG37: =OFFSET(calcInput!E$2, ROW()-2+31, 0) -> 0.02136975179 | AH37: =OFFSET(calcInput!E$2, ROW()-2+32, 0) -> -0.1208086701 | AI37: =OFFSET(calcInput!E$2, ROW()-2+33, 0) -> -0.2605388976 | AJ37: =OFFSET(calcInput!E$2, ROW()-2+34, 0) -> -0.3949892902 | AK37: =OFFSET(calcInput!E$2, ROW()-2+35, 0) -> -0.5214352034 | AL37: =OFFSET(calcInput!E$2, ROW()-2+36, 0) -> -0.6373142037 | AM37: =OFFSET(calcInput!E$2, ROW()-2+37, 0) -> -0.7402779971 | AN37: =OFFSET(calcInput!E$2, ROW()-2+38, 0) -> -0.8282400165 | AO37: =OFFSET(calcInput!E$2, ROW()-2+39, 0) -> -0.8994177069 | AP37: =OFFSET(calcInput!E$2, ROW()-2+40, 0) -> -0.9523686485 | AQ37: =OFFSET(calcInput!E$2, ROW()-2+41, 0) -> -0.9860197876 | AR37: =OFFSET(calcInput!E$2, ROW()-2+42, 0) -> -0.999689182 | AS37: =OFFSET(calcInput!E$2, ROW()-2+43, 0) -> -0.9930998207 | AT37: =OFFSET(calcInput!E$2, ROW()-2+44, 0) -> -0.9663852375
A38: 36 | B38: =OFFSET(calcInput!E$2, ROW()-2+0, 0) -> -0.914412623 | C38: =OFFSET(calcInput!E$2, ROW()-2+1, 0) -> -0.8476703775 | D38: =OFFSET(calcInput!E$2, ROW()-2+2, 0) -> -0.7637500456 | E38: =OFFSET(calcInput!E$2, ROW()-2+3, 0) -> -0.6643522775 | F38: =OFFSET(calcInput!E$2, ROW()-2+4, 0) -> -0.5514913743 | G38: =OFFSET(calcInput!E$2, ROW()-2+5, 0) -> -0.4274544684 | H38: =OFFSET(calcInput!E$2, ROW()-2+6, 0) -> -0.2947551744 | I38: =OFFSET(calcInput!E$2, ROW()-2+7, 0) -> -0.1560826508 | J38: =OFFSET(calcInput!E$2, ROW()-2+8, 0) -> -0.01424710371 | K38: =OFFSET(calcInput!E$2, ROW()-2+9, 0) -> 0.1278771617 | L38: =OFFSET(calcInput!E$2, ROW()-2+10, 0) -> 0.2674099894 | M38: =OFFSET(calcInput!E$2, ROW()-2+11, 0) -> 0.4015237392 | N38: =OFFSET(calcInput!E$2, ROW()-2+12, 0) -> 0.5275005885 | O38: =OFFSET(calcInput!E$2, ROW()-2+13, 0) -> 0.6427876097 | P38: =OFFSET(calcInput!E$2, ROW()-2+14, 0) -> 0.745048505 | Q38: =OFFSET(calcInput!E$2, ROW()-2+15, 0) -> 0.8322109517 | R38: =OFFSET(calcInput!E$2, ROW()-2+16, 0) -> 0.9025085982 | S38: =OFFSET(calcInput!E$2, ROW()-2+17, 0) -> 0.9545168589 | T38: =OFFSET(calcInput!E$2, ROW()-2+18, 0) -> 0.9871817834 | U38: =OFFSET(calcInput!E$2, ROW()-2+19, 0) -> 0.9998414154 | V38: =OFFSET(calcInput!E$2, ROW()-2+20, 0) -> 0.9922392066 | W38: =OFFSET(calcInput!E$2, ROW()-2+21, 0) -> 0.9645292163 | X38: =OFFSET(calcInput!E$2, ROW()-2+22, 0) -> 0.9172729889 | Y38: =OFFSET(calcInput!E$2, ROW()-2+23, 0) -> 0.8514281745 | Z38: =OFFSET(calcInput!E$2, ROW()-2+24, 0) -> 0.7683291217 | AA38: =OFFSET(calcInput!E$2, ROW()-2+25, 0) -> 0.6696598375 | AB38: =OFFSET(calcInput!E$2, ROW()-2+26, 0) -> 0.5574198602 | AC38: =OFFSET(calcInput!E$2, ROW()-2+27, 0) -> 0.4338837391 | AD38: =OFFSET(calcInput!E$2, ROW()-2+28, 0) -> 0.3015549404 | AE38: =OFFSET(calcInput!E$2, ROW()-2+29, 0) -> 0.1631151144 | AF38: =OFFSET(calcInput!E$2, ROW()-2+30, 0) -> 0.02136975179 | AG38: =OFFSET(calcInput!E$2, ROW()-2+31, 0) -> -0.1208086701 | AH38: =OFFSET(calcInput!E$2, ROW()-2+32, 0) -> -0.2605388976 | AI38: =OFFSET(calcInput!E$2, ROW()-2+33, 0) -> -0.3949892902 | AJ38: =OFFSET(calcInput!E$2, ROW()-2+34, 0) -> -0.5214352034 | AK38: =OFFSET(calcInput!E$2, ROW()-2+35, 0) -> -0.6373142037 | AL38: =OFFSET(calcInput!E$2, ROW()-2+36, 0) -> -0.7402779971 | AM38: =OFFSET(calcInput!E$2, ROW()-2+37, 0) -> -0.8282400165 | AN38: =OFFSET(calcInput!E$2, ROW()-2+38, 0) -> -0.8994177069 | AO38: =OFFSET(calcInput!E$2, ROW()-2+39, 0) -> -0.9523686485 | AP38: =OFFSET(calcInput!E$2, ROW()-2+40, 0) -> -0.9860197876 | AQ38: =OFFSET(calcInput!E$2, ROW()-2+41, 0) -> -0.999689182 | AR38: =OFFSET(calcInput!E$2, ROW()-2+42, 0) -> -0.9930998207 | AS38: =OFFSET(calcInput!E$2, ROW()-2+43, 0) -> -0.9663852375 | AT38: =OFFSET(calcInput!E$2, ROW()-2+44, 0) -> -0.9200868049
A39: 37 | B39: =OFFSET(calcInput!E$2, ROW()-2+0, 0) -> -0.8476703775 | C39: =OFFSET(calcInput!E$2, ROW()-2+1, 0) -> -0.7637500456 | D39: =OFFSET(calcInput!E$2, ROW()-2+2, 0) -> -0.6643522775 | E39: =OFFSET(calcInput!E$2, ROW()-2+3, 0) -> -0.5514913743 | F39: =OFFSET(calcInput!E$2, ROW()-2+4, 0) -> -0.4274544684 | G39: =OFFSET(calcInput!E$2, ROW()-2+5, 0) -> -0.2947551744 | H39: =OFFSET(calcInput!E$2, ROW()-2+6, 0) -> -0.1560826508 | I39: =OFFSET(calcInput!E$2, ROW()-2+7, 0) -> -0.01424710371 | J39: =OFFSET(calcInput!E$2, ROW()-2+8, 0) -> 0.1278771617 | K39: =OFFSET(calcInput!E$2, ROW()-2+9, 0) -> 0.2674099894 | L39: =OFFSET(calcInput!E$2, ROW()-2+10, 0) -> 0.4015237392 | M39: =OFFSET(calcInput!E$2, ROW()-2+11, 0) -> 0.5275005885 | N39: =OFFSET(calcInput!E$2, ROW()-2+12, 0) -> 0.6427876097 | O39: =OFFSET(calcInput!E$2, ROW()-2+13, 0) -> 0.745048505 | P39: =OFFSET(calcInput!E$2, ROW()-2+14, 0) -> 0.8322109517 | Q39: =OFFSET(calcInput!E$2, ROW()-2+15, 0) -> 0.9025085982 | R39: =OFFSET(calcInput!E$2, ROW()-2+16, 0) -> 0.9545168589 | S39: =OFFSET(calcInput!E$2, ROW()-2+17, 0) -> 0.9871817834 | T39: =OFFSET(calcInput!E$2, ROW()-2+18, 0) -> 0.9998414154 | U39: =OFFSET(calcInput!E$2, ROW()-2+19, 0) -> 0.9922392066 | V39: =OFFSET(calcInput!E$2, ROW()-2+20, 0) -> 0.9645292163 | W39: =OFFSET(calcInput!E$2, ROW()-2+21, 0) -> 0.9172729889 | X39: =OFFSET(calcInput!E$2, ROW()-2+22, 0) -> 0.8514281745 | Y39: =OFFSET(calcInput!E$2, ROW()-2+23, 0) -> 0.7683291217 | Z39: =OFFSET(calcInput!E$2, ROW()-2+24, 0) -> 0.6696598375 | AA39: =OFFSET(calcInput!E$2, ROW()-2+25, 0) -> 0.5574198602 | AB39: =OFFSET(calcInput!E$2, ROW()-2+26, 0) -> 0.4338837391 | AC39: =OFFSET(calcInput!E$2, ROW()-2+27, 0) -> 0.3015549404 | AD39: =OFFSET(calcInput!E$2, ROW()-2+28, 0) -> 0.1631151144 | AE39: =OFFSET(calcInput!E$2, ROW()-2+29, 0) -> 0.02136975179 | AF39: =OFFSET(calcInput!E$2, ROW()-2+30, 0) -> -0.1208086701 | AG39: =OFFSET(calcInput!E$2, ROW()-2+31, 0) -> -0.2605388976 | AH39: =OFFSET(calcInput!E$2, ROW()-2+32, 0) -> -0.3949892902 | AI39: =OFFSET(calcInput!E$2, ROW()-2+33, 0) -> -0.5214352034 | AJ39: =OFFSET(calcInput!E$2, ROW()-2+34, 0) -> -0.6373142037 | AK39: =OFFSET(calcInput!E$2, ROW()-2+35, 0) -> -0.7402779971 | AL39: =OFFSET(calcInput!E$2, ROW()-2+36, 0) -> -0.8282400165 | AM39: =OFFSET(calcInput!E$2, ROW()-2+37, 0) -> -0.8994177069 | AN39: =OFFSET(calcInput!E$2, ROW()-2+38, 0) -> -0.9523686485 | AO39: =OFFSET(calcInput!E$2, ROW()-2+39, 0) -> -0.9860197876 | AP39: =OFFSET(calcInput!E$2, ROW()-2+40, 0) -> -0.999689182 | AQ39: =OFFSET(calcInput!E$2, ROW()-2+41, 0) -> -0.9930998207 | AR39: =OFFSET(calcInput!E$2, ROW()-2+42, 0) -> -0.9663852375 | AS39: =OFFSET(calcInput!E$2, ROW()-2+43, 0) -> -0.9200868049 | AT39: =OFFSET(calcInput!E$2, ROW()-2+44, 0) -> -0.855142763
A40: 38 | B40: =OFFSET(calcInput!E$2, ROW()-2+0, 0) -> -0.7637500456 | C40: =OFFSET(calcInput!E$2, ROW()-2+1, 0) -> -0.6643522775 | D40: =OFFSET(calcInput!E$2, ROW()-2+2, 0) -> -0.5514913743 | E40: =OFFSET(calcInput!E$2, ROW()-2+3, 0) -> -0.4274544684 | F40: =OFFSET(calcInput!E$2, ROW()-2+4, 0) -> -0.2947551744 | G40: =OFFSET(calcInput!E$2, ROW()-2+5, 0) -> -0.1560826508 | H40: =OFFSET(calcInput!E$2, ROW()-2+6, 0) -> -0.01424710371 | I40: =OFFSET(calcInput!E$2, ROW()-2+7, 0) -> 0.1278771617 | J40: =OFFSET(calcInput!E$2, ROW()-2+8, 0) -> 0.2674099894 | K40: =OFFSET(calcInput!E$2, ROW()-2+9, 0) -> 0.4015237392 | L40: =OFFSET(calcInput!E$2, ROW()-2+10, 0) -> 0.5275005885 | M40: =OFFSET(calcInput!E$2, ROW()-2+11, 0) -> 0.6427876097 | N40: =OFFSET(calcInput!E$2, ROW()-2+12, 0) -> 0.745048505 | O40: =OFFSET(calcInput!E$2, ROW()-2+13, 0) -> 0.8322109517 | P40: =OFFSET(calcInput!E$2, ROW()-2+14, 0) -> 0.9025085982 | Q40: =OFFSET(calcInput!E$2, ROW()-2+15, 0) -> 0.9545168589 | R40: =OFFSET(calcInput!E$2, ROW()-2+16, 0) -> 0.9871817834 | S40: =OFFSET(calcInput!E$2, ROW()-2+17, 0) -> 0.9998414154 | T40: =OFFSET(calcInput!E$2, ROW()-2+18, 0) -> 0.9922392066 | U40: =OFFSET(calcInput!E$2, ROW()-2+19, 0) -> 0.9645292163 | V40: =OFFSET(calcInput!E$2, ROW()-2+20, 0) -> 0.9172729889 | W40: =OFFSET(calcInput!E$2, ROW()-2+21, 0) -> 0.8514281745 | X40: =OFFSET(calcInput!E$2, ROW()-2+22, 0) -> 0.7683291217 | Y40: =OFFSET(calcInput!E$2, ROW()-2+23, 0) -> 0.6696598375 | Z40: =OFFSET(calcInput!E$2, ROW()-2+24, 0) -> 0.5574198602 | AA40: =OFFSET(calcInput!E$2, ROW()-2+25, 0) -> 0.4338837391 | AB40: =OFFSET(calcInput!E$2, ROW()-2+26, 0) -> 0.3015549404 | AC40: =OFFSET(calcInput!E$2, ROW()-2+27, 0) -> 0.1631151144 | AD40: =OFFSET(calcInput!E$2, ROW()-2+28, 0) -> 0.02136975179 | AE40: =OFFSET(calcInput!E$2, ROW()-2+29, 0) -> -0.1208086701 | AF40: =OFFSET(calcInput!E$2, ROW()-2+30, 0) -> -0.2605388976 | AG40: =OFFSET(calcInput!E$2, ROW()-2+31, 0) -> -0.3949892902 | AH40: =OFFSET(calcInput!E$2, ROW()-2+32, 0) -> -0.5214352034 | AI40: =OFFSET(calcInput!E$2, ROW()-2+33, 0) -> -0.6373142037 | AJ40: =OFFSET(calcInput!E$2, ROW()-2+34, 0) -> -0.7402779971 | AK40: =OFFSET(calcInput!E$2, ROW()-2+35, 0) -> -0.8282400165 | AL40: =OFFSET(calcInput!E$2, ROW()-2+36, 0) -> -0.8994177069 | AM40: =OFFSET(calcInput!E$2, ROW()-2+37, 0) -> -0.9523686485 | AN40: =OFFSET(calcInput!E$2, ROW()-2+38, 0) -> -0.9860197876 | AO40: =OFFSET(calcInput!E$2, ROW()-2+39, 0) -> -0.999689182 | AP40: =OFFSET(calcInput!E$2, ROW()-2+40, 0) -> -0.9930998207 | AQ40: =OFFSET(calcInput!E$2, ROW()-2+41, 0) -> -0.9663852375 | AR40: =OFFSET(calcInput!E$2, ROW()-2+42, 0) -> -0.9200868049 | AS40: =OFFSET(calcInput!E$2, ROW()-2+43, 0) -> -0.855142763 | AT40: =OFFSET(calcInput!E$2, ROW()-2+44, 0) -> -0.7728692065
A41: 39 | B41: =OFFSET(calcInput!E$2, ROW()-2+0, 0) -> -0.6643522775 | C41: =OFFSET(calcInput!E$2, ROW()-2+1, 0) -> -0.5514913743 | D41: =OFFSET(calcInput!E$2, ROW()-2+2, 0) -> -0.4274544684 | E41: =OFFSET(calcInput!E$2, ROW()-2+3, 0) -> -0.2947551744 | F41: =OFFSET(calcInput!E$2, ROW()-2+4, 0) -> -0.1560826508 | G41: =OFFSET(calcInput!E$2, ROW()-2+5, 0) -> -0.01424710371 | H41: =OFFSET(calcInput!E$2, ROW()-2+6, 0) -> 0.1278771617 | I41: =OFFSET(calcInput!E$2, ROW()-2+7, 0) -> 0.2674099894 | J41: =OFFSET(calcInput!E$2, ROW()-2+8, 0) -> 0.4015237392 | K41: =OFFSET(calcInput!E$2, ROW()-2+9, 0) -> 0.5275005885 | L41: =OFFSET(calcInput!E$2, ROW()-2+10, 0) -> 0.6427876097 | M41: =OFFSET(calcInput!E$2, ROW()-2+11, 0) -> 0.745048505 | N41: =OFFSET(calcInput!E$2, ROW()-2+12, 0) -> 0.8322109517 | O41: =OFFSET(calcInput!E$2, ROW()-2+13, 0) -> 0.9025085982 | P41: =OFFSET(calcInput!E$2, ROW()-2+14, 0) -> 0.9545168589 | Q41: =OFFSET(calcInput!E$2, ROW()-2+15, 0) -> 0.9871817834 | R41: =OFFSET(calcInput!E$2, ROW()-2+16, 0) -> 0.9998414154 | S41: =OFFSET(calcInput!E$2, ROW()-2+17, 0) -> 0.9922392066 | T41: =OFFSET(calcInput!E$2, ROW()-2+18, 0) -> 0.9645292163 | U41: =OFFSET(calcInput!E$2, ROW()-2+19, 0) -> 0.9172729889 | V41: =OFFSET(calcInput!E$2, ROW()-2+20, 0) -> 0.8514281745 | W41: =OFFSET(calcInput!E$2, ROW()-2+21, 0) -> 0.7683291217 | X41: =OFFSET(calcInput!E$2, ROW()-2+22, 0) -> 0.6696598375 | Y41: =OFFSET(calcInput!E$2, ROW()-2+23, 0) -> 0.5574198602 | Z41: =OFFSET(calcInput!E$2, ROW()-2+24, 0) -> 0.4338837391 | AA41: =OFFSET(calcInput!E$2, ROW()-2+25, 0) -> 0.3015549404 | AB41: =OFFSET(calcInput!E$2, ROW()-2+26, 0) -> 0.1631151144 | AC41: =OFFSET(calcInput!E$2, ROW()-2+27, 0) -> 0.02136975179 | AD41: =OFFSET(calcInput!E$2, ROW()-2+28, 0) -> -0.1208086701 | AE41: =OFFSET(calcInput!E$2, ROW()-2+29, 0) -> -0.2605388976 | AF41: =OFFSET(calcInput!E$2, ROW()-2+30, 0) -> -0.3949892902 | AG41: =OFFSET(calcInput!E$2, ROW()-2+31, 0) -> -0.5214352034 | AH41: =OFFSET(calcInput!E$2, ROW()-2+32, 0) -> -0.6373142037 | AI41: =OFFSET(calcInput!E$2, ROW()-2+33, 0) -> -0.7402779971 | AJ41: =OFFSET(calcInput!E$2, ROW()-2+34, 0) -> -0.8282400165 | AK41: =OFFSET(calcInput!E$2, ROW()-2+35, 0) -> -0.8994177069 | AL41: =OFFSET(calcInput!E$2, ROW()-2+36, 0) -> -0.9523686485 | AM41: =OFFSET(calcInput!E$2, ROW()-2+37, 0) -> -0.9860197876 | AN41: =OFFSET(calcInput!E$2, ROW()-2+38, 0) -> -0.999689182 | AO41: =OFFSET(calcInput!E$2, ROW()-2+39, 0) -> -0.9930998207 | AP41: =OFFSET(calcInput!E$2, ROW()-2+40, 0) -> -0.9663852375 | AQ41: =OFFSET(calcInput!E$2, ROW()-2+41, 0) -> -0.9200868049 | AR41: =OFFSET(calcInput!E$2, ROW()-2+42, 0) -> -0.855142763 | AS41: =OFFSET(calcInput!E$2, ROW()-2+43, 0) -> -0.7728692065 | AT41: =OFFSET(calcInput!E$2, ROW()-2+44, 0) -> -0.6749334135
A42: 40 | B42: =OFFSET(calcInput!E$2, ROW()-2+0, 0) -> -0.5514913743 | C42: =OFFSET(calcInput!E$2, ROW()-2+1, 0) -> -0.4274544684 | D42: =OFFSET(calcInput!E$2, ROW()-2+2, 0) -> -0.2947551744 | E42: =OFFSET(calcInput!E$2, ROW()-2+3, 0) -> -0.1560826508 | F42: =OFFSET(calcInput!E$2, ROW()-2+4, 0) -> -0.01424710371 | G42: =OFFSET(calcInput!E$2, ROW()-2+5, 0) -> 0.1278771617 | H42: =OFFSET(calcInput!E$2, ROW()-2+6, 0) -> 0.2674099894 | I42: =OFFSET(calcInput!E$2, ROW()-2+7, 0) -> 0.4015237392 | J42: =OFFSET(calcInput!E$2, ROW()-2+8, 0) -> 0.5275005885 | K42: =OFFSET(calcInput!E$2, ROW()-2+9, 0) -> 0.6427876097 | L42: =OFFSET(calcInput!E$2, ROW()-2+10, 0) -> 0.745048505 | M42: =OFFSET(calcInput!E$2, ROW()-2+11, 0) -> 0.8322109517 | N42: =OFFSET(calcInput!E$2, ROW()-2+12, 0) -> 0.9025085982 | O42: =OFFSET(calcInput!E$2, ROW()-2+13, 0) -> 0.9545168589 | P42: =OFFSET(calcInput!E$2, ROW()-2+14, 0) -> 0.9871817834 | Q42: =OFFSET(calcInput!E$2, ROW()-2+15, 0) -> 0.9998414154 | R42: =OFFSET(calcInput!E$2, ROW()-2+16, 0) -> 0.9922392066 | S42: =OFFSET(calcInput!E$2, ROW()-2+17, 0) -> 0.9645292163 | T42: =OFFSET(calcInput!E$2, ROW()-2+18, 0) -> 0.9172729889 | U42: =OFFSET(calcInput!E$2, ROW()-2+19, 0) -> 0.8514281745 | V42: =OFFSET(calcInput!E$2, ROW()-2+20, 0) -> 0.7683291217 | W42: =OFFSET(calcInput!E$2, ROW()-2+21, 0) -> 0.6696598375 | X42: =OFFSET(calcInput!E$2, ROW()-2+22, 0) -> 0.5574198602 | Y42: =OFFSET(calcInput!E$2, ROW()-2+23, 0) -> 0.4338837391 | Z42: =OFFSET(calcInput!E$2, ROW()-2+24, 0) -> 0.3015549404 | AA42: =OFFSET(calcInput!E$2, ROW()-2+25, 0) -> 0.1631151144 | AB42: =OFFSET(calcInput!E$2, ROW()-2+26, 0) -> 0.02136975179 | AC42: =OFFSET(calcInput!E$2, ROW()-2+27, 0) -> -0.1208086701 | AD42: =OFFSET(calcInput!E$2, ROW()-2+28, 0) -> -0.2605388976 | AE42: =OFFSET(calcInput!E$2, ROW()-2+29, 0) -> -0.3949892902 | AF42: =OFFSET(calcInput!E$2, ROW()-2+30, 0) -> -0.5214352034 | AG42: =OFFSET(calcInput!E$2, ROW()-2+31, 0) -> -0.6373142037 | AH42: =OFFSET(calcInput!E$2, ROW()-2+32, 0) -> -0.7402779971 | AI42: =OFFSET(calcInput!E$2, ROW()-2+33, 0) -> -0.8282400165 | AJ42: =OFFSET(calcInput!E$2, ROW()-2+34, 0) -> -0.8994177069 | AK42: =OFFSET(calcInput!E$2, ROW()-2+35, 0) -> -0.9523686485 | AL42: =OFFSET(calcInput!E$2, ROW()-2+36, 0) -> -0.9860197876 | AM42: =OFFSET(calcInput!E$2, ROW()-2+37, 0) -> -0.999689182 | AN42: =OFFSET(calcInput!E$2, ROW()-2+38, 0) -> -0.9930998207 | AO42: =OFFSET(calcInput!E$2, ROW()-2+39, 0) -> -0.9663852375 | AP42: =OFFSET(calcInput!E$2, ROW()-2+40, 0) -> -0.9200868049 | AQ42: =OFFSET(calcInput!E$2, ROW()-2+41, 0) -> -0.855142763 | AR42: =OFFSET(calcInput!E$2, ROW()-2+42, 0) -> -0.7728692065 | AS42: =OFFSET(calcInput!E$2, ROW()-2+43, 0) -> -0.6749334135 | AT42: =OFFSET(calcInput!E$2, ROW()-2+44, 0) -> -0.5633200581
A43: 41 | B43: =OFFSET(calcInput!E$2, ROW()-2+0, 0) -> -0.4274544684 | C43: =OFFSET(calcInput!E$2, ROW()-2+1, 0) -> -0.2947551744 | D43: =OFFSET(calcInput!E$2, ROW()-2+2, 0) -> -0.1560826508 | E43: =OFFSET(calcInput!E$2, ROW()-2+3, 0) -> -0.01424710371 | F43: =OFFSET(calcInput!E$2, ROW()-2+4, 0) -> 0.1278771617 | G43: =OFFSET(calcInput!E$2, ROW()-2+5, 0) -> 0.2674099894 | H43: =OFFSET(calcInput!E$2, ROW()-2+6, 0) -> 0.4015237392 | I43: =OFFSET(calcInput!E$2, ROW()-2+7, 0) -> 0.5275005885 | J43: =OFFSET(calcInput!E$2, ROW()-2+8, 0) -> 0.6427876097 | K43: =OFFSET(calcInput!E$2, ROW()-2+9, 0) -> 0.745048505 | L43: =OFFSET(calcInput!E$2, ROW()-2+10, 0) -> 0.8322109517 | M43: =OFFSET(calcInput!E$2, ROW()-2+11, 0) -> 0.9025085982 | N43: =OFFSET(calcInput!E$2, ROW()-2+12, 0) -> 0.9545168589 | O43: =OFFSET(calcInput!E$2, ROW()-2+13, 0) -> 0.9871817834 | P43: =OFFSET(calcInput!E$2, ROW()-2+14, 0) -> 0.9998414154 | Q43: =OFFSET(calcInput!E$2, ROW()-2+15, 0) -> 0.9922392066 | R43: =OFFSET(calcInput!E$2, ROW()-2+16, 0) -> 0.9645292163 | S43: =OFFSET(calcInput!E$2, ROW()-2+17, 0) -> 0.9172729889 | T43: =OFFSET(calcInput!E$2, ROW()-2+18, 0) -> 0.8514281745 | U43: =OFFSET(calcInput!E$2, ROW()-2+19, 0) -> 0.7683291217 | V43: =OFFSET(calcInput!E$2, ROW()-2+20, 0) -> 0.6696598375 | W43: =OFFSET(calcInput!E$2, ROW()-2+21, 0) -> 0.5574198602 | X43: =OFFSET(calcInput!E$2, ROW()-2+22, 0) -> 0.4338837391 | Y43: =OFFSET(calcInput!E$2, ROW()-2+23, 0) -> 0.3015549404 | Z43: =OFFSET(calcInput!E$2, ROW()-2+24, 0) -> 0.1631151144 | AA43: =OFFSET(calcInput!E$2, ROW()-2+25, 0) -> 0.02136975179 | AB43: =OFFSET(calcInput!E$2, ROW()-2+26, 0) -> -0.1208086701 | AC43: =OFFSET(calcInput!E$2, ROW()-2+27, 0) -> -0.2605388976 | AD43: =OFFSET(calcInput!E$2, ROW()-2+28, 0) -> -0.3949892902 | AE43: =OFFSET(calcInput!E$2, ROW()-2+29, 0) -> -0.5214352034 | AF43: =OFFSET(calcInput!E$2, ROW()-2+30, 0) -> -0.6373142037 | AG43: =OFFSET(calcInput!E$2, ROW()-2+31, 0) -> -0.7402779971 | AH43: =OFFSET(calcInput!E$2, ROW()-2+32, 0) -> -0.8282400165 | AI43: =OFFSET(calcInput!E$2, ROW()-2+33, 0) -> -0.8994177069 | AJ43: =OFFSET(calcInput!E$2, ROW()-2+34, 0) -> -0.9523686485 | AK43: =OFFSET(calcInput!E$2, ROW()-2+35, 0) -> -0.9860197876 | AL43: =OFFSET(calcInput!E$2, ROW()-2+36, 0) -> -0.999689182 | AM43: =OFFSET(calcInput!E$2, ROW()-2+37, 0) -> -0.9930998207 | AN43: =OFFSET(calcInput!E$2, ROW()-2+38, 0) -> -0.9663852375 | AO43: =OFFSET(calcInput!E$2, ROW()-2+39, 0) -> -0.9200868049 | AP43: =OFFSET(calcInput!E$2, ROW()-2+40, 0) -> -0.855142763 | AQ43: =OFFSET(calcInput!E$2, ROW()-2+41, 0) -> -0.7728692065 | AR43: =OFFSET(calcInput!E$2, ROW()-2+42, 0) -> -0.6749334135 | AS43: =OFFSET(calcInput!E$2, ROW()-2+43, 0) -> -0.5633200581 | AT43: =OFFSET(calcInput!E$2, ROW()-2+44, 0) -> -0.440290991
A44: 42 | B44: =OFFSET(calcInput!E$2, ROW()-2+0, 0) -> -0.2947551744 | C44: =OFFSET(calcInput!E$2, ROW()-2+1, 0) -> -0.1560826508 | D44: =OFFSET(calcInput!E$2, ROW()-2+2, 0) -> -0.01424710371 | E44: =OFFSET(calcInput!E$2, ROW()-2+3, 0) -> 0.1278771617 | F44: =OFFSET(calcInput!E$2, ROW()-2+4, 0) -> 0.2674099894 | G44: =OFFSET(calcInput!E$2, ROW()-2+5, 0) -> 0.4015237392 | H44: =OFFSET(calcInput!E$2, ROW()-2+6, 0) -> 0.5275005885 | I44: =OFFSET(calcInput!E$2, ROW()-2+7, 0) -> 0.6427876097 | J44: =OFFSET(calcInput!E$2, ROW()-2+8, 0) -> 0.745048505 | K44: =OFFSET(calcInput!E$2, ROW()-2+9, 0) -> 0.8322109517 | L44: =OFFSET(calcInput!E$2, ROW()-2+10, 0) -> 0.9025085982 | M44: =OFFSET(calcInput!E$2, ROW()-2+11, 0) -> 0.9545168589 | N44: =OFFSET(calcInput!E$2, ROW()-2+12, 0) -> 0.9871817834 | O44: =OFFSET(calcInput!E$2, ROW()-2+13, 0) -> 0.9998414154 | P44: =OFFSET(calcInput!E$2, ROW()-2+14, 0) -> 0.9922392066 | Q44: =OFFSET(calcInput!E$2, ROW()-2+15, 0) -> 0.9645292163 | R44: =OFFSET(calcInput!E$2, ROW()-2+16, 0) -> 0.9172729889 | S44: =OFFSET(calcInput!E$2, ROW()-2+17, 0) -> 0.8514281745 | T44: =OFFSET(calcInput!E$2, ROW()-2+18, 0) -> 0.7683291217 | U44: =OFFSET(calcInput!E$2, ROW()-2+19, 0) -> 0.6696598375 | V44: =OFFSET(calcInput!E$2, ROW()-2+20, 0) -> 0.5574198602 | W44: =OFFSET(calcInput!E$2, ROW()-2+21, 0) -> 0.4338837391 | X44: =OFFSET(calcInput!E$2, ROW()-2+22, 0) -> 0.3015549404 | Y44: =OFFSET(calcInput!E$2, ROW()-2+23, 0) -> 0.1631151144 | Z44: =OFFSET(calcInput!E$2, ROW()-2+24, 0) -> 0.02136975179 | AA44: =OFFSET(calcInput!E$2, ROW()-2+25, 0) -> -0.1208086701 | AB44: =OFFSET(calcInput!E$2, ROW()-2+26, 0) -> -0.2605388976 | AC44: =OFFSET(calcInput!E$2, ROW()-2+27, 0) -> -0.3949892902 | AD44: =OFFSET(calcInput!E$2, ROW()-2+28, 0) -> -0.5214352034 | AE44: =OFFSET(calcInput!E$2, ROW()-2+29, 0) -> -0.6373142037 | AF44: =OFFSET(calcInput!E$2, ROW()-2+30, 0) -> -0.7402779971 | AG44: =OFFSET(calcInput!E$2, ROW()-2+31, 0) -> -0.8282400165 | AH44: =OFFSET(calcInput!E$2, ROW()-2+32, 0) -> -0.8994177069 | AI44: =OFFSET(calcInput!E$2, ROW()-2+33, 0) -> -0.9523686485 | AJ44: =OFFSET(calcInput!E$2, ROW()-2+34, 0) -> -0.9860197876 | AK44: =OFFSET(calcInput!E$2, ROW()-2+35, 0) -> -0.999689182 | AL44: =OFFSET(calcInput!E$2, ROW()-2+36, 0) -> -0.9930998207 | AM44: =OFFSET(calcInput!E$2, ROW()-2+37, 0) -> -0.9663852375 | AN44: =OFFSET(calcInput!E$2, ROW()-2+38, 0) -> -0.9200868049 | AO44: =OFFSET(calcInput!E$2, ROW()-2+39, 0) -> -0.855142763 | AP44: =OFFSET(calcInput!E$2, ROW()-2+40, 0) -> -0.7728692065 | AQ44: =OFFSET(calcInput!E$2, ROW()-2+41, 0) -> -0.6749334135 | AR44: =OFFSET(calcInput!E$2, ROW()-2+42, 0) -> -0.5633200581 | AS44: =OFFSET(calcInput!E$2, ROW()-2+43, 0) -> -0.440290991 | AT44: =OFFSET(calcInput!E$2, ROW()-2+44, 0) -> -0.3083394031
A45: 43 | B45: =OFFSET(calcInput!E$2, ROW()-2+0, 0) -> -0.1560826508 | C45: =OFFSET(calcInput!E$2, ROW()-2+1, 0) -> -0.01424710371 | D45: =OFFSET(calcInput!E$2, ROW()-2+2, 0) -> 0.1278771617 | E45: =OFFSET(calcInput!E$2, ROW()-2+3, 0) -> 0.2674099894 | F45: =OFFSET(calcInput!E$2, ROW()-2+4, 0) -> 0.4015237392 | G45: =OFFSET(calcInput!E$2, ROW()-2+5, 0) -> 0.5275005885 | H45: =OFFSET(calcInput!E$2, ROW()-2+6, 0) -> 0.6427876097 | I45: =OFFSET(calcInput!E$2, ROW()-2+7, 0) -> 0.745048505 | J45: =OFFSET(calcInput!E$2, ROW()-2+8, 0) -> 0.8322109517 | K45: =OFFSET(calcInput!E$2, ROW()-2+9, 0) -> 0.9025085982 | L45: =OFFSET(calcInput!E$2, ROW()-2+10, 0) -> 0.9545168589 | M45: =OFFSET(calcInput!E$2, ROW()-2+11, 0) -> 0.9871817834 | N45: =OFFSET(calcInput!E$2, ROW()-2+12, 0) -> 0.9998414154 | O45: =OFFSET(calcInput!E$2, ROW()-2+13, 0) -> 0.9922392066 | P45: =OFFSET(calcInput!E$2, ROW()-2+14, 0) -> 0.9645292163 | Q45: =OFFSET(calcInput!E$2, ROW()-2+15, 0) -> 0.9172729889 | R45: =OFFSET(calcInput!E$2, ROW()-2+16, 0) -> 0.8514281745 | S45: =OFFSET(calcInput!E$2, ROW()-2+17, 0) -> 0.7683291217 | T45: =OFFSET(calcInput!E$2, ROW()-2+18, 0) -> 0.6696598375 | U45: =OFFSET(calcInput!E$2, ROW()-2+19, 0) -> 0.5574198602 | V45: =OFFSET(calcInput!E$2, ROW()-2+20, 0) -> 0.4338837391 | W45: =OFFSET(calcInput!E$2, ROW()-2+21, 0) -> 0.3015549404 | X45: =OFFSET(calcInput!E$2, ROW()-2+22, 0) -> 0.1631151144 | Y45: =OFFSET(calcInput!E$2, ROW()-2+23, 0) -> 0.02136975179 | Z45: =OFFSET(calcInput!E$2, ROW()-2+24, 0) -> -0.1208086701 | AA45: =OFFSET(calcInput!E$2, ROW()-2+25, 0) -> -0.2605388976 | AB45: =OFFSET(calcInput!E$2, ROW()-2+26, 0) -> -0.3949892902 | AC45: =OFFSET(calcInput!E$2, ROW()-2+27, 0) -> -0.5214352034 | AD45: =OFFSET(calcInput!E$2, ROW()-2+28, 0) -> -0.6373142037 | AE45: =OFFSET(calcInput!E$2, ROW()-2+29, 0) -> -0.7402779971 | AF45: =OFFSET(calcInput!E$2, ROW()-2+30, 0) -> -0.8282400165 | AG45: =OFFSET(calcInput!E$2, ROW()-2+31, 0) -> -0.8994177069 | AH45: =OFFSET(calcInput!E$2, ROW()-2+32, 0) -> -0.9523686485 | AI45: =OFFSET(calcInput!E$2, ROW()-2+33, 0) -> -0.9860197876 | AJ45: =OFFSET(calcInput!E$2, ROW()-2+34, 0) -> -0.999689182 | AK45: =OFFSET(calcInput!E$2, ROW()-2+35, 0) -> -0.9930998207 | AL45: =OFFSET(calcInput!E$2, ROW()-2+36, 0) -> -0.9663852375 | AM45: =OFFSET(calcInput!E$2, ROW()-2+37, 0) -> -0.9200868049 | AN45: =OFFSET(calcInput!E$2, ROW()-2+38, 0) -> -0.855142763 | AO45: =OFFSET(calcInput!E$2, ROW()-2+39, 0) -> -0.7728692065 | AP45: =OFFSET(calcInput!E$2, ROW()-2+40, 0) -> -0.6749334135 | AQ45: =OFFSET(calcInput!E$2, ROW()-2+41, 0) -> -0.5633200581 | AR45: =OFFSET(calcInput!E$2, ROW()-2+42, 0) -> -0.440290991 | AS45: =OFFSET(calcInput!E$2, ROW()-2+43, 0) -> -0.3083394031 | AT45: =OFFSET(calcInput!E$2, ROW()-2+44, 0) -> -0.1701393003
A46: 44 | B46: =OFFSET(calcInput!E$2, ROW()-2+0, 0) -> -0.01424710371 | C46: =OFFSET(calcInput!E$2, ROW()-2+1, 0) -> 0.1278771617 | D46: =OFFSET(calcInput!E$2, ROW()-2+2, 0) -> 0.2674099894 | E46: =OFFSET(calcInput!E$2, ROW()-2+3, 0) -> 0.4015237392 | F46: =OFFSET(calcInput!E$2, ROW()-2+4, 0) -> 0.5275005885 | G46: =OFFSET(calcInput!E$2, ROW()-2+5, 0) -> 0.6427876097 | H46: =OFFSET(calcInput!E$2, ROW()-2+6, 0) -> 0.745048505 | I46: =OFFSET(calcInput!E$2, ROW()-2+7, 0) -> 0.8322109517 | J46: =OFFSET(calcInput!E$2, ROW()-2+8, 0) -> 0.9025085982 | K46: =OFFSET(calcInput!E$2, ROW()-2+9, 0) -> 0.9545168589 | L46: =OFFSET(calcInput!E$2, ROW()-2+10, 0) -> 0.9871817834 | M46: =OFFSET(calcInput!E$2, ROW()-2+11, 0) -> 0.9998414154 | N46: =OFFSET(calcInput!E$2, ROW()-2+12, 0) -> 0.9922392066 | O46: =OFFSET(calcInput!E$2, ROW()-2+13, 0) -> 0.9645292163 | P46: =OFFSET(calcInput!E$2, ROW()-2+14, 0) -> 0.9172729889 | Q46: =OFFSET(calcInput!E$2, ROW()-2+15, 0) -> 0.8514281745 | R46: =OFFSET(calcInput!E$2, ROW()-2+16, 0) -> 0.7683291217 | S46: =OFFSET(calcInput!E$2, ROW()-2+17, 0) -> 0.6696598375 | T46: =OFFSET(calcInput!E$2, ROW()-2+18, 0) -> 0.5574198602 | U46: =OFFSET(calcInput!E$2, ROW()-2+19, 0) -> 0.4338837391 | V46: =OFFSET(calcInput!E$2, ROW()-2+20, 0) -> 0.3015549404 | W46: =OFFSET(calcInput!E$2, ROW()-2+21, 0) -> 0.1631151144 | X46: =OFFSET(calcInput!E$2, ROW()-2+22, 0) -> 0.02136975179 | Y46: =OFFSET(calcInput!E$2, ROW()-2+23, 0) -> -0.1208086701 | Z46: =OFFSET(calcInput!E$2, ROW()-2+24, 0) -> -0.2605388976 | AA46: =OFFSET(calcInput!E$2, ROW()-2+25, 0) -> -0.3949892902 | AB46: =OFFSET(calcInput!E$2, ROW()-2+26, 0) -> -0.5214352034 | AC46: =OFFSET(calcInput!E$2, ROW()-2+27, 0) -> -0.6373142037 | AD46: =OFFSET(calcInput!E$2, ROW()-2+28, 0) -> -0.7402779971 | AE46: =OFFSET(calcInput!E$2, ROW()-2+29, 0) -> -0.8282400165 | AF46: =OFFSET(calcInput!E$2, ROW()-2+30, 0) -> -0.8994177069 | AG46: =OFFSET(calcInput!E$2, ROW()-2+31, 0) -> -0.9523686485 | AH46: =OFFSET(calcInput!E$2, ROW()-2+32, 0) -> -0.9860197876 | AI46: =OFFSET(calcInput!E$2, ROW()-2+33, 0) -> -0.999689182 | AJ46: =OFFSET(calcInput!E$2, ROW()-2+34, 0) -> -0.9930998207 | AK46: =OFFSET(calcInput!E$2, ROW()-2+35, 0) -> -0.9663852375 | AL46: =OFFSET(calcInput!E$2, ROW()-2+36, 0) -> -0.9200868049 | AM46: =OFFSET(calcInput!E$2, ROW()-2+37, 0) -> -0.855142763 | AN46: =OFFSET(calcInput!E$2, ROW()-2+38, 0) -> -0.7728692065 | AO46: =OFFSET(calcInput!E$2, ROW()-2+39, 0) -> -0.6749334135 | AP46: =OFFSET(calcInput!E$2, ROW()-2+40, 0) -> -0.5633200581 | AQ46: =OFFSET(calcInput!E$2, ROW()-2+41, 0) -> -0.440290991 | AR46: =OFFSET(calcInput!E$2, ROW()-2+42, 0) -> -0.3083394031 | AS46: =OFFSET(calcInput!E$2, ROW()-2+43, 0) -> -0.1701393003 | AT46: =OFFSET(calcInput!E$2, ROW()-2+44, 0) -> -0.02849131539
A47: 45 | B47: =OFFSET(calcInput!E$2, ROW()-2+0, 0) -> 0.1278771617 | C47: =OFFSET(calcInput!E$2, ROW()-2+1, 0) -> 0.2674099894 | D47: =OFFSET(calcInput!E$2, ROW()-2+2, 0) -> 0.4015237392 | E47: =OFFSET(calcInput!E$2, ROW()-2+3, 0) -> 0.5275005885 | F47: =OFFSET(calcInput!E$2, ROW()-2+4, 0) -> 0.6427876097 | G47: =OFFSET(calcInput!E$2, ROW()-2+5, 0) -> 0.745048505 | H47: =OFFSET(calcInput!E$2, ROW()-2+6, 0) -> 0.8322109517 | I47: =OFFSET(calcInput!E$2, ROW()-2+7, 0) -> 0.9025085982 | J47: =OFFSET(calcInput!E$2, ROW()-2+8, 0) -> 0.9545168589 | K47: =OFFSET(calcInput!E$2, ROW()-2+9, 0) -> 0.9871817834 | L47: =OFFSET(calcInput!E$2, ROW()-2+10, 0) -> 0.9998414154 | M47: =OFFSET(calcInput!E$2, ROW()-2+11, 0) -> 0.9922392066 | N47: =OFFSET(calcInput!E$2, ROW()-2+12, 0) -> 0.9645292163 | O47: =OFFSET(calcInput!E$2, ROW()-2+13, 0) -> 0.9172729889 | P47: =OFFSET(calcInput!E$2, ROW()-2+14, 0) -> 0.8514281745 | Q47: =OFFSET(calcInput!E$2, ROW()-2+15, 0) -> 0.7683291217 | R47: =OFFSET(calcInput!E$2, ROW()-2+16, 0) -> 0.6696598375 | S47: =OFFSET(calcInput!E$2, ROW()-2+17, 0) -> 0.5574198602 | T47: =OFFSET(calcInput!E$2, ROW()-2+18, 0) -> 0.4338837391 | U47: =OFFSET(calcInput!E$2, ROW()-2+19, 0) -> 0.3015549404 | V47: =OFFSET(calcInput!E$2, ROW()-2+20, 0) -> 0.1631151144 | W47: =OFFSET(calcInput!E$2, ROW()-2+21, 0) -> 0.02136975179 | X47: =OFFSET(calcInput!E$2, ROW()-2+22, 0) -> -0.1208086701 | Y47: =OFFSET(calcInput!E$2, ROW()-2+23, 0) -> -0.2605388976 | Z47: =OFFSET(calcInput!E$2, ROW()-2+24, 0) -> -0.3949892902 | AA47: =OFFSET(calcInput!E$2, ROW()-2+25, 0) -> -0.5214352034 | AB47: =OFFSET(calcInput!E$2, ROW()-2+26, 0) -> -0.6373142037 | AC47: =OFFSET(calcInput!E$2, ROW()-2+27, 0) -> -0.7402779971 | AD47: =OFFSET(calcInput!E$2, ROW()-2+28, 0) -> -0.8282400165 | AE47: =OFFSET(calcInput!E$2, ROW()-2+29, 0) -> -0.8994177069 | AF47: =OFFSET(calcInput!E$2, ROW()-2+30, 0) -> -0.9523686485 | AG47: =OFFSET(calcInput!E$2, ROW()-2+31, 0) -> -0.9860197876 | AH47: =OFFSET(calcInput!E$2, ROW()-2+32, 0) -> -0.999689182 | AI47: =OFFSET(calcInput!E$2, ROW()-2+33, 0) -> -0.9930998207 | AJ47: =OFFSET(calcInput!E$2, ROW()-2+34, 0) -> -0.9663852375 | AK47: =OFFSET(calcInput!E$2, ROW()-2+35, 0) -> -0.9200868049 | AL47: =OFFSET(calcInput!E$2, ROW()-2+36, 0) -> -0.855142763 | AM47: =OFFSET(calcInput!E$2, ROW()-2+37, 0) -> -0.7728692065 | AN47: =OFFSET(calcInput!E$2, ROW()-2+38, 0) -> -0.6749334135 | AO47: =OFFSET(calcInput!E$2, ROW()-2+39, 0) -> -0.5633200581 | AP47: =OFFSET(calcInput!E$2, ROW()-2+40, 0) -> -0.440290991 | AQ47: =OFFSET(calcInput!E$2, ROW()-2+41, 0) -> -0.3083394031 | AR47: =OFFSET(calcInput!E$2, ROW()-2+42, 0) -> -0.1701393003 | AS47: =OFFSET(calcInput!E$2, ROW()-2+43, 0) -> -0.02849131539 | AT47: =OFFSET(calcInput!E$2, ROW()-2+44, 0) -> 0.1137340476
A48: 46 | B48: =OFFSET(calcInput!E$2, ROW()-2+0, 0) -> 0.2674099894 | C48: =OFFSET(calcInput!E$2, ROW()-2+1, 0) -> 0.4015237392 | D48: =OFFSET(calcInput!E$2, ROW()-2+2, 0) -> 0.5275005885 | E48: =OFFSET(calcInput!E$2, ROW()-2+3, 0) -> 0.6427876097 | F48: =OFFSET(calcInput!E$2, ROW()-2+4, 0) -> 0.745048505 | G48: =OFFSET(calcInput!E$2, ROW()-2+5, 0) -> 0.8322109517 | H48: =OFFSET(calcInput!E$2, ROW()-2+6, 0) -> 0.9025085982 | I48: =OFFSET(calcInput!E$2, ROW()-2+7, 0) -> 0.9545168589 | J48: =OFFSET(calcInput!E$2, ROW()-2+8, 0) -> 0.9871817834 | K48: =OFFSET(calcInput!E$2, ROW()-2+9, 0) -> 0.9998414154 | L48: =OFFSET(calcInput!E$2, ROW()-2+10, 0) -> 0.9922392066 | M48: =OFFSET(calcInput!E$2, ROW()-2+11, 0) -> 0.9645292163 | N48: =OFFSET(calcInput!E$2, ROW()-2+12, 0) -> 0.9172729889 | O48: =OFFSET(calcInput!E$2, ROW()-2+13, 0) -> 0.8514281745 | P48: =OFFSET(calcInput!E$2, ROW()-2+14, 0) -> 0.7683291217 | Q48: =OFFSET(calcInput!E$2, ROW()-2+15, 0) -> 0.6696598375 | R48: =OFFSET(calcInput!E$2, ROW()-2+16, 0) -> 0.5574198602 | S48: =OFFSET(calcInput!E$2, ROW()-2+17, 0) -> 0.4338837391 | T48: =OFFSET(calcInput!E$2, ROW()-2+18, 0) -> 0.3015549404 | U48: =OFFSET(calcInput!E$2, ROW()-2+19, 0) -> 0.1631151144 | V48: =OFFSET(calcInput!E$2, ROW()-2+20, 0) -> 0.02136975179 | W48: =OFFSET(calcInput!E$2, ROW()-2+21, 0) -> -0.1208086701 | X48: =OFFSET(calcInput!E$2, ROW()-2+22, 0) -> -0.2605388976 | Y48: =OFFSET(calcInput!E$2, ROW()-2+23, 0) -> -0.3949892902 | Z48: =OFFSET(calcInput!E$2, ROW()-2+24, 0) -> -0.5214352034 | AA48: =OFFSET(calcInput!E$2, ROW()-2+25, 0) -> -0.6373142037 | AB48: =OFFSET(calcInput!E$2, ROW()-2+26, 0) -> -0.7402779971 | AC48: =OFFSET(calcInput!E$2, ROW()-2+27, 0) -> -0.8282400165 | AD48: =OFFSET(calcInput!E$2, ROW()-2+28, 0) -> -0.8994177069 | AE48: =OFFSET(calcInput!E$2, ROW()-2+29, 0) -> -0.9523686485 | AF48: =OFFSET(calcInput!E$2, ROW()-2+30, 0) -> -0.9860197876 | AG48: =OFFSET(calcInput!E$2, ROW()-2+31, 0) -> -0.999689182 | AH48: =OFFSET(calcInput!E$2, ROW()-2+32, 0) -> -0.9930998207 | AI48: =OFFSET(calcInput!E$2, ROW()-2+33, 0) -> -0.9663852375 | AJ48: =OFFSET(calcInput!E$2, ROW()-2+34, 0) -> -0.9200868049 | AK48: =OFFSET(calcInput!E$2, ROW()-2+35, 0) -> -0.855142763 | AL48: =OFFSET(calcInput!E$2, ROW()-2+36, 0) -> -0.7728692065 | AM48: =OFFSET(calcInput!E$2, ROW()-2+37, 0) -> -0.6749334135 | AN48: =OFFSET(calcInput!E$2, ROW()-2+38, 0) -> -0.5633200581 | AO48: =OFFSET(calcInput!E$2, ROW()-2+39, 0) -> -0.440290991 | AP48: =OFFSET(calcInput!E$2, ROW()-2+40, 0) -> -0.3083394031 | AQ48: =OFFSET(calcInput!E$2, ROW()-2+41, 0) -> -0.1701393003 | AR48: =OFFSET(calcInput!E$2, ROW()-2+42, 0) -> -0.02849131539 | AS48: =OFFSET(calcInput!E$2, ROW()-2+43, 0) -> 0.1137340476 | AT48: =OFFSET(calcInput!E$2, ROW()-2+44, 0) -> 0.2536545839
A49: 47 | B49: =OFFSET(calcInput!E$2, ROW()-2+0, 0) -> 0.4015237392 | C49: =OFFSET(calcInput!E$2, ROW()-2+1, 0) -> 0.5275005885 | D49: =OFFSET(calcInput!E$2, ROW()-2+2, 0) -> 0.6427876097 | E49: =OFFSET(calcInput!E$2, ROW()-2+3, 0) -> 0.745048505 | F49: =OFFSET(calcInput!E$2, ROW()-2+4, 0) -> 0.8322109517 | G49: =OFFSET(calcInput!E$2, ROW()-2+5, 0) -> 0.9025085982 | H49: =OFFSET(calcInput!E$2, ROW()-2+6, 0) -> 0.9545168589 | I49: =OFFSET(calcInput!E$2, ROW()-2+7, 0) -> 0.9871817834 | J49: =OFFSET(calcInput!E$2, ROW()-2+8, 0) -> 0.9998414154 | K49: =OFFSET(calcInput!E$2, ROW()-2+9, 0) -> 0.9922392066 | L49: =OFFSET(calcInput!E$2, ROW()-2+10, 0) -> 0.9645292163 | M49: =OFFSET(calcInput!E$2, ROW()-2+11, 0) -> 0.9172729889 | N49: =OFFSET(calcInput!E$2, ROW()-2+12, 0) -> 0.8514281745 | O49: =OFFSET(calcInput!E$2, ROW()-2+13, 0) -> 0.7683291217 | P49: =OFFSET(calcInput!E$2, ROW()-2+14, 0) -> 0.6696598375 | Q49: =OFFSET(calcInput!E$2, ROW()-2+15, 0) -> 0.5574198602 | R49: =OFFSET(calcInput!E$2, ROW()-2+16, 0) -> 0.4338837391 | S49: =OFFSET(calcInput!E$2, ROW()-2+17, 0) -> 0.3015549404 | T49: =OFFSET(calcInput!E$2, ROW()-2+18, 0) -> 0.1631151144 | U49: =OFFSET(calcInput!E$2, ROW()-2+19, 0) -> 0.02136975179 | V49: =OFFSET(calcInput!E$2, ROW()-2+20, 0) -> -0.1208086701 | W49: =OFFSET(calcInput!E$2, ROW()-2+21, 0) -> -0.2605388976 | X49: =OFFSET(calcInput!E$2, ROW()-2+22, 0) -> -0.3949892902 | Y49: =OFFSET(calcInput!E$2, ROW()-2+23, 0) -> -0.5214352034 | Z49: =OFFSET(calcInput!E$2, ROW()-2+24, 0) -> -0.6373142037 | AA49: =OFFSET(calcInput!E$2, ROW()-2+25, 0) -> -0.7402779971 | AB49: =OFFSET(calcInput!E$2, ROW()-2+26, 0) -> -0.8282400165 | AC49: =OFFSET(calcInput!E$2, ROW()-2+27, 0) -> -0.8994177069 | AD49: =OFFSET(calcInput!E$2, ROW()-2+28, 0) -> -0.9523686485 | AE49: =OFFSET(calcInput!E$2, ROW()-2+29, 0) -> -0.9860197876 | AF49: =OFFSET(calcInput!E$2, ROW()-2+30, 0) -> -0.999689182 | AG49: =OFFSET(calcInput!E$2, ROW()-2+31, 0) -> -0.9930998207 | AH49: =OFFSET(calcInput!E$2, ROW()-2+32, 0) -> -0.9663852375 | AI49: =OFFSET(calcInput!E$2, ROW()-2+33, 0) -> -0.9200868049 | AJ49: =OFFSET(calcInput!E$2, ROW()-2+34, 0) -> -0.855142763 | AK49: =OFFSET(calcInput!E$2, ROW()-2+35, 0) -> -0.7728692065 | AL49: =OFFSET(calcInput!E$2, ROW()-2+36, 0) -> -0.6749334135 | AM49: =OFFSET(calcInput!E$2, ROW()-2+37, 0) -> -0.5633200581 | AN49: =OFFSET(calcInput!E$2, ROW()-2+38, 0) -> -0.440290991 | AO49: =OFFSET(calcInput!E$2, ROW()-2+39, 0) -> -0.3083394031 | AP49: =OFFSET(calcInput!E$2, ROW()-2+40, 0) -> -0.1701393003 | AQ49: =OFFSET(calcInput!E$2, ROW()-2+41, 0) -> -0.02849131539 | AR49: =OFFSET(calcInput!E$2, ROW()-2+42, 0) -> 0.1137340476 | AS49: =OFFSET(calcInput!E$2, ROW()-2+43, 0) -> 0.2536545839 | AT49: =OFFSET(calcInput!E$2, ROW()-2+44, 0) -> 0.3884347963
A50: 48 | B50: =OFFSET(calcInput!E$2, ROW()-2+0, 0) -> 0.5275005885 | C50: =OFFSET(calcInput!E$2, ROW()-2+1, 0) -> 0.6427876097 | D50: =OFFSET(calcInput!E$2, ROW()-2+2, 0) -> 0.745048505 | E50: =OFFSET(calcInput!E$2, ROW()-2+3, 0) -> 0.8322109517 | F50: =OFFSET(calcInput!E$2, ROW()-2+4, 0) -> 0.9025085982 | G50: =OFFSET(calcInput!E$2, ROW()-2+5, 0) -> 0.9545168589 | H50: =OFFSET(calcInput!E$2, ROW()-2+6, 0) -> 0.9871817834 | I50: =OFFSET(calcInput!E$2, ROW()-2+7, 0) -> 0.9998414154 | J50: =OFFSET(calcInput!E$2, ROW()-2+8, 0) -> 0.9922392066 | K50: =OFFSET(calcInput!E$2, ROW()-2+9, 0) -> 0.9645292163 | L50: =OFFSET(calcInput!E$2, ROW()-2+10, 0) -> 0.9172729889 | M50: =OFFSET(calcInput!E$2, ROW()-2+11, 0) -> 0.8514281745 | N50: =OFFSET(calcInput!E$2, ROW()-2+12, 0) -> 0.7683291217 | O50: =OFFSET(calcInput!E$2, ROW()-2+13, 0) -> 0.6696598375 | P50: =OFFSET(calcInput!E$2, ROW()-2+14, 0) -> 0.5574198602 | Q50: =OFFSET(calcInput!E$2, ROW()-2+15, 0) -> 0.4338837391 | R50: =OFFSET(calcInput!E$2, ROW()-2+16, 0) -> 0.3015549404 | S50: =OFFSET(calcInput!E$2, ROW()-2+17, 0) -> 0.1631151144 | T50: =OFFSET(calcInput!E$2, ROW()-2+18, 0) -> 0.02136975179 | U50: =OFFSET(calcInput!E$2, ROW()-2+19, 0) -> -0.1208086701 | V50: =OFFSET(calcInput!E$2, ROW()-2+20, 0) -> -0.2605388976 | W50: =OFFSET(calcInput!E$2, ROW()-2+21, 0) -> -0.3949892902 | X50: =OFFSET(calcInput!E$2, ROW()-2+22, 0) -> -0.5214352034 | Y50: =OFFSET(calcInput!E$2, ROW()-2+23, 0) -> -0.6373142037 | Z50: =OFFSET(calcInput!E$2, ROW()-2+24, 0) -> -0.7402779971 | AA50: =OFFSET(calcInput!E$2, ROW()-2+25, 0) -> -0.8282400165 | AB50: =OFFSET(calcInput!E$2, ROW()-2+26, 0) -> -0.8994177069 | AC50: =OFFSET(calcInput!E$2, ROW()-2+27, 0) -> -0.9523686485 | AD50: =OFFSET(calcInput!E$2, ROW()-2+28, 0) -> -0.9860197876 | AE50: =OFFSET(calcInput!E$2, ROW()-2+29, 0) -> -0.999689182 | AF50: =OFFSET(calcInput!E$2, ROW()-2+30, 0) -> -0.9930998207 | AG50: =OFFSET(calcInput!E$2, ROW()-2+31, 0) -> -0.9663852375 | AH50: =OFFSET(calcInput!E$2, ROW()-2+32, 0) -> -0.9200868049 | AI50: =OFFSET(calcInput!E$2, ROW()-2+33, 0) -> -0.855142763 | AJ50: =OFFSET(calcInput!E$2, ROW()-2+34, 0) -> -0.7728692065 | AK50: =OFFSET(calcInput!E$2, ROW()-2+35, 0) -> -0.6749334135 | AL50: =OFFSET(calcInput!E$2, ROW()-2+36, 0) -> -0.5633200581 | AM50: =OFFSET(calcInput!E$2, ROW()-2+37, 0) -> -0.440290991 | AN50: =OFFSET(calcInput!E$2, ROW()-2+38, 0) -> -0.3083394031 | AO50: =OFFSET(calcInput!E$2, ROW()-2+39, 0) -> -0.1701393003 | AP50: =OFFSET(calcInput!E$2, ROW()-2+40, 0) -> -0.02849131539 | AQ50: =OFFSET(calcInput!E$2, ROW()-2+41, 0) -> 0.1137340476 | AR50: =OFFSET(calcInput!E$2, ROW()-2+42, 0) -> 0.2536545839 | AS50: =OFFSET(calcInput!E$2, ROW()-2+43, 0) -> 0.3884347963 | AT50: =OFFSET(calcInput!E$2, ROW()-2+44, 0) -> 0.5153433563
A51: 49 | B51: =OFFSET(calcInput!E$2, ROW()-2+0, 0) -> 0.6427876097 | C51: =OFFSET(calcInput!E$2, ROW()-2+1, 0) -> 0.745048505 | D51: =OFFSET(calcInput!E$2, ROW()-2+2, 0) -> 0.8322109517 | E51: =OFFSET(calcInput!E$2, ROW()-2+3, 0) -> 0.9025085982 | F51: =OFFSET(calcInput!E$2, ROW()-2+4, 0) -> 0.9545168589 | G51: =OFFSET(calcInput!E$2, ROW()-2+5, 0) -> 0.9871817834 | H51: =OFFSET(calcInput!E$2, ROW()-2+6, 0) -> 0.9998414154 | I51: =OFFSET(calcInput!E$2, ROW()-2+7, 0) -> 0.9922392066 | J51: =OFFSET(calcInput!E$2, ROW()-2+8, 0) -> 0.9645292163 | K51: =OFFSET(calcInput!E$2, ROW()-2+9, 0) -> 0.9172729889 | L51: =OFFSET(calcInput!E$2, ROW()-2+10, 0) -> 0.8514281745 | M51: =OFFSET(calcInput!E$2, ROW()-2+11, 0) -> 0.7683291217 | N51: =OFFSET(calcInput!E$2, ROW()-2+12, 0) -> 0.6696598375 | O51: =OFFSET(calcInput!E$2, ROW()-2+13, 0) -> 0.5574198602 | P51: =OFFSET(calcInput!E$2, ROW()-2+14, 0) -> 0.4338837391 | Q51: =OFFSET(calcInput!E$2, ROW()-2+15, 0) -> 0.3015549404 | R51: =OFFSET(calcInput!E$2, ROW()-2+16, 0) -> 0.1631151144 | S51: =OFFSET(calcInput!E$2, ROW()-2+17, 0) -> 0.02136975179 | T51: =OFFSET(calcInput!E$2, ROW()-2+18, 0) -> -0.1208086701 | U51: =OFFSET(calcInput!E$2, ROW()-2+19, 0) -> -0.2605388976 | V51: =OFFSET(calcInput!E$2, ROW()-2+20, 0) -> -0.3949892902 | W51: =OFFSET(calcInput!E$2, ROW()-2+21, 0) -> -0.5214352034 | X51: =OFFSET(calcInput!E$2, ROW()-2+22, 0) -> -0.6373142037 | Y51: =OFFSET(calcInput!E$2, ROW()-2+23, 0) -> -0.7402779971 | Z51: =OFFSET(calcInput!E$2, ROW()-2+24, 0) -> -0.8282400165 | AA51: =OFFSET(calcInput!E$2, ROW()-2+25, 0) -> -0.8994177069 | AB51: =OFFSET(calcInput!E$2, ROW()-2+26, 0) -> -0.9523686485 | AC51: =OFFSET(calcInput!E$2, ROW()-2+27, 0) -> -0.9860197876 | AD51: =OFFSET(calcInput!E$2, ROW()-2+28, 0) -> -0.999689182 | AE51: =OFFSET(calcInput!E$2, ROW()-2+29, 0) -> -0.9930998207 | AF51: =OFFSET(calcInput!E$2, ROW()-2+30, 0) -> -0.9663852375 | AG51: =OFFSET(calcInput!E$2, ROW()-2+31, 0) -> -0.9200868049 | AH51: =OFFSET(calcInput!E$2, ROW()-2+32, 0) -> -0.855142763 | AI51: =OFFSET(calcInput!E$2, ROW()-2+33, 0) -> -0.7728692065 | AJ51: =OFFSET(calcInput!E$2, ROW()-2+34, 0) -> -0.6749334135 | AK51: =OFFSET(calcInput!E$2, ROW()-2+35, 0) -> -0.5633200581 | AL51: =OFFSET(calcInput!E$2, ROW()-2+36, 0) -> -0.440290991 | AM51: =OFFSET(calcInput!E$2, ROW()-2+37, 0) -> -0.3083394031 | AN51: =OFFSET(calcInput!E$2, ROW()-2+38, 0) -> -0.1701393003 | AO51: =OFFSET(calcInput!E$2, ROW()-2+39, 0) -> -0.02849131539 | AP51: =OFFSET(calcInput!E$2, ROW()-2+40, 0) -> 0.1137340476 | AQ51: =OFFSET(calcInput!E$2, ROW()-2+41, 0) -> 0.2536545839 | AR51: =OFFSET(calcInput!E$2, ROW()-2+42, 0) -> 0.3884347963 | AS51: =OFFSET(calcInput!E$2, ROW()-2+43, 0) -> 0.5153433563 | AT51: =OFFSET(calcInput!E$2, ROW()-2+44, 0) -> 0.6318084552
A52: 50 | B52: =OFFSET(calcInput!E$2, ROW()-2+0, 0) -> 0.745048505 | C52: =OFFSET(calcInput!E$2, ROW()-2+1, 0) -> 0.8322109517 | D52: =OFFSET(calcInput!E$2, ROW()-2+2, 0) -> 0.9025085982 | E52: =OFFSET(calcInput!E$2, ROW()-2+3, 0) -> 0.9545168589 | F52: =OFFSET(calcInput!E$2, ROW()-2+4, 0) -> 0.9871817834 | G52: =OFFSET(calcInput!E$2, ROW()-2+5, 0) -> 0.9998414154 | H52: =OFFSET(calcInput!E$2, ROW()-2+6, 0) -> 0.9922392066 | I52: =OFFSET(calcInput!E$2, ROW()-2+7, 0) -> 0.9645292163 | J52: =OFFSET(calcInput!E$2, ROW()-2+8, 0) -> 0.9172729889 | K52: =OFFSET(calcInput!E$2, ROW()-2+9, 0) -> 0.8514281745 | L52: =OFFSET(calcInput!E$2, ROW()-2+10, 0) -> 0.7683291217 | M52: =OFFSET(calcInput!E$2, ROW()-2+11, 0) -> 0.6696598375 | N52: =OFFSET(calcInput!E$2, ROW()-2+12, 0) -> 0.5574198602 | O52: =OFFSET(calcInput!E$2, ROW()-2+13, 0) -> 0.4338837391 | P52: =OFFSET(calcInput!E$2, ROW()-2+14, 0) -> 0.3015549404 | Q52: =OFFSET(calcInput!E$2, ROW()-2+15, 0) -> 0.1631151144 | R52: =OFFSET(calcInput!E$2, ROW()-2+16, 0) -> 0.02136975179 | S52: =OFFSET(calcInput!E$2, ROW()-2+17, 0) -> -0.1208086701 | T52: =OFFSET(calcInput!E$2, ROW()-2+18, 0) -> -0.2605388976 | U52: =OFFSET(calcInput!E$2, ROW()-2+19, 0) -> -0.3949892902 | V52: =OFFSET(calcInput!E$2, ROW()-2+20, 0) -> -0.5214352034 | W52: =OFFSET(calcInput!E$2, ROW()-2+21, 0) -> -0.6373142037 | X52: =OFFSET(calcInput!E$2, ROW()-2+22, 0) -> -0.7402779971 | Y52: =OFFSET(calcInput!E$2, ROW()-2+23, 0) -> -0.8282400165 | Z52: =OFFSET(calcInput!E$2, ROW()-2+24, 0) -> -0.8994177069 | AA52: =OFFSET(calcInput!E$2, ROW()-2+25, 0) -> -0.9523686485 | AB52: =OFFSET(calcInput!E$2, ROW()-2+26, 0) -> -0.9860197876 | AC52: =OFFSET(calcInput!E$2, ROW()-2+27, 0) -> -0.999689182 | AD52: =OFFSET(calcInput!E$2, ROW()-2+28, 0) -> -0.9930998207 | AE52: =OFFSET(calcInput!E$2, ROW()-2+29, 0) -> -0.9663852375 | AF52: =OFFSET(calcInput!E$2, ROW()-2+30, 0) -> -0.9200868049 | AG52: =OFFSET(calcInput!E$2, ROW()-2+31, 0) -> -0.855142763 | AH52: =OFFSET(calcInput!E$2, ROW()-2+32, 0) -> -0.7728692065 | AI52: =OFFSET(calcInput!E$2, ROW()-2+33, 0) -> -0.6749334135 | AJ52: =OFFSET(calcInput!E$2, ROW()-2+34, 0) -> -0.5633200581 | AK52: =OFFSET(calcInput!E$2, ROW()-2+35, 0) -> -0.440290991 | AL52: =OFFSET(calcInput!E$2, ROW()-2+36, 0) -> -0.3083394031 | AM52: =OFFSET(calcInput!E$2, ROW()-2+37, 0) -> -0.1701393003 | AN52: =OFFSET(calcInput!E$2, ROW()-2+38, 0) -> -0.02849131539 | AO52: =OFFSET(calcInput!E$2, ROW()-2+39, 0) -> 0.1137340476 | AP52: =OFFSET(calcInput!E$2, ROW()-2+40, 0) -> 0.2536545839 | AQ52: =OFFSET(calcInput!E$2, ROW()-2+41, 0) -> 0.3884347963 | AR52: =OFFSET(calcInput!E$2, ROW()-2+42, 0) -> 0.5153433563 | AS52: =OFFSET(calcInput!E$2, ROW()-2+43, 0) -> 0.6318084552 | AT52: =OFFSET(calcInput!E$2, ROW()-2+44, 0) -> 0.7354699214
A53: 51 | B53: =OFFSET(calcInput!E$2, ROW()-2+0, 0) -> 0.8322109517 | C53: =OFFSET(calcInput!E$2, ROW()-2+1, 0) -> 0.9025085982 | D53: =OFFSET(calcInput!E$2, ROW()-2+2, 0) -> 0.9545168589 | E53: =OFFSET(calcInput!E$2, ROW()-2+3, 0) -> 0.9871817834 | F53: =OFFSET(calcInput!E$2, ROW()-2+4, 0) -> 0.9998414154 | G53: =OFFSET(calcInput!E$2, ROW()-2+5, 0) -> 0.9922392066 | H53: =OFFSET(calcInput!E$2, ROW()-2+6, 0) -> 0.9645292163 | I53: =OFFSET(calcInput!E$2, ROW()-2+7, 0) -> 0.9172729889 | J53: =OFFSET(calcInput!E$2, ROW()-2+8, 0) -> 0.8514281745 | K53: =OFFSET(calcInput!E$2, ROW()-2+9, 0) -> 0.7683291217 | L53: =OFFSET(calcInput!E$2, ROW()-2+10, 0) -> 0.6696598375 | M53: =OFFSET(calcInput!E$2, ROW()-2+11, 0) -> 0.5574198602 | N53: =OFFSET(calcInput!E$2, ROW()-2+12, 0) -> 0.4338837391 | O53: =OFFSET(calcInput!E$2, ROW()-2+13, 0) -> 0.3015549404 | P53: =OFFSET(calcInput!E$2, ROW()-2+14, 0) -> 0.1631151144 | Q53: =OFFSET(calcInput!E$2, ROW()-2+15, 0) -> 0.02136975179 | R53: =OFFSET(calcInput!E$2, ROW()-2+16, 0) -> -0.1208086701 | S53: =OFFSET(calcInput!E$2, ROW()-2+17, 0) -> -0.2605388976 | T53: =OFFSET(calcInput!E$2, ROW()-2+18, 0) -> -0.3949892902 | U53: =OFFSET(calcInput!E$2, ROW()-2+19, 0) -> -0.5214352034 | V53: =OFFSET(calcInput!E$2, ROW()-2+20, 0) -> -0.6373142037 | W53: =OFFSET(calcInput!E$2, ROW()-2+21, 0) -> -0.7402779971 | X53: =OFFSET(calcInput!E$2, ROW()-2+22, 0) -> -0.8282400165 | Y53: =OFFSET(calcInput!E$2, ROW()-2+23, 0) -> -0.8994177069 | Z53: =OFFSET(calcInput!E$2, ROW()-2+24, 0) -> -0.9523686485 | AA53: =OFFSET(calcInput!E$2, ROW()-2+25, 0) -> -0.9860197876 | AB53: =OFFSET(calcInput!E$2, ROW()-2+26, 0) -> -0.999689182 | AC53: =OFFSET(calcInput!E$2, ROW()-2+27, 0) -> -0.9930998207 | AD53: =OFFSET(calcInput!E$2, ROW()-2+28, 0) -> -0.9663852375 | AE53: =OFFSET(calcInput!E$2, ROW()-2+29, 0) -> -0.9200868049 | AF53: =OFFSET(calcInput!E$2, ROW()-2+30, 0) -> -0.855142763 | AG53: =OFFSET(calcInput!E$2, ROW()-2+31, 0) -> -0.7728692065 | AH53: =OFFSET(calcInput!E$2, ROW()-2+32, 0) -> -0.6749334135 | AI53: =OFFSET(calcInput!E$2, ROW()-2+33, 0) -> -0.5633200581 | AJ53: =OFFSET(calcInput!E$2, ROW()-2+34, 0) -> -0.440290991 | AK53: =OFFSET(calcInput!E$2, ROW()-2+35, 0) -> -0.3083394031 | AL53: =OFFSET(calcInput!E$2, ROW()-2+36, 0) -> -0.1701393003 | AM53: =OFFSET(calcInput!E$2, ROW()-2+37, 0) -> -0.02849131539 | AN53: =OFFSET(calcInput!E$2, ROW()-2+38, 0) -> 0.1137340476 | AO53: =OFFSET(calcInput!E$2, ROW()-2+39, 0) -> 0.2536545839 | AP53: =OFFSET(calcInput!E$2, ROW()-2+40, 0) -> 0.3884347963 | AQ53: =OFFSET(calcInput!E$2, ROW()-2+41, 0) -> 0.5153433563 | AR53: =OFFSET(calcInput!E$2, ROW()-2+42, 0) -> 0.6318084552 | AS53: =OFFSET(calcInput!E$2, ROW()-2+43, 0) -> 0.7354699214 | AT53: =OFFSET(calcInput!E$2, ROW()-2+44, 0) -> 0.8242270496
A54: 52 | B54: =OFFSET(calcInput!E$2, ROW()-2+0, 0) -> 0.9025085982 | C54: =OFFSET(calcInput!E$2, ROW()-2+1, 0) -> 0.9545168589 | D54: =OFFSET(calcInput!E$2, ROW()-2+2, 0) -> 0.9871817834 | E54: =OFFSET(calcInput!E$2, ROW()-2+3, 0) -> 0.9998414154 | F54: =OFFSET(calcInput!E$2, ROW()-2+4, 0) -> 0.9922392066 | G54: =OFFSET(calcInput!E$2, ROW()-2+5, 0) -> 0.9645292163 | H54: =OFFSET(calcInput!E$2, ROW()-2+6, 0) -> 0.9172729889 | I54: =OFFSET(calcInput!E$2, ROW()-2+7, 0) -> 0.8514281745 | J54: =OFFSET(calcInput!E$2, ROW()-2+8, 0) -> 0.7683291217 | K54: =OFFSET(calcInput!E$2, ROW()-2+9, 0) -> 0.6696598375 | L54: =OFFSET(calcInput!E$2, ROW()-2+10, 0) -> 0.5574198602 | M54: =OFFSET(calcInput!E$2, ROW()-2+11, 0) -> 0.4338837391 | N54: =OFFSET(calcInput!E$2, ROW()-2+12, 0) -> 0.3015549404 | O54: =OFFSET(calcInput!E$2, ROW()-2+13, 0) -> 0.1631151144 | P54: =OFFSET(calcInput!E$2, ROW()-2+14, 0) -> 0.02136975179 | Q54: =OFFSET(calcInput!E$2, ROW()-2+15, 0) -> -0.1208086701 | R54: =OFFSET(calcInput!E$2, ROW()-2+16, 0) -> -0.2605388976 | S54: =OFFSET(calcInput!E$2, ROW()-2+17, 0) -> -0.3949892902 | T54: =OFFSET(calcInput!E$2, ROW()-2+18, 0) -> -0.5214352034 | U54: =OFFSET(calcInput!E$2, ROW()-2+19, 0) -> -0.6373142037 | V54: =OFFSET(calcInput!E$2, ROW()-2+20, 0) -> -0.7402779971 | W54: =OFFSET(calcInput!E$2, ROW()-2+21, 0) -> -0.8282400165 | X54: =OFFSET(calcInput!E$2, ROW()-2+22, 0) -> -0.8994177069 | Y54: =OFFSET(calcInput!E$2, ROW()-2+23, 0) -> -0.9523686485 | Z54: =OFFSET(calcInput!E$2, ROW()-2+24, 0) -> -0.9860197876 | AA54: =OFFSET(calcInput!E$2, ROW()-2+25, 0) -> -0.999689182 | AB54: =OFFSET(calcInput!E$2, ROW()-2+26, 0) -> -0.9930998207 | AC54: =OFFSET(calcInput!E$2, ROW()-2+27, 0) -> -0.9663852375 | AD54: =OFFSET(calcInput!E$2, ROW()-2+28, 0) -> -0.9200868049 | AE54: =OFFSET(calcInput!E$2, ROW()-2+29, 0) -> -0.855142763 | AF54: =OFFSET(calcInput!E$2, ROW()-2+30, 0) -> -0.7728692065 | AG54: =OFFSET(calcInput!E$2, ROW()-2+31, 0) -> -0.6749334135 | AH54: =OFFSET(calcInput!E$2, ROW()-2+32, 0) -> -0.5633200581 | AI54: =OFFSET(calcInput!E$2, ROW()-2+33, 0) -> -0.440290991 | AJ54: =OFFSET(calcInput!E$2, ROW()-2+34, 0) -> -0.3083394031 | AK54: =OFFSET(calcInput!E$2, ROW()-2+35, 0) -> -0.1701393003 | AL54: =OFFSET(calcInput!E$2, ROW()-2+36, 0) -> -0.02849131539 | AM54: =OFFSET(calcInput!E$2, ROW()-2+37, 0) -> 0.1137340476 | AN54: =OFFSET(calcInput!E$2, ROW()-2+38, 0) -> 0.2536545839 | AO54: =OFFSET(calcInput!E$2, ROW()-2+39, 0) -> 0.3884347963 | AP54: =OFFSET(calcInput!E$2, ROW()-2+40, 0) -> 0.5153433563 | AQ54: =OFFSET(calcInput!E$2, ROW()-2+41, 0) -> 0.6318084552 | AR54: =OFFSET(calcInput!E$2, ROW()-2+42, 0) -> 0.7354699214 | AS54: =OFFSET(calcInput!E$2, ROW()-2+43, 0) -> 0.8242270496 | AT54: =OFFSET(calcInput!E$2, ROW()-2+44, 0) -> 0.8962811717
A55: 53 | B55: =OFFSET(calcInput!E$2, ROW()-2+0, 0) -> 0.9545168589 | C55: =OFFSET(calcInput!E$2, ROW()-2+1, 0) -> 0.9871817834 | D55: =OFFSET(calcInput!E$2, ROW()-2+2, 0) -> 0.9998414154 | E55: =OFFSET(calcInput!E$2, ROW()-2+3, 0) -> 0.9922392066 | F55: =OFFSET(calcInput!E$2, ROW()-2+4, 0) -> 0.9645292163 | G55: =OFFSET(calcInput!E$2, ROW()-2+5, 0) -> 0.9172729889 | H55: =OFFSET(calcInput!E$2, ROW()-2+6, 0) -> 0.8514281745 | I55: =OFFSET(calcInput!E$2, ROW()-2+7, 0) -> 0.7683291217 | J55: =OFFSET(calcInput!E$2, ROW()-2+8, 0) -> 0.6696598375 | K55: =OFFSET(calcInput!E$2, ROW()-2+9, 0) -> 0.5574198602 | L55: =OFFSET(calcInput!E$2, ROW()-2+10, 0) -> 0.4338837391 | M55: =OFFSET(calcInput!E$2, ROW()-2+11, 0) -> 0.3015549404 | N55: =OFFSET(calcInput!E$2, ROW()-2+12, 0) -> 0.1631151144 | O55: =OFFSET(calcInput!E$2, ROW()-2+13, 0) -> 0.02136975179 | P55: =OFFSET(calcInput!E$2, ROW()-2+14, 0) -> -0.1208086701 | Q55: =OFFSET(calcInput!E$2, ROW()-2+15, 0) -> -0.2605388976 | R55: =OFFSET(calcInput!E$2, ROW()-2+16, 0) -> -0.3949892902 | S55: =OFFSET(calcInput!E$2, ROW()-2+17, 0) -> -0.5214352034 | T55: =OFFSET(calcInput!E$2, ROW()-2+18, 0) -> -0.6373142037 | U55: =OFFSET(calcInput!E$2, ROW()-2+19, 0) -> -0.7402779971 | V55: =OFFSET(calcInput!E$2, ROW()-2+20, 0) -> -0.8282400165 | W55: =OFFSET(calcInput!E$2, ROW()-2+21, 0) -> -0.8994177069 | X55: =OFFSET(calcInput!E$2, ROW()-2+22, 0) -> -0.9523686485 | Y55: =OFFSET(calcInput!E$2, ROW()-2+23, 0) -> -0.9860197876 | Z55: =OFFSET(calcInput!E$2, ROW()-2+24, 0) -> -0.999689182 | AA55: =OFFSET(calcInput!E$2, ROW()-2+25, 0) -> -0.9930998207 | AB55: =OFFSET(calcInput!E$2, ROW()-2+26, 0) -> -0.9663852375 | AC55: =OFFSET(calcInput!E$2, ROW()-2+27, 0) -> -0.9200868049 | AD55: =OFFSET(calcInput!E$2, ROW()-2+28, 0) -> -0.855142763 | AE55: =OFFSET(calcInput!E$2, ROW()-2+29, 0) -> -0.7728692065 | AF55: =OFFSET(calcInput!E$2, ROW()-2+30, 0) -> -0.6749334135 | AG55: =OFFSET(calcInput!E$2, ROW()-2+31, 0) -> -0.5633200581 | AH55: =OFFSET(calcInput!E$2, ROW()-2+32, 0) -> -0.440290991 | AI55: =OFFSET(calcInput!E$2, ROW()-2+33, 0) -> -0.3083394031 | AJ55: =OFFSET(calcInput!E$2, ROW()-2+34, 0) -> -0.1701393003 | AK55: =OFFSET(calcInput!E$2, ROW()-2+35, 0) -> -0.02849131539 | AL55: =OFFSET(calcInput!E$2, ROW()-2+36, 0) -> 0.1137340476 | AM55: =OFFSET(calcInput!E$2, ROW()-2+37, 0) -> 0.2536545839 | AN55: =OFFSET(calcInput!E$2, ROW()-2+38, 0) -> 0.3884347963 | AO55: =OFFSET(calcInput!E$2, ROW()-2+39, 0) -> 0.5153433563 | AP55: =OFFSET(calcInput!E$2, ROW()-2+40, 0) -> 0.6318084552 | AQ55: =OFFSET(calcInput!E$2, ROW()-2+41, 0) -> 0.7354699214 | AR55: =OFFSET(calcInput!E$2, ROW()-2+42, 0) -> 0.8242270496 | AS55: =OFFSET(calcInput!E$2, ROW()-2+43, 0) -> 0.8962811717 | AT55: =OFFSET(calcInput!E$2, ROW()-2+44, 0) -> 0.9501721071
A56: 54 | B56: =OFFSET(calcInput!E$2, ROW()-2+0, 0) -> 0.9871817834 | C56: =OFFSET(calcInput!E$2, ROW()-2+1, 0) -> 0.9998414154 | D56: =OFFSET(calcInput!E$2, ROW()-2+2, 0) -> 0.9922392066 | E56: =OFFSET(calcInput!E$2, ROW()-2+3, 0) -> 0.9645292163 | F56: =OFFSET(calcInput!E$2, ROW()-2+4, 0) -> 0.9172729889 | G56: =OFFSET(calcInput!E$2, ROW()-2+5, 0) -> 0.8514281745 | H56: =OFFSET(calcInput!E$2, ROW()-2+6, 0) -> 0.7683291217 | I56: =OFFSET(calcInput!E$2, ROW()-2+7, 0) -> 0.6696598375 | J56: =OFFSET(calcInput!E$2, ROW()-2+8, 0) -> 0.5574198602 | K56: =OFFSET(calcInput!E$2, ROW()-2+9, 0) -> 0.4338837391 | L56: =OFFSET(calcInput!E$2, ROW()-2+10, 0) -> 0.3015549404 | M56: =OFFSET(calcInput!E$2, ROW()-2+11, 0) -> 0.1631151144 | N56: =OFFSET(calcInput!E$2, ROW()-2+12, 0) -> 0.02136975179 | O56: =OFFSET(calcInput!E$2, ROW()-2+13, 0) -> -0.1208086701 | P56: =OFFSET(calcInput!E$2, ROW()-2+14, 0) -> -0.2605388976 | Q56: =OFFSET(calcInput!E$2, ROW()-2+15, 0) -> -0.3949892902 | R56: =OFFSET(calcInput!E$2, ROW()-2+16, 0) -> -0.5214352034 | S56: =OFFSET(calcInput!E$2, ROW()-2+17, 0) -> -0.6373142037 | T56: =OFFSET(calcInput!E$2, ROW()-2+18, 0) -> -0.7402779971 | U56: =OFFSET(calcInput!E$2, ROW()-2+19, 0) -> -0.8282400165 | V56: =OFFSET(calcInput!E$2, ROW()-2+20, 0) -> -0.8994177069 | W56: =OFFSET(calcInput!E$2, ROW()-2+21, 0) -> -0.9523686485 | X56: =OFFSET(calcInput!E$2, ROW()-2+22, 0) -> -0.9860197876 | Y56: =OFFSET(calcInput!E$2, ROW()-2+23, 0) -> -0.999689182 | Z56: =OFFSET(calcInput!E$2, ROW()-2+24, 0) -> -0.9930998207 | AA56: =OFFSET(calcInput!E$2, ROW()-2+25, 0) -> -0.9663852375 | AB56: =OFFSET(calcInput!E$2, ROW()-2+26, 0) -> -0.9200868049 | AC56: =OFFSET(calcInput!E$2, ROW()-2+27, 0) -> -0.855142763 | AD56: =OFFSET(calcInput!E$2, ROW()-2+28, 0) -> -0.7728692065 | AE56: =OFFSET(calcInput!E$2, ROW()-2+29, 0) -> -0.6749334135 | AF56: =OFFSET(calcInput!E$2, ROW()-2+30, 0) -> -0.5633200581 | AG56: =OFFSET(calcInput!E$2, ROW()-2+31, 0) -> -0.440290991 | AH56: =OFFSET(calcInput!E$2, ROW()-2+32, 0) -> -0.3083394031 | AI56: =OFFSET(calcInput!E$2, ROW()-2+33, 0) -> -0.1701393003 | AJ56: =OFFSET(calcInput!E$2, ROW()-2+34, 0) -> -0.02849131539 | AK56: =OFFSET(calcInput!E$2, ROW()-2+35, 0) -> 0.1137340476 | AL56: =OFFSET(calcInput!E$2, ROW()-2+36, 0) -> 0.2536545839 | AM56: =OFFSET(calcInput!E$2, ROW()-2+37, 0) -> 0.3884347963 | AN56: =OFFSET(calcInput!E$2, ROW()-2+38, 0) -> 0.5153433563 | AO56: =OFFSET(calcInput!E$2, ROW()-2+39, 0) -> 0.6318084552 | AP56: =OFFSET(calcInput!E$2, ROW()-2+40, 0) -> 0.7354699214 | AQ56: =OFFSET(calcInput!E$2, ROW()-2+41, 0) -> 0.8242270496 | AR56: =OFFSET(calcInput!E$2, ROW()-2+42, 0) -> 0.8962811717 | AS56: =OFFSET(calcInput!E$2, ROW()-2+43, 0) -> 0.9501721071 | AT56: =OFFSET(calcInput!E$2, ROW()-2+44, 0) -> 0.984807753
A57: 55 | B57: =OFFSET(calcInput!E$2, ROW()-2+0, 0) -> 0.9998414154 | C57: =OFFSET(calcInput!E$2, ROW()-2+1, 0) -> 0.9922392066 | D57: =OFFSET(calcInput!E$2, ROW()-2+2, 0) -> 0.9645292163 | E57: =OFFSET(calcInput!E$2, ROW()-2+3, 0) -> 0.9172729889 | F57: =OFFSET(calcInput!E$2, ROW()-2+4, 0) -> 0.8514281745 | G57: =OFFSET(calcInput!E$2, ROW()-2+5, 0) -> 0.7683291217 | H57: =OFFSET(calcInput!E$2, ROW()-2+6, 0) -> 0.6696598375 | I57: =OFFSET(calcInput!E$2, ROW()-2+7, 0) -> 0.5574198602 | J57: =OFFSET(calcInput!E$2, ROW()-2+8, 0) -> 0.4338837391 | K57: =OFFSET(calcInput!E$2, ROW()-2+9, 0) -> 0.3015549404 | L57: =OFFSET(calcInput!E$2, ROW()-2+10, 0) -> 0.1631151144 | M57: =OFFSET(calcInput!E$2, ROW()-2+11, 0) -> 0.02136975179 | N57: =OFFSET(calcInput!E$2, ROW()-2+12, 0) -> -0.1208086701 | O57: =OFFSET(calcInput!E$2, ROW()-2+13, 0) -> -0.2605388976 | P57: =OFFSET(calcInput!E$2, ROW()-2+14, 0) -> -0.3949892902 | Q57: =OFFSET(calcInput!E$2, ROW()-2+15, 0) -> -0.5214352034 | R57: =OFFSET(calcInput!E$2, ROW()-2+16, 0) -> -0.6373142037 | S57: =OFFSET(calcInput!E$2, ROW()-2+17, 0) -> -0.7402779971 | T57: =OFFSET(calcInput!E$2, ROW()-2+18, 0) -> -0.8282400165 | U57: =OFFSET(calcInput!E$2, ROW()-2+19, 0) -> -0.8994177069 | V57: =OFFSET(calcInput!E$2, ROW()-2+20, 0) -> -0.9523686485 | W57: =OFFSET(calcInput!E$2, ROW()-2+21, 0) -> -0.9860197876 | X57: =OFFSET(calcInput!E$2, ROW()-2+22, 0) -> -0.999689182 | Y57: =OFFSET(calcInput!E$2, ROW()-2+23, 0) -> -0.9930998207 | Z57: =OFFSET(calcInput!E$2, ROW()-2+24, 0) -> -0.9663852375 | AA57: =OFFSET(calcInput!E$2, ROW()-2+25, 0) -> -0.9200868049 | AB57: =OFFSET(calcInput!E$2, ROW()-2+26, 0) -> -0.855142763 | AC57: =OFFSET(calcInput!E$2, ROW()-2+27, 0) -> -0.7728692065 | AD57: =OFFSET(calcInput!E$2, ROW()-2+28, 0) -> -0.6749334135 | AE57: =OFFSET(calcInput!E$2, ROW()-2+29, 0) -> -0.5633200581 | AF57: =OFFSET(calcInput!E$2, ROW()-2+30, 0) -> -0.440290991 | AG57: =OFFSET(calcInput!E$2, ROW()-2+31, 0) -> -0.3083394031 | AH57: =OFFSET(calcInput!E$2, ROW()-2+32, 0) -> -0.1701393003 | AI57: =OFFSET(calcInput!E$2, ROW()-2+33, 0) -> -0.02849131539 | AJ57: =OFFSET(calcInput!E$2, ROW()-2+34, 0) -> 0.1137340476 | AK57: =OFFSET(calcInput!E$2, ROW()-2+35, 0) -> 0.2536545839 | AL57: =OFFSET(calcInput!E$2, ROW()-2+36, 0) -> 0.3884347963 | AM57: =OFFSET(calcInput!E$2, ROW()-2+37, 0) -> 0.5153433563 | AN57: =OFFSET(calcInput!E$2, ROW()-2+38, 0) -> 0.6318084552 | AO57: =OFFSET(calcInput!E$2, ROW()-2+39, 0) -> 0.7354699214 | AP57: =OFFSET(calcInput!E$2, ROW()-2+40, 0) -> 0.8242270496 | AQ57: =OFFSET(calcInput!E$2, ROW()-2+41, 0) -> 0.8962811717 | AR57: =OFFSET(calcInput!E$2, ROW()-2+42, 0) -> 0.9501721071 | AS57: =OFFSET(calcInput!E$2, ROW()-2+43, 0) -> 0.984807753 | AT57: =OFFSET(calcInput!E$2, ROW()-2+44, 0) -> 0.9994862162
A58: 56 | B58: =OFFSET(calcInput!E$2, ROW()-2+0, 0) -> 0.9922392066 | C58: =OFFSET(calcInput!E$2, ROW()-2+1, 0) -> 0.9645292163 | D58: =OFFSET(calcInput!E$2, ROW()-2+2, 0) -> 0.9172729889 | E58: =OFFSET(calcInput!E$2, ROW()-2+3, 0) -> 0.8514281745 | F58: =OFFSET(calcInput!E$2, ROW()-2+4, 0) -> 0.7683291217 | G58: =OFFSET(calcInput!E$2, ROW()-2+5, 0) -> 0.6696598375 | H58: =OFFSET(calcInput!E$2, ROW()-2+6, 0) -> 0.5574198602 | I58: =OFFSET(calcInput!E$2, ROW()-2+7, 0) -> 0.4338837391 | J58: =OFFSET(calcInput!E$2, ROW()-2+8, 0) -> 0.3015549404 | K58: =OFFSET(calcInput!E$2, ROW()-2+9, 0) -> 0.1631151144 | L58: =OFFSET(calcInput!E$2, ROW()-2+10, 0) -> 0.02136975179 | M58: =OFFSET(calcInput!E$2, ROW()-2+11, 0) -> -0.1208086701 | N58: =OFFSET(calcInput!E$2, ROW()-2+12, 0) -> -0.2605388976 | O58: =OFFSET(calcInput!E$2, ROW()-2+13, 0) -> -0.3949892902 | P58: =OFFSET(calcInput!E$2, ROW()-2+14, 0) -> -0.5214352034 | Q58: =OFFSET(calcInput!E$2, ROW()-2+15, 0) -> -0.6373142037 | R58: =OFFSET(calcInput!E$2, ROW()-2+16, 0) -> -0.7402779971 | S58: =OFFSET(calcInput!E$2, ROW()-2+17, 0) -> -0.8282400165 | T58: =OFFSET(calcInput!E$2, ROW()-2+18, 0) -> -0.8994177069 | U58: =OFFSET(calcInput!E$2, ROW()-2+19, 0) -> -0.9523686485 | V58: =OFFSET(calcInput!E$2, ROW()-2+20, 0) -> -0.9860197876 | W58: =OFFSET(calcInput!E$2, ROW()-2+21, 0) -> -0.999689182 | X58: =OFFSET(calcInput!E$2, ROW()-2+22, 0) -> -0.9930998207 | Y58: =OFFSET(calcInput!E$2, ROW()-2+23, 0) -> -0.9663852375 | Z58: =OFFSET(calcInput!E$2, ROW()-2+24, 0) -> -0.9200868049 | AA58: =OFFSET(calcInput!E$2, ROW()-2+25, 0) -> -0.855142763 | AB58: =OFFSET(calcInput!E$2, ROW()-2+26, 0) -> -0.7728692065 | AC58: =OFFSET(calcInput!E$2, ROW()-2+27, 0) -> -0.6749334135 | AD58: =OFFSET(calcInput!E$2, ROW()-2+28, 0) -> -0.5633200581 | AE58: =OFFSET(calcInput!E$2, ROW()-2+29, 0) -> -0.440290991 | AF58: =OFFSET(calcInput!E$2, ROW()-2+30, 0) -> -0.3083394031 | AG58: =OFFSET(calcInput!E$2, ROW()-2+31, 0) -> -0.1701393003 | AH58: =OFFSET(calcInput!E$2, ROW()-2+32, 0) -> -0.02849131539 | AI58: =OFFSET(calcInput!E$2, ROW()-2+33, 0) -> 0.1137340476 | AJ58: =OFFSET(calcInput!E$2, ROW()-2+34, 0) -> 0.2536545839 | AK58: =OFFSET(calcInput!E$2, ROW()-2+35, 0) -> 0.3884347963 | AL58: =OFFSET(calcInput!E$2, ROW()-2+36, 0) -> 0.5153433563 | AM58: =OFFSET(calcInput!E$2, ROW()-2+37, 0) -> 0.6318084552 | AN58: =OFFSET(calcInput!E$2, ROW()-2+38, 0) -> 0.7354699214 | AO58: =OFFSET(calcInput!E$2, ROW()-2+39, 0) -> 0.8242270496 | AP58: =OFFSET(calcInput!E$2, ROW()-2+40, 0) -> 0.8962811717 | AQ58: =OFFSET(calcInput!E$2, ROW()-2+41, 0) -> 0.9501721071 | AR58: =OFFSET(calcInput!E$2, ROW()-2+42, 0) -> 0.984807753 | AS58: =OFFSET(calcInput!E$2, ROW()-2+43, 0) -> 0.9994862162 | AT58: =OFFSET(calcInput!E$2, ROW()-2+44, 0) -> 0.9939100368
A59: 57 | B59: =OFFSET(calcInput!E$2, ROW()-2+0, 0) -> 0.9645292163 | C59: =OFFSET(calcInput!E$2, ROW()-2+1, 0) -> 0.9172729889 | D59: =OFFSET(calcInput!E$2, ROW()-2+2, 0) -> 0.8514281745 | E59: =OFFSET(calcInput!E$2, ROW()-2+3, 0) -> 0.7683291217 | F59: =OFFSET(calcInput!E$2, ROW()-2+4, 0) -> 0.6696598375 | G59: =OFFSET(calcInput!E$2, ROW()-2+5, 0) -> 0.5574198602 | H59: =OFFSET(calcInput!E$2, ROW()-2+6, 0) -> 0.4338837391 | I59: =OFFSET(calcInput!E$2, ROW()-2+7, 0) -> 0.3015549404 | J59: =OFFSET(calcInput!E$2, ROW()-2+8, 0) -> 0.1631151144 | K59: =OFFSET(calcInput!E$2, ROW()-2+9, 0) -> 0.02136975179 | L59: =OFFSET(calcInput!E$2, ROW()-2+10, 0) -> -0.1208086701 | M59: =OFFSET(calcInput!E$2, ROW()-2+11, 0) -> -0.2605388976 | N59: =OFFSET(calcInput!E$2, ROW()-2+12, 0) -> -0.3949892902 | O59: =OFFSET(calcInput!E$2, ROW()-2+13, 0) -> -0.5214352034 | P59: =OFFSET(calcInput!E$2, ROW()-2+14, 0) -> -0.6373142037 | Q59: =OFFSET(calcInput!E$2, ROW()-2+15, 0) -> -0.7402779971 | R59: =OFFSET(calcInput!E$2, ROW()-2+16, 0) -> -0.8282400165 | S59: =OFFSET(calcInput!E$2, ROW()-2+17, 0) -> -0.8994177069 | T59: =OFFSET(calcInput!E$2, ROW()-2+18, 0) -> -0.9523686485 | U59: =OFFSET(calcInput!E$2, ROW()-2+19, 0) -> -0.9860197876 | V59: =OFFSET(calcInput!E$2, ROW()-2+20, 0) -> -0.999689182 | W59: =OFFSET(calcInput!E$2, ROW()-2+21, 0) -> -0.9930998207 | X59: =OFFSET(calcInput!E$2, ROW()-2+22, 0) -> -0.9663852375 | Y59: =OFFSET(calcInput!E$2, ROW()-2+23, 0) -> -0.9200868049 | Z59: =OFFSET(calcInput!E$2, ROW()-2+24, 0) -> -0.855142763 | AA59: =OFFSET(calcInput!E$2, ROW()-2+25, 0) -> -0.7728692065 | AB59: =OFFSET(calcInput!E$2, ROW()-2+26, 0) -> -0.6749334135 | AC59: =OFFSET(calcInput!E$2, ROW()-2+27, 0) -> -0.5633200581 | AD59: =OFFSET(calcInput!E$2, ROW()-2+28, 0) -> -0.440290991 | AE59: =OFFSET(calcInput!E$2, ROW()-2+29, 0) -> -0.3083394031 | AF59: =OFFSET(calcInput!E$2, ROW()-2+30, 0) -> -0.1701393003 | AG59: =OFFSET(calcInput!E$2, ROW()-2+31, 0) -> -0.02849131539 | AH59: =OFFSET(calcInput!E$2, ROW()-2+32, 0) -> 0.1137340476 | AI59: =OFFSET(calcInput!E$2, ROW()-2+33, 0) -> 0.2536545839 | AJ59: =OFFSET(calcInput!E$2, ROW()-2+34, 0) -> 0.3884347963 | AK59: =OFFSET(calcInput!E$2, ROW()-2+35, 0) -> 0.5153433563 | AL59: =OFFSET(calcInput!E$2, ROW()-2+36, 0) -> 0.6318084552 | AM59: =OFFSET(calcInput!E$2, ROW()-2+37, 0) -> 0.7354699214 | AN59: =OFFSET(calcInput!E$2, ROW()-2+38, 0) -> 0.8242270496 | AO59: =OFFSET(calcInput!E$2, ROW()-2+39, 0) -> 0.8962811717 | AP59: =OFFSET(calcInput!E$2, ROW()-2+40, 0) -> 0.9501721071 | AQ59: =OFFSET(calcInput!E$2, ROW()-2+41, 0) -> 0.984807753 | AR59: =OFFSET(calcInput!E$2, ROW()-2+42, 0) -> 0.9994862162 | AS59: =OFFSET(calcInput!E$2, ROW()-2+43, 0) -> 0.9939100368 | AT59: =OFFSET(calcInput!E$2, ROW()-2+44, 0) -> 0.9681922164
A60: 58 | B60: =OFFSET(calcInput!E$2, ROW()-2+0, 0) -> 0.9172729889 | C60: =OFFSET(calcInput!E$2, ROW()-2+1, 0) -> 0.8514281745 | D60: =OFFSET(calcInput!E$2, ROW()-2+2, 0) -> 0.7683291217 | E60: =OFFSET(calcInput!E$2, ROW()-2+3, 0) -> 0.6696598375 | F60: =OFFSET(calcInput!E$2, ROW()-2+4, 0) -> 0.5574198602 | G60: =OFFSET(calcInput!E$2, ROW()-2+5, 0) -> 0.4338837391 | H60: =OFFSET(calcInput!E$2, ROW()-2+6, 0) -> 0.3015549404 | I60: =OFFSET(calcInput!E$2, ROW()-2+7, 0) -> 0.1631151144 | J60: =OFFSET(calcInput!E$2, ROW()-2+8, 0) -> 0.02136975179 | K60: =OFFSET(calcInput!E$2, ROW()-2+9, 0) -> -0.1208086701 | L60: =OFFSET(calcInput!E$2, ROW()-2+10, 0) -> -0.2605388976 | M60: =OFFSET(calcInput!E$2, ROW()-2+11, 0) -> -0.3949892902 | N60: =OFFSET(calcInput!E$2, ROW()-2+12, 0) -> -0.5214352034 | O60: =OFFSET(calcInput!E$2, ROW()-2+13, 0) -> -0.6373142037 | P60: =OFFSET(calcInput!E$2, ROW()-2+14, 0) -> -0.7402779971 | Q60: =OFFSET(calcInput!E$2, ROW()-2+15, 0) -> -0.8282400165 | R60: =OFFSET(calcInput!E$2, ROW()-2+16, 0) -> -0.8994177069 | S60: =OFFSET(calcInput!E$2, ROW()-2+17, 0) -> -0.9523686485 | T60: =OFFSET(calcInput!E$2, ROW()-2+18, 0) -> -0.9860197876 | U60: =OFFSET(calcInput!E$2, ROW()-2+19, 0) -> -0.999689182 | V60: =OFFSET(calcInput!E$2, ROW()-2+20, 0) -> -0.9930998207 | W60: =OFFSET(calcInput!E$2, ROW()-2+21, 0) -> -0.9663852375 | X60: =OFFSET(calcInput!E$2, ROW()-2+22, 0) -> -0.9200868049 | Y60: =OFFSET(calcInput!E$2, ROW()-2+23, 0) -> -0.855142763 | Z60: =OFFSET(calcInput!E$2, ROW()-2+24, 0) -> -0.7728692065 | AA60: =OFFSET(calcInput!E$2, ROW()-2+25, 0) -> -0.6749334135 | AB60: =OFFSET(calcInput!E$2, ROW()-2+26, 0) -> -0.5633200581 | AC60: =OFFSET(calcInput!E$2, ROW()-2+27, 0) -> -0.440290991 | AD60: =OFFSET(calcInput!E$2, ROW()-2+28, 0) -> -0.3083394031 | AE60: =OFFSET(calcInput!E$2, ROW()-2+29, 0) -> -0.1701393003 | AF60: =OFFSET(calcInput!E$2, ROW()-2+30, 0) -> -0.02849131539 | AG60: =OFFSET(calcInput!E$2, ROW()-2+31, 0) -> 0.1137340476 | AH60: =OFFSET(calcInput!E$2, ROW()-2+32, 0) -> 0.2536545839 | AI60: =OFFSET(calcInput!E$2, ROW()-2+33, 0) -> 0.3884347963 | AJ60: =OFFSET(calcInput!E$2, ROW()-2+34, 0) -> 0.5153433563 | AK60: =OFFSET(calcInput!E$2, ROW()-2+35, 0) -> 0.6318084552 | AL60: =OFFSET(calcInput!E$2, ROW()-2+36, 0) -> 0.7354699214 | AM60: =OFFSET(calcInput!E$2, ROW()-2+37, 0) -> 0.8242270496 | AN60: =OFFSET(calcInput!E$2, ROW()-2+38, 0) -> 0.8962811717 | AO60: =OFFSET(calcInput!E$2, ROW()-2+39, 0) -> 0.9501721071 | AP60: =OFFSET(calcInput!E$2, ROW()-2+40, 0) -> 0.984807753 | AQ60: =OFFSET(calcInput!E$2, ROW()-2+41, 0) -> 0.9994862162 | AR60: =OFFSET(calcInput!E$2, ROW()-2+42, 0) -> 0.9939100368 | AS60: =OFFSET(calcInput!E$2, ROW()-2+43, 0) -> 0.9681922164 | AT60: =OFFSET(calcInput!E$2, ROW()-2+44, 0) -> 0.922853928
A61: 59 | B61: =OFFSET(calcInput!E$2, ROW()-2+0, 0) -> 0.8514281745 | C61: =OFFSET(calcInput!E$2, ROW()-2+1, 0) -> 0.7683291217 | D61: =OFFSET(calcInput!E$2, ROW()-2+2, 0) -> 0.6696598375 | E61: =OFFSET(calcInput!E$2, ROW()-2+3, 0) -> 0.5574198602 | F61: =OFFSET(calcInput!E$2, ROW()-2+4, 0) -> 0.4338837391 | G61: =OFFSET(calcInput!E$2, ROW()-2+5, 0) -> 0.3015549404 | H61: =OFFSET(calcInput!E$2, ROW()-2+6, 0) -> 0.1631151144 | I61: =OFFSET(calcInput!E$2, ROW()-2+7, 0) -> 0.02136975179 | J61: =OFFSET(calcInput!E$2, ROW()-2+8, 0) -> -0.1208086701 | K61: =OFFSET(calcInput!E$2, ROW()-2+9, 0) -> -0.2605388976 | L61: =OFFSET(calcInput!E$2, ROW()-2+10, 0) -> -0.3949892902 | M61: =OFFSET(calcInput!E$2, ROW()-2+11, 0) -> -0.5214352034 | N61: =OFFSET(calcInput!E$2, ROW()-2+12, 0) -> -0.6373142037 | O61: =OFFSET(calcInput!E$2, ROW()-2+13, 0) -> -0.7402779971 | P61: =OFFSET(calcInput!E$2, ROW()-2+14, 0) -> -0.8282400165 | Q61: =OFFSET(calcInput!E$2, ROW()-2+15, 0) -> -0.8994177069 | R61: =OFFSET(calcInput!E$2, ROW()-2+16, 0) -> -0.9523686485 | S61: =OFFSET(calcInput!E$2, ROW()-2+17, 0) -> -0.9860197876 | T61: =OFFSET(calcInput!E$2, ROW()-2+18, 0) -> -0.999689182 | U61: =OFFSET(calcInput!E$2, ROW()-2+19, 0) -> -0.9930998207 | V61: =OFFSET(calcInput!E$2, ROW()-2+20, 0) -> -0.9663852375 | W61: =OFFSET(calcInput!E$2, ROW()-2+21, 0) -> -0.9200868049 | X61: =OFFSET(calcInput!E$2, ROW()-2+22, 0) -> -0.855142763 | Y61: =OFFSET(calcInput!E$2, ROW()-2+23, 0) -> -0.7728692065 | Z61: =OFFSET(calcInput!E$2, ROW()-2+24, 0) -> -0.6749334135 | AA61: =OFFSET(calcInput!E$2, ROW()-2+25, 0) -> -0.5633200581 | AB61: =OFFSET(calcInput!E$2, ROW()-2+26, 0) -> -0.440290991 | AC61: =OFFSET(calcInput!E$2, ROW()-2+27, 0) -> -0.3083394031 | AD61: =OFFSET(calcInput!E$2, ROW()-2+28, 0) -> -0.1701393003 | AE61: =OFFSET(calcInput!E$2, ROW()-2+29, 0) -> -0.02849131539 | AF61: =OFFSET(calcInput!E$2, ROW()-2+30, 0) -> 0.1137340476 | AG61: =OFFSET(calcInput!E$2, ROW()-2+31, 0) -> 0.2536545839 | AH61: =OFFSET(calcInput!E$2, ROW()-2+32, 0) -> 0.3884347963 | AI61: =OFFSET(calcInput!E$2, ROW()-2+33, 0) -> 0.5153433563 | AJ61: =OFFSET(calcInput!E$2, ROW()-2+34, 0) -> 0.6318084552 | AK61: =OFFSET(calcInput!E$2, ROW()-2+35, 0) -> 0.7354699214 | AL61: =OFFSET(calcInput!E$2, ROW()-2+36, 0) -> 0.8242270496 | AM61: =OFFSET(calcInput!E$2, ROW()-2+37, 0) -> 0.8962811717 | AN61: =OFFSET(calcInput!E$2, ROW()-2+38, 0) -> 0.9501721071 | AO61: =OFFSET(calcInput!E$2, ROW()-2+39, 0) -> 0.984807753 | AP61: =OFFSET(calcInput!E$2, ROW()-2+40, 0) -> 0.9994862162 | AQ61: =OFFSET(calcInput!E$2, ROW()-2+41, 0) -> 0.9939100368 | AR61: =OFFSET(calcInput!E$2, ROW()-2+42, 0) -> 0.9681922164 | AS61: =OFFSET(calcInput!E$2, ROW()-2+43, 0) -> 0.922853928 | AT61: =OFFSET(calcInput!E$2, ROW()-2+44, 0) -> 0.8588139546
A62: 60 | B62: =OFFSET(calcInput!E$2, ROW()-2+0, 0) -> 0.7683291217 | C62: =OFFSET(calcInput!E$2, ROW()-2+1, 0) -> 0.6696598375 | D62: =OFFSET(calcInput!E$2, ROW()-2+2, 0) -> 0.5574198602 | E62: =OFFSET(calcInput!E$2, ROW()-2+3, 0) -> 0.4338837391 | F62: =OFFSET(calcInput!E$2, ROW()-2+4, 0) -> 0.3015549404 | G62: =OFFSET(calcInput!E$2, ROW()-2+5, 0) -> 0.1631151144 | H62: =OFFSET(calcInput!E$2, ROW()-2+6, 0) -> 0.02136975179 | I62: =OFFSET(calcInput!E$2, ROW()-2+7, 0) -> -0.1208086701 | J62: =OFFSET(calcInput!E$2, ROW()-2+8, 0) -> -0.2605388976 | K62: =OFFSET(calcInput!E$2, ROW()-2+9, 0) -> -0.3949892902 | L62: =OFFSET(calcInput!E$2, ROW()-2+10, 0) -> -0.5214352034 | M62: =OFFSET(calcInput!E$2, ROW()-2+11, 0) -> -0.6373142037 | N62: =OFFSET(calcInput!E$2, ROW()-2+12, 0) -> -0.7402779971 | O62: =OFFSET(calcInput!E$2, ROW()-2+13, 0) -> -0.8282400165 | P62: =OFFSET(calcInput!E$2, ROW()-2+14, 0) -> -0.8994177069 | Q62: =OFFSET(calcInput!E$2, ROW()-2+15, 0) -> -0.9523686485 | R62: =OFFSET(calcInput!E$2, ROW()-2+16, 0) -> -0.9860197876 | S62: =OFFSET(calcInput!E$2, ROW()-2+17, 0) -> -0.999689182 | T62: =OFFSET(calcInput!E$2, ROW()-2+18, 0) -> -0.9930998207 | U62: =OFFSET(calcInput!E$2, ROW()-2+19, 0) -> -0.9663852375 | V62: =OFFSET(calcInput!E$2, ROW()-2+20, 0) -> -0.9200868049 | W62: =OFFSET(calcInput!E$2, ROW()-2+21, 0) -> -0.855142763 | X62: =OFFSET(calcInput!E$2, ROW()-2+22, 0) -> -0.7728692065 | Y62: =OFFSET(calcInput!E$2, ROW()-2+23, 0) -> -0.6749334135 | Z62: =OFFSET(calcInput!E$2, ROW()-2+24, 0) -> -0.5633200581 | AA62: =OFFSET(calcInput!E$2, ROW()-2+25, 0) -> -0.440290991 | AB62: =OFFSET(calcInput!E$2, ROW()-2+26, 0) -> -0.3083394031 | AC62: =OFFSET(calcInput!E$2, ROW()-2+27, 0) -> -0.1701393003 | AD62: =OFFSET(calcInput!E$2, ROW()-2+28, 0) -> -0.02849131539 | AE62: =OFFSET(calcInput!E$2, ROW()-2+29, 0) -> 0.1137340476 | AF62: =OFFSET(calcInput!E$2, ROW()-2+30, 0) -> 0.2536545839 | AG62: =OFFSET(calcInput!E$2, ROW()-2+31, 0) -> 0.3884347963 | AH62: =OFFSET(calcInput!E$2, ROW()-2+32, 0) -> 0.5153433563 | AI62: =OFFSET(calcInput!E$2, ROW()-2+33, 0) -> 0.6318084552 | AJ62: =OFFSET(calcInput!E$2, ROW()-2+34, 0) -> 0.7354699214 | AK62: =OFFSET(calcInput!E$2, ROW()-2+35, 0) -> 0.8242270496 | AL62: =OFFSET(calcInput!E$2, ROW()-2+36, 0) -> 0.8962811717 | AM62: =OFFSET(calcInput!E$2, ROW()-2+37, 0) -> 0.9501721071 | AN62: =OFFSET(calcInput!E$2, ROW()-2+38, 0) -> 0.984807753 | AO62: =OFFSET(calcInput!E$2, ROW()-2+39, 0) -> 0.9994862162 | AP62: =OFFSET(calcInput!E$2, ROW()-2+40, 0) -> 0.9939100368 | AQ62: =OFFSET(calcInput!E$2, ROW()-2+41, 0) -> 0.9681922164 | AR62: =OFFSET(calcInput!E$2, ROW()-2+42, 0) -> 0.922853928 | AS62: =OFFSET(calcInput!E$2, ROW()-2+43, 0) -> 0.8588139546 | AT62: =OFFSET(calcInput!E$2, ROW()-2+44, 0) -> 0.7773700696
A63: 61 | B63: =OFFSET(calcInput!E$2, ROW()-2+0, 0) -> 0.6696598375 | C63: =OFFSET(calcInput!E$2, ROW()-2+1, 0) -> 0.5574198602 | D63: =OFFSET(calcInput!E$2, ROW()-2+2, 0) -> 0.4338837391 | E63: =OFFSET(calcInput!E$2, ROW()-2+3, 0) -> 0.3015549404 | F63: =OFFSET(calcInput!E$2, ROW()-2+4, 0) -> 0.1631151144 | G63: =OFFSET(calcInput!E$2, ROW()-2+5, 0) -> 0.02136975179 | H63: =OFFSET(calcInput!E$2, ROW()-2+6, 0) -> -0.1208086701 | I63: =OFFSET(calcInput!E$2, ROW()-2+7, 0) -> -0.2605388976 | J63: =OFFSET(calcInput!E$2, ROW()-2+8, 0) -> -0.3949892902 | K63: =OFFSET(calcInput!E$2, ROW()-2+9, 0) -> -0.5214352034 | L63: =OFFSET(calcInput!E$2, ROW()-2+10, 0) -> -0.6373142037 | M63: =OFFSET(calcInput!E$2, ROW()-2+11, 0) -> -0.7402779971 | N63: =OFFSET(calcInput!E$2, ROW()-2+12, 0) -> -0.8282400165 | O63: =OFFSET(calcInput!E$2, ROW()-2+13, 0) -> -0.8994177069 | P63: =OFFSET(calcInput!E$2, ROW()-2+14, 0) -> -0.9523686485 | Q63: =OFFSET(calcInput!E$2, ROW()-2+15, 0) -> -0.9860197876 | R63: =OFFSET(calcInput!E$2, ROW()-2+16, 0) -> -0.999689182 | S63: =OFFSET(calcInput!E$2, ROW()-2+17, 0) -> -0.9930998207 | T63: =OFFSET(calcInput!E$2, ROW()-2+18, 0) -> -0.9663852375 | U63: =OFFSET(calcInput!E$2, ROW()-2+19, 0) -> -0.9200868049 | V63: =OFFSET(calcInput!E$2, ROW()-2+20, 0) -> -0.855142763 | W63: =OFFSET(calcInput!E$2, ROW()-2+21, 0) -> -0.7728692065 | X63: =OFFSET(calcInput!E$2, ROW()-2+22, 0) -> -0.6749334135 | Y63: =OFFSET(calcInput!E$2, ROW()-2+23, 0) -> -0.5633200581 | Z63: =OFFSET(calcInput!E$2, ROW()-2+24, 0) -> -0.440290991 | AA63: =OFFSET(calcInput!E$2, ROW()-2+25, 0) -> -0.3083394031 | AB63: =OFFSET(calcInput!E$2, ROW()-2+26, 0) -> -0.1701393003 | AC63: =OFFSET(calcInput!E$2, ROW()-2+27, 0) -> -0.02849131539 | AD63: =OFFSET(calcInput!E$2, ROW()-2+28, 0) -> 0.1137340476 | AE63: =OFFSET(calcInput!E$2, ROW()-2+29, 0) -> 0.2536545839 | AF63: =OFFSET(calcInput!E$2, ROW()-2+30, 0) -> 0.3884347963 | AG63: =OFFSET(calcInput!E$2, ROW()-2+31, 0) -> 0.5153433563 | AH63: =OFFSET(calcInput!E$2, ROW()-2+32, 0) -> 0.6318084552 | AI63: =OFFSET(calcInput!E$2, ROW()-2+33, 0) -> 0.7354699214 | AJ63: =OFFSET(calcInput!E$2, ROW()-2+34, 0) -> 0.8242270496 | AK63: =OFFSET(calcInput!E$2, ROW()-2+35, 0) -> 0.8962811717 | AL63: =OFFSET(calcInput!E$2, ROW()-2+36, 0) -> 0.9501721071 | AM63: =OFFSET(calcInput!E$2, ROW()-2+37, 0) -> 0.984807753 | AN63: =OFFSET(calcInput!E$2, ROW()-2+38, 0) -> 0.9994862162 | AO63: =OFFSET(calcInput!E$2, ROW()-2+39, 0) -> 0.9939100368 | AP63: =OFFSET(calcInput!E$2, ROW()-2+40, 0) -> 0.9681922164 | AQ63: =OFFSET(calcInput!E$2, ROW()-2+41, 0) -> 0.922853928 | AR63: =OFFSET(calcInput!E$2, ROW()-2+42, 0) -> 0.8588139546 | AS63: =OFFSET(calcInput!E$2, ROW()-2+43, 0) -> 0.7773700696 | AT63: =OFFSET(calcInput!E$2, ROW()-2+44, 0) -> 0.6801727378
A64: 62 | B64: =OFFSET(calcInput!E$2, ROW()-2+0, 0) -> 0.5574198602 | C64: =OFFSET(calcInput!E$2, ROW()-2+1, 0) -> 0.4338837391 | D64: =OFFSET(calcInput!E$2, ROW()-2+2, 0) -> 0.3015549404 | E64: =OFFSET(calcInput!E$2, ROW()-2+3, 0) -> 0.1631151144 | F64: =OFFSET(calcInput!E$2, ROW()-2+4, 0) -> 0.02136975179 | G64: =OFFSET(calcInput!E$2, ROW()-2+5, 0) -> -0.1208086701 | H64: =OFFSET(calcInput!E$2, ROW()-2+6, 0) -> -0.2605388976 | I64: =OFFSET(calcInput!E$2, ROW()-2+7, 0) -> -0.3949892902 | J64: =OFFSET(calcInput!E$2, ROW()-2+8, 0) -> -0.5214352034 | K64: =OFFSET(calcInput!E$2, ROW()-2+9, 0) -> -0.6373142037 | L64: =OFFSET(calcInput!E$2, ROW()-2+10, 0) -> -0.7402779971 | M64: =OFFSET(calcInput!E$2, ROW()-2+11, 0) -> -0.8282400165 | N64: =OFFSET(calcInput!E$2, ROW()-2+12, 0) -> -0.8994177069 | O64: =OFFSET(calcInput!E$2, ROW()-2+13, 0) -> -0.9523686485 | P64: =OFFSET(calcInput!E$2, ROW()-2+14, 0) -> -0.9860197876 | Q64: =OFFSET(calcInput!E$2, ROW()-2+15, 0) -> -0.999689182 | R64: =OFFSET(calcInput!E$2, ROW()-2+16, 0) -> -0.9930998207 | S64: =OFFSET(calcInput!E$2, ROW()-2+17, 0) -> -0.9663852375 | T64: =OFFSET(calcInput!E$2, ROW()-2+18, 0) -> -0.9200868049 | U64: =OFFSET(calcInput!E$2, ROW()-2+19, 0) -> -0.855142763 | V64: =OFFSET(calcInput!E$2, ROW()-2+20, 0) -> -0.7728692065 | W64: =OFFSET(calcInput!E$2, ROW()-2+21, 0) -> -0.6749334135 | X64: =OFFSET(calcInput!E$2, ROW()-2+22, 0) -> -0.5633200581 | Y64: =OFFSET(calcInput!E$2, ROW()-2+23, 0) -> -0.440290991 | Z64: =OFFSET(calcInput!E$2, ROW()-2+24, 0) -> -0.3083394031 | AA64: =OFFSET(calcInput!E$2, ROW()-2+25, 0) -> -0.1701393003 | AB64: =OFFSET(calcInput!E$2, ROW()-2+26, 0) -> -0.02849131539 | AC64: =OFFSET(calcInput!E$2, ROW()-2+27, 0) -> 0.1137340476 | AD64: =OFFSET(calcInput!E$2, ROW()-2+28, 0) -> 0.2536545839 | AE64: =OFFSET(calcInput!E$2, ROW()-2+29, 0) -> 0.3884347963 | AF64: =OFFSET(calcInput!E$2, ROW()-2+30, 0) -> 0.5153433563 | AG64: =OFFSET(calcInput!E$2, ROW()-2+31, 0) -> 0.6318084552 | AH64: =OFFSET(calcInput!E$2, ROW()-2+32, 0) -> 0.7354699214 | AI64: =OFFSET(calcInput!E$2, ROW()-2+33, 0) -> 0.8242270496 | AJ64: =OFFSET(calcInput!E$2, ROW()-2+34, 0) -> 0.8962811717 | AK64: =OFFSET(calcInput!E$2, ROW()-2+35, 0) -> 0.9501721071 | AL64: =OFFSET(calcInput!E$2, ROW()-2+36, 0) -> 0.984807753 | AM64: =OFFSET(calcInput!E$2, ROW()-2+37, 0) -> 0.9994862162 | AN64: =OFFSET(calcInput!E$2, ROW()-2+38, 0) -> 0.9939100368 | AO64: =OFFSET(calcInput!E$2, ROW()-2+39, 0) -> 0.9681922164 | AP64: =OFFSET(calcInput!E$2, ROW()-2+40, 0) -> 0.922853928 | AQ64: =OFFSET(calcInput!E$2, ROW()-2+41, 0) -> 0.8588139546 | AR64: =OFFSET(calcInput!E$2, ROW()-2+42, 0) -> 0.7773700696 | AS64: =OFFSET(calcInput!E$2, ROW()-2+43, 0) -> 0.6801727378 | AT64: =OFFSET(calcInput!E$2, ROW()-2+44, 0) -> 0.5691916684
A65: 63 | B65: =OFFSET(calcInput!E$2, ROW()-2+0, 0) -> 0.4338837391 | C65: =OFFSET(calcInput!E$2, ROW()-2+1, 0) -> 0.3015549404 | D65: =OFFSET(calcInput!E$2, ROW()-2+2, 0) -> 0.1631151144 | E65: =OFFSET(calcInput!E$2, ROW()-2+3, 0) -> 0.02136975179 | F65: =OFFSET(calcInput!E$2, ROW()-2+4, 0) -> -0.1208086701 | G65: =OFFSET(calcInput!E$2, ROW()-2+5, 0) -> -0.2605388976 | H65: =OFFSET(calcInput!E$2, ROW()-2+6, 0) -> -0.3949892902 | I65: =OFFSET(calcInput!E$2, ROW()-2+7, 0) -> -0.5214352034 | J65: =OFFSET(calcInput!E$2, ROW()-2+8, 0) -> -0.6373142037 | K65: =OFFSET(calcInput!E$2, ROW()-2+9, 0) -> -0.7402779971 | L65: =OFFSET(calcInput!E$2, ROW()-2+10, 0) -> -0.8282400165 | M65: =OFFSET(calcInput!E$2, ROW()-2+11, 0) -> -0.8994177069 | N65: =OFFSET(calcInput!E$2, ROW()-2+12, 0) -> -0.9523686485 | O65: =OFFSET(calcInput!E$2, ROW()-2+13, 0) -> -0.9860197876 | P65: =OFFSET(calcInput!E$2, ROW()-2+14, 0) -> -0.999689182 | Q65: =OFFSET(calcInput!E$2, ROW()-2+15, 0) -> -0.9930998207 | R65: =OFFSET(calcInput!E$2, ROW()-2+16, 0) -> -0.9663852375 | S65: =OFFSET(calcInput!E$2, ROW()-2+17, 0) -> -0.9200868049 | T65: =OFFSET(calcInput!E$2, ROW()-2+18, 0) -> -0.855142763 | U65: =OFFSET(calcInput!E$2, ROW()-2+19, 0) -> -0.7728692065 | V65: =OFFSET(calcInput!E$2, ROW()-2+20, 0) -> -0.6749334135 | W65: =OFFSET(calcInput!E$2, ROW()-2+21, 0) -> -0.5633200581 | X65: =OFFSET(calcInput!E$2, ROW()-2+22, 0) -> -0.440290991 | Y65: =OFFSET(calcInput!E$2, ROW()-2+23, 0) -> -0.3083394031 | Z65: =OFFSET(calcInput!E$2, ROW()-2+24, 0) -> -0.1701393003 | AA65: =OFFSET(calcInput!E$2, ROW()-2+25, 0) -> -0.02849131539 | AB65: =OFFSET(calcInput!E$2, ROW()-2+26, 0) -> 0.1137340476 | AC65: =OFFSET(calcInput!E$2, ROW()-2+27, 0) -> 0.2536545839 | AD65: =OFFSET(calcInput!E$2, ROW()-2+28, 0) -> 0.3884347963 | AE65: =OFFSET(calcInput!E$2, ROW()-2+29, 0) -> 0.5153433563 | AF65: =OFFSET(calcInput!E$2, ROW()-2+30, 0) -> 0.6318084552 | AG65: =OFFSET(calcInput!E$2, ROW()-2+31, 0) -> 0.7354699214 | AH65: =OFFSET(calcInput!E$2, ROW()-2+32, 0) -> 0.8242270496 | AI65: =OFFSET(calcInput!E$2, ROW()-2+33, 0) -> 0.8962811717 | AJ65: =OFFSET(calcInput!E$2, ROW()-2+34, 0) -> 0.9501721071 | AK65: =OFFSET(calcInput!E$2, ROW()-2+35, 0) -> 0.984807753 | AL65: =OFFSET(calcInput!E$2, ROW()-2+36, 0) -> 0.9994862162 | AM65: =OFFSET(calcInput!E$2, ROW()-2+37, 0) -> 0.9939100368 | AN65: =OFFSET(calcInput!E$2, ROW()-2+38, 0) -> 0.9681922164 | AO65: =OFFSET(calcInput!E$2, ROW()-2+39, 0) -> 0.922853928 | AP65: =OFFSET(calcInput!E$2, ROW()-2+40, 0) -> 0.8588139546 | AQ65: =OFFSET(calcInput!E$2, ROW()-2+41, 0) -> 0.7773700696 | AR65: =OFFSET(calcInput!E$2, ROW()-2+42, 0) -> 0.6801727378 | AS65: =OFFSET(calcInput!E$2, ROW()-2+43, 0) -> 0.5691916684 | AT65: =OFFSET(calcInput!E$2, ROW()-2+44, 0) -> 0.4466758989
A66: 64 | B66: =OFFSET(calcInput!E$2, ROW()-2+0, 0) -> 0.3015549404 | C66: =OFFSET(calcInput!E$2, ROW()-2+1, 0) -> 0.1631151144 | D66: =OFFSET(calcInput!E$2, ROW()-2+2, 0) -> 0.02136975179 | E66: =OFFSET(calcInput!E$2, ROW()-2+3, 0) -> -0.1208086701 | F66: =OFFSET(calcInput!E$2, ROW()-2+4, 0) -> -0.2605388976 | G66: =OFFSET(calcInput!E$2, ROW()-2+5, 0) -> -0.3949892902 | H66: =OFFSET(calcInput!E$2, ROW()-2+6, 0) -> -0.5214352034 | I66: =OFFSET(calcInput!E$2, ROW()-2+7, 0) -> -0.6373142037 | J66: =OFFSET(calcInput!E$2, ROW()-2+8, 0) -> -0.7402779971 | K66: =OFFSET(calcInput!E$2, ROW()-2+9, 0) -> -0.8282400165 | L66: =OFFSET(calcInput!E$2, ROW()-2+10, 0) -> -0.8994177069 | M66: =OFFSET(calcInput!E$2, ROW()-2+11, 0) -> -0.9523686485 | N66: =OFFSET(calcInput!E$2, ROW()-2+12, 0) -> -0.9860197876 | O66: =OFFSET(calcInput!E$2, ROW()-2+13, 0) -> -0.999689182 | P66: =OFFSET(calcInput!E$2, ROW()-2+14, 0) -> -0.9930998207 | Q66: =OFFSET(calcInput!E$2, ROW()-2+15, 0) -> -0.9663852375 | R66: =OFFSET(calcInput!E$2, ROW()-2+16, 0) -> -0.9200868049 | S66: =OFFSET(calcInput!E$2, ROW()-2+17, 0) -> -0.855142763 | T66: =OFFSET(calcInput!E$2, ROW()-2+18, 0) -> -0.7728692065 | U66: =OFFSET(calcInput!E$2, ROW()-2+19, 0) -> -0.6749334135 | V66: =OFFSET(calcInput!E$2, ROW()-2+20, 0) -> -0.5633200581 | W66: =OFFSET(calcInput!E$2, ROW()-2+21, 0) -> -0.440290991 | X66: =OFFSET(calcInput!E$2, ROW()-2+22, 0) -> -0.3083394031 | Y66: =OFFSET(calcInput!E$2, ROW()-2+23, 0) -> -0.1701393003 | Z66: =OFFSET(calcInput!E$2, ROW()-2+24, 0) -> -0.02849131539 | AA66: =OFFSET(calcInput!E$2, ROW()-2+25, 0) -> 0.1137340476 | AB66: =OFFSET(calcInput!E$2, ROW()-2+26, 0) -> 0.2536545839 | AC66: =OFFSET(calcInput!E$2, ROW()-2+27, 0) -> 0.3884347963 | AD66: =OFFSET(calcInput!E$2, ROW()-2+28, 0) -> 0.5153433563 | AE66: =OFFSET(calcInput!E$2, ROW()-2+29, 0) -> 0.6318084552 | AF66: =OFFSET(calcInput!E$2, ROW()-2+30, 0) -> 0.7354699214 | AG66: =OFFSET(calcInput!E$2, ROW()-2+31, 0) -> 0.8242270496 | AH66: =OFFSET(calcInput!E$2, ROW()-2+32, 0) -> 0.8962811717 | AI66: =OFFSET(calcInput!E$2, ROW()-2+33, 0) -> 0.9501721071 | AJ66: =OFFSET(calcInput!E$2, ROW()-2+34, 0) -> 0.984807753 | AK66: =OFFSET(calcInput!E$2, ROW()-2+35, 0) -> 0.9994862162 | AL66: =OFFSET(calcInput!E$2, ROW()-2+36, 0) -> 0.9939100368 | AM66: =OFFSET(calcInput!E$2, ROW()-2+37, 0) -> 0.9681922164 | AN66: =OFFSET(calcInput!E$2, ROW()-2+38, 0) -> 0.922853928 | AO66: =OFFSET(calcInput!E$2, ROW()-2+39, 0) -> 0.8588139546 | AP66: =OFFSET(calcInput!E$2, ROW()-2+40, 0) -> 0.7773700696 | AQ66: =OFFSET(calcInput!E$2, ROW()-2+41, 0) -> 0.6801727378 | AR66: =OFFSET(calcInput!E$2, ROW()-2+42, 0) -> 0.5691916684 | AS66: =OFFSET(calcInput!E$2, ROW()-2+43, 0) -> 0.4466758989 | AT66: =OFFSET(calcInput!E$2, ROW()-2+44, 0) -> 0.315108218
A67: 65 | B67: =OFFSET(calcInput!E$2, ROW()-2+0, 0) -> 0.1631151144 | C67: =OFFSET(calcInput!E$2, ROW()-2+1, 0) -> 0.02136975179 | D67: =OFFSET(calcInput!E$2, ROW()-2+2, 0) -> -0.1208086701 | E67: =OFFSET(calcInput!E$2, ROW()-2+3, 0) -> -0.2605388976 | F67: =OFFSET(calcInput!E$2, ROW()-2+4, 0) -> -0.3949892902 | G67: =OFFSET(calcInput!E$2, ROW()-2+5, 0) -> -0.5214352034 | H67: =OFFSET(calcInput!E$2, ROW()-2+6, 0) -> -0.6373142037 | I67: =OFFSET(calcInput!E$2, ROW()-2+7, 0) -> -0.7402779971 | J67: =OFFSET(calcInput!E$2, ROW()-2+8, 0) -> -0.8282400165 | K67: =OFFSET(calcInput!E$2, ROW()-2+9, 0) -> -0.8994177069 | L67: =OFFSET(calcInput!E$2, ROW()-2+10, 0) -> -0.9523686485 | M67: =OFFSET(calcInput!E$2, ROW()-2+11, 0) -> -0.9860197876 | N67: =OFFSET(calcInput!E$2, ROW()-2+12, 0) -> -0.999689182 | O67: =OFFSET(calcInput!E$2, ROW()-2+13, 0) -> -0.9930998207 | P67: =OFFSET(calcInput!E$2, ROW()-2+14, 0) -> -0.9663852375 | Q67: =OFFSET(calcInput!E$2, ROW()-2+15, 0) -> -0.9200868049 | R67: =OFFSET(calcInput!E$2, ROW()-2+16, 0) -> -0.855142763 | S67: =OFFSET(calcInput!E$2, ROW()-2+17, 0) -> -0.7728692065 | T67: =OFFSET(calcInput!E$2, ROW()-2+18, 0) -> -0.6749334135 | U67: =OFFSET(calcInput!E$2, ROW()-2+19, 0) -> -0.5633200581 | V67: =OFFSET(calcInput!E$2, ROW()-2+20, 0) -> -0.440290991 | W67: =OFFSET(calcInput!E$2, ROW()-2+21, 0) -> -0.3083394031 | X67: =OFFSET(calcInput!E$2, ROW()-2+22, 0) -> -0.1701393003 | Y67: =OFFSET(calcInput!E$2, ROW()-2+23, 0) -> -0.02849131539 | Z67: =OFFSET(calcInput!E$2, ROW()-2+24, 0) -> 0.1137340476 | AA67: =OFFSET(calcInput!E$2, ROW()-2+25, 0) -> 0.2536545839 | AB67: =OFFSET(calcInput!E$2, ROW()-2+26, 0) -> 0.3884347963 | AC67: =OFFSET(calcInput!E$2, ROW()-2+27, 0) -> 0.5153433563 | AD67: =OFFSET(calcInput!E$2, ROW()-2+28, 0) -> 0.6318084552 | AE67: =OFFSET(calcInput!E$2, ROW()-2+29, 0) -> 0.7354699214 | AF67: =OFFSET(calcInput!E$2, ROW()-2+30, 0) -> 0.8242270496 | AG67: =OFFSET(calcInput!E$2, ROW()-2+31, 0) -> 0.8962811717 | AH67: =OFFSET(calcInput!E$2, ROW()-2+32, 0) -> 0.9501721071 | AI67: =OFFSET(calcInput!E$2, ROW()-2+33, 0) -> 0.984807753 | AJ67: =OFFSET(calcInput!E$2, ROW()-2+34, 0) -> 0.9994862162 | AK67: =OFFSET(calcInput!E$2, ROW()-2+35, 0) -> 0.9939100368 | AL67: =OFFSET(calcInput!E$2, ROW()-2+36, 0) -> 0.9681922164 | AM67: =OFFSET(calcInput!E$2, ROW()-2+37, 0) -> 0.922853928 | AN67: =OFFSET(calcInput!E$2, ROW()-2+38, 0) -> 0.8588139546 | AO67: =OFFSET(calcInput!E$2, ROW()-2+39, 0) -> 0.7773700696 | AP67: =OFFSET(calcInput!E$2, ROW()-2+40, 0) -> 0.6801727378 | AQ67: =OFFSET(calcInput!E$2, ROW()-2+41, 0) -> 0.5691916684 | AR67: =OFFSET(calcInput!E$2, ROW()-2+42, 0) -> 0.4466758989 | AS67: =OFFSET(calcInput!E$2, ROW()-2+43, 0) -> 0.315108218 | AT67: =OFFSET(calcInput!E$2, ROW()-2+44, 0) -> 0.1771548519
A68: 66 | B68: =OFFSET(calcInput!E$2, ROW()-2+0, 0) -> 0.02136975179 | C68: =OFFSET(calcInput!E$2, ROW()-2+1, 0) -> -0.1208086701 | D68: =OFFSET(calcInput!E$2, ROW()-2+2, 0) -> -0.2605388976 | E68: =OFFSET(calcInput!E$2, ROW()-2+3, 0) -> -0.3949892902 | F68: =OFFSET(calcInput!E$2, ROW()-2+4, 0) -> -0.5214352034 | G68: =OFFSET(calcInput!E$2, ROW()-2+5, 0) -> -0.6373142037 | H68: =OFFSET(calcInput!E$2, ROW()-2+6, 0) -> -0.7402779971 | I68: =OFFSET(calcInput!E$2, ROW()-2+7, 0) -> -0.8282400165 | J68: =OFFSET(calcInput!E$2, ROW()-2+8, 0) -> -0.8994177069 | K68: =OFFSET(calcInput!E$2, ROW()-2+9, 0) -> -0.9523686485 | L68: =OFFSET(calcInput!E$2, ROW()-2+10, 0) -> -0.9860197876 | M68: =OFFSET(calcInput!E$2, ROW()-2+11, 0) -> -0.999689182 | N68: =OFFSET(calcInput!E$2, ROW()-2+12, 0) -> -0.9930998207 | O68: =OFFSET(calcInput!E$2, ROW()-2+13, 0) -> -0.9663852375 | P68: =OFFSET(calcInput!E$2, ROW()-2+14, 0) -> -0.9200868049 | Q68: =OFFSET(calcInput!E$2, ROW()-2+15, 0) -> -0.855142763 | R68: =OFFSET(calcInput!E$2, ROW()-2+16, 0) -> -0.7728692065 | S68: =OFFSET(calcInput!E$2, ROW()-2+17, 0) -> -0.6749334135 | T68: =OFFSET(calcInput!E$2, ROW()-2+18, 0) -> -0.5633200581 | U68: =OFFSET(calcInput!E$2, ROW()-2+19, 0) -> -0.440290991 | V68: =OFFSET(calcInput!E$2, ROW()-2+20, 0) -> -0.3083394031 | W68: =OFFSET(calcInput!E$2, ROW()-2+21, 0) -> -0.1701393003 | X68: =OFFSET(calcInput!E$2, ROW()-2+22, 0) -> -0.02849131539 | Y68: =OFFSET(calcInput!E$2, ROW()-2+23, 0) -> 0.1137340476 | Z68: =OFFSET(calcInput!E$2, ROW()-2+24, 0) -> 0.2536545839 | AA68: =OFFSET(calcInput!E$2, ROW()-2+25, 0) -> 0.3884347963 | AB68: =OFFSET(calcInput!E$2, ROW()-2+26, 0) -> 0.5153433563 | AC68: =OFFSET(calcInput!E$2, ROW()-2+27, 0) -> 0.6318084552 | AD68: =OFFSET(calcInput!E$2, ROW()-2+28, 0) -> 0.7354699214 | AE68: =OFFSET(calcInput!E$2, ROW()-2+29, 0) -> 0.8242270496 | AF68: =OFFSET(calcInput!E$2, ROW()-2+30, 0) -> 0.8962811717 | AG68: =OFFSET(calcInput!E$2, ROW()-2+31, 0) -> 0.9501721071 | AH68: =OFFSET(calcInput!E$2, ROW()-2+32, 0) -> 0.984807753 | AI68: =OFFSET(calcInput!E$2, ROW()-2+33, 0) -> 0.9994862162 | AJ68: =OFFSET(calcInput!E$2, ROW()-2+34, 0) -> 0.9939100368 | AK68: =OFFSET(calcInput!E$2, ROW()-2+35, 0) -> 0.9681922164 | AL68: =OFFSET(calcInput!E$2, ROW()-2+36, 0) -> 0.922853928 | AM68: =OFFSET(calcInput!E$2, ROW()-2+37, 0) -> 0.8588139546 | AN68: =OFFSET(calcInput!E$2, ROW()-2+38, 0) -> 0.7773700696 | AO68: =OFFSET(calcInput!E$2, ROW()-2+39, 0) -> 0.6801727378 | AP68: =OFFSET(calcInput!E$2, ROW()-2+40, 0) -> 0.5691916684 | AQ68: =OFFSET(calcInput!E$2, ROW()-2+41, 0) -> 0.4466758989 | AR68: =OFFSET(calcInput!E$2, ROW()-2+42, 0) -> 0.315108218 | AS68: =OFFSET(calcInput!E$2, ROW()-2+43, 0) -> 0.1771548519 | AT68: =OFFSET(calcInput!E$2, ROW()-2+44, 0) -> 0.03561143311
A69: 67 | B69: =OFFSET(calcInput!E$2, ROW()-2+0, 0) -> -0.1208086701 | C69: =OFFSET(calcInput!E$2, ROW()-2+1, 0) -> -0.2605388976 | D69: =OFFSET(calcInput!E$2, ROW()-2+2, 0) -> -0.3949892902 | E69: =OFFSET(calcInput!E$2, ROW()-2+3, 0) -> -0.5214352034 | F69: =OFFSET(calcInput!E$2, ROW()-2+4, 0) -> -0.6373142037 | G69: =OFFSET(calcInput!E$2, ROW()-2+5, 0) -> -0.7402779971 | H69: =OFFSET(calcInput!E$2, ROW()-2+6, 0) -> -0.8282400165 | I69: =OFFSET(calcInput!E$2, ROW()-2+7, 0) -> -0.8994177069 | J69: =OFFSET(calcInput!E$2, ROW()-2+8, 0) -> -0.9523686485 | K69: =OFFSET(calcInput!E$2, ROW()-2+9, 0) -> -0.9860197876 | L69: =OFFSET(calcInput!E$2, ROW()-2+10, 0) -> -0.999689182 | M69: =OFFSET(calcInput!E$2, ROW()-2+11, 0) -> -0.9930998207 | N69: =OFFSET(calcInput!E$2, ROW()-2+12, 0) -> -0.9663852375 | O69: =OFFSET(calcInput!E$2, ROW()-2+13, 0) -> -0.9200868049 | P69: =OFFSET(calcInput!E$2, ROW()-2+14, 0) -> -0.855142763 | Q69: =OFFSET(calcInput!E$2, ROW()-2+15, 0) -> -0.7728692065 | R69: =OFFSET(calcInput!E$2, ROW()-2+16, 0) -> -0.6749334135 | S69: =OFFSET(calcInput!E$2, ROW()-2+17, 0) -> -0.5633200581 | T69: =OFFSET(calcInput!E$2, ROW()-2+18, 0) -> -0.440290991 | U69: =OFFSET(calcInput!E$2, ROW()-2+19, 0) -> -0.3083394031 | V69: =OFFSET(calcInput!E$2, ROW()-2+20, 0) -> -0.1701393003 | W69: =OFFSET(calcInput!E$2, ROW()-2+21, 0) -> -0.02849131539 | X69: =OFFSET(calcInput!E$2, ROW()-2+22, 0) -> 0.1137340476 | Y69: =OFFSET(calcInput!E$2, ROW()-2+23, 0) -> 0.2536545839 | Z69: =OFFSET(calcInput!E$2, ROW()-2+24, 0) -> 0.3884347963 | AA69: =OFFSET(calcInput!E$2, ROW()-2+25, 0) -> 0.5153433563 | AB69: =OFFSET(calcInput!E$2, ROW()-2+26, 0) -> 0.6318084552 | AC69: =OFFSET(calcInput!E$2, ROW()-2+27, 0) -> 0.7354699214 | AD69: =OFFSET(calcInput!E$2, ROW()-2+28, 0) -> 0.8242270496 | AE69: =OFFSET(calcInput!E$2, ROW()-2+29, 0) -> 0.8962811717 | AF69: =OFFSET(calcInput!E$2, ROW()-2+30, 0) -> 0.9501721071 | AG69: =OFFSET(calcInput!E$2, ROW()-2+31, 0) -> 0.984807753 | AH69: =OFFSET(calcInput!E$2, ROW()-2+32, 0) -> 0.9994862162 | AI69: =OFFSET(calcInput!E$2, ROW()-2+33, 0) -> 0.9939100368 | AJ69: =OFFSET(calcInput!E$2, ROW()-2+34, 0) -> 0.9681922164 | AK69: =OFFSET(calcInput!E$2, ROW()-2+35, 0) -> 0.922853928 | AL69: =OFFSET(calcInput!E$2, ROW()-2+36, 0) -> 0.8588139546 | AM69: =OFFSET(calcInput!E$2, ROW()-2+37, 0) -> 0.7773700696 | AN69: =OFFSET(calcInput!E$2, ROW()-2+38, 0) -> 0.6801727378 | AO69: =OFFSET(calcInput!E$2, ROW()-2+39, 0) -> 0.5691916684 | AP69: =OFFSET(calcInput!E$2, ROW()-2+40, 0) -> 0.4466758989 | AQ69: =OFFSET(calcInput!E$2, ROW()-2+41, 0) -> 0.315108218 | AR69: =OFFSET(calcInput!E$2, ROW()-2+42, 0) -> 0.1771548519 | AS69: =OFFSET(calcInput!E$2, ROW()-2+43, 0) -> 0.03561143311 | AT69: =OFFSET(calcInput!E$2, ROW()-2+44, 0) -> -0.1066536533
A70: 68 | B70: =OFFSET(calcInput!E$2, ROW()-2+0, 0) -> -0.2605388976 | C70: =OFFSET(calcInput!E$2, ROW()-2+1, 0) -> -0.3949892902 | D70: =OFFSET(calcInput!E$2, ROW()-2+2, 0) -> -0.5214352034 | E70: =OFFSET(calcInput!E$2, ROW()-2+3, 0) -> -0.6373142037 | F70: =OFFSET(calcInput!E$2, ROW()-2+4, 0) -> -0.7402779971 | G70: =OFFSET(calcInput!E$2, ROW()-2+5, 0) -> -0.8282400165 | H70: =OFFSET(calcInput!E$2, ROW()-2+6, 0) -> -0.8994177069 | I70: =OFFSET(calcInput!E$2, ROW()-2+7, 0) -> -0.9523686485 | J70: =OFFSET(calcInput!E$2, ROW()-2+8, 0) -> -0.9860197876 | K70: =OFFSET(calcInput!E$2, ROW()-2+9, 0) -> -0.999689182 | L70: =OFFSET(calcInput!E$2, ROW()-2+10, 0) -> -0.9930998207 | M70: =OFFSET(calcInput!E$2, ROW()-2+11, 0) -> -0.9663852375 | N70: =OFFSET(calcInput!E$2, ROW()-2+12, 0) -> -0.9200868049 | O70: =OFFSET(calcInput!E$2, ROW()-2+13, 0) -> -0.855142763 | P70: =OFFSET(calcInput!E$2, ROW()-2+14, 0) -> -0.7728692065 | Q70: =OFFSET(calcInput!E$2, ROW()-2+15, 0) -> -0.6749334135 | R70: =OFFSET(calcInput!E$2, ROW()-2+16, 0) -> -0.5633200581 | S70: =OFFSET(calcInput!E$2, ROW()-2+17, 0) -> -0.440290991 | T70: =OFFSET(calcInput!E$2, ROW()-2+18, 0) -> -0.3083394031 | U70: =OFFSET(calcInput!E$2, ROW()-2+19, 0) -> -0.1701393003 | V70: =OFFSET(calcInput!E$2, ROW()-2+20, 0) -> -0.02849131539 | W70: =OFFSET(calcInput!E$2, ROW()-2+21, 0) -> 0.1137340476 | X70: =OFFSET(calcInput!E$2, ROW()-2+22, 0) -> 0.2536545839 | Y70: =OFFSET(calcInput!E$2, ROW()-2+23, 0) -> 0.3884347963 | Z70: =OFFSET(calcInput!E$2, ROW()-2+24, 0) -> 0.5153433563 | AA70: =OFFSET(calcInput!E$2, ROW()-2+25, 0) -> 0.6318084552 | AB70: =OFFSET(calcInput!E$2, ROW()-2+26, 0) -> 0.7354699214 | AC70: =OFFSET(calcInput!E$2, ROW()-2+27, 0) -> 0.8242270496 | AD70: =OFFSET(calcInput!E$2, ROW()-2+28, 0) -> 0.8962811717 | AE70: =OFFSET(calcInput!E$2, ROW()-2+29, 0) -> 0.9501721071 | AF70: =OFFSET(calcInput!E$2, ROW()-2+30, 0) -> 0.984807753 | AG70: =OFFSET(calcInput!E$2, ROW()-2+31, 0) -> 0.9994862162 | AH70: =OFFSET(calcInput!E$2, ROW()-2+32, 0) -> 0.9939100368 | AI70: =OFFSET(calcInput!E$2, ROW()-2+33, 0) -> 0.9681922164 | AJ70: =OFFSET(calcInput!E$2, ROW()-2+34, 0) -> 0.922853928 | AK70: =OFFSET(calcInput!E$2, ROW()-2+35, 0) -> 0.8588139546 | AL70: =OFFSET(calcInput!E$2, ROW()-2+36, 0) -> 0.7773700696 | AM70: =OFFSET(calcInput!E$2, ROW()-2+37, 0) -> 0.6801727378 | AN70: =OFFSET(calcInput!E$2, ROW()-2+38, 0) -> 0.5691916684 | AO70: =OFFSET(calcInput!E$2, ROW()-2+39, 0) -> 0.4466758989 | AP70: =OFFSET(calcInput!E$2, ROW()-2+40, 0) -> 0.315108218 | AQ70: =OFFSET(calcInput!E$2, ROW()-2+41, 0) -> 0.1771548519 | AR70: =OFFSET(calcInput!E$2, ROW()-2+42, 0) -> 0.03561143311 | AS70: =OFFSET(calcInput!E$2, ROW()-2+43, 0) -> -0.1066536533 | AT70: =OFFSET(calcInput!E$2, ROW()-2+44, 0) -> -0.2467573977
A71: 69 | B71: =OFFSET(calcInput!E$2, ROW()-2+0, 0) -> -0.3949892902 | C71: =OFFSET(calcInput!E$2, ROW()-2+1, 0) -> -0.5214352034 | D71: =OFFSET(calcInput!E$2, ROW()-2+2, 0) -> -0.6373142037 | E71: =OFFSET(calcInput!E$2, ROW()-2+3, 0) -> -0.7402779971 | F71: =OFFSET(calcInput!E$2, ROW()-2+4, 0) -> -0.8282400165 | G71: =OFFSET(calcInput!E$2, ROW()-2+5, 0) -> -0.8994177069 | H71: =OFFSET(calcInput!E$2, ROW()-2+6, 0) -> -0.9523686485 | I71: =OFFSET(calcInput!E$2, ROW()-2+7, 0) -> -0.9860197876 | J71: =OFFSET(calcInput!E$2, ROW()-2+8, 0) -> -0.999689182 | K71: =OFFSET(calcInput!E$2, ROW()-2+9, 0) -> -0.9930998207 | L71: =OFFSET(calcInput!E$2, ROW()-2+10, 0) -> -0.9663852375 | M71: =OFFSET(calcInput!E$2, ROW()-2+11, 0) -> -0.9200868049 | N71: =OFFSET(calcInput!E$2, ROW()-2+12, 0) -> -0.855142763 | O71: =OFFSET(calcInput!E$2, ROW()-2+13, 0) -> -0.7728692065 | P71: =OFFSET(calcInput!E$2, ROW()-2+14, 0) -> -0.6749334135 | Q71: =OFFSET(calcInput!E$2, ROW()-2+15, 0) -> -0.5633200581 | R71: =OFFSET(calcInput!E$2, ROW()-2+16, 0) -> -0.440290991 | S71: =OFFSET(calcInput!E$2, ROW()-2+17, 0) -> -0.3083394031 | T71: =OFFSET(calcInput!E$2, ROW()-2+18, 0) -> -0.1701393003 | U71: =OFFSET(calcInput!E$2, ROW()-2+19, 0) -> -0.02849131539 | V71: =OFFSET(calcInput!E$2, ROW()-2+20, 0) -> 0.1137340476 | W71: =OFFSET(calcInput!E$2, ROW()-2+21, 0) -> 0.2536545839 | X71: =OFFSET(calcInput!E$2, ROW()-2+22, 0) -> 0.3884347963 | Y71: =OFFSET(calcInput!E$2, ROW()-2+23, 0) -> 0.5153433563 | Z71: =OFFSET(calcInput!E$2, ROW()-2+24, 0) -> 0.6318084552 | AA71: =OFFSET(calcInput!E$2, ROW()-2+25, 0) -> 0.7354699214 | AB71: =OFFSET(calcInput!E$2, ROW()-2+26, 0) -> 0.8242270496 | AC71: =OFFSET(calcInput!E$2, ROW()-2+27, 0) -> 0.8962811717 | AD71: =OFFSET(calcInput!E$2, ROW()-2+28, 0) -> 0.9501721071 | AE71: =OFFSET(calcInput!E$2, ROW()-2+29, 0) -> 0.984807753 | AF71: =OFFSET(calcInput!E$2, ROW()-2+30, 0) -> 0.9994862162 | AG71: =OFFSET(calcInput!E$2, ROW()-2+31, 0) -> 0.9939100368 | AH71: =OFFSET(calcInput!E$2, ROW()-2+32, 0) -> 0.9681922164 | AI71: =OFFSET(calcInput!E$2, ROW()-2+33, 0) -> 0.922853928 | AJ71: =OFFSET(calcInput!E$2, ROW()-2+34, 0) -> 0.8588139546 | AK71: =OFFSET(calcInput!E$2, ROW()-2+35, 0) -> 0.7773700696 | AL71: =OFFSET(calcInput!E$2, ROW()-2+36, 0) -> 0.6801727378 | AM71: =OFFSET(calcInput!E$2, ROW()-2+37, 0) -> 0.5691916684 | AN71: =OFFSET(calcInput!E$2, ROW()-2+38, 0) -> 0.4466758989 | AO71: =OFFSET(calcInput!E$2, ROW()-2+39, 0) -> 0.315108218 | AP71: =OFFSET(calcInput!E$2, ROW()-2+40, 0) -> 0.1771548519 | AQ71: =OFFSET(calcInput!E$2, ROW()-2+41, 0) -> 0.03561143311 | AR71: =OFFSET(calcInput!E$2, ROW()-2+42, 0) -> -0.1066536533 | AS71: =OFFSET(calcInput!E$2, ROW()-2+43, 0) -> -0.2467573977 | AT71: =OFFSET(calcInput!E$2, ROW()-2+44, 0) -> -0.3818605899
A72: 70 | B72: =OFFSET(calcInput!E$2, ROW()-2+0, 0) -> -0.5214352034 | C72: =OFFSET(calcInput!E$2, ROW()-2+1, 0) -> -0.6373142037 | D72: =OFFSET(calcInput!E$2, ROW()-2+2, 0) -> -0.7402779971 | E72: =OFFSET(calcInput!E$2, ROW()-2+3, 0) -> -0.8282400165 | F72: =OFFSET(calcInput!E$2, ROW()-2+4, 0) -> -0.8994177069 | G72: =OFFSET(calcInput!E$2, ROW()-2+5, 0) -> -0.9523686485 | H72: =OFFSET(calcInput!E$2, ROW()-2+6, 0) -> -0.9860197876 | I72: =OFFSET(calcInput!E$2, ROW()-2+7, 0) -> -0.999689182 | J72: =OFFSET(calcInput!E$2, ROW()-2+8, 0) -> -0.9930998207 | K72: =OFFSET(calcInput!E$2, ROW()-2+9, 0) -> -0.9663852375 | L72: =OFFSET(calcInput!E$2, ROW()-2+10, 0) -> -0.9200868049 | M72: =OFFSET(calcInput!E$2, ROW()-2+11, 0) -> -0.855142763 | N72: =OFFSET(calcInput!E$2, ROW()-2+12, 0) -> -0.7728692065 | O72: =OFFSET(calcInput!E$2, ROW()-2+13, 0) -> -0.6749334135 | P72: =OFFSET(calcInput!E$2, ROW()-2+14, 0) -> -0.5633200581 | Q72: =OFFSET(calcInput!E$2, ROW()-2+15, 0) -> -0.440290991 | R72: =OFFSET(calcInput!E$2, ROW()-2+16, 0) -> -0.3083394031 | S72: =OFFSET(calcInput!E$2, ROW()-2+17, 0) -> -0.1701393003 | T72: =OFFSET(calcInput!E$2, ROW()-2+18, 0) -> -0.02849131539 | U72: =OFFSET(calcInput!E$2, ROW()-2+19, 0) -> 0.1137340476 | V72: =OFFSET(calcInput!E$2, ROW()-2+20, 0) -> 0.2536545839 | W72: =OFFSET(calcInput!E$2, ROW()-2+21, 0) -> 0.3884347963 | X72: =OFFSET(calcInput!E$2, ROW()-2+22, 0) -> 0.5153433563 | Y72: =OFFSET(calcInput!E$2, ROW()-2+23, 0) -> 0.6318084552 | Z72: =OFFSET(calcInput!E$2, ROW()-2+24, 0) -> 0.7354699214 | AA72: =OFFSET(calcInput!E$2, ROW()-2+25, 0) -> 0.8242270496 | AB72: =OFFSET(calcInput!E$2, ROW()-2+26, 0) -> 0.8962811717 | AC72: =OFFSET(calcInput!E$2, ROW()-2+27, 0) -> 0.9501721071 | AD72: =OFFSET(calcInput!E$2, ROW()-2+28, 0) -> 0.984807753 | AE72: =OFFSET(calcInput!E$2, ROW()-2+29, 0) -> 0.9994862162 | AF72: =OFFSET(calcInput!E$2, ROW()-2+30, 0) -> 0.9939100368 | AG72: =OFFSET(calcInput!E$2, ROW()-2+31, 0) -> 0.9681922164 | AH72: =OFFSET(calcInput!E$2, ROW()-2+32, 0) -> 0.922853928 | AI72: =OFFSET(calcInput!E$2, ROW()-2+33, 0) -> 0.8588139546 | AJ72: =OFFSET(calcInput!E$2, ROW()-2+34, 0) -> 0.7773700696 | AK72: =OFFSET(calcInput!E$2, ROW()-2+35, 0) -> 0.6801727378 | AL72: =OFFSET(calcInput!E$2, ROW()-2+36, 0) -> 0.5691916684 | AM72: =OFFSET(calcInput!E$2, ROW()-2+37, 0) -> 0.4466758989 | AN72: =OFFSET(calcInput!E$2, ROW()-2+38, 0) -> 0.315108218 | AO72: =OFFSET(calcInput!E$2, ROW()-2+39, 0) -> 0.1771548519 | AP72: =OFFSET(calcInput!E$2, ROW()-2+40, 0) -> 0.03561143311 | AQ72: =OFFSET(calcInput!E$2, ROW()-2+41, 0) -> -0.1066536533 | AR72: =OFFSET(calcInput!E$2, ROW()-2+42, 0) -> -0.2467573977 | AS72: =OFFSET(calcInput!E$2, ROW()-2+43, 0) -> -0.3818605899 | AT72: =OFFSET(calcInput!E$2, ROW()-2+44, 0) -> -0.5092253566
A73: 71 | B73: =OFFSET(calcInput!E$2, ROW()-2+0, 0) -> -0.6373142037 | C73: =OFFSET(calcInput!E$2, ROW()-2+1, 0) -> -0.7402779971 | D73: =OFFSET(calcInput!E$2, ROW()-2+2, 0) -> -0.8282400165 | E73: =OFFSET(calcInput!E$2, ROW()-2+3, 0) -> -0.8994177069 | F73: =OFFSET(calcInput!E$2, ROW()-2+4, 0) -> -0.9523686485 | G73: =OFFSET(calcInput!E$2, ROW()-2+5, 0) -> -0.9860197876 | H73: =OFFSET(calcInput!E$2, ROW()-2+6, 0) -> -0.999689182 | I73: =OFFSET(calcInput!E$2, ROW()-2+7, 0) -> -0.9930998207 | J73: =OFFSET(calcInput!E$2, ROW()-2+8, 0) -> -0.9663852375 | K73: =OFFSET(calcInput!E$2, ROW()-2+9, 0) -> -0.9200868049 | L73: =OFFSET(calcInput!E$2, ROW()-2+10, 0) -> -0.855142763 | M73: =OFFSET(calcInput!E$2, ROW()-2+11, 0) -> -0.7728692065 | N73: =OFFSET(calcInput!E$2, ROW()-2+12, 0) -> -0.6749334135 | O73: =OFFSET(calcInput!E$2, ROW()-2+13, 0) -> -0.5633200581 | P73: =OFFSET(calcInput!E$2, ROW()-2+14, 0) -> -0.440290991 | Q73: =OFFSET(calcInput!E$2, ROW()-2+15, 0) -> -0.3083394031 | R73: =OFFSET(calcInput!E$2, ROW()-2+16, 0) -> -0.1701393003 | S73: =OFFSET(calcInput!E$2, ROW()-2+17, 0) -> -0.02849131539 | T73: =OFFSET(calcInput!E$2, ROW()-2+18, 0) -> 0.1137340476 | U73: =OFFSET(calcInput!E$2, ROW()-2+19, 0) -> 0.2536545839 | V73: =OFFSET(calcInput!E$2, ROW()-2+20, 0) -> 0.3884347963 | W73: =OFFSET(calcInput!E$2, ROW()-2+21, 0) -> 0.5153433563 | X73: =OFFSET(calcInput!E$2, ROW()-2+22, 0) -> 0.6318084552 | Y73: =OFFSET(calcInput!E$2, ROW()-2+23, 0) -> 0.7354699214 | Z73: =OFFSET(calcInput!E$2, ROW()-2+24, 0) -> 0.8242270496 | AA73: =OFFSET(calcInput!E$2, ROW()-2+25, 0) -> 0.8962811717 | AB73: =OFFSET(calcInput!E$2, ROW()-2+26, 0) -> 0.9501721071 | AC73: =OFFSET(calcInput!E$2, ROW()-2+27, 0) -> 0.984807753 | AD73: =OFFSET(calcInput!E$2, ROW()-2+28, 0) -> 0.9994862162 | AE73: =OFFSET(calcInput!E$2, ROW()-2+29, 0) -> 0.9939100368 | AF73: =OFFSET(calcInput!E$2, ROW()-2+30, 0) -> 0.9681922164 | AG73: =OFFSET(calcInput!E$2, ROW()-2+31, 0) -> 0.922853928 | AH73: =OFFSET(calcInput!E$2, ROW()-2+32, 0) -> 0.8588139546 | AI73: =OFFSET(calcInput!E$2, ROW()-2+33, 0) -> 0.7773700696 | AJ73: =OFFSET(calcInput!E$2, ROW()-2+34, 0) -> 0.6801727378 | AK73: =OFFSET(calcInput!E$2, ROW()-2+35, 0) -> 0.5691916684 | AL73: =OFFSET(calcInput!E$2, ROW()-2+36, 0) -> 0.4466758989 | AM73: =OFFSET(calcInput!E$2, ROW()-2+37, 0) -> 0.315108218 | AN73: =OFFSET(calcInput!E$2, ROW()-2+38, 0) -> 0.1771548519 | AO73: =OFFSET(calcInput!E$2, ROW()-2+39, 0) -> 0.03561143311 | AP73: =OFFSET(calcInput!E$2, ROW()-2+40, 0) -> -0.1066536533 | AQ73: =OFFSET(calcInput!E$2, ROW()-2+41, 0) -> -0.2467573977 | AR73: =OFFSET(calcInput!E$2, ROW()-2+42, 0) -> -0.3818605899 | AS73: =OFFSET(calcInput!E$2, ROW()-2+43, 0) -> -0.5092253566 | AT73: =OFFSET(calcInput!E$2, ROW()-2+44, 0) -> -0.6262706436
A74: 72 | B74: =OFFSET(calcInput!E$2, ROW()-2+0, 0) -> -0.7402779971 | C74: =OFFSET(calcInput!E$2, ROW()-2+1, 0) -> -0.8282400165 | D74: =OFFSET(calcInput!E$2, ROW()-2+2, 0) -> -0.8994177069 | E74: =OFFSET(calcInput!E$2, ROW()-2+3, 0) -> -0.9523686485 | F74: =OFFSET(calcInput!E$2, ROW()-2+4, 0) -> -0.9860197876 | G74: =OFFSET(calcInput!E$2, ROW()-2+5, 0) -> -0.999689182 | H74: =OFFSET(calcInput!E$2, ROW()-2+6, 0) -> -0.9930998207 | I74: =OFFSET(calcInput!E$2, ROW()-2+7, 0) -> -0.9663852375 | J74: =OFFSET(calcInput!E$2, ROW()-2+8, 0) -> -0.9200868049 | K74: =OFFSET(calcInput!E$2, ROW()-2+9, 0) -> -0.855142763 | L74: =OFFSET(calcInput!E$2, ROW()-2+10, 0) -> -0.7728692065 | M74: =OFFSET(calcInput!E$2, ROW()-2+11, 0) -> -0.6749334135 | N74: =OFFSET(calcInput!E$2, ROW()-2+12, 0) -> -0.5633200581 | O74: =OFFSET(calcInput!E$2, ROW()-2+13, 0) -> -0.440290991 | P74: =OFFSET(calcInput!E$2, ROW()-2+14, 0) -> -0.3083394031 | Q74: =OFFSET(calcInput!E$2, ROW()-2+15, 0) -> -0.1701393003 | R74: =OFFSET(calcInput!E$2, ROW()-2+16, 0) -> -0.02849131539 | S74: =OFFSET(calcInput!E$2, ROW()-2+17, 0) -> 0.1137340476 | T74: =OFFSET(calcInput!E$2, ROW()-2+18, 0) -> 0.2536545839 | U74: =OFFSET(calcInput!E$2, ROW()-2+19, 0) -> 0.3884347963 | V74: =OFFSET(calcInput!E$2, ROW()-2+20, 0) -> 0.5153433563 | W74: =OFFSET(calcInput!E$2, ROW()-2+21, 0) -> 0.6318084552 | X74: =OFFSET(calcInput!E$2, ROW()-2+22, 0) -> 0.7354699214 | Y74: =OFFSET(calcInput!E$2, ROW()-2+23, 0) -> 0.8242270496 | Z74: =OFFSET(calcInput!E$2, ROW()-2+24, 0) -> 0.8962811717 | AA74: =OFFSET(calcInput!E$2, ROW()-2+25, 0) -> 0.9501721071 | AB74: =OFFSET(calcInput!E$2, ROW()-2+26, 0) -> 0.984807753 | AC74: =OFFSET(calcInput!E$2, ROW()-2+27, 0) -> 0.9994862162 | AD74: =OFFSET(calcInput!E$2, ROW()-2+28, 0) -> 0.9939100368 | AE74: =OFFSET(calcInput!E$2, ROW()-2+29, 0) -> 0.9681922164 | AF74: =OFFSET(calcInput!E$2, ROW()-2+30, 0) -> 0.922853928 | AG74: =OFFSET(calcInput!E$2, ROW()-2+31, 0) -> 0.8588139546 | AH74: =OFFSET(calcInput!E$2, ROW()-2+32, 0) -> 0.7773700696 | AI74: =OFFSET(calcInput!E$2, ROW()-2+33, 0) -> 0.6801727378 | AJ74: =OFFSET(calcInput!E$2, ROW()-2+34, 0) -> 0.5691916684 | AK74: =OFFSET(calcInput!E$2, ROW()-2+35, 0) -> 0.4466758989 | AL74: =OFFSET(calcInput!E$2, ROW()-2+36, 0) -> 0.315108218 | AM74: =OFFSET(calcInput!E$2, ROW()-2+37, 0) -> 0.1771548519 | AN74: =OFFSET(calcInput!E$2, ROW()-2+38, 0) -> 0.03561143311 | AO74: =OFFSET(calcInput!E$2, ROW()-2+39, 0) -> -0.1066536533 | AP74: =OFFSET(calcInput!E$2, ROW()-2+40, 0) -> -0.2467573977 | AQ74: =OFFSET(calcInput!E$2, ROW()-2+41, 0) -> -0.3818605899 | AR74: =OFFSET(calcInput!E$2, ROW()-2+42, 0) -> -0.5092253566 | AS74: =OFFSET(calcInput!E$2, ROW()-2+43, 0) -> -0.6262706436 | AT74: =OFFSET(calcInput!E$2, ROW()-2+44, 0) -> -0.730624522
A75: 73 | B75: =OFFSET(calcInput!E$2, ROW()-2+0, 0) -> -0.8282400165 | C75: =OFFSET(calcInput!E$2, ROW()-2+1, 0) -> -0.8994177069 | D75: =OFFSET(calcInput!E$2, ROW()-2+2, 0) -> -0.9523686485 | E75: =OFFSET(calcInput!E$2, ROW()-2+3, 0) -> -0.9860197876 | F75: =OFFSET(calcInput!E$2, ROW()-2+4, 0) -> -0.999689182 | G75: =OFFSET(calcInput!E$2, ROW()-2+5, 0) -> -0.9930998207 | H75: =OFFSET(calcInput!E$2, ROW()-2+6, 0) -> -0.9663852375 | I75: =OFFSET(calcInput!E$2, ROW()-2+7, 0) -> -0.9200868049 | J75: =OFFSET(calcInput!E$2, ROW()-2+8, 0) -> -0.855142763 | K75: =OFFSET(calcInput!E$2, ROW()-2+9, 0) -> -0.7728692065 | L75: =OFFSET(calcInput!E$2, ROW()-2+10, 0) -> -0.6749334135 | M75: =OFFSET(calcInput!E$2, ROW()-2+11, 0) -> -0.5633200581 | N75: =OFFSET(calcInput!E$2, ROW()-2+12, 0) -> -0.440290991 | O75: =OFFSET(calcInput!E$2, ROW()-2+13, 0) -> -0.3083394031 | P75: =OFFSET(calcInput!E$2, ROW()-2+14, 0) -> -0.1701393003 | Q75: =OFFSET(calcInput!E$2, ROW()-2+15, 0) -> -0.02849131539 | R75: =OFFSET(calcInput!E$2, ROW()-2+16, 0) -> 0.1137340476 | S75: =OFFSET(calcInput!E$2, ROW()-2+17, 0) -> 0.2536545839 | T75: =OFFSET(calcInput!E$2, ROW()-2+18, 0) -> 0.3884347963 | U75: =OFFSET(calcInput!E$2, ROW()-2+19, 0) -> 0.5153433563 | V75: =OFFSET(calcInput!E$2, ROW()-2+20, 0) -> 0.6318084552 | W75: =OFFSET(calcInput!E$2, ROW()-2+21, 0) -> 0.7354699214 | X75: =OFFSET(calcInput!E$2, ROW()-2+22, 0) -> 0.8242270496 | Y75: =OFFSET(calcInput!E$2, ROW()-2+23, 0) -> 0.8962811717 | Z75: =OFFSET(calcInput!E$2, ROW()-2+24, 0) -> 0.9501721071 | AA75: =OFFSET(calcInput!E$2, ROW()-2+25, 0) -> 0.984807753 | AB75: =OFFSET(calcInput!E$2, ROW()-2+26, 0) -> 0.9994862162 | AC75: =OFFSET(calcInput!E$2, ROW()-2+27, 0) -> 0.9939100368 | AD75: =OFFSET(calcInput!E$2, ROW()-2+28, 0) -> 0.9681922164 | AE75: =OFFSET(calcInput!E$2, ROW()-2+29, 0) -> 0.922853928 | AF75: =OFFSET(calcInput!E$2, ROW()-2+30, 0) -> 0.8588139546 | AG75: =OFFSET(calcInput!E$2, ROW()-2+31, 0) -> 0.7773700696 | AH75: =OFFSET(calcInput!E$2, ROW()-2+32, 0) -> 0.6801727378 | AI75: =OFFSET(calcInput!E$2, ROW()-2+33, 0) -> 0.5691916684 | AJ75: =OFFSET(calcInput!E$2, ROW()-2+34, 0) -> 0.4466758989 | AK75: =OFFSET(calcInput!E$2, ROW()-2+35, 0) -> 0.315108218 | AL75: =OFFSET(calcInput!E$2, ROW()-2+36, 0) -> 0.1771548519 | AM75: =OFFSET(calcInput!E$2, ROW()-2+37, 0) -> 0.03561143311 | AN75: =OFFSET(calcInput!E$2, ROW()-2+38, 0) -> -0.1066536533 | AO75: =OFFSET(calcInput!E$2, ROW()-2+39, 0) -> -0.2467573977 | AP75: =OFFSET(calcInput!E$2, ROW()-2+40, 0) -> -0.3818605899 | AQ75: =OFFSET(calcInput!E$2, ROW()-2+41, 0) -> -0.5092253566 | AR75: =OFFSET(calcInput!E$2, ROW()-2+42, 0) -> -0.6262706436 | AS75: =OFFSET(calcInput!E$2, ROW()-2+43, 0) -> -0.730624522 | AT75: =OFFSET(calcInput!E$2, ROW()-2+44, 0) -> -0.8201722546
A76: 74 | B76: =OFFSET(calcInput!E$2, ROW()-2+0, 0) -> -0.8994177069 | C76: =OFFSET(calcInput!E$2, ROW()-2+1, 0) -> -0.9523686485 | D76: =OFFSET(calcInput!E$2, ROW()-2+2, 0) -> -0.9860197876 | E76: =OFFSET(calcInput!E$2, ROW()-2+3, 0) -> -0.999689182 | F76: =OFFSET(calcInput!E$2, ROW()-2+4, 0) -> -0.9930998207 | G76: =OFFSET(calcInput!E$2, ROW()-2+5, 0) -> -0.9663852375 | H76: =OFFSET(calcInput!E$2, ROW()-2+6, 0) -> -0.9200868049 | I76: =OFFSET(calcInput!E$2, ROW()-2+7, 0) -> -0.855142763 | J76: =OFFSET(calcInput!E$2, ROW()-2+8, 0) -> -0.7728692065 | K76: =OFFSET(calcInput!E$2, ROW()-2+9, 0) -> -0.6749334135 | L76: =OFFSET(calcInput!E$2, ROW()-2+10, 0) -> -0.5633200581 | M76: =OFFSET(calcInput!E$2, ROW()-2+11, 0) -> -0.440290991 | N76: =OFFSET(calcInput!E$2, ROW()-2+12, 0) -> -0.3083394031 | O76: =OFFSET(calcInput!E$2, ROW()-2+13, 0) -> -0.1701393003 | P76: =OFFSET(calcInput!E$2, ROW()-2+14, 0) -> -0.02849131539 | Q76: =OFFSET(calcInput!E$2, ROW()-2+15, 0) -> 0.1137340476 | R76: =OFFSET(calcInput!E$2, ROW()-2+16, 0) -> 0.2536545839 | S76: =OFFSET(calcInput!E$2, ROW()-2+17, 0) -> 0.3884347963 | T76: =OFFSET(calcInput!E$2, ROW()-2+18, 0) -> 0.5153433563 | U76: =OFFSET(calcInput!E$2, ROW()-2+19, 0) -> 0.6318084552 | V76: =OFFSET(calcInput!E$2, ROW()-2+20, 0) -> 0.7354699214 | W76: =OFFSET(calcInput!E$2, ROW()-2+21, 0) -> 0.8242270496 | X76: =OFFSET(calcInput!E$2, ROW()-2+22, 0) -> 0.8962811717 | Y76: =OFFSET(calcInput!E$2, ROW()-2+23, 0) -> 0.9501721071 | Z76: =OFFSET(calcInput!E$2, ROW()-2+24, 0) -> 0.984807753 | AA76: =OFFSET(calcInput!E$2, ROW()-2+25, 0) -> 0.9994862162 | AB76: =OFFSET(calcInput!E$2, ROW()-2+26, 0) -> 0.9939100368 | AC76: =OFFSET(calcInput!E$2, ROW()-2+27, 0) -> 0.9681922164 | AD76: =OFFSET(calcInput!E$2, ROW()-2+28, 0) -> 0.922853928 | AE76: =OFFSET(calcInput!E$2, ROW()-2+29, 0) -> 0.8588139546 | AF76: =OFFSET(calcInput!E$2, ROW()-2+30, 0) -> 0.7773700696 | AG76: =OFFSET(calcInput!E$2, ROW()-2+31, 0) -> 0.6801727378 | AH76: =OFFSET(calcInput!E$2, ROW()-2+32, 0) -> 0.5691916684 | AI76: =OFFSET(calcInput!E$2, ROW()-2+33, 0) -> 0.4466758989 | AJ76: =OFFSET(calcInput!E$2, ROW()-2+34, 0) -> 0.315108218 | AK76: =OFFSET(calcInput!E$2, ROW()-2+35, 0) -> 0.1771548519 | AL76: =OFFSET(calcInput!E$2, ROW()-2+36, 0) -> 0.03561143311 | AM76: =OFFSET(calcInput!E$2, ROW()-2+37, 0) -> -0.1066536533 | AN76: =OFFSET(calcInput!E$2, ROW()-2+38, 0) -> -0.2467573977 | AO76: =OFFSET(calcInput!E$2, ROW()-2+39, 0) -> -0.3818605899 | AP76: =OFFSET(calcInput!E$2, ROW()-2+40, 0) -> -0.5092253566 | AQ76: =OFFSET(calcInput!E$2, ROW()-2+41, 0) -> -0.6262706436 | AR76: =OFFSET(calcInput!E$2, ROW()-2+42, 0) -> -0.730624522 | AS76: =OFFSET(calcInput!E$2, ROW()-2+43, 0) -> -0.8201722546 | AT76: =OFFSET(calcInput!E$2, ROW()-2+44, 0) -> -0.8930991518
A77: 75 | B77: =OFFSET(calcInput!E$2, ROW()-2+0, 0) -> -0.9523686485 | C77: =OFFSET(calcInput!E$2, ROW()-2+1, 0) -> -0.9860197876 | D77: =OFFSET(calcInput!E$2, ROW()-2+2, 0) -> -0.999689182 | E77: =OFFSET(calcInput!E$2, ROW()-2+3, 0) -> -0.9930998207 | F77: =OFFSET(calcInput!E$2, ROW()-2+4, 0) -> -0.9663852375 | G77: =OFFSET(calcInput!E$2, ROW()-2+5, 0) -> -0.9200868049 | H77: =OFFSET(calcInput!E$2, ROW()-2+6, 0) -> -0.855142763 | I77: =OFFSET(calcInput!E$2, ROW()-2+7, 0) -> -0.7728692065 | J77: =OFFSET(calcInput!E$2, ROW()-2+8, 0) -> -0.6749334135 | K77: =OFFSET(calcInput!E$2, ROW()-2+9, 0) -> -0.5633200581 | L77: =OFFSET(calcInput!E$2, ROW()-2+10, 0) -> -0.440290991 | M77: =OFFSET(calcInput!E$2, ROW()-2+11, 0) -> -0.3083394031 | N77: =OFFSET(calcInput!E$2, ROW()-2+12, 0) -> -0.1701393003 | O77: =OFFSET(calcInput!E$2, ROW()-2+13, 0) -> -0.02849131539 | P77: =OFFSET(calcInput!E$2, ROW()-2+14, 0) -> 0.1137340476 | Q77: =OFFSET(calcInput!E$2, ROW()-2+15, 0) -> 0.2536545839 | R77: =OFFSET(calcInput!E$2, ROW()-2+16, 0) -> 0.3884347963 | S77: =OFFSET(calcInput!E$2, ROW()-2+17, 0) -> 0.5153433563 | T77: =OFFSET(calcInput!E$2, ROW()-2+18, 0) -> 0.6318084552 | U77: =OFFSET(calcInput!E$2, ROW()-2+19, 0) -> 0.7354699214 | V77: =OFFSET(calcInput!E$2, ROW()-2+20, 0) -> 0.8242270496 | W77: =OFFSET(calcInput!E$2, ROW()-2+21, 0) -> 0.8962811717 | X77: =OFFSET(calcInput!E$2, ROW()-2+22, 0) -> 0.9501721071 | Y77: =OFFSET(calcInput!E$2, ROW()-2+23, 0) -> 0.984807753 | Z77: =OFFSET(calcInput!E$2, ROW()-2+24, 0) -> 0.9994862162 | AA77: =OFFSET(calcInput!E$2, ROW()-2+25, 0) -> 0.9939100368 | AB77: =OFFSET(calcInput!E$2, ROW()-2+26, 0) -> 0.9681922164 | AC77: =OFFSET(calcInput!E$2, ROW()-2+27, 0) -> 0.922853928 | AD77: =OFFSET(calcInput!E$2, ROW()-2+28, 0) -> 0.8588139546 | AE77: =OFFSET(calcInput!E$2, ROW()-2+29, 0) -> 0.7773700696 | AF77: =OFFSET(calcInput!E$2, ROW()-2+30, 0) -> 0.6801727378 | AG77: =OFFSET(calcInput!E$2, ROW()-2+31, 0) -> 0.5691916684 | AH77: =OFFSET(calcInput!E$2, ROW()-2+32, 0) -> 0.4466758989 | AI77: =OFFSET(calcInput!E$2, ROW()-2+33, 0) -> 0.315108218 | AJ77: =OFFSET(calcInput!E$2, ROW()-2+34, 0) -> 0.1771548519 | AK77: =OFFSET(calcInput!E$2, ROW()-2+35, 0) -> 0.03561143311 | AL77: =OFFSET(calcInput!E$2, ROW()-2+36, 0) -> -0.1066536533 | AM77: =OFFSET(calcInput!E$2, ROW()-2+37, 0) -> -0.2467573977 | AN77: =OFFSET(calcInput!E$2, ROW()-2+38, 0) -> -0.3818605899 | AO77: =OFFSET(calcInput!E$2, ROW()-2+39, 0) -> -0.5092253566 | AP77: =OFFSET(calcInput!E$2, ROW()-2+40, 0) -> -0.6262706436 | AQ77: =OFFSET(calcInput!E$2, ROW()-2+41, 0) -> -0.730624522 | AR77: =OFFSET(calcInput!E$2, ROW()-2+42, 0) -> -0.8201722546 | AS77: =OFFSET(calcInput!E$2, ROW()-2+43, 0) -> -0.8930991518 | AT77: =OFFSET(calcInput!E$2, ROW()-2+44, 0) -> -0.9479273462
A78: 76 | B78: =OFFSET(calcInput!E$2, ROW()-2+0, 0) -> -0.9860197876 | C78: =OFFSET(calcInput!E$2, ROW()-2+1, 0) -> -0.999689182 | D78: =OFFSET(calcInput!E$2, ROW()-2+2, 0) -> -0.9930998207 | E78: =OFFSET(calcInput!E$2, ROW()-2+3, 0) -> -0.9663852375 | F78: =OFFSET(calcInput!E$2, ROW()-2+4, 0) -> -0.9200868049 | G78: =OFFSET(calcInput!E$2, ROW()-2+5, 0) -> -0.855142763 | H78: =OFFSET(calcInput!E$2, ROW()-2+6, 0) -> -0.7728692065 | I78: =OFFSET(calcInput!E$2, ROW()-2+7, 0) -> -0.6749334135 | J78: =OFFSET(calcInput!E$2, ROW()-2+8, 0) -> -0.5633200581 | K78: =OFFSET(calcInput!E$2, ROW()-2+9, 0) -> -0.440290991 | L78: =OFFSET(calcInput!E$2, ROW()-2+10, 0) -> -0.3083394031 | M78: =OFFSET(calcInput!E$2, ROW()-2+11, 0) -> -0.1701393003 | N78: =OFFSET(calcInput!E$2, ROW()-2+12, 0) -> -0.02849131539 | O78: =OFFSET(calcInput!E$2, ROW()-2+13, 0) -> 0.1137340476 | P78: =OFFSET(calcInput!E$2, ROW()-2+14, 0) -> 0.2536545839 | Q78: =OFFSET(calcInput!E$2, ROW()-2+15, 0) -> 0.3884347963 | R78: =OFFSET(calcInput!E$2, ROW()-2+16, 0) -> 0.5153433563 | S78: =OFFSET(calcInput!E$2, ROW()-2+17, 0) -> 0.6318084552 | T78: =OFFSET(calcInput!E$2, ROW()-2+18, 0) -> 0.7354699214 | U78: =OFFSET(calcInput!E$2, ROW()-2+19, 0) -> 0.8242270496 | V78: =OFFSET(calcInput!E$2, ROW()-2+20, 0) -> 0.8962811717 | W78: =OFFSET(calcInput!E$2, ROW()-2+21, 0) -> 0.9501721071 | X78: =OFFSET(calcInput!E$2, ROW()-2+22, 0) -> 0.984807753 | Y78: =OFFSET(calcInput!E$2, ROW()-2+23, 0) -> 0.9994862162 | Z78: =OFFSET(calcInput!E$2, ROW()-2+24, 0) -> 0.9939100368 | AA78: =OFFSET(calcInput!E$2, ROW()-2+25, 0) -> 0.9681922164 | AB78: =OFFSET(calcInput!E$2, ROW()-2+26, 0) -> 0.922853928 | AC78: =OFFSET(calcInput!E$2, ROW()-2+27, 0) -> 0.8588139546 | AD78: =OFFSET(calcInput!E$2, ROW()-2+28, 0) -> 0.7773700696 | AE78: =OFFSET(calcInput!E$2, ROW()-2+29, 0) -> 0.6801727378 | AF78: =OFFSET(calcInput!E$2, ROW()-2+30, 0) -> 0.5691916684 | AG78: =OFFSET(calcInput!E$2, ROW()-2+31, 0) -> 0.4466758989 | AH78: =OFFSET(calcInput!E$2, ROW()-2+32, 0) -> 0.315108218 | AI78: =OFFSET(calcInput!E$2, ROW()-2+33, 0) -> 0.1771548519 | AJ78: =OFFSET(calcInput!E$2, ROW()-2+34, 0) -> 0.03561143311 | AK78: =OFFSET(calcInput!E$2, ROW()-2+35, 0) -> -0.1066536533 | AL78: =OFFSET(calcInput!E$2, ROW()-2+36, 0) -> -0.2467573977 | AM78: =OFFSET(calcInput!E$2, ROW()-2+37, 0) -> -0.3818605899 | AN78: =OFFSET(calcInput!E$2, ROW()-2+38, 0) -> -0.5092253566 | AO78: =OFFSET(calcInput!E$2, ROW()-2+39, 0) -> -0.6262706436 | AP78: =OFFSET(calcInput!E$2, ROW()-2+40, 0) -> -0.730624522 | AQ78: =OFFSET(calcInput!E$2, ROW()-2+41, 0) -> -0.8201722546 | AR78: =OFFSET(calcInput!E$2, ROW()-2+42, 0) -> -0.8930991518 | AS78: =OFFSET(calcInput!E$2, ROW()-2+43, 0) -> -0.9479273462 | AT78: =OFFSET(calcInput!E$2, ROW()-2+44, 0) -> -0.9835457412
A79: 77 | B79: =OFFSET(calcInput!E$2, ROW()-2+0, 0) -> -0.999689182 | C79: =OFFSET(calcInput!E$2, ROW()-2+1, 0) -> -0.9930998207 | D79: =OFFSET(calcInput!E$2, ROW()-2+2, 0) -> -0.9663852375 | E79: =OFFSET(calcInput!E$2, ROW()-2+3, 0) -> -0.9200868049 | F79: =OFFSET(calcInput!E$2, ROW()-2+4, 0) -> -0.855142763 | G79: =OFFSET(calcInput!E$2, ROW()-2+5, 0) -> -0.7728692065 | H79: =OFFSET(calcInput!E$2, ROW()-2+6, 0) -> -0.6749334135 | I79: =OFFSET(calcInput!E$2, ROW()-2+7, 0) -> -0.5633200581 | J79: =OFFSET(calcInput!E$2, ROW()-2+8, 0) -> -0.440290991 | K79: =OFFSET(calcInput!E$2, ROW()-2+9, 0) -> -0.3083394031 | L79: =OFFSET(calcInput!E$2, ROW()-2+10, 0) -> -0.1701393003 | M79: =OFFSET(calcInput!E$2, ROW()-2+11, 0) -> -0.02849131539 | N79: =OFFSET(calcInput!E$2, ROW()-2+12, 0) -> 0.1137340476 | O79: =OFFSET(calcInput!E$2, ROW()-2+13, 0) -> 0.2536545839 | P79: =OFFSET(calcInput!E$2, ROW()-2+14, 0) -> 0.3884347963 | Q79: =OFFSET(calcInput!E$2, ROW()-2+15, 0) -> 0.5153433563 | R79: =OFFSET(calcInput!E$2, ROW()-2+16, 0) -> 0.6318084552 | S79: =OFFSET(calcInput!E$2, ROW()-2+17, 0) -> 0.7354699214 | T79: =OFFSET(calcInput!E$2, ROW()-2+18, 0) -> 0.8242270496 | U79: =OFFSET(calcInput!E$2, ROW()-2+19, 0) -> 0.8962811717 | V79: =OFFSET(calcInput!E$2, ROW()-2+20, 0) -> 0.9501721071 | W79: =OFFSET(calcInput!E$2, ROW()-2+21, 0) -> 0.984807753 | X79: =OFFSET(calcInput!E$2, ROW()-2+22, 0) -> 0.9994862162 | Y79: =OFFSET(calcInput!E$2, ROW()-2+23, 0) -> 0.9939100368 | Z79: =OFFSET(calcInput!E$2, ROW()-2+24, 0) -> 0.9681922164 | AA79: =OFFSET(calcInput!E$2, ROW()-2+25, 0) -> 0.922853928 | AB79: =OFFSET(calcInput!E$2, ROW()-2+26, 0) -> 0.8588139546 | AC79: =OFFSET(calcInput!E$2, ROW()-2+27, 0) -> 0.7773700696 | AD79: =OFFSET(calcInput!E$2, ROW()-2+28, 0) -> 0.6801727378 | AE79: =OFFSET(calcInput!E$2, ROW()-2+29, 0) -> 0.5691916684 | AF79: =OFFSET(calcInput!E$2, ROW()-2+30, 0) -> 0.4466758989 | AG79: =OFFSET(calcInput!E$2, ROW()-2+31, 0) -> 0.315108218 | AH79: =OFFSET(calcInput!E$2, ROW()-2+32, 0) -> 0.1771548519 | AI79: =OFFSET(calcInput!E$2, ROW()-2+33, 0) -> 0.03561143311 | AJ79: =OFFSET(calcInput!E$2, ROW()-2+34, 0) -> -0.1066536533 | AK79: =OFFSET(calcInput!E$2, ROW()-2+35, 0) -> -0.2467573977 | AL79: =OFFSET(calcInput!E$2, ROW()-2+36, 0) -> -0.3818605899 | AM79: =OFFSET(calcInput!E$2, ROW()-2+37, 0) -> -0.5092253566 | AN79: =OFFSET(calcInput!E$2, ROW()-2+38, 0) -> -0.6262706436 | AO79: =OFFSET(calcInput!E$2, ROW()-2+39, 0) -> -0.730624522 | AP79: =OFFSET(calcInput!E$2, ROW()-2+40, 0) -> -0.8201722546 | AQ79: =OFFSET(calcInput!E$2, ROW()-2+41, 0) -> -0.8930991518 | AR79: =OFFSET(calcInput!E$2, ROW()-2+42, 0) -> -0.9479273462 | AS79: =OFFSET(calcInput!E$2, ROW()-2+43, 0) -> -0.9835457412 | AT79: =OFFSET(calcInput!E$2, ROW()-2+44, 0) -> -0.9992325283
A80: 78 | B80: =OFFSET(calcInput!E$2, ROW()-2+0, 0) -> -0.9930998207 | C80: =OFFSET(calcInput!E$2, ROW()-2+1, 0) -> -0.9663852375 | D80: =OFFSET(calcInput!E$2, ROW()-2+2, 0) -> -0.9200868049 | E80: =OFFSET(calcInput!E$2, ROW()-2+3, 0) -> -0.855142763 | F80: =OFFSET(calcInput!E$2, ROW()-2+4, 0) -> -0.7728692065 | G80: =OFFSET(calcInput!E$2, ROW()-2+5, 0) -> -0.6749334135 | H80: =OFFSET(calcInput!E$2, ROW()-2+6, 0) -> -0.5633200581 | I80: =OFFSET(calcInput!E$2, ROW()-2+7, 0) -> -0.440290991 | J80: =OFFSET(calcInput!E$2, ROW()-2+8, 0) -> -0.3083394031 | K80: =OFFSET(calcInput!E$2, ROW()-2+9, 0) -> -0.1701393003 | L80: =OFFSET(calcInput!E$2, ROW()-2+10, 0) -> -0.02849131539 | M80: =OFFSET(calcInput!E$2, ROW()-2+11, 0) -> 0.1137340476 | N80: =OFFSET(calcInput!E$2, ROW()-2+12, 0) -> 0.2536545839 | O80: =OFFSET(calcInput!E$2, ROW()-2+13, 0) -> 0.3884347963 | P80: =OFFSET(calcInput!E$2, ROW()-2+14, 0) -> 0.5153433563 | Q80: =OFFSET(calcInput!E$2, ROW()-2+15, 0) -> 0.6318084552 | R80: =OFFSET(calcInput!E$2, ROW()-2+16, 0) -> 0.7354699214 | S80: =OFFSET(calcInput!E$2, ROW()-2+17, 0) -> 0.8242270496 | T80: =OFFSET(calcInput!E$2, ROW()-2+18, 0) -> 0.8962811717 | U80: =OFFSET(calcInput!E$2, ROW()-2+19, 0) -> 0.9501721071 | V80: =OFFSET(calcInput!E$2, ROW()-2+20, 0) -> 0.984807753 | W80: =OFFSET(calcInput!E$2, ROW()-2+21, 0) -> 0.9994862162 | X80: =OFFSET(calcInput!E$2, ROW()-2+22, 0) -> 0.9939100368 | Y80: =OFFSET(calcInput!E$2, ROW()-2+23, 0) -> 0.9681922164 | Z80: =OFFSET(calcInput!E$2, ROW()-2+24, 0) -> 0.922853928 | AA80: =OFFSET(calcInput!E$2, ROW()-2+25, 0) -> 0.8588139546 | AB80: =OFFSET(calcInput!E$2, ROW()-2+26, 0) -> 0.7773700696 | AC80: =OFFSET(calcInput!E$2, ROW()-2+27, 0) -> 0.6801727378 | AD80: =OFFSET(calcInput!E$2, ROW()-2+28, 0) -> 0.5691916684 | AE80: =OFFSET(calcInput!E$2, ROW()-2+29, 0) -> 0.4466758989 | AF80: =OFFSET(calcInput!E$2, ROW()-2+30, 0) -> 0.315108218 | AG80: =OFFSET(calcInput!E$2, ROW()-2+31, 0) -> 0.1771548519 | AH80: =OFFSET(calcInput!E$2, ROW()-2+32, 0) -> 0.03561143311 | AI80: =OFFSET(calcInput!E$2, ROW()-2+33, 0) -> -0.1066536533 | AJ80: =OFFSET(calcInput!E$2, ROW()-2+34, 0) -> -0.2467573977 | AK80: =OFFSET(calcInput!E$2, ROW()-2+35, 0) -> -0.3818605899 | AL80: =OFFSET(calcInput!E$2, ROW()-2+36, 0) -> -0.5092253566 | AM80: =OFFSET(calcInput!E$2, ROW()-2+37, 0) -> -0.6262706436 | AN80: =OFFSET(calcInput!E$2, ROW()-2+38, 0) -> -0.730624522 | AO80: =OFFSET(calcInput!E$2, ROW()-2+39, 0) -> -0.8201722546 | AP80: =OFFSET(calcInput!E$2, ROW()-2+40, 0) -> -0.8930991518 | AQ80: =OFFSET(calcInput!E$2, ROW()-2+41, 0) -> -0.9479273462 | AR80: =OFFSET(calcInput!E$2, ROW()-2+42, 0) -> -0.9835457412 | AS80: =OFFSET(calcInput!E$2, ROW()-2+43, 0) -> -0.9992325283 | AT80: =OFFSET(calcInput!E$2, ROW()-2+44, 0) -> -0.9946698137
A81: 79 | B81: =OFFSET(calcInput!E$2, ROW()-2+0, 0) -> -0.9663852375 | C81: =OFFSET(calcInput!E$2, ROW()-2+1, 0) -> -0.9200868049 | D81: =OFFSET(calcInput!E$2, ROW()-2+2, 0) -> -0.855142763 | E81: =OFFSET(calcInput!E$2, ROW()-2+3, 0) -> -0.7728692065 | F81: =OFFSET(calcInput!E$2, ROW()-2+4, 0) -> -0.6749334135 | G81: =OFFSET(calcInput!E$2, ROW()-2+5, 0) -> -0.5633200581 | H81: =OFFSET(calcInput!E$2, ROW()-2+6, 0) -> -0.440290991 | I81: =OFFSET(calcInput!E$2, ROW()-2+7, 0) -> -0.3083394031 | J81: =OFFSET(calcInput!E$2, ROW()-2+8, 0) -> -0.1701393003 | K81: =OFFSET(calcInput!E$2, ROW()-2+9, 0) -> -0.02849131539 | L81: =OFFSET(calcInput!E$2, ROW()-2+10, 0) -> 0.1137340476 | M81: =OFFSET(calcInput!E$2, ROW()-2+11, 0) -> 0.2536545839 | N81: =OFFSET(calcInput!E$2, ROW()-2+12, 0) -> 0.3884347963 | O81: =OFFSET(calcInput!E$2, ROW()-2+13, 0) -> 0.5153433563 | P81: =OFFSET(calcInput!E$2, ROW()-2+14, 0) -> 0.6318084552 | Q81: =OFFSET(calcInput!E$2, ROW()-2+15, 0) -> 0.7354699214 | R81: =OFFSET(calcInput!E$2, ROW()-2+16, 0) -> 0.8242270496 | S81: =OFFSET(calcInput!E$2, ROW()-2+17, 0) -> 0.8962811717 | T81: =OFFSET(calcInput!E$2, ROW()-2+18, 0) -> 0.9501721071 | U81: =OFFSET(calcInput!E$2, ROW()-2+19, 0) -> 0.984807753 | V81: =OFFSET(calcInput!E$2, ROW()-2+20, 0) -> 0.9994862162 | W81: =OFFSET(calcInput!E$2, ROW()-2+21, 0) -> 0.9939100368 | X81: =OFFSET(calcInput!E$2, ROW()-2+22, 0) -> 0.9681922164 | Y81: =OFFSET(calcInput!E$2, ROW()-2+23, 0) -> 0.922853928 | Z81: =OFFSET(calcInput!E$2, ROW()-2+24, 0) -> 0.8588139546 | AA81: =OFFSET(calcInput!E$2, ROW()-2+25, 0) -> 0.7773700696 | AB81: =OFFSET(calcInput!E$2, ROW()-2+26, 0) -> 0.6801727378 | AC81: =OFFSET(calcInput!E$2, ROW()-2+27, 0) -> 0.5691916684 | AD81: =OFFSET(calcInput!E$2, ROW()-2+28, 0) -> 0.4466758989 | AE81: =OFFSET(calcInput!E$2, ROW()-2+29, 0) -> 0.315108218 | AF81: =OFFSET(calcInput!E$2, ROW()-2+30, 0) -> 0.1771548519 | AG81: =OFFSET(calcInput!E$2, ROW()-2+31, 0) -> 0.03561143311 | AH81: =OFFSET(calcInput!E$2, ROW()-2+32, 0) -> -0.1066536533 | AI81: =OFFSET(calcInput!E$2, ROW()-2+33, 0) -> -0.2467573977 | AJ81: =OFFSET(calcInput!E$2, ROW()-2+34, 0) -> -0.3818605899 | AK81: =OFFSET(calcInput!E$2, ROW()-2+35, 0) -> -0.5092253566 | AL81: =OFFSET(calcInput!E$2, ROW()-2+36, 0) -> -0.6262706436 | AM81: =OFFSET(calcInput!E$2, ROW()-2+37, 0) -> -0.730624522 | AN81: =OFFSET(calcInput!E$2, ROW()-2+38, 0) -> -0.8201722546 | AO81: =OFFSET(calcInput!E$2, ROW()-2+39, 0) -> -0.8930991518 | AP81: =OFFSET(calcInput!E$2, ROW()-2+40, 0) -> -0.9479273462 | AQ81: =OFFSET(calcInput!E$2, ROW()-2+41, 0) -> -0.9835457412 | AR81: =OFFSET(calcInput!E$2, ROW()-2+42, 0) -> -0.9992325283 | AS81: =OFFSET(calcInput!E$2, ROW()-2+43, 0) -> -0.9946698137 | AT81: =OFFSET(calcInput!E$2, ROW()-2+44, 0) -> -0.9699500613
A82: 80 | B82: =OFFSET(calcInput!E$2, ROW()-2+0, 0) -> -0.9200868049 | C82: =OFFSET(calcInput!E$2, ROW()-2+1, 0) -> -0.855142763 | D82: =OFFSET(calcInput!E$2, ROW()-2+2, 0) -> -0.7728692065 | E82: =OFFSET(calcInput!E$2, ROW()-2+3, 0) -> -0.6749334135 | F82: =OFFSET(calcInput!E$2, ROW()-2+4, 0) -> -0.5633200581 | G82: =OFFSET(calcInput!E$2, ROW()-2+5, 0) -> -0.440290991 | H82: =OFFSET(calcInput!E$2, ROW()-2+6, 0) -> -0.3083394031 | I82: =OFFSET(calcInput!E$2, ROW()-2+7, 0) -> -0.1701393003 | J82: =OFFSET(calcInput!E$2, ROW()-2+8, 0) -> -0.02849131539 | K82: =OFFSET(calcInput!E$2, ROW()-2+9, 0) -> 0.1137340476 | L82: =OFFSET(calcInput!E$2, ROW()-2+10, 0) -> 0.2536545839 | M82: =OFFSET(calcInput!E$2, ROW()-2+11, 0) -> 0.3884347963 | N82: =OFFSET(calcInput!E$2, ROW()-2+12, 0) -> 0.5153433563 | O82: =OFFSET(calcInput!E$2, ROW()-2+13, 0) -> 0.6318084552 | P82: =OFFSET(calcInput!E$2, ROW()-2+14, 0) -> 0.7354699214 | Q82: =OFFSET(calcInput!E$2, ROW()-2+15, 0) -> 0.8242270496 | R82: =OFFSET(calcInput!E$2, ROW()-2+16, 0) -> 0.8962811717 | S82: =OFFSET(calcInput!E$2, ROW()-2+17, 0) -> 0.9501721071 | T82: =OFFSET(calcInput!E$2, ROW()-2+18, 0) -> 0.984807753 | U82: =OFFSET(calcInput!E$2, ROW()-2+19, 0) -> 0.9994862162 | V82: =OFFSET(calcInput!E$2, ROW()-2+20, 0) -> 0.9939100368 | W82: =OFFSET(calcInput!E$2, ROW()-2+21, 0) -> 0.9681922164 | X82: =OFFSET(calcInput!E$2, ROW()-2+22, 0) -> 0.922853928 | Y82: =OFFSET(calcInput!E$2, ROW()-2+23, 0) -> 0.8588139546 | Z82: =OFFSET(calcInput!E$2, ROW()-2+24, 0) -> 0.7773700696 | AA82: =OFFSET(calcInput!E$2, ROW()-2+25, 0) -> 0.6801727378 | AB82: =OFFSET(calcInput!E$2, ROW()-2+26, 0) -> 0.5691916684 | AC82: =OFFSET(calcInput!E$2, ROW()-2+27, 0) -> 0.4466758989 | AD82: =OFFSET(calcInput!E$2, ROW()-2+28, 0) -> 0.315108218 | AE82: =OFFSET(calcInput!E$2, ROW()-2+29, 0) -> 0.1771548519 | AF82: =OFFSET(calcInput!E$2, ROW()-2+30, 0) -> 0.03561143311 | AG82: =OFFSET(calcInput!E$2, ROW()-2+31, 0) -> -0.1066536533 | AH82: =OFFSET(calcInput!E$2, ROW()-2+32, 0) -> -0.2467573977 | AI82: =OFFSET(calcInput!E$2, ROW()-2+33, 0) -> -0.3818605899 | AJ82: =OFFSET(calcInput!E$2, ROW()-2+34, 0) -> -0.5092253566 | AK82: =OFFSET(calcInput!E$2, ROW()-2+35, 0) -> -0.6262706436 | AL82: =OFFSET(calcInput!E$2, ROW()-2+36, 0) -> -0.730624522 | AM82: =OFFSET(calcInput!E$2, ROW()-2+37, 0) -> -0.8201722546 | AN82: =OFFSET(calcInput!E$2, ROW()-2+38, 0) -> -0.8930991518 | AO82: =OFFSET(calcInput!E$2, ROW()-2+39, 0) -> -0.9479273462 | AP82: =OFFSET(calcInput!E$2, ROW()-2+40, 0) -> -0.9835457412 | AQ82: =OFFSET(calcInput!E$2, ROW()-2+41, 0) -> -0.9992325283 | AR82: =OFFSET(calcInput!E$2, ROW()-2+42, 0) -> -0.9946698137 | AS82: =OFFSET(calcInput!E$2, ROW()-2+43, 0) -> -0.9699500613 | AT82: =OFFSET(calcInput!E$2, ROW()-2+44, 0) -> -0.925574218
A83: 81 | B83: =OFFSET(calcInput!E$2, ROW()-2+0, 0) -> -0.855142763 | C83: =OFFSET(calcInput!E$2, ROW()-2+1, 0) -> -0.7728692065 | D83: =OFFSET(calcInput!E$2, ROW()-2+2, 0) -> -0.6749334135 | E83: =OFFSET(calcInput!E$2, ROW()-2+3, 0) -> -0.5633200581 | F83: =OFFSET(calcInput!E$2, ROW()-2+4, 0) -> -0.440290991 | G83: =OFFSET(calcInput!E$2, ROW()-2+5, 0) -> -0.3083394031 | H83: =OFFSET(calcInput!E$2, ROW()-2+6, 0) -> -0.1701393003 | I83: =OFFSET(calcInput!E$2, ROW()-2+7, 0) -> -0.02849131539 | J83: =OFFSET(calcInput!E$2, ROW()-2+8, 0) -> 0.1137340476 | K83: =OFFSET(calcInput!E$2, ROW()-2+9, 0) -> 0.2536545839 | L83: =OFFSET(calcInput!E$2, ROW()-2+10, 0) -> 0.3884347963 | M83: =OFFSET(calcInput!E$2, ROW()-2+11, 0) -> 0.5153433563 | N83: =OFFSET(calcInput!E$2, ROW()-2+12, 0) -> 0.6318084552 | O83: =OFFSET(calcInput!E$2, ROW()-2+13, 0) -> 0.7354699214 | P83: =OFFSET(calcInput!E$2, ROW()-2+14, 0) -> 0.8242270496 | Q83: =OFFSET(calcInput!E$2, ROW()-2+15, 0) -> 0.8962811717 | R83: =OFFSET(calcInput!E$2, ROW()-2+16, 0) -> 0.9501721071 | S83: =OFFSET(calcInput!E$2, ROW()-2+17, 0) -> 0.984807753 | T83: =OFFSET(calcInput!E$2, ROW()-2+18, 0) -> 0.9994862162 | U83: =OFFSET(calcInput!E$2, ROW()-2+19, 0) -> 0.9939100368 | V83: =OFFSET(calcInput!E$2, ROW()-2+20, 0) -> 0.9681922164 | W83: =OFFSET(calcInput!E$2, ROW()-2+21, 0) -> 0.922853928 | X83: =OFFSET(calcInput!E$2, ROW()-2+22, 0) -> 0.8588139546 | Y83: =OFFSET(calcInput!E$2, ROW()-2+23, 0) -> 0.7773700696 | Z83: =OFFSET(calcInput!E$2, ROW()-2+24, 0) -> 0.6801727378 | AA83: =OFFSET(calcInput!E$2, ROW()-2+25, 0) -> 0.5691916684 | AB83: =OFFSET(calcInput!E$2, ROW()-2+26, 0) -> 0.4466758989 | AC83: =OFFSET(calcInput!E$2, ROW()-2+27, 0) -> 0.315108218 | AD83: =OFFSET(calcInput!E$2, ROW()-2+28, 0) -> 0.1771548519 | AE83: =OFFSET(calcInput!E$2, ROW()-2+29, 0) -> 0.03561143311 | AF83: =OFFSET(calcInput!E$2, ROW()-2+30, 0) -> -0.1066536533 | AG83: =OFFSET(calcInput!E$2, ROW()-2+31, 0) -> -0.2467573977 | AH83: =OFFSET(calcInput!E$2, ROW()-2+32, 0) -> -0.3818605899 | AI83: =OFFSET(calcInput!E$2, ROW()-2+33, 0) -> -0.5092253566 | AJ83: =OFFSET(calcInput!E$2, ROW()-2+34, 0) -> -0.6262706436 | AK83: =OFFSET(calcInput!E$2, ROW()-2+35, 0) -> -0.730624522 | AL83: =OFFSET(calcInput!E$2, ROW()-2+36, 0) -> -0.8201722546 | AM83: =OFFSET(calcInput!E$2, ROW()-2+37, 0) -> -0.8930991518 | AN83: =OFFSET(calcInput!E$2, ROW()-2+38, 0) -> -0.9479273462 | AO83: =OFFSET(calcInput!E$2, ROW()-2+39, 0) -> -0.9835457412 | AP83: =OFFSET(calcInput!E$2, ROW()-2+40, 0) -> -0.9992325283 | AQ83: =OFFSET(calcInput!E$2, ROW()-2+41, 0) -> -0.9946698137 | AR83: =OFFSET(calcInput!E$2, ROW()-2+42, 0) -> -0.9699500613 | AS83: =OFFSET(calcInput!E$2, ROW()-2+43, 0) -> -0.925574218 | AT83: =OFFSET(calcInput!E$2, ROW()-2+44, 0) -> -0.8624415629
A84: 82 | B84: =OFFSET(calcInput!E$2, ROW()-2+0, 0) -> -0.7728692065 | C84: =OFFSET(calcInput!E$2, ROW()-2+1, 0) -> -0.6749334135 | D84: =OFFSET(calcInput!E$2, ROW()-2+2, 0) -> -0.5633200581 | E84: =OFFSET(calcInput!E$2, ROW()-2+3, 0) -> -0.440290991 | F84: =OFFSET(calcInput!E$2, ROW()-2+4, 0) -> -0.3083394031 | G84: =OFFSET(calcInput!E$2, ROW()-2+5, 0) -> -0.1701393003 | H84: =OFFSET(calcInput!E$2, ROW()-2+6, 0) -> -0.02849131539 | I84: =OFFSET(calcInput!E$2, ROW()-2+7, 0) -> 0.1137340476 | J84: =OFFSET(calcInput!E$2, ROW()-2+8, 0) -> 0.2536545839 | K84: =OFFSET(calcInput!E$2, ROW()-2+9, 0) -> 0.3884347963 | L84: =OFFSET(calcInput!E$2, ROW()-2+10, 0) -> 0.5153433563 | M84: =OFFSET(calcInput!E$2, ROW()-2+11, 0) -> 0.6318084552 | N84: =OFFSET(calcInput!E$2, ROW()-2+12, 0) -> 0.7354699214 | O84: =OFFSET(calcInput!E$2, ROW()-2+13, 0) -> 0.8242270496 | P84: =OFFSET(calcInput!E$2, ROW()-2+14, 0) -> 0.8962811717 | Q84: =OFFSET(calcInput!E$2, ROW()-2+15, 0) -> 0.9501721071 | R84: =OFFSET(calcInput!E$2, ROW()-2+16, 0) -> 0.984807753 | S84: =OFFSET(calcInput!E$2, ROW()-2+17, 0) -> 0.9994862162 | T84: =OFFSET(calcInput!E$2, ROW()-2+18, 0) -> 0.9939100368 | U84: =OFFSET(calcInput!E$2, ROW()-2+19, 0) -> 0.9681922164 | V84: =OFFSET(calcInput!E$2, ROW()-2+20, 0) -> 0.922853928 | W84: =OFFSET(calcInput!E$2, ROW()-2+21, 0) -> 0.8588139546 | X84: =OFFSET(calcInput!E$2, ROW()-2+22, 0) -> 0.7773700696 | Y84: =OFFSET(calcInput!E$2, ROW()-2+23, 0) -> 0.6801727378 | Z84: =OFFSET(calcInput!E$2, ROW()-2+24, 0) -> 0.5691916684 | AA84: =OFFSET(calcInput!E$2, ROW()-2+25, 0) -> 0.4466758989 | AB84: =OFFSET(calcInput!E$2, ROW()-2+26, 0) -> 0.315108218 | AC84: =OFFSET(calcInput!E$2, ROW()-2+27, 0) -> 0.1771548519 | AD84: =OFFSET(calcInput!E$2, ROW()-2+28, 0) -> 0.03561143311 | AE84: =OFFSET(calcInput!E$2, ROW()-2+29, 0) -> -0.1066536533 | AF84: =OFFSET(calcInput!E$2, ROW()-2+30, 0) -> -0.2467573977 | AG84: =OFFSET(calcInput!E$2, ROW()-2+31, 0) -> -0.3818605899 | AH84: =OFFSET(calcInput!E$2, ROW()-2+32, 0) -> -0.5092253566 | AI84: =OFFSET(calcInput!E$2, ROW()-2+33, 0) -> -0.6262706436 | AJ84: =OFFSET(calcInput!E$2, ROW()-2+34, 0) -> -0.730624522 | AK84: =OFFSET(calcInput!E$2, ROW()-2+35, 0) -> -0.8201722546 | AL84: =OFFSET(calcInput!E$2, ROW()-2+36, 0) -> -0.8930991518 | AM84: =OFFSET(calcInput!E$2, ROW()-2+37, 0) -> -0.9479273462 | AN84: =OFFSET(calcInput!E$2, ROW()-2+38, 0) -> -0.9835457412 | AO84: =OFFSET(calcInput!E$2, ROW()-2+39, 0) -> -0.9992325283 | AP84: =OFFSET(calcInput!E$2, ROW()-2+40, 0) -> -0.9946698137 | AQ84: =OFFSET(calcInput!E$2, ROW()-2+41, 0) -> -0.9699500613 | AR84: =OFFSET(calcInput!E$2, ROW()-2+42, 0) -> -0.925574218 | AS84: =OFFSET(calcInput!E$2, ROW()-2+43, 0) -> -0.8624415629 | AT84: =OFFSET(calcInput!E$2, ROW()-2+44, 0) -> -0.7818314825
A85: 83 | B85: =OFFSET(calcInput!E$2, ROW()-2+0, 0) -> -0.6749334135 | C85: =OFFSET(calcInput!E$2, ROW()-2+1, 0) -> -0.5633200581 | D85: =OFFSET(calcInput!E$2, ROW()-2+2, 0) -> -0.440290991 | E85: =OFFSET(calcInput!E$2, ROW()-2+3, 0) -> -0.3083394031 | F85: =OFFSET(calcInput!E$2, ROW()-2+4, 0) -> -0.1701393003 | G85: =OFFSET(calcInput!E$2, ROW()-2+5, 0) -> -0.02849131539 | H85: =OFFSET(calcInput!E$2, ROW()-2+6, 0) -> 0.1137340476 | I85: =OFFSET(calcInput!E$2, ROW()-2+7, 0) -> 0.2536545839 | J85: =OFFSET(calcInput!E$2, ROW()-2+8, 0) -> 0.3884347963 | K85: =OFFSET(calcInput!E$2, ROW()-2+9, 0) -> 0.5153433563 | L85: =OFFSET(calcInput!E$2, ROW()-2+10, 0) -> 0.6318084552 | M85: =OFFSET(calcInput!E$2, ROW()-2+11, 0) -> 0.7354699214 | N85: =OFFSET(calcInput!E$2, ROW()-2+12, 0) -> 0.8242270496 | O85: =OFFSET(calcInput!E$2, ROW()-2+13, 0) -> 0.8962811717 | P85: =OFFSET(calcInput!E$2, ROW()-2+14, 0) -> 0.9501721071 | Q85: =OFFSET(calcInput!E$2, ROW()-2+15, 0) -> 0.984807753 | R85: =OFFSET(calcInput!E$2, ROW()-2+16, 0) -> 0.9994862162 | S85: =OFFSET(calcInput!E$2, ROW()-2+17, 0) -> 0.9939100368 | T85: =OFFSET(calcInput!E$2, ROW()-2+18, 0) -> 0.9681922164 | U85: =OFFSET(calcInput!E$2, ROW()-2+19, 0) -> 0.922853928 | V85: =OFFSET(calcInput!E$2, ROW()-2+20, 0) -> 0.8588139546 | W85: =OFFSET(calcInput!E$2, ROW()-2+21, 0) -> 0.7773700696 | X85: =OFFSET(calcInput!E$2, ROW()-2+22, 0) -> 0.6801727378 | Y85: =OFFSET(calcInput!E$2, ROW()-2+23, 0) -> 0.5691916684 | Z85: =OFFSET(calcInput!E$2, ROW()-2+24, 0) -> 0.4466758989 | AA85: =OFFSET(calcInput!E$2, ROW()-2+25, 0) -> 0.315108218 | AB85: =OFFSET(calcInput!E$2, ROW()-2+26, 0) -> 0.1771548519 | AC85: =OFFSET(calcInput!E$2, ROW()-2+27, 0) -> 0.03561143311 | AD85: =OFFSET(calcInput!E$2, ROW()-2+28, 0) -> -0.1066536533 | AE85: =OFFSET(calcInput!E$2, ROW()-2+29, 0) -> -0.2467573977 | AF85: =OFFSET(calcInput!E$2, ROW()-2+30, 0) -> -0.3818605899 | AG85: =OFFSET(calcInput!E$2, ROW()-2+31, 0) -> -0.5092253566 | AH85: =OFFSET(calcInput!E$2, ROW()-2+32, 0) -> -0.6262706436 | AI85: =OFFSET(calcInput!E$2, ROW()-2+33, 0) -> -0.730624522 | AJ85: =OFFSET(calcInput!E$2, ROW()-2+34, 0) -> -0.8201722546 | AK85: =OFFSET(calcInput!E$2, ROW()-2+35, 0) -> -0.8930991518 | AL85: =OFFSET(calcInput!E$2, ROW()-2+36, 0) -> -0.9479273462 | AM85: =OFFSET(calcInput!E$2, ROW()-2+37, 0) -> -0.9835457412 | AN85: =OFFSET(calcInput!E$2, ROW()-2+38, 0) -> -0.9992325283 | AO85: =OFFSET(calcInput!E$2, ROW()-2+39, 0) -> -0.9946698137 | AP85: =OFFSET(calcInput!E$2, ROW()-2+40, 0) -> -0.9699500613 | AQ85: =OFFSET(calcInput!E$2, ROW()-2+41, 0) -> -0.925574218 | AR85: =OFFSET(calcInput!E$2, ROW()-2+42, 0) -> -0.8624415629 | AS85: =OFFSET(calcInput!E$2, ROW()-2+43, 0) -> -0.7818314825 | AT85: =OFFSET(calcInput!E$2, ROW()-2+44, 0) -> -0.6853775445
A86: 84 | B86: =OFFSET(calcInput!E$2, ROW()-2+0, 0) -> -0.5633200581 | C86: =OFFSET(calcInput!E$2, ROW()-2+1, 0) -> -0.440290991 | D86: =OFFSET(calcInput!E$2, ROW()-2+2, 0) -> -0.3083394031 | E86: =OFFSET(calcInput!E$2, ROW()-2+3, 0) -> -0.1701393003 | F86: =OFFSET(calcInput!E$2, ROW()-2+4, 0) -> -0.02849131539 | G86: =OFFSET(calcInput!E$2, ROW()-2+5, 0) -> 0.1137340476 | H86: =OFFSET(calcInput!E$2, ROW()-2+6, 0) -> 0.2536545839 | I86: =OFFSET(calcInput!E$2, ROW()-2+7, 0) -> 0.3884347963 | J86: =OFFSET(calcInput!E$2, ROW()-2+8, 0) -> 0.5153433563 | K86: =OFFSET(calcInput!E$2, ROW()-2+9, 0) -> 0.6318084552 | L86: =OFFSET(calcInput!E$2, ROW()-2+10, 0) -> 0.7354699214 | M86: =OFFSET(calcInput!E$2, ROW()-2+11, 0) -> 0.8242270496 | N86: =OFFSET(calcInput!E$2, ROW()-2+12, 0) -> 0.8962811717 | O86: =OFFSET(calcInput!E$2, ROW()-2+13, 0) -> 0.9501721071 | P86: =OFFSET(calcInput!E$2, ROW()-2+14, 0) -> 0.984807753 | Q86: =OFFSET(calcInput!E$2, ROW()-2+15, 0) -> 0.9994862162 | R86: =OFFSET(calcInput!E$2, ROW()-2+16, 0) -> 0.9939100368 | S86: =OFFSET(calcInput!E$2, ROW()-2+17, 0) -> 0.9681922164 | T86: =OFFSET(calcInput!E$2, ROW()-2+18, 0) -> 0.922853928 | U86: =OFFSET(calcInput!E$2, ROW()-2+19, 0) -> 0.8588139546 | V86: =OFFSET(calcInput!E$2, ROW()-2+20, 0) -> 0.7773700696 | W86: =OFFSET(calcInput!E$2, ROW()-2+21, 0) -> 0.6801727378 | X86: =OFFSET(calcInput!E$2, ROW()-2+22, 0) -> 0.5691916684 | Y86: =OFFSET(calcInput!E$2, ROW()-2+23, 0) -> 0.4466758989 | Z86: =OFFSET(calcInput!E$2, ROW()-2+24, 0) -> 0.315108218 | AA86: =OFFSET(calcInput!E$2, ROW()-2+25, 0) -> 0.1771548519 | AB86: =OFFSET(calcInput!E$2, ROW()-2+26, 0) -> 0.03561143311 | AC86: =OFFSET(calcInput!E$2, ROW()-2+27, 0) -> -0.1066536533 | AD86: =OFFSET(calcInput!E$2, ROW()-2+28, 0) -> -0.2467573977 | AE86: =OFFSET(calcInput!E$2, ROW()-2+29, 0) -> -0.3818605899 | AF86: =OFFSET(calcInput!E$2, ROW()-2+30, 0) -> -0.5092253566 | AG86: =OFFSET(calcInput!E$2, ROW()-2+31, 0) -> -0.6262706436 | AH86: =OFFSET(calcInput!E$2, ROW()-2+32, 0) -> -0.730624522 | AI86: =OFFSET(calcInput!E$2, ROW()-2+33, 0) -> -0.8201722546 | AJ86: =OFFSET(calcInput!E$2, ROW()-2+34, 0) -> -0.8930991518 | AK86: =OFFSET(calcInput!E$2, ROW()-2+35, 0) -> -0.9479273462 | AL86: =OFFSET(calcInput!E$2, ROW()-2+36, 0) -> -0.9835457412 | AM86: =OFFSET(calcInput!E$2, ROW()-2+37, 0) -> -0.9992325283 | AN86: =OFFSET(calcInput!E$2, ROW()-2+38, 0) -> -0.9946698137 | AO86: =OFFSET(calcInput!E$2, ROW()-2+39, 0) -> -0.9699500613 | AP86: =OFFSET(calcInput!E$2, ROW()-2+40, 0) -> -0.925574218 | AQ86: =OFFSET(calcInput!E$2, ROW()-2+41, 0) -> -0.8624415629 | AR86: =OFFSET(calcInput!E$2, ROW()-2+42, 0) -> -0.7818314825 | AS86: =OFFSET(calcInput!E$2, ROW()-2+43, 0) -> -0.6853775445 | AT86: =OFFSET(calcInput!E$2, ROW()-2+44, 0) -> -0.5750343933
A87: 85 | B87: =OFFSET(calcInput!E$2, ROW()-2+0, 0) -> -0.440290991 | C87: =OFFSET(calcInput!E$2, ROW()-2+1, 0) -> -0.3083394031 | D87: =OFFSET(calcInput!E$2, ROW()-2+2, 0) -> -0.1701393003 | E87: =OFFSET(calcInput!E$2, ROW()-2+3, 0) -> -0.02849131539 | F87: =OFFSET(calcInput!E$2, ROW()-2+4, 0) -> 0.1137340476 | G87: =OFFSET(calcInput!E$2, ROW()-2+5, 0) -> 0.2536545839 | H87: =OFFSET(calcInput!E$2, ROW()-2+6, 0) -> 0.3884347963 | I87: =OFFSET(calcInput!E$2, ROW()-2+7, 0) -> 0.5153433563 | J87: =OFFSET(calcInput!E$2, ROW()-2+8, 0) -> 0.6318084552 | K87: =OFFSET(calcInput!E$2, ROW()-2+9, 0) -> 0.7354699214 | L87: =OFFSET(calcInput!E$2, ROW()-2+10, 0) -> 0.8242270496 | M87: =OFFSET(calcInput!E$2, ROW()-2+11, 0) -> 0.8962811717 | N87: =OFFSET(calcInput!E$2, ROW()-2+12, 0) -> 0.9501721071 | O87: =OFFSET(calcInput!E$2, ROW()-2+13, 0) -> 0.984807753 | P87: =OFFSET(calcInput!E$2, ROW()-2+14, 0) -> 0.9994862162 | Q87: =OFFSET(calcInput!E$2, ROW()-2+15, 0) -> 0.9939100368 | R87: =OFFSET(calcInput!E$2, ROW()-2+16, 0) -> 0.9681922164 | S87: =OFFSET(calcInput!E$2, ROW()-2+17, 0) -> 0.922853928 | T87: =OFFSET(calcInput!E$2, ROW()-2+18, 0) -> 0.8588139546 | U87: =OFFSET(calcInput!E$2, ROW()-2+19, 0) -> 0.7773700696 | V87: =OFFSET(calcInput!E$2, ROW()-2+20, 0) -> 0.6801727378 | W87: =OFFSET(calcInput!E$2, ROW()-2+21, 0) -> 0.5691916684 | X87: =OFFSET(calcInput!E$2, ROW()-2+22, 0) -> 0.4466758989 | Y87: =OFFSET(calcInput!E$2, ROW()-2+23, 0) -> 0.315108218 | Z87: =OFFSET(calcInput!E$2, ROW()-2+24, 0) -> 0.1771548519 | AA87: =OFFSET(calcInput!E$2, ROW()-2+25, 0) -> 0.03561143311 | AB87: =OFFSET(calcInput!E$2, ROW()-2+26, 0) -> -0.1066536533 | AC87: =OFFSET(calcInput!E$2, ROW()-2+27, 0) -> -0.2467573977 | AD87: =OFFSET(calcInput!E$2, ROW()-2+28, 0) -> -0.3818605899 | AE87: =OFFSET(calcInput!E$2, ROW()-2+29, 0) -> -0.5092253566 | AF87: =OFFSET(calcInput!E$2, ROW()-2+30, 0) -> -0.6262706436 | AG87: =OFFSET(calcInput!E$2, ROW()-2+31, 0) -> -0.730624522 | AH87: =OFFSET(calcInput!E$2, ROW()-2+32, 0) -> -0.8201722546 | AI87: =OFFSET(calcInput!E$2, ROW()-2+33, 0) -> -0.8930991518 | AJ87: =OFFSET(calcInput!E$2, ROW()-2+34, 0) -> -0.9479273462 | AK87: =OFFSET(calcInput!E$2, ROW()-2+35, 0) -> -0.9835457412 | AL87: =OFFSET(calcInput!E$2, ROW()-2+36, 0) -> -0.9992325283 | AM87: =OFFSET(calcInput!E$2, ROW()-2+37, 0) -> -0.9946698137 | AN87: =OFFSET(calcInput!E$2, ROW()-2+38, 0) -> -0.9699500613 | AO87: =OFFSET(calcInput!E$2, ROW()-2+39, 0) -> -0.925574218 | AP87: =OFFSET(calcInput!E$2, ROW()-2+40, 0) -> -0.8624415629 | AQ87: =OFFSET(calcInput!E$2, ROW()-2+41, 0) -> -0.7818314825 | AR87: =OFFSET(calcInput!E$2, ROW()-2+42, 0) -> -0.6853775445 | AS87: =OFFSET(calcInput!E$2, ROW()-2+43, 0) -> -0.5750343933 | AT87: =OFFSET(calcInput!E$2, ROW()-2+44, 0) -> -0.4530381388
A88: 86 | B88: =OFFSET(calcInput!E$2, ROW()-2+0, 0) -> -0.3083394031 | C88: =OFFSET(calcInput!E$2, ROW()-2+1, 0) -> -0.1701393003 | D88: =OFFSET(calcInput!E$2, ROW()-2+2, 0) -> -0.02849131539 | E88: =OFFSET(calcInput!E$2, ROW()-2+3, 0) -> 0.1137340476 | F88: =OFFSET(calcInput!E$2, ROW()-2+4, 0) -> 0.2536545839 | G88: =OFFSET(calcInput!E$2, ROW()-2+5, 0) -> 0.3884347963 | H88: =OFFSET(calcInput!E$2, ROW()-2+6, 0) -> 0.5153433563 | I88: =OFFSET(calcInput!E$2, ROW()-2+7, 0) -> 0.6318084552 | J88: =OFFSET(calcInput!E$2, ROW()-2+8, 0) -> 0.7354699214 | K88: =OFFSET(calcInput!E$2, ROW()-2+9, 0) -> 0.8242270496 | L88: =OFFSET(calcInput!E$2, ROW()-2+10, 0) -> 0.8962811717 | M88: =OFFSET(calcInput!E$2, ROW()-2+11, 0) -> 0.9501721071 | N88: =OFFSET(calcInput!E$2, ROW()-2+12, 0) -> 0.984807753 | O88: =OFFSET(calcInput!E$2, ROW()-2+13, 0) -> 0.9994862162 | P88: =OFFSET(calcInput!E$2, ROW()-2+14, 0) -> 0.9939100368 | Q88: =OFFSET(calcInput!E$2, ROW()-2+15, 0) -> 0.9681922164 | R88: =OFFSET(calcInput!E$2, ROW()-2+16, 0) -> 0.922853928 | S88: =OFFSET(calcInput!E$2, ROW()-2+17, 0) -> 0.8588139546 | T88: =OFFSET(calcInput!E$2, ROW()-2+18, 0) -> 0.7773700696 | U88: =OFFSET(calcInput!E$2, ROW()-2+19, 0) -> 0.6801727378 | V88: =OFFSET(calcInput!E$2, ROW()-2+20, 0) -> 0.5691916684 | W88: =OFFSET(calcInput!E$2, ROW()-2+21, 0) -> 0.4466758989 | X88: =OFFSET(calcInput!E$2, ROW()-2+22, 0) -> 0.315108218 | Y88: =OFFSET(calcInput!E$2, ROW()-2+23, 0) -> 0.1771548519 | Z88: =OFFSET(calcInput!E$2, ROW()-2+24, 0) -> 0.03561143311 | AA88: =OFFSET(calcInput!E$2, ROW()-2+25, 0) -> -0.1066536533 | AB88: =OFFSET(calcInput!E$2, ROW()-2+26, 0) -> -0.2467573977 | AC88: =OFFSET(calcInput!E$2, ROW()-2+27, 0) -> -0.3818605899 | AD88: =OFFSET(calcInput!E$2, ROW()-2+28, 0) -> -0.5092253566 | AE88: =OFFSET(calcInput!E$2, ROW()-2+29, 0) -> -0.6262706436 | AF88: =OFFSET(calcInput!E$2, ROW()-2+30, 0) -> -0.730624522 | AG88: =OFFSET(calcInput!E$2, ROW()-2+31, 0) -> -0.8201722546 | AH88: =OFFSET(calcInput!E$2, ROW()-2+32, 0) -> -0.8930991518 | AI88: =OFFSET(calcInput!E$2, ROW()-2+33, 0) -> -0.9479273462 | AJ88: =OFFSET(calcInput!E$2, ROW()-2+34, 0) -> -0.9835457412 | AK88: =OFFSET(calcInput!E$2, ROW()-2+35, 0) -> -0.9992325283 | AL88: =OFFSET(calcInput!E$2, ROW()-2+36, 0) -> -0.9946698137 | AM88: =OFFSET(calcInput!E$2, ROW()-2+37, 0) -> -0.9699500613 | AN88: =OFFSET(calcInput!E$2, ROW()-2+38, 0) -> -0.925574218 | AO88: =OFFSET(calcInput!E$2, ROW()-2+39, 0) -> -0.8624415629 | AP88: =OFFSET(calcInput!E$2, ROW()-2+40, 0) -> -0.7818314825 | AQ88: =OFFSET(calcInput!E$2, ROW()-2+41, 0) -> -0.6853775445 | AR88: =OFFSET(calcInput!E$2, ROW()-2+42, 0) -> -0.5750343933 | AS88: =OFFSET(calcInput!E$2, ROW()-2+43, 0) -> -0.4530381388 | AT88: =OFFSET(calcInput!E$2, ROW()-2+44, 0) -> -0.3218610418
A89: 87 | B89: =OFFSET(calcInput!E$2, ROW()-2+0, 0) -> -0.1701393003 | C89: =OFFSET(calcInput!E$2, ROW()-2+1, 0) -> -0.02849131539 | D89: =OFFSET(calcInput!E$2, ROW()-2+2, 0) -> 0.1137340476 | E89: =OFFSET(calcInput!E$2, ROW()-2+3, 0) -> 0.2536545839 | F89: =OFFSET(calcInput!E$2, ROW()-2+4, 0) -> 0.3884347963 | G89: =OFFSET(calcInput!E$2, ROW()-2+5, 0) -> 0.5153433563 | H89: =OFFSET(calcInput!E$2, ROW()-2+6, 0) -> 0.6318084552 | I89: =OFFSET(calcInput!E$2, ROW()-2+7, 0) -> 0.7354699214 | J89: =OFFSET(calcInput!E$2, ROW()-2+8, 0) -> 0.8242270496 | K89: =OFFSET(calcInput!E$2, ROW()-2+9, 0) -> 0.8962811717 | L89: =OFFSET(calcInput!E$2, ROW()-2+10, 0) -> 0.9501721071 | M89: =OFFSET(calcInput!E$2, ROW()-2+11, 0) -> 0.984807753 | N89: =OFFSET(calcInput!E$2, ROW()-2+12, 0) -> 0.9994862162 | O89: =OFFSET(calcInput!E$2, ROW()-2+13, 0) -> 0.9939100368 | P89: =OFFSET(calcInput!E$2, ROW()-2+14, 0) -> 0.9681922164 | Q89: =OFFSET(calcInput!E$2, ROW()-2+15, 0) -> 0.922853928 | R89: =OFFSET(calcInput!E$2, ROW()-2+16, 0) -> 0.8588139546 | S89: =OFFSET(calcInput!E$2, ROW()-2+17, 0) -> 0.7773700696 | T89: =OFFSET(calcInput!E$2, ROW()-2+18, 0) -> 0.6801727378 | U89: =OFFSET(calcInput!E$2, ROW()-2+19, 0) -> 0.5691916684 | V89: =OFFSET(calcInput!E$2, ROW()-2+20, 0) -> 0.4466758989 | W89: =OFFSET(calcInput!E$2, ROW()-2+21, 0) -> 0.315108218 | X89: =OFFSET(calcInput!E$2, ROW()-2+22, 0) -> 0.1771548519 | Y89: =OFFSET(calcInput!E$2, ROW()-2+23, 0) -> 0.03561143311 | Z89: =OFFSET(calcInput!E$2, ROW()-2+24, 0) -> -0.1066536533 | AA89: =OFFSET(calcInput!E$2, ROW()-2+25, 0) -> -0.2467573977 | AB89: =OFFSET(calcInput!E$2, ROW()-2+26, 0) -> -0.3818605899 | AC89: =OFFSET(calcInput!E$2, ROW()-2+27, 0) -> -0.5092253566 | AD89: =OFFSET(calcInput!E$2, ROW()-2+28, 0) -> -0.6262706436 | AE89: =OFFSET(calcInput!E$2, ROW()-2+29, 0) -> -0.730624522 | AF89: =OFFSET(calcInput!E$2, ROW()-2+30, 0) -> -0.8201722546 | AG89: =OFFSET(calcInput!E$2, ROW()-2+31, 0) -> -0.8930991518 | AH89: =OFFSET(calcInput!E$2, ROW()-2+32, 0) -> -0.9479273462 | AI89: =OFFSET(calcInput!E$2, ROW()-2+33, 0) -> -0.9835457412 | AJ89: =OFFSET(calcInput!E$2, ROW()-2+34, 0) -> -0.9992325283 | AK89: =OFFSET(calcInput!E$2, ROW()-2+35, 0) -> -0.9946698137 | AL89: =OFFSET(calcInput!E$2, ROW()-2+36, 0) -> -0.9699500613 | AM89: =OFFSET(calcInput!E$2, ROW()-2+37, 0) -> -0.925574218 | AN89: =OFFSET(calcInput!E$2, ROW()-2+38, 0) -> -0.8624415629 | AO89: =OFFSET(calcInput!E$2, ROW()-2+39, 0) -> -0.7818314825 | AP89: =OFFSET(calcInput!E$2, ROW()-2+40, 0) -> -0.6853775445 | AQ89: =OFFSET(calcInput!E$2, ROW()-2+41, 0) -> -0.5750343933 | AR89: =OFFSET(calcInput!E$2, ROW()-2+42, 0) -> -0.4530381388 | AS89: =OFFSET(calcInput!E$2, ROW()-2+43, 0) -> -0.3218610418 | AT89: =OFFSET(calcInput!E$2, ROW()-2+44, 0) -> -0.1841614132
A90: 88 | B90: =OFFSET(calcInput!E$2, ROW()-2+0, 0) -> -0.02849131539 | C90: =OFFSET(calcInput!E$2, ROW()-2+1, 0) -> 0.1137340476 | D90: =OFFSET(calcInput!E$2, ROW()-2+2, 0) -> 0.2536545839 | E90: =OFFSET(calcInput!E$2, ROW()-2+3, 0) -> 0.3884347963 | F90: =OFFSET(calcInput!E$2, ROW()-2+4, 0) -> 0.5153433563 | G90: =OFFSET(calcInput!E$2, ROW()-2+5, 0) -> 0.6318084552 | H90: =OFFSET(calcInput!E$2, ROW()-2+6, 0) -> 0.7354699214 | I90: =OFFSET(calcInput!E$2, ROW()-2+7, 0) -> 0.8242270496 | J90: =OFFSET(calcInput!E$2, ROW()-2+8, 0) -> 0.8962811717 | K90: =OFFSET(calcInput!E$2, ROW()-2+9, 0) -> 0.9501721071 | L90: =OFFSET(calcInput!E$2, ROW()-2+10, 0) -> 0.984807753 | M90: =OFFSET(calcInput!E$2, ROW()-2+11, 0) -> 0.9994862162 | N90: =OFFSET(calcInput!E$2, ROW()-2+12, 0) -> 0.9939100368 | O90: =OFFSET(calcInput!E$2, ROW()-2+13, 0) -> 0.9681922164 | P90: =OFFSET(calcInput!E$2, ROW()-2+14, 0) -> 0.922853928 | Q90: =OFFSET(calcInput!E$2, ROW()-2+15, 0) -> 0.8588139546 | R90: =OFFSET(calcInput!E$2, ROW()-2+16, 0) -> 0.7773700696 | S90: =OFFSET(calcInput!E$2, ROW()-2+17, 0) -> 0.6801727378 | T90: =OFFSET(calcInput!E$2, ROW()-2+18, 0) -> 0.5691916684 | U90: =OFFSET(calcInput!E$2, ROW()-2+19, 0) -> 0.4466758989 | V90: =OFFSET(calcInput!E$2, ROW()-2+20, 0) -> 0.315108218 | W90: =OFFSET(calcInput!E$2, ROW()-2+21, 0) -> 0.1771548519 | X90: =OFFSET(calcInput!E$2, ROW()-2+22, 0) -> 0.03561143311 | Y90: =OFFSET(calcInput!E$2, ROW()-2+23, 0) -> -0.1066536533 | Z90: =OFFSET(calcInput!E$2, ROW()-2+24, 0) -> -0.2467573977 | AA90: =OFFSET(calcInput!E$2, ROW()-2+25, 0) -> -0.3818605899 | AB90: =OFFSET(calcInput!E$2, ROW()-2+26, 0) -> -0.5092253566 | AC90: =OFFSET(calcInput!E$2, ROW()-2+27, 0) -> -0.6262706436 | AD90: =OFFSET(calcInput!E$2, ROW()-2+28, 0) -> -0.730624522 | AE90: =OFFSET(calcInput!E$2, ROW()-2+29, 0) -> -0.8201722546 | AF90: =OFFSET(calcInput!E$2, ROW()-2+30, 0) -> -0.8930991518 | AG90: =OFFSET(calcInput!E$2, ROW()-2+31, 0) -> -0.9479273462 | AH90: =OFFSET(calcInput!E$2, ROW()-2+32, 0) -> -0.9835457412 | AI90: =OFFSET(calcInput!E$2, ROW()-2+33, 0) -> -0.9992325283 | AJ90: =OFFSET(calcInput!E$2, ROW()-2+34, 0) -> -0.9946698137 | AK90: =OFFSET(calcInput!E$2, ROW()-2+35, 0) -> -0.9699500613 | AL90: =OFFSET(calcInput!E$2, ROW()-2+36, 0) -> -0.925574218 | AM90: =OFFSET(calcInput!E$2, ROW()-2+37, 0) -> -0.8624415629 | AN90: =OFFSET(calcInput!E$2, ROW()-2+38, 0) -> -0.7818314825 | AO90: =OFFSET(calcInput!E$2, ROW()-2+39, 0) -> -0.6853775445 | AP90: =OFFSET(calcInput!E$2, ROW()-2+40, 0) -> -0.5750343933 | AQ90: =OFFSET(calcInput!E$2, ROW()-2+41, 0) -> -0.4530381388 | AR90: =OFFSET(calcInput!E$2, ROW()-2+42, 0) -> -0.3218610418 | AS90: =OFFSET(calcInput!E$2, ROW()-2+43, 0) -> -0.1841614132 | AT90: =OFFSET(calcInput!E$2, ROW()-2+44, 0) -> -0.04272974361
A91: 89 | B91: =OFFSET(calcInput!E$2, ROW()-2+0, 0) -> 0.1137340476 | C91: =OFFSET(calcInput!E$2, ROW()-2+1, 0) -> 0.2536545839 | D91: =OFFSET(calcInput!E$2, ROW()-2+2, 0) -> 0.3884347963 | E91: =OFFSET(calcInput!E$2, ROW()-2+3, 0) -> 0.5153433563 | F91: =OFFSET(calcInput!E$2, ROW()-2+4, 0) -> 0.6318084552 | G91: =OFFSET(calcInput!E$2, ROW()-2+5, 0) -> 0.7354699214 | H91: =OFFSET(calcInput!E$2, ROW()-2+6, 0) -> 0.8242270496 | I91: =OFFSET(calcInput!E$2, ROW()-2+7, 0) -> 0.8962811717 | J91: =OFFSET(calcInput!E$2, ROW()-2+8, 0) -> 0.9501721071 | K91: =OFFSET(calcInput!E$2, ROW()-2+9, 0) -> 0.984807753 | L91: =OFFSET(calcInput!E$2, ROW()-2+10, 0) -> 0.9994862162 | M91: =OFFSET(calcInput!E$2, ROW()-2+11, 0) -> 0.9939100368 | N91: =OFFSET(calcInput!E$2, ROW()-2+12, 0) -> 0.9681922164 | O91: =OFFSET(calcInput!E$2, ROW()-2+13, 0) -> 0.922853928 | P91: =OFFSET(calcInput!E$2, ROW()-2+14, 0) -> 0.8588139546 | Q91: =OFFSET(calcInput!E$2, ROW()-2+15, 0) -> 0.7773700696 | R91: =OFFSET(calcInput!E$2, ROW()-2+16, 0) -> 0.6801727378 | S91: =OFFSET(calcInput!E$2, ROW()-2+17, 0) -> 0.5691916684 | T91: =OFFSET(calcInput!E$2, ROW()-2+18, 0) -> 0.4466758989 | U91: =OFFSET(calcInput!E$2, ROW()-2+19, 0) -> 0.315108218 | V91: =OFFSET(calcInput!E$2, ROW()-2+20, 0) -> 0.1771548519 | W91: =OFFSET(calcInput!E$2, ROW()-2+21, 0) -> 0.03561143311 | X91: =OFFSET(calcInput!E$2, ROW()-2+22, 0) -> -0.1066536533 | Y91: =OFFSET(calcInput!E$2, ROW()-2+23, 0) -> -0.2467573977 | Z91: =OFFSET(calcInput!E$2, ROW()-2+24, 0) -> -0.3818605899 | AA91: =OFFSET(calcInput!E$2, ROW()-2+25, 0) -> -0.5092253566 | AB91: =OFFSET(calcInput!E$2, ROW()-2+26, 0) -> -0.6262706436 | AC91: =OFFSET(calcInput!E$2, ROW()-2+27, 0) -> -0.730624522 | AD91: =OFFSET(calcInput!E$2, ROW()-2+28, 0) -> -0.8201722546 | AE91: =OFFSET(calcInput!E$2, ROW()-2+29, 0) -> -0.8930991518 | AF91: =OFFSET(calcInput!E$2, ROW()-2+30, 0) -> -0.9479273462 | AG91: =OFFSET(calcInput!E$2, ROW()-2+31, 0) -> -0.9835457412 | AH91: =OFFSET(calcInput!E$2, ROW()-2+32, 0) -> -0.9992325283 | AI91: =OFFSET(calcInput!E$2, ROW()-2+33, 0) -> -0.9946698137 | AJ91: =OFFSET(calcInput!E$2, ROW()-2+34, 0) -> -0.9699500613 | AK91: =OFFSET(calcInput!E$2, ROW()-2+35, 0) -> -0.925574218 | AL91: =OFFSET(calcInput!E$2, ROW()-2+36, 0) -> -0.8624415629 | AM91: =OFFSET(calcInput!E$2, ROW()-2+37, 0) -> -0.7818314825 | AN91: =OFFSET(calcInput!E$2, ROW()-2+38, 0) -> -0.6853775445 | AO91: =OFFSET(calcInput!E$2, ROW()-2+39, 0) -> -0.5750343933 | AP91: =OFFSET(calcInput!E$2, ROW()-2+40, 0) -> -0.4530381388 | AQ91: =OFFSET(calcInput!E$2, ROW()-2+41, 0) -> -0.3218610418 | AR91: =OFFSET(calcInput!E$2, ROW()-2+42, 0) -> -0.1841614132 | AS91: =OFFSET(calcInput!E$2, ROW()-2+43, 0) -> -0.04272974361 | AT91: =OFFSET(calcInput!E$2, ROW()-2+44, 0) -> 0.0995678466
A92: 90 | B92: =OFFSET(calcInput!E$2, ROW()-2+0, 0) -> 0.2536545839 | C92: =OFFSET(calcInput!E$2, ROW()-2+1, 0) -> 0.3884347963 | D92: =OFFSET(calcInput!E$2, ROW()-2+2, 0) -> 0.5153433563 | E92: =OFFSET(calcInput!E$2, ROW()-2+3, 0) -> 0.6318084552 | F92: =OFFSET(calcInput!E$2, ROW()-2+4, 0) -> 0.7354699214 | G92: =OFFSET(calcInput!E$2, ROW()-2+5, 0) -> 0.8242270496 | H92: =OFFSET(calcInput!E$2, ROW()-2+6, 0) -> 0.8962811717 | I92: =OFFSET(calcInput!E$2, ROW()-2+7, 0) -> 0.9501721071 | J92: =OFFSET(calcInput!E$2, ROW()-2+8, 0) -> 0.984807753 | K92: =OFFSET(calcInput!E$2, ROW()-2+9, 0) -> 0.9994862162 | L92: =OFFSET(calcInput!E$2, ROW()-2+10, 0) -> 0.9939100368 | M92: =OFFSET(calcInput!E$2, ROW()-2+11, 0) -> 0.9681922164 | N92: =OFFSET(calcInput!E$2, ROW()-2+12, 0) -> 0.922853928 | O92: =OFFSET(calcInput!E$2, ROW()-2+13, 0) -> 0.8588139546 | P92: =OFFSET(calcInput!E$2, ROW()-2+14, 0) -> 0.7773700696 | Q92: =OFFSET(calcInput!E$2, ROW()-2+15, 0) -> 0.6801727378 | R92: =OFFSET(calcInput!E$2, ROW()-2+16, 0) -> 0.5691916684 | S92: =OFFSET(calcInput!E$2, ROW()-2+17, 0) -> 0.4466758989 | T92: =OFFSET(calcInput!E$2, ROW()-2+18, 0) -> 0.315108218 | U92: =OFFSET(calcInput!E$2, ROW()-2+19, 0) -> 0.1771548519 | V92: =OFFSET(calcInput!E$2, ROW()-2+20, 0) -> 0.03561143311 | W92: =OFFSET(calcInput!E$2, ROW()-2+21, 0) -> -0.1066536533 | X92: =OFFSET(calcInput!E$2, ROW()-2+22, 0) -> -0.2467573977 | Y92: =OFFSET(calcInput!E$2, ROW()-2+23, 0) -> -0.3818605899 | Z92: =OFFSET(calcInput!E$2, ROW()-2+24, 0) -> -0.5092253566 | AA92: =OFFSET(calcInput!E$2, ROW()-2+25, 0) -> -0.6262706436 | AB92: =OFFSET(calcInput!E$2, ROW()-2+26, 0) -> -0.730624522 | AC92: =OFFSET(calcInput!E$2, ROW()-2+27, 0) -> -0.8201722546 | AD92: =OFFSET(calcInput!E$2, ROW()-2+28, 0) -> -0.8930991518 | AE92: =OFFSET(calcInput!E$2, ROW()-2+29, 0) -> -0.9479273462 | AF92: =OFFSET(calcInput!E$2, ROW()-2+30, 0) -> -0.9835457412 | AG92: =OFFSET(calcInput!E$2, ROW()-2+31, 0) -> -0.9992325283 | AH92: =OFFSET(calcInput!E$2, ROW()-2+32, 0) -> -0.9946698137 | AI92: =OFFSET(calcInput!E$2, ROW()-2+33, 0) -> -0.9699500613 | AJ92: =OFFSET(calcInput!E$2, ROW()-2+34, 0) -> -0.925574218 | AK92: =OFFSET(calcInput!E$2, ROW()-2+35, 0) -> -0.8624415629 | AL92: =OFFSET(calcInput!E$2, ROW()-2+36, 0) -> -0.7818314825 | AM92: =OFFSET(calcInput!E$2, ROW()-2+37, 0) -> -0.6853775445 | AN92: =OFFSET(calcInput!E$2, ROW()-2+38, 0) -> -0.5750343933 | AO92: =OFFSET(calcInput!E$2, ROW()-2+39, 0) -> -0.4530381388 | AP92: =OFFSET(calcInput!E$2, ROW()-2+40, 0) -> -0.3218610418 | AQ92: =OFFSET(calcInput!E$2, ROW()-2+41, 0) -> -0.1841614132 | AR92: =OFFSET(calcInput!E$2, ROW()-2+42, 0) -> -0.04272974361 | AS92: =OFFSET(calcInput!E$2, ROW()-2+43, 0) -> 0.0995678466 | AT92: =OFFSET(calcInput!E$2, ROW()-2+44, 0) -> 0.239847689
A93: 91 | B93: =OFFSET(calcInput!E$2, ROW()-2+0, 0) -> 0.3884347963 | C93: =OFFSET(calcInput!E$2, ROW()-2+1, 0) -> 0.5153433563 | D93: =OFFSET(calcInput!E$2, ROW()-2+2, 0) -> 0.6318084552 | E93: =OFFSET(calcInput!E$2, ROW()-2+3, 0) -> 0.7354699214 | F93: =OFFSET(calcInput!E$2, ROW()-2+4, 0) -> 0.8242270496 | G93: =OFFSET(calcInput!E$2, ROW()-2+5, 0) -> 0.8962811717 | H93: =OFFSET(calcInput!E$2, ROW()-2+6, 0) -> 0.9501721071 | I93: =OFFSET(calcInput!E$2, ROW()-2+7, 0) -> 0.984807753 | J93: =OFFSET(calcInput!E$2, ROW()-2+8, 0) -> 0.9994862162 | K93: =OFFSET(calcInput!E$2, ROW()-2+9, 0) -> 0.9939100368 | L93: =OFFSET(calcInput!E$2, ROW()-2+10, 0) -> 0.9681922164 | M93: =OFFSET(calcInput!E$2, ROW()-2+11, 0) -> 0.922853928 | N93: =OFFSET(calcInput!E$2, ROW()-2+12, 0) -> 0.8588139546 | O93: =OFFSET(calcInput!E$2, ROW()-2+13, 0) -> 0.7773700696 | P93: =OFFSET(calcInput!E$2, ROW()-2+14, 0) -> 0.6801727378 | Q93: =OFFSET(calcInput!E$2, ROW()-2+15, 0) -> 0.5691916684 | R93: =OFFSET(calcInput!E$2, ROW()-2+16, 0) -> 0.4466758989 | S93: =OFFSET(calcInput!E$2, ROW()-2+17, 0) -> 0.315108218 | T93: =OFFSET(calcInput!E$2, ROW()-2+18, 0) -> 0.1771548519 | U93: =OFFSET(calcInput!E$2, ROW()-2+19, 0) -> 0.03561143311 | V93: =OFFSET(calcInput!E$2, ROW()-2+20, 0) -> -0.1066536533 | W93: =OFFSET(calcInput!E$2, ROW()-2+21, 0) -> -0.2467573977 | X93: =OFFSET(calcInput!E$2, ROW()-2+22, 0) -> -0.3818605899 | Y93: =OFFSET(calcInput!E$2, ROW()-2+23, 0) -> -0.5092253566 | Z93: =OFFSET(calcInput!E$2, ROW()-2+24, 0) -> -0.6262706436 | AA93: =OFFSET(calcInput!E$2, ROW()-2+25, 0) -> -0.730624522 | AB93: =OFFSET(calcInput!E$2, ROW()-2+26, 0) -> -0.8201722546 | AC93: =OFFSET(calcInput!E$2, ROW()-2+27, 0) -> -0.8930991518 | AD93: =OFFSET(calcInput!E$2, ROW()-2+28, 0) -> -0.9479273462 | AE93: =OFFSET(calcInput!E$2, ROW()-2+29, 0) -> -0.9835457412 | AF93: =OFFSET(calcInput!E$2, ROW()-2+30, 0) -> -0.9992325283 | AG93: =OFFSET(calcInput!E$2, ROW()-2+31, 0) -> -0.9946698137 | AH93: =OFFSET(calcInput!E$2, ROW()-2+32, 0) -> -0.9699500613 | AI93: =OFFSET(calcInput!E$2, ROW()-2+33, 0) -> -0.925574218 | AJ93: =OFFSET(calcInput!E$2, ROW()-2+34, 0) -> -0.8624415629 | AK93: =OFFSET(calcInput!E$2, ROW()-2+35, 0) -> -0.7818314825 | AL93: =OFFSET(calcInput!E$2, ROW()-2+36, 0) -> -0.6853775445 | AM93: =OFFSET(calcInput!E$2, ROW()-2+37, 0) -> -0.5750343933 | AN93: =OFFSET(calcInput!E$2, ROW()-2+38, 0) -> -0.4530381388 | AO93: =OFFSET(calcInput!E$2, ROW()-2+39, 0) -> -0.3218610418 | AP93: =OFFSET(calcInput!E$2, ROW()-2+40, 0) -> -0.1841614132 | AQ93: =OFFSET(calcInput!E$2, ROW()-2+41, 0) -> -0.04272974361 | AR93: =OFFSET(calcInput!E$2, ROW()-2+42, 0) -> 0.0995678466 | AS93: =OFFSET(calcInput!E$2, ROW()-2+43, 0) -> 0.239847689 | AT93: =OFFSET(calcInput!E$2, ROW()-2+44, 0) -> 0.3752670049
